Workbook

Sheet Disclaimer
A1: CHR TOOLS EVALUATION LICENSE
A3: IMPORTANT --- READ CAREFULLY. This evaluation license agreement ("Agreement") is a legal contract between you (either an individual or a single business entity) and The Center for Hospitality Research at Cornell University ("Licensor") for the software product identified above, which includes computer software and, as applicable, associated media, printed materials, and "online" or electronic documentation (the "Software Application").
A5: BY INSTALLING, COPYING, OR OTHERWISE USING THE SOFTWARE APPLICATION, YOU AGREE TO BE BOUND BY THE TERMS OF THIS AGREEMENT. IF YOU DO NOT AGREE TO THE TERMS OF THIS AGREEMENT, DO NOT INSTALL OR USE THE SOFTWARE APPLICATION.
A7: License Terms
A9: Following acceptance of this Agreement and on-line registration with the Licensor, you may use, strictly for trial use and evaluation purposes only, one copy of the Software Application.
A11: You may not reverse engineer, decompile, disassemble, or otherwise translate the Software Application, except and only to the extent that such activity is expressly permitted by applicable law notwithstanding this limitation.
A13: The Software Application and related user documentation if any are proprietary products of Licensor protected under U.S. copyright law. All right, title, and interest in and to the Software Application, including associated intellectual property rights, are and shall remain with Licensor. This Agreement does not convey to you an interest in or to the Software Application, but only a limited right of use revocable in accordance with the terms of this Agreement.
A15: The Software Application is provided without charge under this evaluation license. The free trial period is of limited duration. Licensor may extend the free trial period, but reserves the right, at any time, to condition access on the payment of charges. Licensor may terminate access to the tool upon 30 days' prior notice.
A17: Licensor will not provide you with support services related to the Software Application, and is under no obligation to do so.
A19: You may not distribute copies of the Software Application to third parties or transfer any rights under this Agreement.
A21: Without prejudice to any other rights, Licensor may terminate this Agreement if you fail to comply with the terms and conditions of this Agreement. In such event, you must destroy all copies of the Software Application and all of its component parts.
A23: Governing Law
A25: This Agreement shall be governed by the laws of the State of New York.
A27: Proprietary Rights
A29: Copyright. All title and copyrights in and to the Software Application (including, without limitation, any images, photographs, animations, video, audio, music, text, and "applets" incorporated into the Software Application), the accompanying media and printed materials, and any copies of the Software Product are owned by Licensor or its suppliers. The Software Application is protected by copyrights laws and international treaty provisions. Therefore, you must treat the software Application like any other copyrighted material, subject to the provisions of this Agreement.
A31: U.S. Government Restricted Rights. The Software Application and documentation are provided with RESTRICTED RIGHTS. Use, duplication, or disclosure by the Government is subject to restrictions as set forth in subparagraph (c)(1)(ii) of the Rights in technical Data and Computer Software clause at DFARS 252.227-7013 or subparagraphs (c) (1) and (2) of the Commercial Computer Software -- Restricted Rights at 48 CFR 52.227-19, as applicable. Manufacturer for such purpose is The Center for Hospitality Research, with offices in the School of Hotel Administration at Cornell University, Ithaca, NY 14853.
A33: Submissions. Should you decide to transmit to Licensor's website by any means or by any media any materials or other information (including, without limitation, ideas, concepts or techniques for new or improved services and products), whether as information, feedback, data, questions, comments, suggestions or the like, you agree such submissions are unrestricted and shall be deemed non-confidential and you automatically grant Licensor and its assigns a non-exclusive, royalty-free, worldwide, perpetual, irrevocable license, with the right to sublicense, to use, copy, transmit, distribute, create derivative works of, display and perform the same.
A35: Disclaimer Of Warranty
A37: THIS SOFTWARE AND THE ACCOMPANYING FILES ARE PROVIDED "AS IS". LICENSOR AND ITS SUPPLIERS DO NOT AND CANNOT WARRANT THE PERFORMANCE OR RESULTS YOU MAY OBTAIN BY USING THE SOFTWARE OR SUCH FILES. LICENSOR AND ITS SUPPLIERS MAKE NO WARRANTIES, EXPRESS OR IMPLIED, AS TO TITLE OR INFRINGEMENT OF THIRD-PARTY RIGHTS, MERCHANTABILITY OR FITNESS FOR ANY PARTICULAR PURPOSE.
A39: Good data processing procedure dictates that any program be thoroughly tested with non-critical data before relying on it. the user must assume the entire risk of using the Software Application. ANY LIABILITY OF LICENSOR FOR A DEFECTIVE COPY OF THE SOFTWARE APPLICATION WILL BE LIMITED EXCLUSIVELY TO REPLACEMENT OF YOUR COPY OF THE SOFTWARE APPLICATION WITH ANOTHER COPY OR REFUND OF THE INITIAL LICENSE FEE LICENSOR RECEIVED FROM YOU FOR THE DEFECTIVE COPY OF THE PRODUCT (IF ANY). IN NO EVENT WILL LICENSOR OR ITS SUPPLIERS BE LIABLE TO YOU FOR ANY CONSEQUENTIAL, INCIDENTAL OR SPECIAL DAMAGES, INCLUDING ANY LOST PROFITS OR LOST SAVINGS, EVEN IF A LICENSOR REPRESENTATIVE HAS BEEN ADVISED OF THE POSSIBILITY OF SUCH DAMAGES, OR FOR ANY CLAIM BY ANY THIRD PARTY.
A41: Some states or jurisdictions do not allow the exclusion or limitation of incidental, consequential or special damages, or the exclusion of implied warranties or limitations on how long a given warranty may last, so the above limitations may not apply to you.
A43: CHR TOOLS END-USER LICENSE
A45: LICENSOR'S PROGRAM IS COPYRIGHTED AND LICENSED (NOT SOLD). LICENSOR DOES NOT SELL OR TRANSFER TITLE TO THE LICENSED PROGRAM TO YOU. YOUR LICENSE OF THE LICENSED PROGRAM WILL NOT COMMENCE UNTIL YOU HAVE REGISTERED WITH LICENSOR, PAID THE LICENSE FEE AND HAVE RECEIVED AN ACTIVATION CODE.
A47: IMPORTANT --- READ CAREFULLY. This evaluation license agreement ("Agreement") is a legal contract between you (either an individual or a single business entity) and The Center for Hospitality Research at Cornell University ("Licensor") for the software product identified above, which includes computer software and, as applicable, associated media, printed materials, and "online" or electronic documentation (the "Software Application").
A49: BY INSTALLING, COPYING, OR OTHERWISE USING THE SOFTWARE APPLICATION, YOU AGREE TO BE BOUND BY THE TERMS OF THIS AGREEMENT. IF YOU DO NOT AGREE TO THE TERMS OF THIS AGREEMENT, DO NOT INSTALL OR USE THE SOFTWARE APPLICATION.
A51: 1. License. In exchange for payment of the license fee, Licensor grants you a nonexclusive license to use the package of computer programs and data in machine-readable form and related materials, including documentation and listings which together constitute the "Licensed Program", subject to the following terms and conditions.
A53: 2. Scope of Rights. You may:
A54: -- Install and execute the Licensed Program on the computer specified in the license registration process, to serve the internal needs of your business;
A55: -- In support of your authorized use of the Licensed Program, store the Licensed Program's machine-readable instructions or data in, transmit it through, and display it on machines associated with the specified computer.
A57: 3. Support. Licensor shall support the Licensed Program without additional charge, by e-mail and by free upgrades of the Licensed Program as they may be issued, for a period of one year following the beginning of the license term. Licensor is not obligated to issue any upgrades of the Licensed Program.
A59: 4. Your Responsibilities:
A61: You are responsible for selecting an operator who is qualified to operate the Licensed Program on your own equipment and who is familiar with the information, calculations, and reports that serve as input and output of the Licensed Program; -- You are solely responsible for payment of any taxes (including sales or use taxes, intangible taxes, and property taxes) resulting from your acceptance of this license and your possession and use of the Licensed Program, exclusive of taxes based on Licensor's income. Licensor reserves the right to have you pay any such taxes as they fall due to Licensor for remittance to the appropriate authority. You agree to hold harmless Licensor from all claims and liability arising from your failure to report or pay such taxes;
A62: You are solely responsible for converting your data files for use with the Licensed Program, and Licensor assumes no responsibility for such conversion;
A63: You are responsible for reasonable backup precautions; Licensor shall have no liability for loss of data or documentation.
A65: 5. Proprietary Protection and Ownership. Licensor is and shall remain the sole and exclusive owner of all right, title and interest in and to the Licensed Program and all modifications and enhancements thereof (including ownership of all trade secrets and copyrights pertaining thereto), subject only to the rights and privileges expressly granted to you herein by Licensor. This Agreement does not provide you with title or ownership of the Licensed Program, but only a right of limited use.
A67: 6. Restrictions on Use of the Licensed Program. You may not:
A69: Use, copy, modify, or distribute the Licensed Program (electronically or otherwise), or any copy, adaptation, transcription, or merged portion thereof, except as expressly authorized by Licensor;
A70: Reverse assemble, reverse compile, or otherwise translate the Licensed Program;
A71: Transfer, lease, assign, or sublicense the Licensed Program except for a transfer of the Licensed Program in its entirety to (1) a successor in interest of your entire business who assumes the obligations of this Agreement or (2) any other party who is reasonably acceptable to Licensor and who enters into a substitute version of this Agreement, and pays an administrative fee intended to cover attendants costs;
A72: Use the Licensed Program for service bureau work, multiple-user license, or time-sharing arrangement;
A73: Install the Licensed Program in any other computer system or use it at any other location without first de-activating the Licensed Program on the computer from which the Licensed Program is to be transferred as provided by the operating instructions.
A75: 7. Infringement. If a third party claims that the Licensed Program infringes its patent, copyright, or trade secret, or any similar intellectual property right, Licensor will defend you against that claim at Licensor's expense and pay all damages that a court finally awards, provided that you promptly notify Licensor in writing of the claim, and allow Licensor to control, and cooperate with Licensor in, the defense or any related settlement negotiations. If such a claim is made or appears possible, you agree to permit Licensor to enable you to continue to use the Licensed Programs, or to modify or replace them. If Licensor determines that none of these alternatives is reasonably available, you agree to return the Licensed Program on Licensor's written request, and you will then receive a credit equal to your net book value for the Licensed Program determined in accordance with generally accepted accounting principles. However, Licensor has no obligation for any claim based on your modification of the Licensed Program or its combination, operation, or use with any product, data, or apparatus not specified or provided by Licensor, provided that such claim solely and necessarily is based on such combination, operation, or use and such claim would be avoided by combination, operation, or use with products, data, or apparatus specified or provided by Licensor. THIS PARAGRAPH STATES LICENSOR'S ENTIRE OBLIGATION TO YOU WITH RESPECT TO ANY CLAIM OF INFRINGEMENT.
A77: 8. Limited Warranty and Limitation of Liability. Licensor warrants, for your benefit alone, that the Licensed Program conforms in all material respects to the specifications for the current version of the Licensed Program.
A79: EXCEPT AS EXPRESSLY SET FORTH IN THIS AGREEMENT, LICENSOR DISCLAIMS ANY AND ALL PROMISES, REPRESENTATIONS, AND WARRANTIES WITH RESPECT TO THE LICENSED PROGRAM, INCLUDING ITS CONDITION, ITS CONFORMITY TO ANY REPRESENTATION OR DESCRIPTION, THE EXISTENCE OF ANY LATENT OR PATENT DEFECTS, ANY NEGLIGENCE, AND ITS MERCHANTABILITY OR FITNESS FOR A PARTICULAR USE.
A81: The cumulative liability of Licensor to you for all claims relating to the Licensed Program and this Agreement, including any cause of action sounding in contract, tort, or strict liability, shall not exceed the total amount of all license fees paid to Licensor hereunder. This limitation of liability is intended to apply without regard to whether other provisions of this Agreement have been breached or have proven ineffective. This limitation of liability shall not apply to the indemnification provided in Section 7 hereof. In no event shall Licensor be liable for any loss of profits; any incidental, special, exemplary, or consequential damages; or any claims or demands brought against you even if Licensor has been advised of the possibility of such claims or demands. This limitation upon damages and claims is intended to apply without regard to whether other provisions of this Agreement have been breached or have proven ineffective.
A83: You may have additional rights under certain laws (e.g., consumer laws) that do not allow the exclusion of implied warranties, or the exclusion or limitation of certain damages. If such laws apply, our exclusions or limitations do not apply to you.
A85: 9. Submissions. Should you decide to transmit to Licensor's website by any means or by any media any materials or other information (including, without limitation, ideas, concepts or techniques for new or improved services and products), whether as information, feedback, data, questions, comments, suggestions or the like, you agree such submissions are unrestricted and shall be deemed non-confidential and you automatically grant Licensor and its assigns a non-exclusive, royalty-free, worldwide, perpetual, irrevocable license, with the right to sublicense, to use, copy, transmit, distribute, create derivative works of, display and perform the same.
A87: 10. Term of Agreement; Termination. Your license of the Licensed Program shall become effective upon delivery of the Licensed Program to you and your payment of the license fee therefore, and shall continue in perpetuity unless terminated as provided herein.
A89: Upon termination of this Agreement, all rights granted to you will terminate and revert to Licensor. Promptly upon termination of this Agreement for any reason or upon discontinuance or abandonment of your possession or use of the Licensed Program, you must return or destroy, as requested by Licensor, all copies of the Licensed Program in your possession (whether modified or unmodified), and all other materials pertaining to the Licensed Program (including all copies thereof). You agree to certify your compliance with such restriction upon Licensor's request.
A91: 11. Miscellaneous.
A93: This Agreement shall be governed by and construed in accordance with the laws of the State of New York.
A94: No modification of this Agreement shall be binding unless it is in writing and is signed by an authorized representative of the party against whom enforcement of the modification is sought.
A95: References to your use or benefit include any subsidiaries you may own directly or indirectly by more than fifth percent (50%), provided that, to the extent of their use and benefit, they comply with the restrictions herein.
A96: Any notices required or permitted under this Agreement shall be in writing and delivered in person or sent by registered or certified mail, return receipt requested, with proper postage affixed.
A97: In the event that any of the terms of this Agreement is or becomes or is declared to be invalid or void by any court or tribunal of competent jurisdiction, such term or terms shall be null and void and shall be deemed severed from this Agreement and all the remaining terms of this Agreement shall remain in full force and effect.
A98: THIS AGREEMENT IS THE COMPLETE AND EXCLUSIVE STATEMENT OF LICENSOR'S OBLIGATIONS AND RESPONSIBILITIES TO YOU AND SUPERSEDES ANY OTHER PROPOSAL, REPRESENTATION OR OTHER COMMUNICATION BY OR ON BEHALF OF LICENSOR RELATING TO THE SUBJECT MATTER HEREOF.

Sheet Switchboard
A1: Wine Cellar Management Tool | AC1: Ordered
A2: [Version 4.0.0. 20 June 2020] | AC2: Purchased in Person
A3: developed by Gary M. Thompson, Ph.D.
A4: for distribution by the
A5: Center for Hospitality Research at Cornell University
A8: Wine Management Actions | C8: Instructions
C9: For detailed instructions on the use of this spreadsheet, please see the CHR Report entitled "Managing a Wine Cellar using a Spreadsheet", by Gary M. Thompson. The report is available free of charge, from the Center for Hospitality Research, at www.chr.cornell.edu. | F9: ̌̌
C12: This spreadsheet is available in two versions. The "Sample" version allows you to examine how the spreadsheet will look after you have entered data on the wines you own. The "Blank" version is the version you should use to enter your own data. When you start using the "Blank" spreadsheet, don't worry that the charts don't look right. Once you start entering data on your wines, the charts will update automatically.
C16: This is the main navigation screen in the spreadsheet. All you really need to do to start using the spreadsheet is to (1) enter a data in the "Initial Cellar Tracking Date" in the yellow-colored cell to the left; (2) specify whether you typically order your wines or purchase them in person; and (3) start entering information about your wine purchases. The buttons at left allow you access to the major functions in the spreadsheet. Please note that for these buttons to work, you will need to "Enable Macros" when you open the spreadsheet.
A19: Data Maintenance Actions
C21: The light-blue-colored tabs contain information on the cellar, in table format. The data in the 'Purchases' sheet and the 'Inventory' sheet can be sorted a variety of ways, using the buttons on those sheets. The yellow-colored tabs are charts. The dark-blue-colored tabs contain data used in generating the charts.
C24: IMPORTANT. If you are upgrading from an earlier version of the tool, it is easy to migrate your data. First, make sure only this file and the old version are open and no other Excel files are open. Second, click the "Import Data" button to the left. Answer "Yes" to the question about importing from an existing file. Third, answer "Yes" to the question about clearing old data. That's it! The import will take some time, depending on how many wines you have, but you'll be able to see the status of the import in Excel's status bar.
A28: Most Wines are… | C28: Questions, comments or suggestions? Email Prof. Thompson at gmt1@cornell.edu.
A29: 1
C30: Spreadsheet Restrictions
A31: Initial Cellar Tracking Date | C31: Limited to 1,000 different wines on-hand (counting vintages separately).
A32: 2007-01-24 | C32: Limited to 2,000 purchases of wine, with existing inventory.
A33: Custom Categorization 1 | C33: Limited to 2,000 purchases of wine, which have been fully consumed.
C34: Limited to 24 tasting notes for each wine purchased.
A35: Custom Categorization 2
C36: Version History
A37: Custom Data Item 1 | C37: 1.0.0. 16 May 2009. Initial release.
C38: 1.0.1. 05 Jan 2010. Fixed bugs with: year rollover; expired wine dates, cellar composition, 'other' vendor purchase counts
A39: Custom Data Item 2
C40: 2.0.0. 01 Aug 2010. Numerous new features and several bug fixes (see below for details).
C41: 2.0.1. 14 Oct 2013. Fixed an error generated by the View Wine Analysis feature.
C42: 2.0.2. 15 Oct 2013. Fixed an error in the update cellar history module.
C43: 2.0.3. 08 Nov 2014. Fixed an error in displaying watch list wines with invalid drink windows.
C44: 3.0.0. 10 Sep 2015. Numerous new features and several bug fixes (see below for details).
C45: 3.0.1. 21 Feb 2016. Fixed several errors related to running analyses on a blank (empty) spreadsheet.
C46: 3.0.2. 21 Feb 2016. Fixed an incorrect error message label regarding an invalid cellar date.
C47: 3.0.3. 25 Feb 2016. Fixed several errors related to running the spreadsheet on non-USA versions of Excel.
C48: 3.0.4. 02 Mar 2016. Fixed: a button size, the x-axis on the Vintage chart and labels on Wine Analysis form.
C49: 3.0.5. 06 Mar 2016. Fixed issues related to the display & print options on the Inventory sheet.
C50: 3.0.6. 21 Mar 2016. Fixed an issue related to the number of wines printed from the Inventory sheet.
C51: 3.1.0. 03 Apr 2016. Added the 'Blts Avl by Yr by Cat' chart.
C52: 3.1.1. 23 Sep 2016. Fixed an issue with more than 17 special designations.
C53: 3.2.0. 20 Jul 2018. New features and bug fixes (see below).
C54: 4.0.0. 30 Dec 2019. Numerous new features and several bug fixes (see below for details).
A56: Version 4 Changes
A57: New Features | B57: 1 | C57: You can now use the tool for planning the decline of the cellar over time (to hit a desired inventory level at some future date)
B58: 2 | C58: For cellar planning, you can define Repeating Purchases (e.g., from winery allocations or mailing lists) via a new form
B59: 3 | C59: A new chart shows the cellar plan costs under restrictions on the Repeating Purchases
B60: 4 | C60: A new chart shows the future year-end inventories and bottles consumed early (related to cellar planning)
B61: 5 | C61: You can now set a 'consume-a-bottle-by' date for each wine
B62: 6 | C62: In the Wine Analysis form, you can now display the 'consume-a-bottle-by' dates
B63: 7 | C63: A new chart shows the distribution of total bottles by bottle price
B64: 8 | C64: A new chart shows the distribution of total value by bottle price
B65: 9 | C65: A new chart shows the percentage of total bottles and cellar value for the 20 wineries with the most bottles
B66: 10 | C66: The Cellar History Pt 3 chart now also displays the number of unique wines in the cellar
B67: 11 | C67: New reports list bottle counts by winery and vintage (accessible via the Wine Analysis form)
B68: 12 | C68: Double-clicking a wine shown in the Wine Analysis form will now show you that wine in the Wine Maintenance form
B69: 13 | C69: Sort options on the Purchases sheet are now listed alphabetically
B70: 14 | C70: The Wine Analysis form allows you to print pull lists based on wines displayed in the form
B71: 15 | C71: You can now print lists of wines from the Wine Analysis form: Watch List wines; Consume-a-Bottle-By wines; High Consumption Rate wines; Predicted Expiry Dates wines; Corked wines; Everyday wines; Reward-Day wines; and Special Occasion wines
B72: 16 | C72: Can now print up to 85 wines on one page from the Inventory tab
B73: 17 | C73: In the Data Maintenance form, selecting bottles-on-hand will now list all wines with that number on-hand
B74: 18 | C74: You can now change the vintage of a purchased wine without changing all such purchases
B75: 19 | C75: You can now change the bottle size of a purchased wine without changing all such purchases
B76: 20 | C76: The Wineries (Value) chart now includes the average rating for each winery
B77: 21 | C77: To ensure data integrity, you must now define a color before saving a wine
B78: 22 | C78: The Wine Maintenance form now indicates if the current wine has any tasting notes
B79: 23 | C79: Tasting Notes listed in the Wine Maintenance form now display over as many lines as necessary to show the entire note
B80: 24 | C80: The Wine Analysis form now allows you to filter wines by country
B81: 25 | C81: Total bottles are now reported on the Wine Analysis form
B82: 26 | C82: The more complex charts now use smaller symbols
B83: 27 | C83: The number of wines reported on the "Cellar History, Pt 3" chart is now based on the wines on the Inventory sheet, not the Purchases sheet
A84: Bug Fixes | B84: 1 | C84: Fixed a problem with the number of special designations in the history chart
B85: 2 | C85: Fixed a problem listing wines by country
B86: 3 | C86: Fixed a problem with changing the vintage of a purchase
B87: 4 | C87: Corrected the bottles on hand count in the Data Items tab
B88: 5 | C88: In the Cellar History Pt 2 chart, the total cellar value is now in integer $ values
B89: 6 | C89: Predicted expiry dates are no longer shown for wines with 0 bottles on hand
B90: 7 | C90: When removing a special designation (SD) via the Data Maintenance form, that SD is removed from the history chart
B91: 8 | C91: Saving a wine now updates the wine's rating on the inventory sheet, if appropriate
B92: 9 | C92: Wines with 0 bottles on hand are no longer shown on the Data Maintenance form
B93: 10 | C93: The Shipping Method field is no longer lost when sorting purchases (on the Purchases sheet)
B94: 11 | C94: Duplicate special designations for a wine cannot be specified and the tool removes earlier duplicates
B95: 12 | C95: Fixed the problem of invalid messages when saving wines with tasting notes
B96: 13 | C96: Fixed the problem of the tasting note list being too short
B97: 14 | C97: Fixed a problem with the date formats of Purchased and Cellared dates on the Purchases sheet
B98: 15 | C98: Removed some color-coding on the Purchases and Inventory sheets because they were applied inconsistently
B99: 16 | C99: Fixed a problem with the "Pick-a-Wine-for-Me" function
B100: 17 | C100: The Needed in the 'Btls Avl by Yr' chart is now based on the most recent 3 months' wine consumption
B101: 18 | C101: Fixed a problem with deleting a Special Designation
B102: 19 | C102: Fixed a problem with the Tasting Notes box appearing too small
B103: 20 | C103: Fixed a problem with invalid messages about Tasting Notes
B104: 21 | C104: Fixed an issue with how the Cellar Date and Purchase Date were displayed on the Purchases sheet
B105: 22 | C105: Fixed a problem with "FALSE" appearing as a Special Designation
B106: 23 | C106: Fixed a problem with "place holder" appearing in the list of countries and in the "Countries" and "Cellar History, Countries" charts
A108: Version 3.2 Changes
A109: New Features | B109: 1 | C109: New chart: Bottles by Price
B110: 2 | C110: New chart: Verticals
B111: 3 | C111: New chart: wineries with the 20 top dollar values in inventory
B112: 4 | C112: 3rd special designation for a wine
B113: 5 | C113: Data Maintenance form lists bottles-on-hand
B114: 6 | C114: Country chart shows $ percentage by country
B115: 7 | C115: Wine Maintenance form now lists the price / bottle
B116: 8 | C116: Sorting the Inventory sheet by Verticals
B117: 9 | C117: Verticals is an option on the Data Maintenance form, and lists wines matching the selected vertical number
B118: 10 | C118: The Rating Score chart has a CDF based on score
A119: Bug Fixes | B119: 1 | C119: Corrected the Average $/bottle for the Standard Bottle Equivalents
B120: 2 | C120: Removed an invalid message when the last bottle of a wine is removed from inventory
B121: 3 | C121: Addressed a problem with sorting on the Inventory Sheet
A123: Version 3 Changes
A124: New Features | B124: 1 | C124: New chart: bottles available by year, by wine color.
B125: 2 | C125: New history chart: cellar composition by country.
B126: 3 | C126: New history chart: special designations.
B127: 4 | C127: New history chart: inventory composition (short/med/long hold)
B128: 5 | C128: New history chart component: number of different wines in the cellar.
B129: 6 | C129: Wines can now have two special designations.
B130: 7 | C130: New data field for wine purchases: shipping method.
B131: 8 | C131: Corked wines can now be analyzed by Closure, Shipping Method, Varietal, Vendor, Vintage & Winery.
B132: 9 | C132: Can now sort inventory by country.
B133: 10 | C133: Can now flag a wine as "long hold", which is useful for printing inventory reports.
B134: 11 | C134: Can now show all wines, only long-hold, or only non-hold wines on the inventory sheet.
B135: 12 | C135: Can now sort the inventory by cellar location.
B136: 13 | C136: Can now use the tab key to move the next field in the Add Wine and Wine Maintenance forms.
B137: 14 | C137: Reorganized the layout of the Inventory worksheet, with functions now accessible via radio buttons.
B138: 15 | C138: The forms now appear on the same screen as the spreadsheet itself.
B139: 16 | C139: There is a new Edit option on the Data Maintenance form.
B140: 17 | C140: Double-clicking a Special Designation, Rating Source, Region, or Exact Origin on the Data Maintenance form now displays matching wines.
B141: 18 | C141: The cellared date must now fall on or after the purchase date.
B142: 19 | C142: Wines approaching the end of or past their drink windows are now color coded on the inventory sheet.
B143: 20 | C143: When importing data from earlier versions of the spreadsheet, you are now given the option of correcting date discrepancies.
B144: 21 | C144: Changed the size of the line and markers on the Cellar History, Pt 3 worksheet.
B145: 22 | C145: Changed the size of the lines and markers on the Cellar History, Pt 2 worksheet.
B146: 23 | C146: Changed the size of the markers on the Cellar History, Pt 1 worksheet.
B147: 24 | C147: Changed the orientation of the x-axis labels on the Special Designations chart.
B148: 25 | C148: Reoriented the x-axis labels on the Varietal chart.
B149: 26 | C149: The default response on changing a rater for a wine is No (i.e., the change only applies to the current wine).
B150: 27 | C150: Changing a rater for a wine now asks again if the answer is Yes (i.e., the change applies to all wines).
B151: 28 | C151: You can specify the number of wines to print (between 20-75) using the "Print One Page" button.
A152: Bug Fixes | B152: 1 | C152: Fixed a file directory issue when importing data from an earlier version of the tool
B153: 2 | C153: Fixed a problem of duplicate exact origins being created
B154: 3 | C154: Fixed a problem with Importing data from versions 2.0.1 or 2.0.2
B155: 4 | C155: Changing a rating score of a wine now propagates appropriately
B156: 5 | C156: "Pick a wine for me" now does not pick the same wine twice in a row
B157: 6 | C157: Changing a winery name didn't save the changes correctly
B158: 7 | C158: Fixed a problem with importing data from an earlier version not correctly displaying the bottles available by year chart
B159: 8 | C159: Wines that have been fully consumed are now removed from the inventory list
B160: 9 | C160: Fixed a problem of hidden rows in the Inventory sheet
B161: 10 | C161: Fixed a problem with the calculation of the 3-month average bottles per week
B162: 11 | C162: Improved the labels for some unclear spreadsheet cells
B163: 12 | C163: Fixed a problem of updating the spreadsheet at the end of a month that was followed by a month with fewer days
A165: Version 2 Changes
A166: New Features | B166: 1 | C166: New data field: location in cellar (bin, off-site, etc)
B167: 2 | C167: New data field: corked count
B168: 3 | C168: New data field: closure (natural cork, synthetic cork, screwtop,....]
B169: 4 | C169: New data field: current value
B170: 5 | C170: New data field: multiple ratings for each wine (up to 3)
B171: 6 | C171: New data field: color [red/rose,white,sparkling,etc]
B172: 7 | C172: New data field: region
B173: 8 | C173: New data field: exact origin
B174: 9 | C174: New data field: custom category 1 [e.g., maturation time in barriques]
B175: 10 | C175: New data field: custom category 2 [e.g., harvest time--late harvest, eiswein, auslese, etc]
B176: 11 | C176: New data field: custom data 1
B177: 12 | C177: New data field: custom data 2
B178: 13 | C178: New sorting: by price on the Inventory sheet
B179: 14 | C179: New sorting: by score on the Inventory sheet
B180: 15 | C180: New sorting: by vintage on the Inventory sheet
B181: 16 | C181: New sorting: by varietal on the Inventory sheet
B182: 17 | C182: New sorting: by vintage on the Purchases sheet
B183: 18 | C183: New sorting: by varietal on the Purchases sheet
B184: 19 | C184: New sorting: by filter by price [everyday, reward day, special] on the Wine Analysis form
B185: 20 | C185: New sorting: by list all wines by specific varietals on the Wine Analysis form
B186: 21 | C186: New sorting: by color on the Wine Analysis form
B187: 22 | C187: New sorting: by price on the Wine Analysis form
B188: 23 | C188: New chart: wine color
B189: 24 | C189: New chart: closure
B190: 25 | C190: New chart: custom category 1
B191: 26 | C191: New chart: custom category 2
B192: 27 | C192: New tracking over time: consumption rate by month
B193: 28 | C193: New tracking over time: average score
B194: 29 | C194: New tracking over time: cellar value
B195: 30 | C195: Random wine recommendation (based on drink-now scores)
B196: 31 | C196: Wine score reported can be based on the highest, average or priority order
B197: 32 | C197: Corked wines now tracked in the Wine Analysis form
B198: 33 | C198: Other currency options (instead of just $)
B199: 34 | C199: Wine analysis form now reports the # of bottles of wine in the everyday/reward/special occasion categories
B200: 35 | C200: Wine analysis form now reports estimated expiry dates for wine in the everyday/reward/special occasion categories
B201: 36 | C201: Shopping list of wines (new form and data sheet)
B202: 37 | C202: Uses 3-month average consumption rate for expiry-date predictions
A203: Bug Fixes | B203: 1 | C203: Not being able to change country of wine
B204: 2 | C204: Drink-through changes not populating
B205: 3 | C205: Color-coding the wrong cell when wine added with zero inventory
B206: 4 | C206: Not updating wine when vendor changed
B207: 5 | C207: Not updating wine when price changed
B208: 6 | C208: Retaining the color-coding of cellar date, when a wine was modified, even though already cellared
B209: 7 | C209: Color-coding of drink-through and drink-from cells not correct when values change
B210: 8 | C210: Year rollover: not removing outdated color-coding in the "drink from" column of the "inventory" form
B211: 9 | C211: Year rollover: not removing color coding/add color coding on Inventory sheet for drink-from in future
B212: 10 | C212: Calculating negative drink-now scores (if the drink-from year had passed)

Sheet Summary Stats
A1: Purchased Wines | D1: Rating Score | E1: # Bottles | F1: % | H1: Price Per Bottle | I1: # Wines | J1: # Bottles | L1: Bottles On-Hand | M1: # Wines | O1: Vertical | P1: # Wines
A2: Actual Bottles … | D2: >= 95 | E2: =F2*'Data Items'!$AK$48 -> 316 | F2: =SUM('Data Items'!I3:I8) -> 0.4276048714 | H2: < $10 | I2: =COUNTIF(Inventory!$L$2:$L$1000,N3) -> 0 | J2: =SUMIF(Inventory!$L$2:$L$1000,N3,Inventory!$H$2:$H$1000) -> 0 | L2: 1 | M2: =COUNTIF(Inventory!$H$2:$H$1000,L2) -> 39 | O2: 1 | P2: =COUNTIF(Inventory!$B$2:$B$1000,O2)/O2 -> 102 | Q2: =IF(P2>0,O2,0) -> 1
A3: Average $/Bottle | B3: =(SUMPRODUCT(Purchases!G3:G2002,Purchases!K3:K2002,Purchases!O3:O2002)+SUMPRODUCT('Fully Consumed'!G2:G2001,'Fully Consumed'!K2:K2001,'Fully Consumed'!O2:O2001))/(SUMPRODUCT(Purchases!K3:K2002,Purchases!O3:O2002)+SUMPRODUCT('Fully Consumed'!K2:K2001,'Fully Consumed'!O2:O2001)) -> 50.68119557 | D3: >= 94 | E3: =F3*'Data Items'!$AK$48 -> 407 | F3: =SUM('Data Items'!I3:I9) -> 0.550744249 | H3: $10-$15 | I3: =COUNTIF(Inventory!$L$2:$L$1000,N4)-SUM($I$2:I2) -> 1 | J3: =SUMIF(Inventory!$L$2:$L$1000,N4,Inventory!$H$2:$H$1000)-SUM($J$2:J2) -> 1 | L3: 2 | M3: =COUNTIF(Inventory!$H$2:$H$1000,L3) -> 48 | N3: <10 | O3: 2 | P3: =COUNTIF(Inventory!$B$2:$B$1000,O3)/O3 -> 26 | Q3: =IF(P3>0,O3,0) -> 2
A4: Average Rating Score per Bottle | B4: =(SUMPRODUCT(Purchases!H3:H2002,Purchases!K3:K2002,Purchases!P3:P2002)+SUMPRODUCT('Fully Consumed'!H2:H2001,'Fully Consumed'!K2:K2001,'Fully Consumed'!P2:P2001))/(SUMPRODUCT(Purchases!K3:K2002,Purchases!P3:P2002)+SUMPRODUCT('Fully Consumed'!K2:K2001,'Fully Consumed'!P2:P2001)) -> 93.64835165 | D4: >= 93 | E4: =F4*'Data Items'!AK48 -> 545 | F4: =SUM('Data Items'!I3:I10) -> 0.7374830853 | H4: $15-$20 | I4: =COUNTIF(Inventory!$L$2:$L$1000,N5)-SUM($I$2:I3) -> 8 | J4: =SUMIF(Inventory!$L$2:$L$1000,N5,Inventory!$H$2:$H$1000)-SUM($J$2:J3) -> 39 | L4: 3 | M4: =COUNTIF(Inventory!$H$2:$H$1000,L4) -> 40 | N4: <15 | O4: 3 | P4: =COUNTIF(Inventory!$B$2:$B$1000,O4)/O4 -> 6 | Q4: 3
A5: # Bottles | B5: =SUM(Purchases!K3:K2002)+SUM('Fully Consumed'!K2:K2001) -> 1001 | D5: >= 92 | E5: =F5*'Data Items'!AK48 -> 667 | F5: =SUM('Data Items'!I3:I11) -> 0.9025710419 | H5: $20-$25 | I5: =COUNTIF(Inventory!$L$2:$L$1000,N6)-SUM($I$2:I4) -> 5 | J5: =SUMIF(Inventory!$L$2:$L$1000,N6,Inventory!$H$2:$H$1000)-SUM($J$2:J4) -> 21 | L5: 4 | M5: =COUNTIF(Inventory!$H$2:$H$1000,L5) -> 18 | N5: <20 | O5: 4 | P5: =COUNTIF(Inventory!$B$2:$B$1000,O5)/O5 -> 3 | Q5: 4
A6: Standard Bottle Equivalents … | D6: <= 89 | E6: =F6*'Data Items'!AK48 -> 5 | F6: =SUM('Data Items'!I14:I23) -> 0.006765899865 | H6: $25-$30 | I6: =COUNTIF(Inventory!$L$2:$L$1000,N7)-SUM($I$2:I5) -> 11 | J6: =SUMIF(Inventory!$L$2:$L$1000,N7,Inventory!$H$2:$H$1000)-SUM($J$2:J5) -> 66 | L6: 5 | M6: =COUNTIF(Inventory!$H$2:$H$1000,L6) -> 8 | N6: <25 | O6: 5 | P6: =COUNTIF(Inventory!$B$2:$B$1000,O6)/O6 -> 0 | Q6: 0
A7: Average $/Bottle | B7: =(SUMPRODUCT(Purchases!G3:G2001,Purchases!K3:K2001,Purchases!O3:O2001,Purchases!F3:F2001)+SUMPRODUCT('Fully Consumed'!G2:G2003,'Fully Consumed'!K2:K2003,'Fully Consumed'!O2:O2003,'Fully Consumed'!F2:F2003))/(SUMPRODUCT(Purchases!K3:K2001,Purchases!O3:O2001,Purchases!F3:F2001)+SUMPRODUCT('Fully Consumed'!K2:K2003,'Fully Consumed'!O2:O2003,'Fully Consumed'!F2:F2003)) -> 51.70666138 | D7: <= 88 | E7: =F7*'Data Items'!AK48 -> 5 | F7: =SUM('Data Items'!I15:I23) -> 0.006765899865 | H7: $30-$35 | I7: =COUNTIF(Inventory!$L$2:$L$1000,N8)-SUM($I$2:I6) -> 16 | J7: =SUMIF(Inventory!$L$2:$L$1000,N8,Inventory!$H$2:$H$1000)-SUM($J$2:J6) -> 69 | L7: 6 | M7: =COUNTIF(Inventory!$H$2:$H$1000,L7) -> 18 | N7: <30 | O7: 6 | P7: =COUNTIF(Inventory!$B$2:$B$1000,O7)/O7 -> 1 | Q7: 6
A8: Average Rating Score per Bottle | B8: =(SUMPRODUCT(Purchases!H3:H2001,Purchases!K3:K2001,Purchases!P3:P2001,Purchases!F3:F2001)+SUMPRODUCT('Fully Consumed'!H2:H2003,'Fully Consumed'!L2:L2003,'Fully Consumed'!Q2:Q2003,'Fully Consumed'!F2:F2003))/(SUMPRODUCT(Purchases!K3:K2001,Purchases!P3:P2001,Purchases!F3:F2001)+SUMPRODUCT('Fully Consumed'!L2:L2003,'Fully Consumed'!Q2:Q2003,'Fully Consumed'!F2:F2003)) -> 93.64260652 | D8: < 88 | E8: =F8*'Data Items'!AK48 -> 0 | F8: =SUM('Data Items'!I16:I23) -> 0 | H8: $35-$40 | I8: =COUNTIF(Inventory!$L$2:$L$1000,N9)-SUM($I$2:I7) -> 17 | J8: =SUMIF(Inventory!$L$2:$L$1000,N9,Inventory!$H$2:$H$1000)-SUM($J$2:J7) -> 91 | L8: 7 | M8: =COUNTIF(Inventory!$H$2:$H$1000,L8) -> 3 | N8: <35 | O8: 7 | P8: =COUNTIF(Inventory!$B$2:$B$1000,O8)/O8 -> 1 | Q8: 7
A9: # Bottles | B9: =(SUMPRODUCT(Purchases!K3:K2001,Purchases!F3:F2001)+SUMPRODUCT('Fully Consumed'!K2:K2003,'Fully Consumed'!F2:F2003))/0.75 -> 997.5 | H9: $40-$50 | I9: =COUNTIF(Inventory!$L$2:$L$1000,N10)-SUM($I$2:I8) -> 37 | J9: =SUMIF(Inventory!$L$2:$L$1000,N10,Inventory!$H$2:$H$1000)-SUM($J$2:J8) -> 121 | L9: 8 | M9: =COUNTIF(Inventory!$H$2:$H$1000,L9) -> 2 | N9: <40 | O9: 8 | P9: =COUNTIF(Inventory!$B$2:$B$1000,O9)/O9 -> 0 | Q9: 0
H10: $50-$75 | I10: =COUNTIF(Inventory!$L$2:$L$1000,N11)-SUM($I$2:I9) -> 41 | J10: =SUMIF(Inventory!$L$2:$L$1000,N11,Inventory!$H$2:$H$1000)-SUM($J$2:J9) -> 159 | L10: 9 | M10: =COUNTIF(Inventory!$H$2:$H$1000,L10) -> 3 | N10: <50 | O10: 9 | P10: =COUNTIF(Inventory!$B$2:$B$1000,O10)/O10 -> 0 | Q10: 0
H11: $75-$100 | I11: =COUNTIF(Inventory!$L$2:$L$1000,N12)-SUM($I$2:I10) -> 43 | J11: =SUMIF(Inventory!$L$2:$L$1000,N12,Inventory!$H$2:$H$1000)-SUM($J$2:J10) -> 130 | L11: 10 | M11: =COUNTIF(Inventory!$H$2:$H$1000,L11) -> 4 | N11: <75 | O11: 10 | P11: =COUNTIF(Inventory!$B$2:$B$1000,O11)/O11 -> 0 | Q11: 0
A12: On-Hand Wines | H12: $100-$150 | I12: =COUNTIF(Inventory!$L$2:$L$1000,N13)-SUM($I$2:I11) -> 13 | J12: =SUMIF(Inventory!$L$2:$L$1000,N13,Inventory!$H$2:$H$1000)-SUM($J$2:J11) -> 36 | L12: 11 | M12: =COUNTIF(Inventory!$H$2:$H$1000,L12) -> 8 | N12: <100 | O12: 11 | P12: =COUNTIF(Inventory!$B$2:$B$1000,O12)/O12 -> 0 | Q12: 0
A13: Actual Bottles … | H13: $150-$250 | I13: =COUNTIF(Inventory!$L$2:$L$1000,N14)-SUM($I$2:I12) -> 3 | J13: =SUMIF(Inventory!$L$2:$L$1000,N14,Inventory!$H$2:$H$1000)-SUM($J$2:J12) -> 4 | L13: 12 | M13: =COUNTIF(Inventory!$H$2:$H$1000,L13) -> 6 | N13: <150 | O13: 12 | P13: =COUNTIF(Inventory!$B$2:$B$1000,O13)/O13 -> 0 | Q13: 0
A14: # Bottles | B14: =SUM(Purchases!M3:M2002) -> 739 | H14: $250-$500 | I14: =COUNTIF(Inventory!$L$2:$L$1000,N15)-SUM($I$2:I13) -> 2 | J14: =SUMIF(Inventory!$L$2:$L$1000,N15,Inventory!$H$2:$H$1000)-SUM($J$2:J13) -> 2 | L14: 13 | M14: =COUNTIF(Inventory!$H$2:$H$1000,L14) -> 0 | N14: <250 | O14: 13 | P14: =COUNTIF(Inventory!$B$2:$B$1000,O14)/O14 -> 0 | Q14: 0
A15: Average $ | B15: =SUMPRODUCT(Purchases!G3:G2002,Purchases!M3:M2002,Purchases!O3:O2002)/SUMPRODUCT(Purchases!M3:M2002,Purchases!O3:O2002) -> 54.39512474 | H15: $500-$1,000 | I15: =COUNTIF(Inventory!$L$2:$L$1000,N16)-SUM($I$2:I14) -> 0 | J15: =SUMIF(Inventory!$L$2:$L$1000,N16,Inventory!$H$2:$H$1000)-SUM($J$2:J14) -> 0 | L15: 14 | M15: =COUNTIF(Inventory!$H$2:$H$1000,L15) -> 0 | N15: <500 | O15: 14 | P15: =COUNTIF(Inventory!$B$2:$B$1000,O15)/O15 -> 0 | Q15: 0
A16: Average Rating Score | B16: =SUMPRODUCT(Purchases!H3:H2002,Purchases!M3:M2002,Purchases!P3:P2002)/SUMPRODUCT(Purchases!M3:M2002,Purchases!P3:P2002) -> 93.95128552 | H16: > $1,000 | I16: =COUNTIF(Inventory!$L$2:$L$1000,N17) -> 0 | J16: =SUMIF(Inventory!$L$2:$L$1000,N17,Inventory!$H$2:$H$1000) -> 0 | L16: 15 | M16: =COUNTIF(Inventory!$H$2:$H$1000,L16) -> 0 | N16: <1000 | O16: 15 | P16: =COUNTIF(Inventory!$B$2:$B$1000,O16)/O16 -> 0 | Q16: 0
A17: Average Age (Days) | B17: =B18*365 -> 2651.02638 | L17: 16 | M17: =COUNTIF(Inventory!$H$2:$H$1000,L17) -> 0 | N17: >=1000 | O17: 16 | P17: =COUNTIF(Inventory!$B$2:$B$1000,O17)/O17 -> 0 | Q17: 0
A18: Average Age (Years) | B18: ='Data Items'!AK47 -> 7.263085971 | L18: 17 | M18: =COUNTIF(Inventory!$H$2:$H$1000,L18) -> 0 | O18: 17 | P18: =COUNTIF(Inventory!$B$2:$B$1000,O18)/O18 -> 0 | Q18: 0
A19: Zero-Inventory Date | B19: =NOW()+B14*7/BottlesPerWeek -> 2059-05-04T22:28:04.047 | L19: 18 | M19: =COUNTIF(Inventory!$H$2:$H$1000,L19) -> 0 | O19: 18 | P19: =COUNTIF(Inventory!$B$2:$B$1000,O19)/O19 -> 0 | Q19: 0
A20: Bottles Consumed per Week | B20: =(B5-B14-SUMIF(Purchases!J3:J2002,"",Purchases!K3:K2002))/(NOW()-CellarTrackingDt)*7 -> 0.3669751455 | L20: 19 | M20: =COUNTIF(Inventory!$H$2:$H$1000,L20) -> 0 | O20: 19 | P20: =COUNTIF(Inventory!$B$2:$B$1000,O20)/O20 -> 0 | Q20: 0
A21: 3-Mnth Avg Btls per Week | B21: =IF(ISERR(C21),0.01,C21) -> 3.033333257 | C21: =(OFFSET('Data Items'!$AU$25,CellarUpdateCount,0)+OFFSET('Data Items'!$AU$25,CellarUpdateCount-1,0)+OFFSET('Data Items'!$AU$25,CellarUpdateCount-2,0))/3*7 -> 3.033333257 | L21: 20 | M21: =COUNTIF(Inventory!$H$2:$H$1000,L21) -> 0 | O21: 20 | P21: =COUNTIF(Inventory!$B$2:$B$1000,O21)/O21 -> 0 | Q21: 0
A22: Total $ | B22: =B14*B15 -> 40197.99718 | L22: 21 | M22: =COUNTIF(Inventory!$H$2:$H$1000,L22) -> 0 | O22: 21 | P22: =COUNTIF(Inventory!$B$2:$B$1000,O22)/O22 -> 0 | Q22: 0
A23: Standard Bottle Equivalents … | L23: 22 | M23: =COUNTIF(Inventory!$H$2:$H$1000,L23) -> 0 | O23: 22 | P23: =COUNTIF(Inventory!$B$2:$B$1000,O23)/O23 -> 0 | Q23: 0
A24: # Bottles | B24: =SUMPRODUCT(Purchases!M3:M2002,Purchases!F3:F2002)/0.75 -> 739.1666667 | L24: 23 | M24: =COUNTIF(Inventory!$H$2:$H$1000,L24) -> 0 | O24: 23 | P24: =COUNTIF(Inventory!$B$2:$B$1000,O24)/O24 -> 0 | Q24: 0
A25: Average $ | B25: =SUMPRODUCT(Purchases!G3:G2002,Purchases!M3:M2002,Purchases!O3:O2002,Purchases!F3:F2002)/SUMPRODUCT(Purchases!M3:M2002,Purchases!O3:O2002,Purchases!F3:F2002) -> 55.74884724 | L25: 24 | M25: =COUNTIF(Inventory!$H$2:$H$1000,L25) -> 0 | O25: 24 | P25: =COUNTIF(Inventory!$B$2:$B$1000,O25)/O25 -> 0 | Q25: 0
A26: Average Rating Score | B26: =SUMPRODUCT(Purchases!H3:H2001,Purchases!M3:M2001,Purchases!P3:P2001,Purchases!F3:F2001)/SUMPRODUCT(Purchases!M3:M2001,Purchases!P3:P2001,Purchases!F3:F2001) -> 93.94656144 | L26: > 24 | M26: =COUNTIF(Inventory!$H$2:$H$1000,L26) -> 0 | O26: 25 | P26: =COUNTIF(Inventory!$B$2:$B$1000,O26)/O26 -> 0 | Q26: 0
O27: 26 | P27: =COUNTIF(Inventory!$B$2:$B$1000,O27)/O27 -> 0 | Q27: 0
A28: On-Order Wines | O28: 27 | P28: =COUNTIF(Inventory!$B$2:$B$1000,O28)/O28 -> 0 | Q28: 0
A29: On-Order # Bottles | B29: =SUMIF(Purchases!J3:J2002,"",Purchases!K3:K2002) -> 0 | O29: 28 | P29: =COUNTIF(Inventory!$B$2:$B$1000,O29)/O29 -> 0 | Q29: 0
O30: 29 | P30: =COUNTIF(Inventory!$B$2:$B$1000,O30)/O30 -> 0 | Q30: 0
O31: 30 | P31: =COUNTIF(Inventory!$B$2:$B$1000,O31)/O31 -> 0 | Q31: 0
Q32: =MAX(Q2:Q31) -> 7

Sheet Purchases
A2: Winery | B2: Year | C2: Detailed Varietal Info | D2: Varietal Type | E2: Wine Name | F2: Bottle Size | G2: Price (inclusive) | H2: Rating Score | I2: Purchase Date | J2: Cellar Date | K2: # Bottles | L2: Purchased From | M2: On-Hand | N2: Purchase Val On-Hand | O2: Include Cost | P2: Include Score | Q2: Score * Include | R2: Bin # | S2: Closure | T2: # Corked | U2: Combined Reference | V2: Referenc Check | W2: Unusd | X2: Date 1 | Y2: Taste Note 1 | Z2: Date 2 | AA2: Taste Note 2 | AB2: Date 3 | AC2: Taste Note 3 | AD2: Date 4 | AE2: Taste Note 4 | AF2: Date 5 | AG2: Taste Note 5 | AH2: Date 6 | AI2: Taste Note 6 | AJ2: Date 7 | AK2: Taste Note 7 | AL2: Date 8 | AM2: Taste Note 8 | AN2: Date 9 | AO2: Taste Note 9 | AP2: Date 10 | AQ2: Taste Note 10 | AR2: Date 11 | AS2: Taste Note 11 | AT2: Date 12 | AU2: Taste Note 12 | AV2: Date 13 | AW2: Taste Note 13 | AX2: Date 14 | AY2: Taste Note 14 | AZ2: Date 15 | BA2: Taste Note 15 | BB2: Date 16 | BC2: Taste Note 16 | BD2: Date 17 | BE2: Taste Note 17 | BF2: Date 18 | BG2: Taste Note 18 | BH2: Date 19 | BI2: Taste Note 19 | BJ2: Date 20 | BK2: Taste Note 20 | BL2: Date 21 | BM2: Taste Note 21 | BN2: Date 22 | BO2: Taste Note 22 | BP2: Date 23 | BQ2: Taste Note 23 | BR2: Date 24 | BS2: Taste Note 24 | BT2: Shipping Method | BU2: Rtg*BOH | BV2: Color | DP2: Rnd | DQ2: Ttl
A3: Vecchia Cantina di Montelpulciano | B3: 2006 | C3: Sangiovese | D3: Sangiovese | E3: Vino Nobile di Montepulciano Redi Argo et Non Briareo Riserva | F3: 0.75 | G3: 20.69519474 | H3: 93 | I3: 2013-04-18 | J3: 2013-04-19 | K3: 12 | L3: Vendor 86 | M3: 2 | N3: =M3*G3 -> 41.39038948 | O3: 1 | P3: 1 | Q3: =H3*P3 -> 93 | R3: E-L1-1 | T3: 0 | U3: =A3&" | "&B3&" | "&C3&" | "&E3&" | "&F3&" L" -> Vecchia Cantina di Montelpulciano | 2006 | Sangiovese | Vino Nobile di Montepulciano Redi Argo et Non Briareo Riserva | 0.75 L | V3: =MATCH(U3,Inventory!$A$2:$A$2000,0) -> 4 | BU3: =H3*M3 -> 186 | BV3: Red | DP3: 0.0007866390048 | DQ3: =M3+DP3 -> 2.000786639
A4: Turley | B4: 2019 | C4: Cinsault | D4: Cinsault | E4: Bechtholdt Vineyard Cinsault | F4: 0.75 | G4: 29.56813059 | H4: 90 | I4: 2020-04-29 | J4: 2020-05-14 | K4: 4 | L4: Vendor 63 | M4: 3 | N4: 88.70439177 | O4: 1 | P4: 1 | Q4: 90 | T4: 0 | U4: Turley | 2019 | Cinsault | Bechtholdt Vineyard Cinsault | 0.75 L | V4: =MATCH(U4,Inventory!$A$2:$A$2001,0) -> 25 | BT4: Ground | BV4: Red | DP4: 0.0002018325814 | DQ4: =M4+DP4 -> 3.000201833
A5: Torrin Vineyard | B5: 2016 | C5: Syrah | D5: Shiraz/Syrah | E5: Akasha Syrah | F5: 0.75 | G5: 106.9929173 | H5: 92 | I5: 2019-09-24 | J5: 2019-11-06 | K5: 2 | L5: Vendor 80 | M5: 2 | N5: 213.9858346 | O5: 1 | P5: 1 | Q5: 92 | T5: 0 | U5: Torrin Vineyard | 2016 | Syrah | Akasha Syrah | 0.75 L | V5: =MATCH(U5,Inventory!$A$2:$A$2001,0) -> 58 | BT5: Ground | BU5: =H5*M5 -> 184 | BV5: Red | DP5: 0.000921056339 | DQ5: 2.000921056
A6: Thomas Goss | B6: 2010 | C6: Shiraz | D6: Shiraz/Syrah | E6: Shiraz | F6: 0.75 | G6: 14.35486544 | H6: 91 | I6: 2012-09-06 | J6: 2012-09-13 | K6: 24 | L6: Vendor 24 | M6: 1 | N6: 14.35486544 | O6: 1 | P6: 1 | Q6: 91 | R6: AL-N-L6-1 | T6: 0 | U6: Thomas Goss | 2010 | Shiraz | Shiraz | 0.75 L | V6: =MATCH(U6,Inventory!$A$2:$A$2000,0) -> 6 | BT6: Ground | BU6: 91 | BV6: Red | DP6: 0.000990349565 | DQ6: 1.00099035
A7: Thomas | B7: 2016 | C7: Pinot Noir | D7: Pinot Noir | E7: Pinot Noir, Dundee Hills | F7: 0.75 | G7: 70.2142872 | H7: 94 | I7: 2018-10-15 | J7: 2018-11-29 | K7: 4 | L7: Vendor 80 | M7: 4 | N7: 280.8571488 | O7: 1 | P7: 1 | Q7: 94 | S7: Cork (Natural) | T7: 0 | U7: Thomas | 2016 | Pinot Noir | Pinot Noir, Dundee Hills | 0.75 L | V7: =MATCH(U7,Inventory!$A$2:$A$2000,0) -> 12 | BU7: 376 | BV7: Red | DP7: 0.0003488615434 | DQ7: 4.000348862
A8: Thomas | B8: 2015 | C8: Pinot Noir | D8: Pinot Noir | E8: Pinot Noir, Dundee Hills | F8: 0.75 | G8: 66.65575361 | H8: 93 | I8: 2017-09-15 | J8: 2018-05-14 | K8: 4 | L8: Vendor 80 | M8: 4 | N8: 266.6230144 | O8: 1 | P8: 1 | Q8: 93 | S8: Cork (Natural) | T8: 0 | U8: Thomas | 2015 | Pinot Noir | Pinot Noir, Dundee Hills | 0.75 L | V8: =MATCH(U8,Inventory!$A$2:$A$2000,0) -> 21 | BU8: 372 | BV8: Red | DP8: 0.0009140709128 | DQ8: 4.000914071
A9: Tardieu-Laurent | B9: 2005 | C9: Chateauneuf Du Pape | D9: Grenache Blend | E9: Chateauneuf du Pape Vielles Vignes | F9: 0.75 | G9: 55.8190952 | H9: 88 | I9: 2008-02-14 | J9: 2008-02-14 | K9: 12 | L9: Vendor 65 | M9: 5 | N9: 279.095476 | O9: 1 | P9: 1 | Q9: 88 | R9: AL-E-L1-2 | S9: Cork (TBD) | T9: 0 | U9: Tardieu-Laurent | 2005 | Chateauneuf Du Pape | Chateauneuf du Pape Vielles Vignes | 0.75 L | V9: =MATCH(U9,Inventory!$A$2:$A$2000,0) -> 110 | BT9: Ground | BU9: 440 | BV9: Red | DP9: 0.0009471947816 | DQ9: 5.000947195
A10: Sordo | B10: 2013 | C10: Barolo | D10: Nebbiolo | E10: Gabutti' Barolo | F10: 0.75 | G10: 40.12009834 | H10: 90 | I10: 2018-11-22 | J10: 2018-11-28 | K10: 6 | L10: Vendor 24 | M10: 6 | N10: 240.72059 | O10: 1 | P10: 1 | Q10: 90 | S10: Cork (TBD) | T10: 0 | U10: Sordo | 2013 | Barolo | Gabutti' Barolo | 0.75 L | V10: =MATCH(U10,Inventory!$A$2:$A$2000,0) -> 19 | BU10: 540 | BV10: Red | DP10: 0.0004142215368 | DQ10: 6.000414222
A11: Schloss Gobelsburg | B11: 2016 | C11: Riesling | D11: Riesling | E11: Riesling Qualitätswein Trocken Kamptal Schlosskelleri | F11: 0.75 | G11: 16.54751957 | H11: 93 | I11: 2018-05-31 | J11: 2018-06-05 | K11: 12 | L11: Vendor 24 | M11: 2 | N11: 33.09503913 | O11: 1 | P11: 1 | Q11: 93 | S11: Screwtop | T11: 0 | U11: Schloss Gobelsburg | 2016 | Riesling | Riesling Qualitätswein Trocken Kamptal Schlosskelleri | 0.75 L | V11: =MATCH(U11,Inventory!$A$2:$A$2000,0) -> 13 | BU11: 186 | BV11: Red | DP11: 0.0008683540261 | DQ11: 2.000868354
A12: Sandlands Vineyards | B12: 2018 | C12: Cinsault, Carignane, Zinfandel | D12: Cinsault Blend | E12: Lodi Red Table Wine | F12: 0.75 | G12: 36.97598717 | H12: 92 | I12: 2020-01-29 | J12: 2020-03-07 | K12: 2 | L12: Vendor 80 | M12: 1 | N12: 36.97598717 | O12: 1 | P12: 1 | Q12: 92 | T12: 0 | U12: Sandlands Vineyards | 2018 | Cinsault, Carignane, Zinfandel | Lodi Red Table Wine | 0.75 L | V12: =MATCH(U12,Inventory!$A$2:$A$2001,0) -> 23 | BT12: Ground | BU12: 92 | BV12: Red | DP12: 7.528712781e-05 | DQ12: 1.000075287
A13: Sandlands Vineyards | B13: 2018 | C13: Cinsault | D13: Cinsault | E13: Lodi Cinsault | F13: 0.75 | G13: 31.7819068 | H13: 92 | I13: 2020-01-29 | J13: 2020-03-07 | K13: 2 | L13: Vendor 80 | M13: 2 | N13: 63.56381359 | O13: 1 | P13: 1 | Q13: 92 | T13: 0 | U13: Sandlands Vineyards | 2018 | Cinsault | Lodi Cinsault | 0.75 L | V13: =MATCH(U13,Inventory!$A$2:$A$2001,0) -> 26 | BT13: Ground | BU13: 184 | BV13: Red | DP13: 0.0008451293338 | DQ13: 2.000845129
A14: Sandlands Vineyards | B14: 2017 | C14: Chenin Blanc | D14: Chenin Blanc | E14: Chenin Blanc | F14: 0.75 | G14: 24.64994448 | H14: 90 | I14: 2019-02-06 | J14: 2019-03-23 | K14: 2 | L14: Vendor 80 | M14: 2 | N14: 49.29988896 | O14: 1 | P14: 1 | Q14: 90 | T14: 0 | U14: Sandlands Vineyards | 2017 | Chenin Blanc | Chenin Blanc | 0.75 L | V14: =MATCH(U14,Inventory!$A$2:$A$2000,0) -> 32 | BU14: 180 | BV14: Red | DP14: 0.0007616477185 | DQ14: 2.000761648
A15: Sandlands Vineyards | B15: 2016 | C15: Chenin Blanc | D15: Chenin Blanc | E15: Chenin Blanc | F15: 0.75 | G15: 28.16453611 | H15: 90 | I15: 2018-01-23 | J15: 2018-03-10 | K15: 3 | L15: Vendor 80 | M15: 1 | N15: 28.16453611 | O15: 1 | P15: 1 | Q15: 90 | T15: 0 | U15: Sandlands Vineyards | 2016 | Chenin Blanc | Chenin Blanc | 0.75 L | V15: =MATCH(U15,Inventory!$A$2:$A$2000,0) -> 35 | BT15: Ground | BU15: 90 | BV15: Red | DP15: 0.0008891474306 | DQ15: 1.000889147
A16: San Felice | B16: 2016 | C16: Sangiovese, Colorino and Pugnitello | D16: Sangiovese Blend | E16: Chianti Classico | F16: 0.75 | G16: 15.70720765 | H16: 94 | I16: 2018-09-06 | J16: 2018-09-11 | K16: 12 | L16: Vendor 4 | M16: 7 | N16: 109.9504536 | O16: 1 | P16: 1 | Q16: 94 | T16: 0 | U16: San Felice | 2016 | Sangiovese, Colorino and Pugnitello | Chianti Classico | 0.75 L | V16: =MATCH(U16,Inventory!$A$2:$A$2000,0) -> 67 | BU16: 658 | BV16: Red | DP16: 0.0003365311182 | DQ16: 7.000336531
A17: Salvatore Molettieri | B17: 2012 | C17: Aglianico | D17: Aglianico | E17: Taurasi Vigna Cinque Querce | F17: 0.75 | G17: 38.69953195 | H17: 95 | I17: 2019-11-12 | J17: 2019-11-20 | K17: 12 | L17: Vendor 72 | M17: 9 | N17: 348.2957876 | O17: 1 | P17: 1 | Q17: 95 | T17: 0 | U17: Salvatore Molettieri | 2012 | Aglianico | Taurasi Vigna Cinque Querce | 0.75 L | V17: =MATCH(U17,Inventory!$A$2:$A$2001,0) -> 33 | BT17: Ground | BU17: 855 | BV17: Red | DP17: 7.723360967e-05 | DQ17: 9.000077234
A18: Saget la Perriere | B18: 2015 | C18: Chenin Blanc | D18: Chenin Blanc | E18: Marie Beauregard Vouvray | F18: 0.75 | G18: 16.66475276 | H18: 92 | I18: 2018-05-28 | J18: 2018-05-30 | K18: 12 | L18: Vendor 24 | M18: 10 | N18: 166.6475276 | O18: 1 | P18: 1 | Q18: 92 | T18: 0 | U18: Saget la Perriere | 2015 | Chenin Blanc | Marie Beauregard Vouvray | 0.75 L | V18: =MATCH(U18,Inventory!$A$2:$A$2000,0) -> 36 | BT18: Ground | BU18: 920 | BV18: Red | DP18: 0.0009527309306 | DQ18: 10.00095273
A19: Rivers-Marie | B19: 2018 | C19: Pinot Noir | D19: Pinot Noir | E19: Summa Vineyard Pinot Noir | F19: 0.75 | G19: 67.96786336 | H19: 93 | I19: 2020-01-21 | J19: 2020-03-30 | K19: 3 | L19: Vendor 80 | M19: 3 | N19: 203.9035901 | O19: 1 | P19: 1 | Q19: 93 | T19: 0 | U19: Rivers-Marie | 2018 | Pinot Noir | Summa Vineyard Pinot Noir | 0.75 L | V19: =MATCH(U19,Inventory!$A$2:$A$2001,0) -> 38 | BT19: Ground | BU19: 279 | BV19: Red | DP19: 0.0007668328596 | DQ19: 3.000766833
A20: Rivers-Marie | B20: 2018 | C20: Pinot Noir | D20: Pinot Noir | E20: Sonoma Coast Pinot Noir | F20: 0.75 | G20: 32.82203163 | H20: 92 | I20: 2020-01-21 | J20: 2020-03-30 | K20: 3 | L20: Vendor 80 | M20: 3 | N20: 98.46609488 | O20: 1 | P20: 1 | Q20: 92 | T20: 0 | U20: Rivers-Marie | 2018 | Pinot Noir | Sonoma Coast Pinot Noir | 0.75 L | V20: =MATCH(U20,Inventory!$A$2:$A$2001,0) -> 39 | BT20: Ground | BU20: 276 | BV20: Red | DP20: 0.0009475713748 | DQ20: 3.000947571
A21: Rivers-Marie | B21: 2018 | C21: Pinot Noir | D21: Pinot Noir | E21: Occidental Ridge Pinot Noir | F21: 0.75 | G21: 68.22223123 | H21: 93 | I21: 2020-01-21 | J21: 2020-03-30 | K21: 3 | L21: Vendor 80 | M21: 3 | N21: 204.6666937 | O21: 1 | P21: 1 | Q21: 93 | T21: 0 | U21: Rivers-Marie | 2018 | Pinot Noir | Occidental Ridge Pinot Noir | 0.75 L | V21: =MATCH(U21,Inventory!$A$2:$A$2001,0) -> 42 | BU21: 279 | BV21: Red | DP21: 0.0009520275533 | DQ21: 3.000952028
A22: Rivers-Marie | B22: 2017 | C22: Pinot Noir | D22: Pinot Noir | E22: Summa Vineyard Pinot Noir | F22: 0.75 | G22: 65.16485977 | H22: 93 | I22: 2019-01-15 | J22: 2019-03-23 | K22: 3 | L22: Vendor 80 | M22: 1 | N22: 65.16485977 | O22: 1 | P22: 1 | Q22: 93 | T22: 0 | U22: Rivers-Marie | 2017 | Pinot Noir | Summa Vineyard Pinot Noir | 0.75 L | V22: =MATCH(U22,Inventory!$A$2:$A$2000,0) -> 43 | BU22: 93 | BV22: Red | DP22: 0.0008788361926 | DQ22: 1.000878836
A23: Rivers-Marie | B23: 2017 | C23: Pinot Noir | D23: Pinot Noir | E23: Sonoma Coast Pinot Noir | F23: 0.75 | G23: 34.89227633 | H23: 92 | I23: 2019-01-15 | J23: 2019-03-23 | K23: 3 | L23: Vendor 80 | M23: 2 | N23: 69.78455266 | O23: 1 | P23: 1 | Q23: 92 | T23: 0 | U23: Rivers-Marie | 2017 | Pinot Noir | Sonoma Coast Pinot Noir | 0.75 L | V23: =MATCH(U23,Inventory!$A$2:$A$2000,0) -> 47 | BT23: Ground | BU23: 184 | BV23: Red | DP23: 1.524972556e-05 | DQ23: 2.00001525
A24: Rivers-Marie | B24: 2017 | C24: Pinot Noir | D24: Pinot Noir | E24: Platt Vinegyard Pinot Noir | F24: 0.75 | G24: 66.45475731 | H24: 93 | I24: 2019-01-15 | J24: 2019-03-23 | K24: 3 | L24: Vendor 80 | M24: 1 | N24: 66.45475731 | O24: 1 | P24: 1 | Q24: 93 | T24: 0 | U24: Rivers-Marie | 2017 | Pinot Noir | Platt Vinegyard Pinot Noir | 0.75 L | V24: =MATCH(U24,Inventory!$A$2:$A$2000,0) -> 40 | BU24: 93 | BV24: Red | DP24: 0.0009237475836 | DQ24: 1.000923748
A25: Rivers-Marie | B25: 2017 | C25: Chardonnay | D25: Chardonnay | E25: Joy Road Chardonnay | F25: 0.75 | G25: 54.14446222 | H25: 93 | I25: 2019-01-19 | J25: 2019-03-23 | K25: 2 | L25: Vendor 80 | M25: 2 | N25: 108.2889244 | O25: 1 | P25: 1 | Q25: 93 | T25: 0 | U25: Rivers-Marie | 2017 | Chardonnay | Joy Road Chardonnay | 0.75 L | V25: =MATCH(U25,Inventory!$A$2:$A$2000,0) -> 44 | BU25: 186 | BV25: Red | DP25: 0.0006011775253 | DQ25: 2.000601178
A26: Rivers-Marie | B26: 2017 | C26: Chardonnay | D26: Chardonnay | E26: Bearwallow Vineyard Chardonnay | F26: 0.75 | G26: 55.59963727 | H26: 93 | I26: 2019-02-19 | J26: 2019-03-23 | K26: 2 | L26: Vendor 80 | M26: 2 | N26: 111.1992745 | O26: 1 | P26: 1 | Q26: 93 | T26: 0 | U26: Rivers-Marie | 2017 | Chardonnay | Bearwallow Vineyard Chardonnay | 0.75 L | V26: =MATCH(U26,Inventory!$A$2:$A$2000,0) -> 46 | BU26: 186 | BV26: Red | DP26: 0.0007539250294 | DQ26: 2.000753925
A27: Rivers-Marie | B27: 2016 | C27: Pinot Noir | D27: Pinot Noir | E27: Occidental Ridge Pinot Noir | F27: 0.75 | G27: 65.49984035 | H27: 93 | I27: 2018-01-16 | J27: 2018-03-14 | K27: 2 | L27: Vendor 80 | M27: 1 | N27: 65.49984035 | O27: 1 | P27: 1 | Q27: 93 | T27: 0 | U27: Rivers-Marie | 2016 | Pinot Noir | Occidental Ridge Pinot Noir | 0.75 L | V27: =MATCH(U27,Inventory!$A$2:$A$2000,0) -> 53 | BU27: 93 | BV27: Red | DP27: 0.0009577413897 | DQ27: 1.000957741
A28: Reynvaan Family Vineyards | B28: 2017 | C28: Syrah | D28: Shiraz/Syrah | E28: In the Rocks | F28: 0.75 | G28: 111.4369283 | H28: 93 | I28: 2018-07-23 | J28: 2019-10-08 | K28: 3 | L28: Vendor 48 | M28: 3 | N28: 334.3107848 | O28: 1 | P28: 1 | Q28: 93 | T28: 0 | U28: Reynvaan Family Vineyards | 2017 | Syrah | In the Rocks | 0.75 L | V28: =MATCH(U28,Inventory!$A$2:$A$2000,0) -> 57 | BU28: 279 | BV28: Red | DP28: 0.0005998441003 | DQ28: 3.000599844
A29: Reynvaan Family Vineyards | B29: 2016 | C29: Syrah | D29: Shiraz/Syrah | E29: The Contender | F29: 0.75 | G29: 100.226306 | H29: 91 | I29: 2017-08-16 | J29: 2018-10-04 | K29: 3 | L29: Vendor 48 | M29: 3 | N29: 300.6789179 | O29: 1 | P29: 1 | Q29: 91 | T29: 0 | U29: Reynvaan Family Vineyards | 2016 | Syrah | The Contender | 0.75 L | V29: =MATCH(U29,Inventory!$A$2:$A$2000,0) -> 48 | BT29: Ground | BU29: 273 | BV29: Red | DP29: 0.0008718936981 | DQ29: 3.000871894
A30: Reynvaan Family Vineyards | B30: 2016 | C30: Syrah | D30: Shiraz/Syrah | E30: In the Rocks | F30: 0.75 | G30: 100.348411 | H30: 95 | I30: 2017-08-16 | J30: 2018-10-04 | K30: 3 | L30: Vendor 48 | M30: 3 | N30: 301.0452329 | O30: 1 | P30: 1 | Q30: 95 | T30: 0 | U30: Reynvaan Family Vineyards | 2016 | Syrah | In the Rocks | 0.75 L | V30: =MATCH(U30,Inventory!$A$2:$A$2000,0) -> 64 | BU30: 285 | BV30: Red | DP30: 0.000929407798 | DQ30: 3.000929408
A31: Reynvaan Family Vineyards | B31: 2015 | C31: Syrah | D31: Shiraz/Syrah | E31: The Contender | F31: 0.75 | G31: 99.43443192 | H31: 93 | I31: 2016-09-13 | J31: 2017-10-02 | K31: 6 | L31: Vendor 48 | M31: 5 | N31: 497.1721596 | O31: 1 | P31: 1 | Q31: 93 | T31: 0 | U31: Reynvaan Family Vineyards | 2015 | Syrah | The Contender | 0.75 L | V31: =MATCH(U31,Inventory!$A$2:$A$2000,0) -> 49 | BT31: Ground | BU31: 465 | BV31: White | DP31: 0.0002751806709 | DQ31: 5.000275181
A32: Reynvaan Family Vineyards | B32: 2015 | C32: Syrah | D32: Shiraz/Syrah | E32: In the Rocks | F32: 0.75 | G32: 99.51073147 | H32: 94 | I32: 2016-09-13 | J32: 2017-10-02 | K32: 6 | L32: Vendor 48 | M32: 6 | N32: 597.0643888 | O32: 1 | P32: 1 | Q32: 94 | T32: 0 | U32: Reynvaan Family Vineyards | 2015 | Syrah | In the Rocks | 0.75 L | V32: =MATCH(U32,Inventory!$A$2:$A$2000,0) -> 77 | BT32: Ground | BU32: 564 | BV32: Red | DP32: 0.0005697663104 | DQ32: 6.000569766
A33: Reynvaan Family Vineyards | B33: 2015 | C33: Syrah | D33: Shiraz/Syrah | E33: Foothills in the Sun Reserve | F33: 0.75 | G33: 90.96374367 | H33: 94 | I33: 2016-09-13 | J33: 2017-10-02 | K33: 6 | L33: Vendor 48 | M33: 5 | N33: 454.8187184 | O33: 1 | P33: 1 | Q33: 94 | T33: 0 | U33: Reynvaan Family Vineyards | 2015 | Syrah | Foothills in the Sun Reserve | 0.75 L | V33: =MATCH(U33,Inventory!$A$2:$A$2000,0) -> 55 | BU33: 470 | BV33: Red | DP33: 0.0008478514835 | DQ33: 5.000847851
A34: Reynvaan Family Vineyards | B34: 2014 | C34: Syrah | D34: Shiraz/Syrah | E34: The Contender | F34: 0.75 | G34: 97.83398079 | H34: 92 | I34: 2015-11-06 | J34: 2016-10-26 | K34: 6 | L34: Vendor 48 | M34: 4 | N34: 391.3359232 | O34: 1 | P34: 1 | Q34: 92 | T34: 0 | U34: Reynvaan Family Vineyards | 2014 | Syrah | The Contender | 0.75 L | V34: =MATCH(U34,Inventory!$A$2:$A$2000,0) -> 54 | BT34: Ground | BU34: 368 | BV34: Red | DP34: 0.0006929089028 | DQ34: 4.000692909
A35: Reynvaan Family Vineyards | B35: 2014 | C35: Syrah | D35: Shiraz/Syrah | E35: In the Rocks | F35: 0.75 | G35: 85.60973978 | H35: 95 | I35: 2015-11-06 | J35: 2016-10-26 | K35: 6 | L35: Vendor 48 | M35: 6 | N35: 513.6584387 | O35: 1 | P35: 1 | Q35: 95 | T35: 0 | U35: Reynvaan Family Vineyards | 2014 | Syrah | In the Rocks | 0.75 L | V35: =MATCH(U35,Inventory!$A$2:$A$2000,0) -> 50 | BU35: 570 | BV35: Red | DP35: 0.0003087866389 | DQ35: 6.000308787
A36: Reynvaan Family Vineyards | B36: 2014 | C36: Syrah | D36: Shiraz/Syrah | E36: Foothills in the Sun Reserve | F36: 0.75 | G36: 87.26017537 | H36: 93 | I36: 2015-11-06 | J36: 2016-10-26 | K36: 3 | L36: Vendor 48 | M36: 2 | N36: 174.5203507 | O36: 1 | P36: 1 | Q36: 93 | T36: 0 | U36: Reynvaan Family Vineyards | 2014 | Syrah | Foothills in the Sun Reserve | 0.75 L | V36: =MATCH(U36,Inventory!$A$2:$A$2000,0) -> 62 | BU36: 186 | BV36: Red | DP36: 8.739146752e-05 | DQ36: 2.000087391
A37: Reynvaan Family Vineyards | B37: 2013 | C37: Syrah | D37: Shiraz/Syrah | E37: Stonessence | F37: 0.75 | G37: 118.5651676 | H37: 95 | I37: 2014-11-03 | J37: 2015-11-03 | K37: 6 | L37: Vendor 48 | M37: 3 | N37: 355.6955029 | O37: 1 | P37: 1 | Q37: 95 | T37: 0 | U37: Reynvaan Family Vineyards | 2013 | Syrah | Stonessence | 0.75 L | V37: =MATCH(U37,Inventory!$A$2:$A$2000,0) -> 78 | BU37: 285 | BV37: Red | DP37: 0.0008792934438 | DQ37: 3.000879293
A38: Reynvaan Family Vineyards | B38: 2013 | C38: Syrah | D38: Shiraz/Syrah | E38: Foothills in the Sun Reserve | F38: 0.75 | G38: 81.91880733 | H38: 93 | I38: 2014-11-03 | J38: 2015-11-03 | K38: 6 | L38: Vendor 48 | M38: 2 | N38: 163.8376147 | O38: 1 | P38: 1 | Q38: 93 | T38: 0 | U38: Reynvaan Family Vineyards | 2013 | Syrah | Foothills in the Sun Reserve | 0.75 L | V38: =MATCH(U38,Inventory!$A$2:$A$2000,0) -> 51 | BU38: 186 | BV38: Red | DP38: 0.0005334491261 | DQ38: 2.000533449
A39: Reynvaan Family Vineyards | B39: 2012 | C39: Syrah | D39: Shiraz/Syrah | E39: Stonessence | F39: 0.75 | G39: 96.85314057 | H39: 94 | I39: 2013-10-22 | J39: 2014-10-20 | K39: 3 | L39: Vendor 48 | M39: 1 | N39: 96.85314057 | O39: 1 | P39: 1 | Q39: 94 | S39: Cork (Natural) | T39: 0 | U39: Reynvaan Family Vineyards | 2012 | Syrah | Stonessence | 0.75 L | V39: =MATCH(U39,Inventory!$A$2:$A$2000,0) -> 60 | BU39: 94 | BV39: Red | DP39: 0.0003094185958 | DQ39: 1.000309419
A40: Reynvaan Family Vineyards | B40: 2012 | C40: Syrah | D40: Shiraz/Syrah | E40: Foothills in the Sun Reserve | F40: 0.75 | G40: 75.52801166 | H40: 90 | I40: 2013-10-22 | J40: 2014-10-20 | K40: 6 | L40: Vendor 48 | M40: 1 | N40: 75.52801166 | O40: 1 | P40: 1 | Q40: 90 | S40: Cork (Natural) | T40: 0 | U40: Reynvaan Family Vineyards | 2012 | Syrah | Foothills in the Sun Reserve | 0.75 L | V40: =MATCH(U40,Inventory!$A$2:$A$2000,0) -> 61 | BT40: Ground | BU40: 90 | BV40: Red | DP40: 0.000829326003 | DQ40: 1.000829326
A41: Reinhold Haart | B41: 2008 | C41: Riesling | D41: Riesling | E41: Riesling Spätlese Mosel Piesport Goldtröpfchen | F41: 0.75 | G41: 36.33785678 | H41: 95 | I41: 2010-05-21 | J41: 2010-06-02 | K41: 12 | L41: Vendor 3 | M41: 7 | N41: 254.3649975 | O41: 1 | P41: 1 | Q41: 95 | R41: AL-N-L4-1 | S41: Cork (TBD) | T41: 0 | U41: Reinhold Haart | 2008 | Riesling | Riesling Spätlese Mosel Piesport Goldtröpfchen | 0.75 L | V41: =MATCH(U41,Inventory!$A$2:$A$2000,0) -> 17 | BU41: 665 | BV41: Red | DP41: 0.0009274608948 | DQ41: 7.000927461
A42: Quivet Cellars | B42: 2018 | C42: Syrah | D42: Shiraz/Syrah | E42: Syrah Kenefick Ranch Vineyard 100% Whole Cluster | F42: 0.75 | G42: 54.6201024 | H42: 93 | I42: 2020-02-06 | J42: 2020-04-01 | K42: 2 | L42: Vendor 80 | M42: 2 | N42: 109.2402048 | O42: 1 | P42: 1 | Q42: 93 | T42: 0 | U42: Quivet Cellars | 2018 | Syrah | Syrah Kenefick Ranch Vineyard 100% Whole Cluster | 0.75 L | V42: =MATCH(U42,Inventory!$A$2:$A$2001,0) -> 74 | BT42: Ground | BU42: 186 | BV42: Red | DP42: 0.0009236409755 | DQ42: 2.000923641
A43: Quivet Cellars | B43: 2018 | C43: Sauvignon Blanc | D43: Sauvignon Blanc | E43: Sauvignon Blanc McGah Family | F43: 0.75 | G43: 28.14891754 | H43: 90 | I43: 2019-02-12 | J43: 2019-04-06 | K43: 4 | L43: Vendor 80 | M43: 4 | N43: 112.5956702 | O43: 1 | P43: 1 | Q43: 90 | T43: 0 | U43: Quivet Cellars | 2018 | Sauvignon Blanc | Sauvignon Blanc McGah Family | 0.75 L | V43: =MATCH(U43,Inventory!$A$2:$A$2000,0) -> 65 | BT43: Ground | BU43: 360 | BV43: Red | DP43: 3.441630564e-05 | DQ43: 4.000034416
A44: Quivet Cellars | B44: 2017 | C44: Sauvignon Blanc | D44: Sauvignon Blanc | E44: Sauvignon Blanc McGah Family | F44: 0.75 | G44: 34.99552437 | H44: 90 | I44: 2018-07-12 | J44: 2018-11-05 | K44: 3 | L44: Vendor 80 | M44: 1 | N44: 34.99552437 | O44: 1 | P44: 1 | Q44: 90 | T44: 0 | U44: Quivet Cellars | 2017 | Sauvignon Blanc | Sauvignon Blanc McGah Family | 0.75 L | V44: =MATCH(U44,Inventory!$A$2:$A$2000,0) -> 70 | BU44: 90 | BV44: Red | DP44: 0.0006461724014 | DQ44: 1.000646172
A45: Punset | B45: 2007 | C45: Nebbiolo | D45: Nebbiolo | E45: Barbaresco | F45: 0.75 | G45: 39.61555301 | H45: 95 | I45: 2012-09-24 | J45: 2012-09-25 | K45: 12 | L45: Vendor 28 | M45: 10 | N45: 396.1555301 | O45: 1 | P45: 1 | Q45: 95 | R45: WR-L1-2 | T45: 0 | U45: Punset | 2007 | Nebbiolo | Barbaresco | 0.75 L | V45: =MATCH(U45,Inventory!$A$2:$A$2000,0) -> 71 | BU45: 950 | BV45: Red | DP45: 1.920393241e-05 | DQ45: 10.0000192
A46: Proper Wines | B46: 2016 | C46: Syrah | D46: Shiraz/Syrah | E46: Proper Syrah | F46: 0.75 | G46: 41.50256207 | H46: 92 | I46: 2018-10-14 | J46: 2018-11-06 | K46: 12 | L46: Vendor 46 | M46: 5 | N46: 207.5128104 | O46: 1 | P46: 1 | Q46: 92 | T46: 0 | U46: Proper Wines | 2016 | Syrah | Proper Syrah | 0.75 L | V46: =MATCH(U46,Inventory!$A$2:$A$2000,0) -> 72 | BT46: Ground | BU46: 460 | BV46: Red | DP46: 0.0004689637938 | DQ46: 5.000468964
A47: Proper Wines | B47: 2015 | C47: Syrah | D47: Shiraz/Syrah | E47: Proper Syrah | F47: 0.75 | G47: 41.08864207 | H47: 92 | I47: 2017-11-11 | J47: 2017-12-04 | K47: 12 | L47: Vendor 46 | M47: 5 | N47: 205.4432103 | O47: 1 | P47: 1 | Q47: 92 | T47: 0 | U47: Proper Wines | 2015 | Syrah | Proper Syrah | 0.75 L | V47: =MATCH(U47,Inventory!$A$2:$A$2000,0) -> 73 | BT47: Ground | BU47: 460 | BV47: Red | DP47: 7.82903792e-06 | DQ47: 5.000007829
A48: Proper Wines | B48: 2013 | C48: Syrah | D48: Shiraz/Syrah | E48: Proper Syrah | F48: 0.75 | G48: 33.76808776 | H48: 93 | I48: 2015-10-21 | J48: 2015-11-10 | K48: 12 | L48: Vendor 46 | M48: 2 | N48: 67.53617552 | O48: 1 | P48: 1 | Q48: 93 | R48: E-L5-3 | T48: 0 | U48: Proper Wines | 2013 | Syrah | Proper Syrah | 0.75 L | V48: =MATCH(U48,Inventory!$A$2:$A$2000,0) -> 75 | BU48: 186 | BV48: Red | DP48: 0.0004006815071 | DQ48: 2.000400682
A49: Prats & Symington | B49: 2011 | C49: Touriga Nacional & Touriga Franca | D49: Touriga Blend | E49: Duoro Chryseia | F49: 0.75 | G49: 51.85574689 | H49: 97 | I49: 2014-04-14 | J49: 2014-04-16 | K49: 6 | L49: Vendor 74 | M49: 3 | N49: 155.5672407 | O49: 1 | P49: 1 | Q49: 97 | R49: AL-E-L2-3 | T49: 0 | U49: Prats & Symington | 2011 | Touriga Nacional & Touriga Franca | Duoro Chryseia | 0.75 L | V49: =MATCH(U49,Inventory!$A$2:$A$2000,0) -> 80 | BU49: 291 | BV49: Red | DP49: 0.0001691301596 | DQ49: 3.00016913
A50: Poggio il Castellare | B50: 2004 | C50: Brunello | D50: Brunello | E50: Brunello di Montalcino | F50: 0.75 | G50: 41.60816823 | H50: 96 | I50: 2009-03-16 | J50: 2009-10-06 | K50: 12 | L50: Vendor 28 | M50: 2 | N50: 83.21633645 | O50: 1 | P50: 1 | Q50: 96 | R50: AL-S-L4-1 | S50: Cork (TBD) | T50: 0 | U50: Poggio il Castellare | 2004 | Brunello | Brunello di Montalcino | 0.75 L | V50: =MATCH(U50,Inventory!$A$2:$A$2000,0) -> 123 | BT50: Ground | BU50: 192 | BV50: Red | DP50: 0.0004921728473 | DQ50: 2.000492173
A51: Pillar Box | B51: 2008 | C51: Shiraz | D51: Shiraz/Syrah | E51: Reserve Shiraz | F51: 0.75 | G51: 15.90303253 | H51: 92 | I51: 2011-07-02 | J51: 2011-07-06 | K51: 12 | L51: Vendor 74 | M51: 1 | N51: 15.90303253 | O51: 1 | P51: 1 | Q51: 92 | R51: WR-L5-2 | T51: 0 | U51: Pillar Box | 2008 | Shiraz | Reserve Shiraz | 0.75 L | V51: =MATCH(U51,Inventory!$A$2:$A$2000,0) -> 11 | BT51: Ground | BU51: 92 | BV51: Red | DP51: 0.0001130475867 | DQ51: 1.000113048
A52: Phillipe Delesvaux | B52: 2004 | C52: Chenin Blanc | D52: Chenin Blanc | E52: Coteaux du Layon Selection de Grains Nobles | F52: 0.5 | G52: 35.65118705 | H52: 95 | I52: 2008-07-08 | J52: 2008-07-08 | K52: 6 | L52: Vendor 34 | M52: 2 | N52: 71.3023741 | O52: 1 | P52: 1 | Q52: 95 | R52: AL-E-L5-1 | S52: Cork (TBD) | T52: 0 | U52: Phillipe Delesvaux | 2004 | Chenin Blanc | Coteaux du Layon Selection de Grains Nobles | 0.5 L | V52: =MATCH(U52,Inventory!$A$2:$A$2000,0) -> 82 | BU52: 190 | BV52: Red | DP52: 0.0009697710538 | DQ52: 2.000969771
A53: Paul Jaboulet | B53: 2001 | C53: Syrah | D53: Shiraz/Syrah | E53: Hermitage La Chapelle | F53: 1.5 | G53: 253.484055 | H53: 97 | I53: 2019-05-01 | J53: 2019-05-03 | K53: 1 | L53: Vendor 53 | M53: 1 | N53: 253.484055 | O53: 1 | P53: 1 | Q53: 97 | T53: 0 | U53: Paul Jaboulet | 2001 | Syrah | Hermitage La Chapelle | 1.5 L | V53: =MATCH(U53,Inventory!$A$2:$A$2000,0) -> 83 | BU53: 97 | BV53: Red | DP53: 0.0004494302 | DQ53: 1.00044943
A54: Paitin | B54: 2014 | C54: Barbaresco | D54: Nebbiolo | E54: Sorì Paitin Serraboella | F54: 0.75 | G54: 51.49515003 | H54: 95 | I54: 2018-11-22 | J54: 2018-11-28 | K54: 6 | L54: Vendor 24 | M54: 6 | N54: 308.9709002 | O54: 1 | P54: 1 | Q54: 95 | T54: 0 | U54: Paitin | 2014 | Barbaresco | Sorì Paitin Serraboella | 0.75 L | V54: =MATCH(U54,Inventory!$A$2:$A$2000,0) -> 91 | BU54: 570 | BV54: Red | DP54: 0.0006724797263 | DQ54: 6.00067248
A55: Once and Future | B55: 2018 | C55: Mourvedre | D55: Mourvedre | E55: Mataro Oakley Road Vineyard | F55: 0.75 | G55: 44.56063024 | H55: 92 | I55: 2020-03-10 | J55: 2020-04-06 | K55: 4 | L55: Vendor 80 | M55: 4 | N55: 178.2425209 | O55: 1 | P55: 1 | Q55: 92 | T55: 0 | U55: Once and Future | 2018 | Mourvedre | Mataro Oakley Road Vineyard | 0.75 L | V55: =MATCH(U55,Inventory!$A$2:$A$2001,0) -> 90 | BT55: Ground | BU55: 368 | BV55: Red | DP55: 0.0006286212347 | DQ55: 4.000628621
A56: Once and Future | B56: 2017 | C56: Mourvedre | D56: Mourvedre | E56: Mataro Oakley Road Vineyard | F56: 0.75 | G56: 39.59279935 | H56: 92 | I56: 2019-03-12 | J56: 2019-03-29 | K56: 6 | L56: Vendor 80 | M56: 2 | N56: 79.1855987 | O56: 1 | P56: 1 | Q56: 92 | T56: 0 | U56: Once and Future | 2017 | Mourvedre | Mataro Oakley Road Vineyard | 0.75 L | V56: =MATCH(U56,Inventory!$A$2:$A$2000,0) -> 92 | BT56: Ground | BU56: 184 | BV56: Red | DP56: 0.0002815798406 | DQ56: 2.00028158
A57: No Girls Wines | B57: 2016 | C57: Syrah | D57: Shiraz/Syrah | E57: La Paciencia Vineyard Syrah | F57: 0.75 | G57: 97.61914606 | H57: 94 | I57: 2020-01-08 | J57: 2020-03-25 | K57: 3 | L57: Vendor 41 | M57: 3 | N57: 292.8574382 | O57: 1 | P57: 1 | Q57: 94 | S57: Cork (Natural) | T57: 0 | U57: No Girls Wines | 2016 | Syrah | La Paciencia Vineyard Syrah | 0.75 L | V57: =MATCH(U57,Inventory!$A$2:$A$2001,0) -> 84 | BT57: 3-Day | BU57: 282 | BV57: Red | DP57: 0.0008773306131 | DQ57: 3.000877331
A58: No Girls Wines | B58: 2015 | C58: Syrah | D58: Shiraz/Syrah | E58: La Paciencia Vineyard Syrah | F58: 0.75 | G58: 94.19314533 | H58: 94 | I58: 2019-01-28 | J58: 2019-03-23 | K58: 6 | L58: Vendor 41 | M58: 6 | N58: 565.158872 | O58: 1 | P58: 1 | Q58: 94 | T58: 0 | U58: No Girls Wines | 2015 | Syrah | La Paciencia Vineyard Syrah | 0.75 L | V58: =MATCH(U58,Inventory!$A$2:$A$2000,0) -> 85 | BT58: Ground | BU58: 564 | BV58: Red | DP58: 0.0001851530825 | DQ58: 6.000185153
A59: No Girls Wines | B59: 2014 | C59: Syrah | D59: Shiraz/Syrah | E59: La Paciencia Vineyard Syrah | F59: 0.75 | G59: 93.44231406 | H59: 92 | I59: 2018-01-03 | J59: 2018-03-29 | K59: 3 | L59: Vendor 41 | M59: 3 | N59: 280.3269422 | O59: 1 | P59: 1 | Q59: 92 | T59: 0 | U59: No Girls Wines | 2014 | Syrah | La Paciencia Vineyard Syrah | 0.75 L | V59: =MATCH(U59,Inventory!$A$2:$A$2000,0) -> 86 | BT59: Ground | BU59: 276 | BV59: Red | DP59: 0.0003349275356 | DQ59: 3.000334928
A60: No Girls Wines | B60: 2013 | C60: Syrah | D60: Shiraz/Syrah | E60: La Paciencia Vineyard Syrah | F60: 0.75 | G60: 93.50412776 | H60: 94 | I60: 2017-01-09 | J60: 2017-03-08 | K60: 3 | L60: Vendor 41 | M60: 3 | N60: 280.5123833 | O60: 1 | P60: 1 | Q60: 94 | T60: 0 | U60: No Girls Wines | 2013 | Syrah | La Paciencia Vineyard Syrah | 0.75 L | V60: =MATCH(U60,Inventory!$A$2:$A$2000,0) -> 88 | BU60: 282 | BV60: Red | DP60: 0.0006996860538 | DQ60: 3.000699686
A61: No Girls Wines | B61: 2012 | C61: Syrah | D61: Shiraz/Syrah | E61: La Paciencia Vineyard Syrah | F61: 0.75 | G61: 92.91028189 | H61: 92 | I61: 2016-01-06 | J61: 2016-03-10 | K61: 3 | L61: Vendor 41 | M61: 2 | N61: 185.8205638 | O61: 1 | P61: 1 | Q61: 92 | S61: Cork (Natural) | T61: 0 | U61: No Girls Wines | 2012 | Syrah | La Paciencia Vineyard Syrah | 0.75 L | V61: =MATCH(U61,Inventory!$A$2:$A$2000,0) -> 94 | BU61: 184 | BV61: Red | DP61: 0.0009330680319 | DQ61: 2.000933068
A62: No Girls Wines | B62: 2011 | C62: Syrah | D62: Shiraz/Syrah | E62: La Paciencia Vineyard Syrah | F62: 0.75 | G62: 89.93653355 | H62: 93 | I62: 2015-01-21 | J62: 2015-03-19 | K62: 3 | L62: Vendor 41 | M62: 1 | N62: 89.93653355 | O62: 1 | P62: 1 | Q62: 93 | T62: 0 | U62: No Girls Wines | 2011 | Syrah | La Paciencia Vineyard Syrah | 0.75 L | V62: =MATCH(U62,Inventory!$A$2:$A$2000,0) -> 96 | BT62: Ground | BU62: 93 | BV62: Red | DP62: 0.0004712275803 | DQ62: 1.000471228
A63: No Girls Wines | B63: 2010 | C63: Syrah | D63: Shiraz/Syrah | E63: La Paciencia Vineyard Syrah | F63: 0.75 | G63: 76.53777458 | H63: 95 | I63: 2014-01-15 | J63: 2014-03-22 | K63: 3 | L63: Vendor 41 | M63: 1 | N63: 76.53777458 | O63: 1 | P63: 1 | Q63: 95 | T63: 0 | U63: No Girls Wines | 2010 | Syrah | La Paciencia Vineyard Syrah | 0.75 L | V63: =MATCH(U63,Inventory!$A$2:$A$2000,0) -> 97 | BU63: 95 | BV63: Red | DP63: 0.0005335517578 | DQ63: 1.000533552
A64: Viticcio | B64: 2015 | C64: Sangiovese, Merlot & Syrah | D64: Sangiovese Blend | E64: Chianti Classico Riserva | F64: 0.75 | G64: 25.72008619 | H64: 95 | I64: 2019-10-28 | J64: 2019-11-23 | K64: 12 | L64: Vendor 75 | M64: 12 | N64: 308.6410342 | O64: 1 | P64: 1 | Q64: 95 | T64: 0 | U64: Viticcio | 2015 | Sangiovese, Merlot & Syrah | Chianti Classico Riserva | 0.75 L | V64: =MATCH(U64,Inventory!$A$2:$A$2001,0) -> 8 | BT64: Ground | BU64: 1140 | BV64: Red | DP64: 0.0006836743217 | DQ64: 12.00068367
A65: Myriad Cellars | B65: 2018 | C65: Syrah | D65: Shiraz/Syrah | E65: Syrah Sangiacomo | F65: 0.75 | G65: 53.25243003 | H65: 92 | I65: 2020-03-17 | J65: 2020-03-28 | K65: 2 | L65: Vendor 80 | M65: 2 | N65: 106.5048601 | O65: 1 | P65: 1 | Q65: 92 | T65: 0 | U65: Myriad Cellars | 2018 | Syrah | Syrah Sangiacomo | 0.75 L | V65: =MATCH(U65,Inventory!$A$2:$A$2001,0) -> 18 | BU65: 184 | BV65: Red | DP65: 0.0006920093249 | DQ65: 2.000692009
A66: Myriad Cellars | B66: 2018 | C66: Syrah | D66: Shiraz/Syrah | E66: Syrah Las Madres Esther Block | F66: 0.75 | G66: 52.25867616 | H66: 93 | I66: 2020-03-17 | J66: 2020-03-28 | K66: 2 | L66: Vendor 80 | M66: 2 | N66: 104.5173523 | O66: 1 | P66: 1 | Q66: 93 | T66: 0 | U66: Myriad Cellars | 2018 | Syrah | Syrah Las Madres Esther Block | 0.75 L | V66: =MATCH(U66,Inventory!$A$2:$A$2001,0) -> 3 | BT66: Ground | BU66: 186 | BV66: Red | DP66: 0.0007167417698 | DQ66: 2.000716742
A67: Myriad Cellars | B67: 2017 | C67: Syrah | D67: Shiraz/Syrah | E67: Syrah Sangiacomo | F67: 0.75 | G67: 53.04790293 | H67: 92 | I67: 2019-03-12 | J67: 2019-04-17 | K67: 3 | L67: Vendor 80 | M67: 1 | N67: =M67*G67 -> 53.04790293 | O67: 1 | P67: 1 | Q67: =H67*P67 -> 92 | T67: 0 | U67: =A67&" | "&B67&" | "&C67&" | "&E67&" | "&F67&" L" -> Myriad Cellars | 2017 | Syrah | Syrah Sangiacomo | 0.75 L | V67: =MATCH(U67,Inventory!$A$2:$A$2000,0) -> 14 | BU67: 92 | BV67: Red | DP67: 5.713098539e-05 | DQ67: 1.000057131
A68: Myriad Cellars | B68: 2017 | C68: Syrah | D68: Shiraz/Syrah | E68: Syrah Halcon Vineyard | F68: 0.75 | G68: 53.97439579 | H68: 92 | I68: 2019-03-12 | J68: 2019-04-17 | K68: 3 | L68: Vendor 80 | M68: 1 | N68: 53.97439579 | O68: 1 | P68: 1 | Q68: 92 | T68: 0 | U68: Myriad Cellars | 2017 | Syrah | Syrah Halcon Vineyard | 0.75 L | V68: =MATCH(U68,Inventory!$A$2:$A$2000,0) -> 100 | BT68: Ground | BU68: 92 | BV68: Red | DP68: 0.0004446754181 | DQ68: =M68+DP68 -> 1.000444675
A69: Myriad Cellars | B69: 2016 | C69: Syrah | D69: Shiraz/Syrah | E69: Syrah Las Madres Esther Block | F69: 0.75 | G69: 39.72607461 | H69: 94 | I69: 2018-03-13 | J69: 2018-04-17 | K69: 2 | L69: Vendor 80 | M69: 1 | N69: 39.72607461 | O69: 1 | P69: 1 | Q69: 94 | T69: 0 | U69: Myriad Cellars | 2016 | Syrah | Syrah Las Madres Esther Block | 0.75 L | V69: =MATCH(U69,Inventory!$A$2:$A$2000,0) -> 101 | BU69: =H69*M69 -> 94 | BV69: Red | DP69: 0.0005544821242 | DQ69: 1.000554482
A70: Moccagatto | B70: 2015 | C70: Nebbiolo | D70: Nebbiolo | E70: Barbaresco 'Bric Balin' | F70: 0.75 | G70: 53.04331615 | H70: 97 | I70: 2019-02-15 | J70: 2019-04-05 | K70: 6 | L70: Vendor 24 | M70: 6 | N70: 318.2598969 | O70: 1 | P70: 1 | Q70: 97 | T70: 0 | U70: Moccagatto | 2015 | Nebbiolo | Barbaresco 'Bric Balin' | 0.75 L | V70: =MATCH(U70,Inventory!$A$2:$A$2000,0) -> 89 | BU70: 582 | BV70: Red | DP70: 0.0001071893839 | DQ70: 6.000107189
A71: Marco e Vittorio Adriano | B71: 2011 | C71: Nebbiolo | D71: Nebbiolo | E71: Barbaresco Basarin | F71: 0.75 | G71: 22.14902825 | H71: 93 | I71: 2016-03-23 | J71: 2016-03-25 | K71: 12 | L71: Vendor 84 | M71: 11 | N71: 243.6393108 | O71: 1 | P71: 1 | Q71: 93 | R71: AL-E-L3-1 | T71: 0 | U71: Marco e Vittorio Adriano | 2011 | Nebbiolo | Barbaresco Basarin | 0.75 L | V71: =MATCH(U71,Inventory!$A$2:$A$2000,0) -> 41 | BU71: 1023 | BV71: Red | DP71: 0.0009864166897 | DQ71: 11.00098642
A72: Luigi Pira | B72: 2013 | C72: Nebbiolo | D72: Nebbiolo | E72: Serralunga Barolo | F72: 0.75 | G72: 31.95535141 | H72: 95 | I72: 2017-11-01 | J72: 2017-11-07 | K72: 12 | L72: Vendor 55 | M72: 12 | N72: 383.4642169 | O72: 1 | P72: 1 | Q72: 95 | T72: 0 | U72: Luigi Pira | 2013 | Nebbiolo | Serralunga Barolo | 0.75 L | V72: =MATCH(U72,Inventory!$A$2:$A$2000,0) -> 102 | BU72: 1140 | BV72: Red | DP72: 0.0004957442138 | DQ72: 12.00049574
A73: Louis Cheze | B73: 2015 | C73: Viognier | D73: Viognier | E73: Condrieu Pagus Luminis | F73: 0.75 | G73: 45.10411211 | H73: 96 | I73: 2018-01-02 | J73: 2018-01-05 | K73: 2 | L73: Vendor 24 | M73: 1 | N73: 45.10411211 | O73: 1 | P73: 1 | Q73: 96 | T73: 0 | U73: Louis Cheze | 2015 | Viognier | Condrieu Pagus Luminis | 0.75 L | V73: =MATCH(U73,Inventory!$A$2:$A$2000,0) -> 103 | BU73: 96 | BV73: Red | DP73: 0.0007233336623 | DQ73: 1.000723334
A74: Le Vieux Donjon | B74: 2005 | C74: Chateauneuf Du Pape | D74: Grenache Blend | E74: Chateauneuf Du Pape | F74: 0.75 | G74: 43.21749853 | H74: 91 | I74: 2007-09-18 | J74: 2007-09-18 | K74: 6 | L74: Vendor 72 | M74: 4 | N74: 172.8699941 | O74: 1 | P74: 1 | Q74: 91 | R74: AL-N-L4-2 | S74: Cork (TBD) | T74: 0 | U74: Le Vieux Donjon | 2005 | Chateauneuf Du Pape | Chateauneuf Du Pape | 0.75 L | V74: =MATCH(U74,Inventory!$A$2:$A$2000,0) -> 115 | BT74: Ground | BU74: 364 | BV74: White | DP74: 0.0009724346906 | DQ74: 4.000972435
A75: La Serena | B75: 2010 | C75: Brunello (Sangiovese) | D75: Brunello | E75: Brunello di Montalcino | F75: 0.75 | G75: 50.93416254 | H75: 96 | I75: 2015-03-30 | J75: 2015-03-30 | K75: 12 | L75: Vendor 82 | M75: 12 | N75: 611.2099505 | O75: 1 | P75: 1 | Q75: 96 | R75: AL-E-L1-3 | T75: 0 | U75: La Serena | 2010 | Brunello (Sangiovese) | Brunello di Montalcino | 0.75 L | V75: =MATCH(U75,Inventory!$A$2:$A$2000,0) -> 104 | BT75: Ground | BU75: 1152 | BV75: White | DP75: 0.0001460775117 | DQ75: 12.00014608
A76: La Poderina | B76: 2006 | C76: Brunello | D76: Brunello | E76: Brunello di Montalcino | F76: 0.75 | G76: 36.67183515 | H76: 92 | I76: 2011-04-17 | J76: 2011-04-21 | K76: 12 | L76: Vendor 28 | M76: 8 | N76: 293.3746812 | O76: 1 | P76: 1 | Q76: 92 | R76: AL-E-L4-2, AL-E-L2-3 | T76: 0 | U76: La Poderina | 2006 | Brunello | Brunello di Montalcino | 0.75 L | V76: =MATCH(U76,Inventory!$A$2:$A$2000,0) -> 105 | BT76: Ground | BU76: 736 | BV76: Red | DP76: 1.458811404e-06 | DQ76: 8.000001459
A77: Keplinger Wines | B77: 2017 | C77: 84% Petite Sirah, 13% Syrah, 3% Viognier | D77: Petite Sirah Blend | E77: Sumo | F77: 0.75 | G77: 84.92239304 | H77: 93 | I77: 2019-08-20 | J77: 2019-11-19 | K77: 1 | L77: Vendor 80 | M77: 1 | N77: 84.92239304 | O77: 1 | P77: 1 | Q77: 93 | T77: 0 | U77: Keplinger Wines | 2017 | 84% Petite Sirah, 13% Syrah, 3% Viognier | Sumo | 0.75 L | V77: =MATCH(U77,Inventory!$A$2:$A$2001,0) -> 113 | BT77: Ground | BU77: 93 | BV77: Red | DP77: 0.0005613114664 | DQ77: 1.000561311
A78: Keplinger Wines | B78: 2017 | C78: 47% Grenache, 28% Mourvedre, 25% Syrah | D78: Grenache Blend | E78: Lithic | F78: 0.75 | G78: 87.5580528 | H78: 93 | I78: 2019-08-20 | J78: 2019-11-19 | K78: 1 | L78: Vendor 80 | M78: 1 | N78: 87.5580528 | O78: 1 | P78: 1 | Q78: 93 | T78: 0 | U78: Keplinger Wines | 2017 | 47% Grenache, 28% Mourvedre, 25% Syrah | Lithic | 0.75 L | V78: =MATCH(U78,Inventory!$A$2:$A$2001,0) -> 10 | BT78: Ground | BU78: 93 | BV78: Red | DP78: 0.000194255067 | DQ78: 1.000194255
A79: Keplinger Wines | B79: 2017 | C79: Syrah & Viognier | D79: Shiraz/Syrah Blend | E79: Hangman's | F79: 0.75 | G79: 85.25035967 | H79: 93 | I79: 2020-02-06 | J79: 2020-03-21 | K79: 1 | L79: Vendor 80 | M79: 1 | N79: 85.25035967 | O79: 1 | P79: 1 | Q79: 93 | T79: 0 | U79: Keplinger Wines | 2017 | Syrah & Viognier | Hangman's | 0.75 L | V79: =MATCH(U79,Inventory!$A$2:$A$2001,0) -> 119 | BT79: Ground | BU79: 93 | BV79: Red | DP79: 0.000611808547 | DQ79: 1.000611809
A80: Keplinger Wines | B80: 2017 | C80: Grenache | D80: Grenache | E80: El Diablo | F80: 0.75 | G80: 85.23341689 | H80: 93 | I80: 2020-02-06 | J80: 2020-03-21 | K80: 1 | L80: Vendor 80 | M80: 1 | N80: 85.23341689 | O80: 1 | P80: 1 | Q80: 93 | T80: 0 | U80: Keplinger Wines | 2017 | Grenache | El Diablo | 0.75 L | V80: =MATCH(U80,Inventory!$A$2:$A$2001,0) -> 109 | BT80: Ground | BU80: 93 | BV80: Red | DP80: 0.0005877015237 | DQ80: 1.000587702
A81: Keplinger Wines | B81: 2017 | C81: 77% Mourvedre, 19% Grenache, 4% Counoise | D81: Mourvedre Blend | E81: Caldera | F81: 0.75 | G81: 85.50330412 | H81: 93 | I81: 2019-08-20 | J81: 2019-11-19 | K81: 1 | L81: Vendor 80 | M81: 1 | N81: 85.50330412 | O81: 1 | P81: 1 | Q81: 93 | T81: 0 | U81: Keplinger Wines | 2017 | 77% Mourvedre, 19% Grenache, 4% Counoise | Caldera | 0.75 L | V81: =MATCH(U81,Inventory!$A$2:$A$2001,0) -> 118 | BT81: Ground | BU81: 93 | BV81: Red | DP81: 0.000329727887 | DQ81: 1.000329728
A82: Keplinger Wines | B82: 2016 | C82: GSM | D82: Grenache Blend | E82: Mars | F82: 0.75 | G82: 83.04482784 | H82: 93 | I82: 2019-07-15 | J82: 2019-10-08 | K82: 1 | L82: Vendor 80 | M82: 1 | N82: 83.04482784 | O82: 1 | P82: 1 | Q82: 93 | T82: 0 | U82: Keplinger Wines | 2016 | GSM | Mars | 0.75 L | V82: =MATCH(U82,Inventory!$A$2:$A$2001,0) -> 121 | BT82: Ground | BU82: 93 | BV82: Red | DP82: 0.0001848229634 | DQ82: 1.000184823
A83: Keplinger Wines | B83: 2016 | C83: Syrah | D83: Shiraz/Syrah | E83: Fuego y Mar | F83: 0.75 | G83: 84.95821771 | H83: 93 | I83: 2019-07-15 | J83: 2019-10-08 | K83: 1 | L83: Vendor 80 | M83: 1 | N83: 84.95821771 | O83: 1 | P83: 1 | Q83: 93 | T83: 0 | U83: Keplinger Wines | 2016 | Syrah | Fuego y Mar | 0.75 L | V83: =MATCH(U83,Inventory!$A$2:$A$2001,0) -> 108 | BT83: Ground | BU83: 93 | BV83: Red | DP83: 0.0003551550044 | DQ83: 1.000355155
A84: Keplinger Wines | B84: 2016 | C84: 77% Mourvedre, 19% Grenache, 4% Counoise | D84: Mourvedre Blend | E84: Caldera | F84: 0.75 | G84: 85.50961329 | H84: 93 | I84: 2019-07-15 | J84: 2019-10-08 | K84: 1 | L84: Vendor 80 | M84: 1 | N84: 85.50961329 | O84: 1 | P84: 1 | Q84: 93 | T84: 0 | U84: Keplinger Wines | 2016 | 77% Mourvedre, 19% Grenache, 4% Counoise | Caldera | 0.75 L | V84: =MATCH(U84,Inventory!$A$2:$A$2001,0) -> 114 | BT84: Ground | BU84: 93 | BV84: Red | DP84: 6.629862249e-05 | DQ84: 1.000066299
A85: Bodegas Los Bermejos | B85: 2019 | C85: Listan Negro | D85: Listan Negro | E85: Listan Negro Rosado | F85: 0.75 | G85: 24.83503961 | H85: 91 | I85: 2020-06-08 | J85: 2020-06-11 | K85: 6 | L85: Vendor 18 | M85: 5 | N85: =M85*G85 -> 124.1751981 | O85: 1 | P85: 1 | Q85: =H85*P85 -> 91 | T85: 0 | U85: =A85&" | "&B85&" | "&C85&" | "&E85&" | "&F85&" L" -> Bodegas Los Bermejos | 2019 | Listan Negro | Listan Negro Rosado | 0.75 L | V85: =MATCH(U85,Inventory!$A$2:$A$2001,0) -> 98 | BT85: Pickup | BU85: 455 | BV85: Red | DP85: 0.000246836708 | DQ85: 5.000246837
A86: Keep Wines | B86: 2019 | C86: Counoise | D86: Counoise | E86: Counoise Sierra Foothills, David Girard Vineyard | F86: 0.75 | G86: 25.74141661 | H86: 92 | I86: 2020-04-14 | J86: 2020-05-04 | K86: 3 | L86: Vendor 80 | M86: 3 | N86: =M86*G86 -> 77.22424984 | O86: 1 | P86: 1 | Q86: =H86*P86 -> 92 | S86: Cork (Synthetic) | T86: 0 | U86: =A86&" | "&B86&" | "&C86&" | "&E86&" | "&F86&" L" -> Keep Wines | 2019 | Counoise | Counoise Sierra Foothills, David Girard Vineyard | 0.75 L | V86: =MATCH(U86,Inventory!$A$2:$A$2001,0) -> 122 | BT86: Ground | BU86: 276 | BV86: Red | DP86: 0.000580299197 | DQ86: 3.000580299
A87: Keep Wines | B87: 2018 | C87: Counoise | D87: Counoise | E87: Counoise Sierra Foothills, David Girard Vineyard | F87: 0.75 | G87: 24.73795838 | H87: 92 | I87: 2020-04-14 | J87: 2020-05-04 | K87: 1 | L87: Vendor 80 | M87: 1 | N87: 24.73795838 | O87: 1 | P87: 1 | Q87: 92 | S87: Cork (Synthetic) | T87: 0 | U87: Keep Wines | 2018 | Counoise | Counoise Sierra Foothills, David Girard Vineyard | 0.75 L | V87: =MATCH(U87,Inventory!$A$2:$A$2001,0) -> 125 | BT87: Ground | BU87: 92 | BV87: Red | DP87: 0.0002899745435 | DQ87: 1.000289975
A88: Keep Wines | B88: 2017 | C88: Counoise | D88: Counoise | E88: Counoise Sierra Foothills, David Girard Vineyard | F88: 0.75 | G88: 25.38132201 | H88: 92 | I88: 2020-04-14 | J88: 2020-05-04 | K88: 1 | L88: Vendor 80 | M88: 1 | N88: 25.38132201 | O88: 1 | P88: 1 | Q88: 92 | S88: Cork (Synthetic) | T88: 0 | U88: Keep Wines | 2017 | Counoise | Counoise Sierra Foothills, David Girard Vineyard | 0.75 L | V88: =MATCH(U88,Inventory!$A$2:$A$2001,0) -> 126 | BT88: Ground | BU88: 92 | BV88: Red | DP88: 0.0006356483445 | DQ88: 1.000635648
A89: Keep Wines | B89: 2016 | C89: Syrah | D89: Shiraz/Syrah | E89: Syrah Napa Valley | F89: 0.75 | G89: 42.87813616 | H89: 92 | I89: 2019-10-10 | J89: 2019-10-21 | K89: 4 | L89: Vendor 80 | M89: 2 | N89: 85.75627232 | O89: 1 | P89: 1 | Q89: 92 | T89: 0 | U89: Keep Wines | 2016 | Syrah | Syrah Napa Valley | 0.75 L | V89: =MATCH(U89,Inventory!$A$2:$A$2000,0) -> 117 | BT89: Ground | BU89: 184 | BV89: Red | DP89: 0.0002235935733 | DQ89: 2.000223594
A90: Jean-Luc Columbo | B90: 2010 | C90: Syrah | D90: Shiraz/Syrah | E90: Cornas La Louvée | F90: 0.75 | G90: 42.89333325 | H90: 96 | I90: 2013-06-05 | J90: 2013-06-06 | K90: 12 | L90: Vendor 86 | M90: 9 | N90: 386.0399993 | O90: 1 | P90: 1 | Q90: 96 | R90: AL-E-L1-2 | T90: 0 | U90: Jean-Luc Columbo | 2010 | Syrah | Cornas La Louvée | 0.75 L | V90: =MATCH(U90,Inventory!$A$2:$A$2000,0) -> 116 | BU90: 864 | BV90: White | DP90: 0.0002494247366 | DQ90: 9.000249425
A91: Inniskillin | B91: 2006 | C91: Vidal | D91: Vidal | E91: Niagara Pennisula Vidal Ice Wine | F91: 0.375 | G91: 62.0338431 | H91: 91 | I91: 2009-08-15 | J91: 2009-08-15 | K91: 3 | L91: Vendor 40 | M91: 1 | N91: 62.0338431 | O91: 1 | P91: 1 | Q91: 91 | S91: Cork (TBD) | T91: 0 | U91: Inniskillin | 2006 | Vidal | Niagara Pennisula Vidal Ice Wine | 0.375 L | V91: =MATCH(U91,Inventory!$A$2:$A$2000,0) -> 190 | BT91: Ground | BU91: 91 | BV91: Red | DP91: 0.0003038814721 | DQ91: 1.000303881
A92: Halcón Vineyards | B92: 2018 | C92: Pinot Noir | D92: Pinot Noir | E92: Oppenlander Pinot Noir | F92: 0.75 | G92: 36.85316093 | H92: 92 | I92: 2020-03-27 | J92: 2020-03-27 | K92: 4 | L92: Vendor 80 | M92: 4 | N92: 147.4126437 | O92: 1 | P92: 1 | Q92: 92 | T92: 0 | U92: Halcón Vineyards | 2018 | Pinot Noir | Oppenlander Pinot Noir | 0.75 L | V92: =MATCH(U92,Inventory!$A$2:$A$2001,0) -> 120 | BT92: Ground | BU92: 368 | BV92: Red | DP92: 0.0006418853449 | DQ92: 4.000641885
A93: Halcón Vineyards | B93: 2018 | C93: Beaucastel Blanc and Chablis | D93: Rhone White Blend | E93: Halcón Rousanne | F93: 0.75 | G93: 33.79638253 | H93: 90 | I93: 2019-08-30 | J93: 2019-11-04 | K93: 2 | L93: Vendor 80 | M93: 2 | N93: 67.59276506 | O93: 1 | P93: 1 | Q93: 90 | T93: 0 | U93: Halcón Vineyards | 2018 | Beaucastel Blanc and Chablis | Halcón Rousanne | 0.75 L | V93: =MATCH(U93,Inventory!$A$2:$A$2001,0) -> 15 | BT93: Ground | BU93: 180 | BV93: White | DP93: 0.0006127612942 | DQ93: 2.000612761
A94: Halcón Vineyards | B94: 2017 | C94: Pinot Noir | D94: Pinot Noir | E94: Oppenlander Pinot Noir | F94: 0.75 | G94: 36.60827128 | H94: 92 | I94: 2019-02-06 | J94: 2019-04-05 | K94: 4 | L94: Vendor 80 | M94: 2 | N94: 73.21654255 | O94: 1 | P94: 1 | Q94: 92 | T94: 0 | U94: Halcón Vineyards | 2017 | Pinot Noir | Oppenlander Pinot Noir | 0.75 L | V94: =MATCH(U94,Inventory!$A$2:$A$2000,0) -> 145 | BT94: Ground | BU94: 184 | BV94: Red | DP94: 0.0003220142846 | DQ94: 2.000322014
A95: Halcón Vineyards | B95: 2017 | C95: Syrah | D95: Shiraz/Syrah | E95: Elevación | F95: 0.75 | G95: 39.23131853 | H95: 90 | I95: 2019-08-30 | J95: 2019-11-04 | K95: 4 | L95: Vendor 80 | M95: 4 | N95: 156.9252741 | O95: 1 | P95: 1 | Q95: 90 | T95: 0 | U95: Halcón Vineyards | 2017 | Syrah | Elevación | 0.75 L | V95: =MATCH(U95,Inventory!$A$2:$A$2001,0) -> 131 | BU95: 360 | BV95: Red | DP95: 0.0006125851163 | DQ95: 4.000612585
A96: Halcón Vineyards | B96: 2018 | C96: Syrah | D96: Shiraz/Syrah | E96: Alturas | F96: 0.75 | G96: 33.85161986 | H96: 92 | I96: 2020-03-27 | J96: 2020-03-27 | K96: 6 | L96: Vendor 80 | M96: 6 | N96: 203.1097191 | O96: 1 | P96: 1 | Q96: 92 | T96: 0 | U96: Halcón Vineyards | 2018 | Syrah | Alturas | 0.75 L | V96: =MATCH(U96,Inventory!$A$2:$A$2001,0) -> 1 | BT96: Ground | BU96: 552 | BV96: Red | DP96: 0.0003450283869 | DQ96: 6.000345028
A97: Halcón Vineyards | B97: 2016 | C97: Pinot Noir | D97: Pinot Noir | E97: Oppenlander Pinot Noir | F97: 0.75 | G97: 42.20158115 | H97: 92 | I97: 2018-01-10 | J97: 2018-03-09 | K97: 2 | L97: Vendor 80 | M97: 1 | N97: 42.20158115 | O97: 1 | P97: 1 | Q97: 92 | T97: 0 | U97: Halcón Vineyards | 2016 | Pinot Noir | Oppenlander Pinot Noir | 0.75 L | V97: =MATCH(U97,Inventory!$A$2:$A$2000,0) -> 133 | BT97: Ground | BU97: 92 | BV97: Red | DP97: 0.0003043223763 | DQ97: 1.000304322
A98: Halcón Vineyards | B98: 2015 | C98: Petite Sirah | D98: Petite Sirah | E98: Petite Sirah | F98: 0.75 | G98: 31.16639228 | H98: 92 | I98: 2017-11-07 | J98: 2017-11-15 | K98: 2 | L98: Vendor 80 | M98: 1 | N98: 31.16639228 | O98: 1 | P98: 1 | Q98: 92 | T98: 0 | U98: Halcón Vineyards | 2015 | Petite Sirah | Petite Sirah | 0.75 L | V98: =MATCH(U98,Inventory!$A$2:$A$2000,0) -> 68 | BT98: Ground | BU98: 92 | BV98: Red | DP98: 0.0002514231341 | DQ98: 1.000251423
A99: Giovanni Corino | B99: 2007 | C99: Nebbiolo | D99: Nebbiolo | E99: Barolo | F99: 0.75 | G99: 39.46537615 | H99: 95 | I99: 2012-05-08 | J99: 2012-05-10 | K99: 12 | L99: Vendor 24 | M99: 10 | N99: 394.6537615 | O99: 1 | P99: 1 | Q99: 95 | R99: AL-N-L5-3 | T99: 0 | U99: Giovanni Corino | 2007 | Nebbiolo | Barolo | 0.75 L | V99: =MATCH(U99,Inventory!$A$2:$A$2000,0) -> 137 | BU99: 950 | BV99: Red | DP99: 0.0009511882338 | DQ99: 10.00095119
A100: Fox Gordon | B100: 2004 | C100: Shiraz | D100: Shiraz/Syrah | E100: Eight Uncles Barossa Valley | F100: 0.75 | G100: 18.78676429 | H100: 91 | I100: 2007-04-05 | J100: 2007-04-05 | K100: 12 | L100: Vendor 75 | M100: 1 | N100: 18.78676429 | O100: 1 | P100: 1 | Q100: 91 | R100: AL-E-L5-3 | S100: Cork (TBD) | T100: 0 | U100: Fox Gordon | 2004 | Shiraz | Eight Uncles Barossa Valley | 0.75 L | V100: =MATCH(U100,Inventory!$A$2:$A$2000,0) -> 22 | BT100: Ground | BU100: 91 | BV100: Red | DP100: 0.0005431945826 | DQ100: 1.000543195
A101: Forge Cellars | B101: 2016 | C101: Riesling | D101: Riesling | E101: Les Allies Dry Riesling | F101: 0.75 | G101: 27.30290701 | H101: 92 | I101: 2018-10-26 | J101: 2018-10-26 | K101: 6 | L101: Vendor 27 | M101: 1 | N101: 27.30290701 | O101: 1 | P101: 1 | Q101: 92 | T101: 0 | U101: Forge Cellars | 2016 | Riesling | Les Allies Dry Riesling | 0.75 L | V101: =MATCH(U101,Inventory!$A$2:$A$2000,0) -> 134 | BT101: Ground | BU101: 92 | BV101: Red | DP101: 0.0008201573886 | DQ101: 1.000820157
A102: Fattoria la Lecciaia | B102: 2009 | C102: Brunello | D102: Brunello | E102: Brunello di Montalcino Riserva | F102: 0.75 | G102: 31.0136333 | H102: 95 | I102: 2016-09-11 | J102: 2016-09-14 | K102: 12 | L102: Vendor 12 | M102: 11 | N102: 341.1499663 | O102: 1 | P102: 1 | Q102: 95 | T102: 0 | U102: Fattoria la Lecciaia | 2009 | Brunello | Brunello di Montalcino Riserva | 0.75 L | V102: =MATCH(U102,Inventory!$A$2:$A$2000,0) -> 132 | BU102: 1045 | BV102: Red | DP102: 0.0003014296381 | DQ102: 11.00030143
A103: Elvio Cogno | B103: 2007 | C103: Barolo | D103: Nebbiolo | E103: Barolo Cascina Nuova | F103: 0.75 | G103: 38.6833088 | H103: 95 | I103: 2012-02-28 | J103: 2012-03-06 | K103: 12 | L103: Vendor 74 | M103: 11 | N103: 425.5163968 | O103: 1 | P103: 1 | Q103: 95 | R103: AL-E-L2-2 | T103: 0 | U103: Elvio Cogno | 2007 | Barolo | Barolo Cascina Nuova | 0.75 L | V103: =MATCH(U103,Inventory!$A$2:$A$2000,0) -> 127 | BU103: 1045 | BV103: Red | DP103: 0.0005240215976 | DQ103: 11.00052402
A104: Dow | B104: 2011 | C104: Port | D104: Port | E104: Vintage Porto | F104: 0.75 | G104: 67.60640772 | H104: 99 | I104: 2013-11-02 | J104: 2013-11-06 | K104: 4 | L104: Vendor 60 | M104: 4 | N104: 270.4256309 | O104: 1 | P104: 1 | Q104: 99 | R104: AL-N-L2-3 | T104: 0 | U104: Dow | 2011 | Port | Vintage Porto | 0.75 L | V104: =MATCH(U104,Inventory!$A$2:$A$2000,0) -> 99 | BU104: 396 | BV104: Red | DP104: 0.0008886123489 | DQ104: 4.000888612
A105: Dow | B105: 1994 | C105: Port | D105: Port | E105: Vintage Porto | F105: 0.75 | G105: 109.6266515 | H105: 97 | I105: 2019-02-15 | J105: 2019-04-05 | K105: 2 | L105: Vendor 24 | M105: 2 | N105: 219.2533029 | O105: 1 | P105: 1 | Q105: 97 | T105: 0 | U105: Dow | 1994 | Port | Vintage Porto | 0.75 L | V105: =MATCH(U105,Inventory!$A$2:$A$2000,0) -> 139 | BU105: 194 | BV105: Red | DP105: 0.0001458857704 | DQ105: 2.000145886
A106: DONNAFUGATA | B106: 2008 | C106: Zibibbo | D106: Zibibbo | E106: Passito di Pantelleria Ben Ryé Edizione Limitata | F106: 0.75 | G106: 92.13506627 | H106: 93 | I106: 2017-07-01 | J106: 2017-07-11 | K106: 1 | L106: Vendor 47 | M106: 1 | N106: 92.13506627 | O106: 1 | P106: 1 | Q106: 93 | T106: 0 | U106: DONNAFUGATA | 2008 | Zibibbo | Passito di Pantelleria Ben Ryé Edizione Limitata | 0.75 L | V106: =MATCH(U106,Inventory!$A$2:$A$2000,0) -> 141 | BU106: 93 | BV106: Red | DP106: 0.0003157717439 | DQ106: 1.000315772
A107: Domaine Saint Prefert | B107: 2016 | C107: Chateauneuf Du Pape | D107: Grenache Blend | E107: Reserve Auguste Favier | F107: 0.75 | G107: 56.87227894 | H107: 97 | I107: 2018-09-26 | J107: 2018-09-27 | K107: 6 | L107: Vendor 83 | M107: 6 | N107: 341.2336736 | O107: 1 | P107: 1 | Q107: 97 | T107: 0 | U107: Domaine Saint Prefert | 2016 | Chateauneuf Du Pape | Reserve Auguste Favier | 0.75 L | V107: =MATCH(U107,Inventory!$A$2:$A$2000,0) -> 142 | BU107: 582 | BV107: Red | DP107: 0.0004979972139 | DQ107: 6.000497997
A108: Domaine Saint Prefert | B108: 2010 | C108: Chateauneuf Du Pape | D108: Grenache Blend | E108: Reserve Auguste Favier | F108: 0.75 | G108: 50.53012772 | H108: 97 | I108: 2012-08-09 | J108: 2012-08-12 | K108: 12 | L108: Vendor 14 | M108: 11 | N108: 555.8314049 | O108: 1 | P108: 1 | Q108: 97 | R108: AL-N-L3-1 | T108: 0 | U108: Domaine Saint Prefert | 2010 | Chateauneuf Du Pape | Reserve Auguste Favier | 0.75 L | V108: =MATCH(U108,Inventory!$A$2:$A$2000,0) -> 128 | BU108: 1067 | BV108: Red | DP108: 0.0001904197742 | DQ108: 11.00019042
A109: Domaine Huet | B109: 2016 | C109: Chenin Blanc | D109: Chenin Blanc | E109: Vouvray Moelleux Le Haut-Lieu | F109: 0.75 | G109: 44.36060062 | H109: 95 | I109: 2017-08-14 | J109: 2017-08-24 | K109: 3 | L109: Vendor 18 | M109: 3 | N109: 133.0818019 | O109: 1 | P109: 1 | Q109: 95 | T109: 0 | U109: Domaine Huet | 2016 | Chenin Blanc | Vouvray Moelleux Le Haut-Lieu | 0.75 L | V109: =MATCH(U109,Inventory!$A$2:$A$2000,0) -> 28 | BU109: 285 | BV109: Red | DP109: 0.0006631940223 | DQ109: 3.000663194
A110: Domaine Huet | B110: 2016 | C110: Chenin Blanc | D110: Chenin Blanc | E110: Vouvray Clos du Bourg Moelleux | F110: 0.75 | G110: 50.74349082 | H110: 97 | I110: 2017-09-11 | J110: 2018-05-08 | K110: 6 | L110: Vendor 58 | M110: 6 | N110: 304.4609449 | O110: 1 | P110: 1 | Q110: 97 | T110: 0 | U110: Domaine Huet | 2016 | Chenin Blanc | Vouvray Clos du Bourg Moelleux | 0.75 L | V110: =MATCH(U110,Inventory!$A$2:$A$2000,0) -> 135 | BU110: 582 | BV110: Red | DP110: 0.0008770868175 | DQ110: 6.000877087
A111: Domaine Giraud | B111: 2015 | C111: Chateauneuf du Pape | D111: Grenache Blend | E111: Chateauneuf du Pape Les Gallimardes | F111: 0.75 | G111: 86.63323063 | H111: 97 | I111: 2018-07-26 | J111: 2018-07-31 | K111: 6 | L111: Vendor 39 | M111: 6 | N111: 519.7993838 | O111: 1 | P111: 1 | Q111: 97 | S111: Cork (TBD) | T111: 0 | U111: Domaine Giraud | 2015 | Chateauneuf du Pape | Chateauneuf du Pape Les Gallimardes | 0.75 L | V111: =MATCH(U111,Inventory!$A$2:$A$2000,0) -> 24 | BT111: Ground | BU111: 582 | BV111: Red | DP111: 0.000948071131 | DQ111: 6.000948071
A112: Domaine Giraud | B112: 2007 | C112: Chateauneuf du Pape | D112: Grenache Blend | E112: Chateauneuf du Pape Les Gallimardes | F112: 0.75 | G112: 50.51057831 | H112: 96 | I112: 2009-07-24 | J112: 2009-07-29 | K112: 12 | L112: Vendor 26 | M112: 7 | N112: 353.5740482 | O112: 1 | P112: 1 | Q112: 96 | R112: AL-N-L1-2 | S112: Cork (TBD) | T112: 0 | U112: Domaine Giraud | 2007 | Chateauneuf du Pape | Chateauneuf du Pape Les Gallimardes | 0.75 L | V112: =MATCH(U112,Inventory!$A$2:$A$2000,0) -> 124 | BU112: 672 | BV112: Rose | DP112: 0.0005505760904 | DQ112: 7.000550576
A113: Domaine des Baumard | B113: 2005 | C113: Chenin Blanc | D113: Chenin Blanc | E113: Quarts de Chaume | F113: 0.75 | G113: 71.24840054 | H113: 98 | I113: 2007-10-25 | J113: 2007-10-25 | K113: 6 | L113: Vendor 13 | M113: 5 | N113: 356.2420027 | O113: 1 | P113: 1 | Q113: 98 | R113: S-L3-1 | S113: Cork (TBD) | T113: 0 | U113: Domaine des Baumard | 2005 | Chenin Blanc | Quarts de Chaume | 0.75 L | V113: =MATCH(U113,Inventory!$A$2:$A$2000,0) -> 144 | BU113: 490 | BV113: White | DP113: 0.0008397648769 | DQ113: 5.000839765
A114: Domaine des Baumard | B114: 2005 | C114: Chenin Blanc | D114: Chenin Blanc | E114: Coteaux du Layon Clos Ste. Catherine | F114: 0.5 | G114: 40.95426192 | H114: 96 | I114: 2007-05-01 | J114: 2007-07-18 | K114: 12 | L114: Vendor 75 | M114: 8 | N114: 327.6340954 | O114: 1 | P114: 1 | Q114: 96 | R114: WR-L1-1 | S114: Screwtop | T114: 0 | U114: Domaine des Baumard | 2005 | Chenin Blanc | Coteaux du Layon Clos Ste. Catherine | 0.5 L | V114: =MATCH(U114,Inventory!$A$2:$A$2000,0) -> 146 | BU114: 768 | BV114: Sparkling | DP114: 0.0001456847564 | DQ114: 8.000145685
A115: Domaine de la Janasse | B115: 2015 | C115: Grenache | D115: Grenache | E115: Chateauneuf du Pape Vieilles Vignes | F115: 0.75 | G115: 73.05009455 | H115: 97 | I115: 2017-07-13 | J115: 2017-07-21 | K115: 6 | L115: Vendor 60 | M115: 6 | N115: 438.3005673 | O115: 1 | P115: 1 | Q115: 97 | T115: 0 | U115: Domaine de la Janasse | 2015 | Grenache | Chateauneuf du Pape Vieilles Vignes | 0.75 L | V115: =MATCH(U115,Inventory!$A$2:$A$2000,0) -> 148 | BU115: 582 | BV115: White | DP115: 0.0005127937643 | DQ115: 6.000512794
A116: Domaine de la Charbonniere | B116: 2016 | C116: Grenache blend | D116: Grenache Blend | E116: Châteauneuf-du-Pape Les Hautes Brusquières Cuvée Spéciale | F116: 0.75 | G116: 59.92025837 | H116: 96 | I116: 2019-08-07 | J116: 2019-08-12 | K116: 6 | L116: Vendor 60 | M116: 6 | N116: 359.5215502 | O116: 1 | P116: 1 | Q116: 96 | S116: Cork (Natural) | T116: 0 | U116: Domaine de la Charbonniere | 2016 | Grenache blend | Châteauneuf-du-Pape Les Hautes Brusquières Cuvée Spéciale | 0.75 L | V116: =MATCH(U116,Inventory!$A$2:$A$2000,0) -> 143 | BU116: 576 | BV116: Red | DP116: 0.0001950708122 | DQ116: 6.000195071
A117: Domaine de Beaurenard | B117: 2016 | C117: Grenache blend | D117: Grenache Blend | E117: Châteauneuf-du-Pape White Boisrenard | F117: 0.75 | G117: 68.96944914 | H117: 95 | I117: 2019-09-29 | J117: 2019-10-18 | K117: 3 | L117: Vendor 80 | M117: 2 | N117: 137.9388983 | O117: 1 | P117: 1 | Q117: 95 | T117: 0 | U117: Domaine de Beaurenard | 2016 | Grenache blend | Châteauneuf-du-Pape White Boisrenard | 0.75 L | V117: =MATCH(U117,Inventory!$A$2:$A$2000,0) -> 140 | BU117: 190 | BV117: Red | DP117: 0.0004019484548 | DQ117: 2.000401948
A118: Domaine de Beaurenard | B118: 2015 | C118: Grenache blend | D118: Grenache Blend | E118: Châteauneuf-du-Pape Boisrenard | F118: 0.75 | G118: 89.64555573 | H118: 97 | I118: 2018-09-06 | J118: 2018-09-11 | K118: 2 | L118: Vendor 4 | M118: 2 | N118: 179.2911115 | O118: 1 | P118: 1 | Q118: 97 | T118: 0 | U118: Domaine de Beaurenard | 2015 | Grenache blend | Châteauneuf-du-Pape Boisrenard | 0.75 L | V118: =MATCH(U118,Inventory!$A$2:$A$2000,0) -> 159 | BU118: 194 | BV118: Red | DP118: 0.0007749033399 | DQ118: 2.000774903
A119: Domaine de Beaurenard | B119: 2013 | C119: Grenache blend | D119: Grenache Blend | E119: Châteauneuf-du-Pape Boisrenard | F119: 0.75 | G119: 80.32476874 | H119: 94 | I119: 2016-07-01 | J119: 2016-07-04 | K119: 3 | L119: Vendor 80 | M119: 3 | N119: 240.9743062 | O119: 1 | P119: 1 | Q119: 94 | T119: 0 | U119: Domaine de Beaurenard | 2013 | Grenache blend | Châteauneuf-du-Pape Boisrenard | 0.75 L | V119: =MATCH(U119,Inventory!$A$2:$A$2000,0) -> 129 | BU119: 282 | BV119: Red | DP119: 0.0007016028961 | DQ119: 3.000701603
A120: Domaine de Bagnol | B120: 2018 | C120: Clairette, Marsanne, Ugni | D120: Clairette Blend | E120: Cassis Blanc | F120: 0.75 | G120: 30.37412059 | H120: 91 | I120: 2019-10-10 | J120: 2019-10-19 | K120: 3 | L120: Vendor 18 | M120: 3 | N120: 91.12236178 | O120: 1 | P120: 1 | Q120: 91 | T120: 0 | U120: Domaine de Bagnol | 2018 | Clairette, Marsanne, Ugni | Cassis Blanc | 0.75 L | V120: =MATCH(U120,Inventory!$A$2:$A$2000,0) -> 130 | BT120: Ground | BU120: 273 | BV120: Red | DP120: 0.0003170639236 | DQ120: 3.000317064
A121: Delmas | B121: 2017 | C121: Syrah, Viognier | D121: Shiraz/Syrah Blend | E121: Syrah Walla Walla Valley | F121: 1.5 | G121: 282.3145397 | H121: 93 | I121: 2019-02-28 | J121: 2019-09-16 | K121: 1 | L121: Vendor 23 | M121: 1 | N121: 282.3145397 | O121: 1 | P121: 1 | Q121: 93 | T121: 0 | U121: Delmas | 2017 | Syrah, Viognier | Syrah Walla Walla Valley | 1.5 L | V121: =MATCH(U121,Inventory!$A$2:$A$2000,0) -> 31 | BU121: 93 | BV121: White | DP121: 0.0008533210073 | DQ121: 1.000853321
A122: Delmas | B122: 2015 | C122: Syrah, Viognier | D122: Shiraz/Syrah Blend | E122: Syrah Walla Walla Valley | F122: 0.75 | G122: 79.41664354 | H122: 93 | I122: 2017-02-20 | J122: 2017-10-10 | K122: 6 | L122: Vendor 23 | M122: 6 | N122: 476.4998613 | O122: 1 | P122: 1 | Q122: 93 | T122: 0 | U122: Delmas | 2015 | Syrah, Viognier | Syrah Walla Walla Valley | 0.75 L | V122: =MATCH(U122,Inventory!$A$2:$A$2000,0) -> 153 | BU122: 558 | BV122: Red | DP122: 1.396863427e-05 | DQ122: 6.000013969
A123: Delmas | B123: 2013 | C123: Syrah, Viognier | D123: Shiraz/Syrah Blend | E123: Syrah Walla Walla Valley | F123: 0.75 | G123: 69.58635922 | H123: 92 | I123: 2015-03-11 | J123: 2015-10-19 | K123: 12 | L123: Vendor 23 | M123: 1 | N123: 69.58635922 | O123: 1 | P123: 1 | Q123: 92 | R123: S-L3-2 | T123: 0 | U123: Delmas | 2013 | Syrah, Viognier | Syrah Walla Walla Valley | 0.75 L | V123: =MATCH(U123,Inventory!$A$2:$A$2000,0) -> 154 | BT123: Ground | BU123: 92 | BV123: Red | DP123: 0.0005319669273 | DQ123: 1.000531967
A124: Clos du Mont-Olivet | B124: 2005 | C124: Chateauneuf Du Pape | D124: Grenache Blend | E124: Reserve Auguste Favier | F124: 0.75 | G124: 29.40422451 | H124: 90 | I124: 2008-02-20 | J124: 2008-02-20 | K124: 12 | L124: Vendor 82 | M124: 9 | N124: 264.6380206 | O124: 1 | P124: 1 | Q124: 90 | R124: AL-N-L4-3 | S124: Cork (TBD) | T124: 1 | U124: Clos du Mont-Olivet | 2005 | Chateauneuf Du Pape | Reserve Auguste Favier | 0.75 L | V124: =MATCH(U124,Inventory!$A$2:$A$2000,0) -> 111 | BU124: 810 | BV124: Red | DP124: 0.0001169425631 | DQ124: 9.000116943
A125: Clos des Papes | B125: 2016 | C125: Grenache blend | D125: Grenache Blend | E125: Châteauneuf-du-Pape | F125: 0.75 | G125: 127.1544169 | H125: 95 | I125: 2018-12-04 | J125: 2018-12-06 | K125: 3 | L125: Vendor 20 | M125: 3 | N125: 381.4632508 | O125: 1 | P125: 1 | Q125: 95 | T125: 0 | U125: Clos des Papes | 2016 | Grenache blend | Châteauneuf-du-Pape | 0.75 L | V125: =MATCH(U125,Inventory!$A$2:$A$2000,0) -> 106 | BU125: 285 | BV125: Red | DP125: 0.0004667709138 | DQ125: 3.000466771
A126: Clos des Papes | B126: 2015 | C126: Grenache blend | D126: Grenache Blend | E126: Châteauneuf-du-Pape | F126: 0.75 | G126: 82.50569627 | H126: 98 | I126: 2017-08-09 | J126: 2018-01-16 | K126: 6 | L126: Vendor 7 | M126: 6 | N126: 495.0341776 | O126: 1 | P126: 1 | Q126: 98 | T126: 0 | U126: Clos des Papes | 2015 | Grenache blend | Châteauneuf-du-Pape | 0.75 L | V126: =MATCH(U126,Inventory!$A$2:$A$2000,0) -> 147 | BU126: 588 | BV126: Red | DP126: 0.0009156119558 | DQ126: 6.000915612
A127: Clos des Papes | B127: 2011 | C127: Grenache blend | D127: Grenache Blend | E127: Châteauneuf-du-Pape | F127: 0.75 | G127: 86.39104195 | H127: 93 | I127: 2016-07-26 | J127: 2016-09-13 | K127: 3 | L127: Vendor 21 | M127: 3 | N127: 259.1731258 | O127: 1 | P127: 1 | Q127: 93 | T127: 0 | U127: Clos des Papes | 2011 | Grenache blend | Châteauneuf-du-Pape | 0.75 L | V127: =MATCH(U127,Inventory!$A$2:$A$2000,0) -> 29 | BU127: 279 | BV127: Red | DP127: 0.0004694619569 | DQ127: 3.000469462
A128: Clos des Papes | B128: 2009 | C128: Grenache blend | D128: Grenache Blend | E128: Châteauneuf-du-Pape | F128: 0.75 | G128: 85.62816286 | H128: 96 | I128: 2016-09-16 | J128: 2016-10-22 | K128: 3 | L128: Vendor 58 | M128: 3 | N128: 256.8844886 | O128: 1 | P128: 1 | Q128: 96 | T128: 0 | U128: Clos des Papes | 2009 | Grenache blend | Châteauneuf-du-Pape | 0.75 L | V128: =MATCH(U128,Inventory!$A$2:$A$2000,0) -> 170 | BT128: Ground | BU128: 288 | BV128: Red | DP128: 0.0004656575594 | DQ128: 3.000465658
A129: Clos des Papes | B129: 2005 | C129: Grenache blend | D129: Grenache Blend | E129: Châteauneuf-du-Pape | F129: 0.75 | G129: 108.2016539 | H129: 96 | I129: 2016-12-04 | J129: 2017-02-18 | K129: 3 | L129: Vendor 9 | M129: 2 | N129: 216.4033078 | O129: 1 | P129: 1 | Q129: 96 | T129: 0 | U129: Clos des Papes | 2005 | Grenache blend | Châteauneuf-du-Pape | 0.75 L | V129: =MATCH(U129,Inventory!$A$2:$A$2000,0) -> 30 | BT129: Ground | BU129: 192 | BV129: Red | DP129: 0.0004468514739 | DQ129: 2.000446851
A130: Clos des Papes | B130: 2004 | C130: Grenache blend | D130: Grenache Blend | E130: Châteauneuf-du-Pape | F130: 0.75 | G130: 88.39062014 | H130: 96 | I130: 2019-01-03 | J130: 2019-05-03 | K130: 3 | L130: Vendor 53 | M130: 2 | N130: 176.7812403 | O130: 1 | P130: 1 | Q130: 96 | T130: 0 | U130: Clos des Papes | 2004 | Grenache blend | Châteauneuf-du-Pape | 0.75 L | V130: =MATCH(U130,Inventory!$A$2:$A$2000,0) -> 56 | BU130: 192 | BV130: Red | DP130: 0.0009795552923 | DQ130: 2.000979555
A131: Ciacci Piccolomini D'Aragona | B131: 2013 | C131: Brunello | D131: Brunello | E131: Brunello di Montalcino | F131: 0.75 | G131: 53.74513623 | H131: 96 | I131: 2018-04-17 | J131: 2018-04-19 | K131: 6 | L131: Vendor 24 | M131: 6 | N131: 322.4708174 | O131: 1 | P131: 1 | Q131: 96 | T131: 0 | U131: Ciacci Piccolomini D'Aragona | 2013 | Brunello | Brunello di Montalcino | 0.75 L | V131: =MATCH(U131,Inventory!$A$2:$A$2000,0) -> 182 | BU131: 576 | BV131: Red | DP131: 0.0009199628572 | DQ131: 6.000919963
A132: Château Puygueraud | B132: 2005 | C132: Merlot, Cab S, Malbec | D132: Merlot Blend | E132: Côtes de Francs | F132: 0.75 | G132: 17.57165687 | H132: 92 | I132: 2008-06-30 | J132: 2008-06-30 | K132: 12 | L132: Vendor 3 | M132: 3 | N132: 52.7149706 | O132: 1 | P132: 1 | Q132: 92 | R132: AL-E-L2-1 | S132: Cork (TBD) | T132: 0 | U132: Château Puygueraud | 2005 | Merlot, Cab S, Malbec | Côtes de Francs | 0.75 L | V132: =MATCH(U132,Inventory!$A$2:$A$2000,0) -> 20 | BT132: Ground | BU132: 276 | BV132: Red | DP132: 9.108403798e-05 | DQ132: =M132+DP132 -> 3.000091084
A133: Chateau Marquis d'Alesme-Becker | B133: 2005 | C133: Bordeaux blend | D133: Cab S Blend | E133: Margaux | F133: 0.75 | G133: 29.26819164 | H133: 94 | I133: 2008-11-11 | J133: 2008-11-11 | K133: 12 | L133: Vendor 45 | M133: 10 | N133: 292.6819164 | O133: 1 | P133: 1 | Q133: 94 | R133: AL-E-L4-1 | S133: Cork (TBD) | T133: 0 | U133: Chateau Marquis d'Alesme-Becker | 2005 | Bordeaux blend | Margaux | 0.75 L | V133: =MATCH(U133,Inventory!$A$2:$A$2000,0) -> 63 | BU133: =H133*M133 -> 940 | BV133: Red | DP133: 0.0009519932326 | DQ133: 10.00095199
A134: Chateau Leoville Poyferre | B134: 2005 | C134: Bordeaux blend | D134: Cab S Blend | E134: St. Julien | F134: 0.75 | G134: 87.19263816 | H134: 96 | I134: 2008-01-19 | J134: 2011-09-08 | K134: 12 | L134: Vendor 45 | M134: 11 | N134: 959.1190198 | O134: 1 | P134: 1 | Q134: 96 | S134: Cork (TBD) | T134: 0 | U134: Chateau Leoville Poyferre | 2005 | Bordeaux blend | St. Julien | 0.75 L | V134: =MATCH(U134,Inventory!$A$2:$A$2000,0) -> 149 | BU134: 1056 | BV134: Red | DP134: 0.000561986458 | DQ134: 11.00056199
A135: Chateau Lafaurie Peyraguey | B135: 2003 | C135: Sauternes | D135: Sauternes | E135: Sauternes | F135: 0.75 | G135: 56.98542304 | H135: 97 | I135: 2013-12-27 | J135: 2013-12-28 | K135: 3 | L135: Vendor 64 | M135: 3 | N135: 170.9562691 | O135: 1 | P135: 1 | Q135: 97 | R135: AL-S-L4-1 | T135: 0 | U135: Chateau Lafaurie Peyraguey | 2003 | Sauternes | Sauternes | 0.75 L | V135: =MATCH(U135,Inventory!$A$2:$A$2000,0) -> 150 | BU135: 291 | BV135: Red | DP135: 0.0007588508817 | DQ135: 3.000758851
A136: Chateau Gillete | B136: 1990 | C136: Semillion (85), Sauvignon Blanc (10), Muscadelle (5) | D136: Semillion Blend | E136: Sauternes Crème de Tête | F136: 0.75 | G136: 144.0157601 | H136: 98 | I136: 2017-01-04 | J136: 2017-04-27 | K136: 3 | L136: Vendor 21 | M136: 3 | N136: 432.0472802 | O136: 1 | P136: 1 | Q136: 98 | T136: 0 | U136: Chateau Gillete | 1990 | Semillion (85), Sauvignon Blanc (10), Muscadelle (5) | Sauternes Crème de Tête | 0.75 L | V136: =MATCH(U136,Inventory!$A$2:$A$2000,0) -> 157 | BU136: 294 | BV136: Red | DP136: 0.0008255418635 | DQ136: 3.000825542
A137: Chateau d'Yquem | B137: 2002 | C137: Sauternes | D137: Sauternes | E137: Sauternes | F137: 0.375 | G137: 111.5301453 | H137: 91 | I137: 2007-07-19 | J137: 2007-07-19 | K137: 4 | L137: Vendor 15 | M137: 4 | N137: 446.1205811 | O137: 1 | P137: 1 | Q137: 91 | S137: Cork (TBD) | T137: 0 | U137: Chateau d'Yquem | 2002 | Sauternes | Sauternes | 0.375 L | V137: =MATCH(U137,Inventory!$A$2:$A$2000,0) -> 107 | BT137: Ground | BU137: 364 | BV137: Red | DP137: 0.0009730239533 | DQ137: 4.000973024
A138: Chateau Duhart Milon Rothschild | B138: 2005 | C138: Bordeaux blend | D138: Cab S Blend | E138: Pauillac | F138: 0.75 | G138: 52.29930372 | H138: 93 | I138: 2008-02-20 | J138: 2008-02-20 | K138: 12 | L138: Vendor 44 | M138: 11 | N138: 575.2923409 | O138: 1 | P138: 1 | Q138: 93 | R138: AL-E-L4-2 | S138: Cork (TBD) | T138: 0 | U138: Chateau Duhart Milon Rothschild | 2005 | Bordeaux blend | Pauillac | 0.75 L | V138: =MATCH(U138,Inventory!$A$2:$A$2000,0) -> 151 | BU138: 1023 | BV138: Red | DP138: 0.000126698359 | DQ138: 11.0001267
A139: Chateau de Saint Cosme | B139: 2010 | C139: Grenache, Mouvedre, Cinsalt, Syrah | D139: Grenache Blend | E139: Gigondas | F139: 0.75 | G139: 30.11652302 | H139: 96 | I139: 2012-08-22 | J139: 2013-03-13 | K139: 12 | L139: Vendor 58 | M139: 12 | N139: 361.3982763 | O139: 1 | P139: 1 | Q139: 96 | R139: AL-E-L3-3, AL-S-L3-1 | T139: 0 | U139: Chateau de Saint Cosme | 2010 | Grenache, Mouvedre, Cinsalt, Syrah | Gigondas | 0.75 L | V139: =MATCH(U139,Inventory!$A$2:$A$2000,0) -> 155 | BT139: Ground | BU139: 1152 | BV139: Red | DP139: 0.0001212429201 | DQ139: 12.00012124
A140: Chateau de Beaucastel | B140: 2016 | C140: Grenache blend | D140: Grenache Blend | E140: Châteauneuf-du-Pape | F140: 0.75 | G140: 82.4698637 | H140: 97 | I140: 2018-12-01 | J140: 2018-12-14 | K140: 6 | L140: Vendor 44 | M140: 6 | N140: 494.8191822 | O140: 1 | P140: 1 | Q140: 97 | T140: 0 | U140: Chateau de Beaucastel | 2016 | Grenache blend | Châteauneuf-du-Pape | 0.75 L | V140: =MATCH(U140,Inventory!$A$2:$A$2000,0) -> 168 | BU140: 582 | BV140: Red | DP140: 2.766977317e-05 | DQ140: 6.00002767
A141: Chateau de Beaucastel | B141: 2015 | C141: Grenache blend | D141: Grenache Blend | E141: Châteauneuf-du-Pape | F141: 0.75 | G141: 78.97238031 | H141: 97 | I141: 2018-04-17 | J141: 2018-04-19 | K141: 6 | L141: Vendor 49 | M141: 6 | N141: 473.8342819 | O141: 1 | P141: 1 | Q141: 97 | T141: 0 | U141: Chateau de Beaucastel | 2015 | Grenache blend | Châteauneuf-du-Pape | 0.75 L | V141: =MATCH(U141,Inventory!$A$2:$A$2000,0) -> 172 | BU141: 582 | BV141: Red | DP141: 7.617927746e-06 | DQ141: 6.000007618
A142: Chateau de Beaucastel | B142: 2012 | C142: Grenache blend | D142: Grenache Blend | E142: Châteauneuf-du-Pape | F142: 0.75 | G142: 89.2167205 | H142: 95 | I142: 2019-01-03 | J142: 2019-10-07 | K142: 3 | L142: Vendor 53 | M142: 3 | N142: 267.6501615 | O142: 1 | P142: 1 | Q142: 95 | T142: 0 | U142: Chateau de Beaucastel | 2012 | Grenache blend | Châteauneuf-du-Pape | 0.75 L | V142: =MATCH(U142,Inventory!$A$2:$A$2000,0) -> 158 | BU142: 285 | BV142: Red | DP142: 0.0003899549559 | DQ142: 3.000389955
A143: Chateau de Beaucastel | B143: 2009 | C143: Grenache blend | D143: Grenache Blend | E143: Châteauneuf-du-Pape | F143: 0.75 | G143: 74.86455943 | H143: 96 | I143: 2016-09-21 | J143: 2016-10-22 | K143: 3 | L143: Vendor 58 | M143: 1 | N143: 74.86455943 | O143: 1 | P143: 1 | Q143: 96 | T143: 0 | U143: Chateau de Beaucastel | 2009 | Grenache blend | Châteauneuf-du-Pape | 0.75 L | V143: =MATCH(U143,Inventory!$A$2:$A$2000,0) -> 9 | BU143: 96 | BV143: Red | DP143: 0.000148397698 | DQ143: 1.000148398
A144: Chateau Coutet | B144: 2014 | C144: Semillion | D144: Semillion Blend | E144: Barsac | F144: 0.75 | G144: 51.38999747 | H144: 96 | I144: 2018-03-07 | J144: 2018-03-10 | K144: 6 | L144: Vendor 24 | M144: 6 | N144: 308.3399848 | O144: 1 | P144: 1 | Q144: 96 | T144: 0 | U144: Chateau Coutet | 2014 | Semillion | Barsac | 0.75 L | V144: =MATCH(U144,Inventory!$A$2:$A$2000,0) -> 138 | BU144: 576 | BV144: Red | DP144: 0.0009748904652 | DQ144: 6.00097489
A145: Chateau Clerc Milon | B145: 2005 | C145: Bordeaux blend | D145: Cab S Blend | E145: Pauillac | F145: 0.75 | G145: 63.52571344 | H145: 95 | I145: 2008-02-15 | J145: 2008-02-15 | K145: 4 | L145: Vendor 61 | M145: 4 | N145: 254.1028538 | O145: 1 | P145: 1 | Q145: 95 | R145: S-L2-2 | S145: Cork (TBD) | T145: 0 | U145: Chateau Clerc Milon | 2005 | Bordeaux blend | Pauillac | 0.75 L | V145: =MATCH(U145,Inventory!$A$2:$A$2000,0) -> 16 | BU145: 380 | BV145: Red | DP145: 0.0009764086388 | DQ145: 4.000976409
A146: Chapoutier, M. | B146: 2016 | C146: Syrah | D146: Shiraz/Syrah | E146: Quatuor | F146: 0.75 | G146: 83.61916175 | H146: 95 | I146: 2019-10-01 | J146: 2019-10-08 | K146: 1 | L146: Vendor 80 | M146: 1 | N146: 83.61916175 | O146: 1 | P146: 1 | Q146: 95 | T146: 0 | U146: Chapoutier, M. | 2016 | Syrah | Quatuor | 0.75 L | V146: =MATCH(U146,Inventory!$A$2:$A$2000,0) -> 183 | BU146: 95 | BV146: Red | DP146: 0.0006416758728 | DQ146: 1.000641676
A147: Cayuse Vineyards | B147: 2017 | C147: Syrah | D147: Shiraz/Syrah | E147: Walla Walla Valley En Cerise Vineyard | F147: 0.75 | G147: 100.4797199 | H147: 93 | I147: 2018-09-20 | J147: 2019-11-07 | K147: 3 | L147: Vendor 17 | M147: 3 | N147: 301.4391596 | O147: 1 | P147: 1 | Q147: 93 | T147: 0 | U147: Cayuse Vineyards | 2017 | Syrah | Walla Walla Valley En Cerise Vineyard | 0.75 L | V147: =MATCH(U147,Inventory!$A$2:$A$2001,0) -> 156 | BU147: 279 | BV147: Red | DP147: 0.000374361559 | DQ147: 3.000374362
A148: Cayuse Vineyards | B148: 2016 | C148: Syrah | D148: Shiraz/Syrah | E148: Wallah Wallah Special #10 Syrah | F148: 1.5 | G148: 214.9206138 | H148: 93 | I148: 2018-09-20 | J148: 2019-11-07 | K148: 1 | L148: Vendor 17 | M148: 1 | N148: 214.9206138 | O148: 1 | P148: 1 | Q148: 93 | T148: 0 | U148: Cayuse Vineyards | 2016 | Syrah | Wallah Wallah Special #10 Syrah | 1.5 L | V148: =MATCH(U148,Inventory!$A$2:$A$2001,0) -> 69 | BT148: 3-Day | BU148: 93 | BV148: Red | DP148: 7.61416768e-05 | DQ148: 1.000076142
A149: Cayuse Vineyards | B149: 2016 | C149: Syrah | D149: Shiraz/Syrah | E149: Walla Walla Valley En Cerise Vineyard | F149: 0.75 | G149: 92.82907971 | H149: 93 | I149: 2017-11-01 | J149: 2018-11-12 | K149: 3 | L149: Vendor 17 | M149: 3 | N149: 278.4872391 | O149: 1 | P149: 1 | Q149: 93 | T149: 0 | U149: Cayuse Vineyards | 2016 | Syrah | Walla Walla Valley En Cerise Vineyard | 0.75 L | V149: =MATCH(U149,Inventory!$A$2:$A$2000,0) -> 152 | BU149: 279 | BV149: Red | DP149: 0.0002644146759 | DQ149: 3.000264415
A150: Cayuse Vineyards | B150: 2016 | C150: Syrah | D150: Shiraz/Syrah | E150: Walla Walla Valley Armada Vineyard Syrah | F150: 0.75 | G150: 110.5813313 | H150: 93 | I150: 2018-09-20 | J150: 2019-11-07 | K150: 3 | L150: Vendor 17 | M150: 3 | N150: =M150*G150 -> 331.743994 | O150: 1 | P150: 1 | Q150: =H150*P150 -> 93 | T150: 0 | U150: =A150&" | "&B150&" | "&C150&" | "&E150&" | "&F150&" L" -> Cayuse Vineyards | 2016 | Syrah | Walla Walla Valley Armada Vineyard Syrah | 0.75 L | V150: =MATCH(U150,Inventory!$A$2:$A$2001,0) -> 163 | BT150: 3-Day | BU150: 279 | BV150: Red | DP150: 0.0007786397545 | DQ150: 3.00077864
A151: Cayuse Vineyards | B151: 2015 | C151: Syrah (95) & Viognier(5) | D151: Shiraz/Syrah Blend | E151: Walla Walla Valley Enchamberlin Vineyard | F151: 0.75 | G151: 94.35215916 | H151: 94 | I151: 2017-11-01 | J151: 2018-11-12 | K151: 3 | L151: Vendor 17 | M151: 3 | N151: 283.0564775 | O151: 1 | P151: 1 | Q151: 94 | T151: 0 | U151: Cayuse Vineyards | 2015 | Syrah (95) & Viognier(5) | Walla Walla Valley Enchamberlin Vineyard | 0.75 L | V151: =MATCH(U151,Inventory!$A$2:$A$2000,0) -> 164 | BU151: 282 | BV151: Red | DP151: 0.0003336863943 | DQ151: 3.000333686
A152: Cayuse Vineyards | B152: 2014 | C152: Syrah | D152: Shiraz/Syrah | E152: Wallah Wallah Special #6 Syrah | F152: 1.5 | G152: 226.8252361 | H152: 94 | I152: 2016-08-24 | J152: 2017-11-08 | K152: 1 | L152: Vendor 17 | M152: 1 | N152: 226.8252361 | O152: 1 | P152: 1 | Q152: 94 | T152: 0 | U152: Cayuse Vineyards | 2014 | Syrah | Wallah Wallah Special #6 Syrah | 1.5 L | V152: =MATCH(U152,Inventory!$A$2:$A$2000,0) -> 37 | BU152: 94 | BV152: Red | DP152: 0.0004469260235 | DQ152: 1.000446926
A153: Cayuse Vineyards | B153: 2014 | C153: Syrah (95) & Viognier(5) | D153: Shiraz/Syrah Blend | E153: Walla Walla Valley Cailloux Vineyard | F153: 0.75 | G153: 91.88494 | H153: 95 | I153: 2015-08-27 | J153: 2016-11-14 | K153: 3 | L153: Vendor 17 | M153: 2 | N153: 183.76988 | O153: 1 | P153: 1 | Q153: 95 | T153: 0 | U153: Cayuse Vineyards | 2014 | Syrah (95) & Viognier(5) | Walla Walla Valley Cailloux Vineyard | 0.75 L | V153: =MATCH(U153,Inventory!$A$2:$A$2000,0) -> 166 | BU153: 190 | BV153: Red | DP153: 3.446596537e-05 | DQ153: 2.000034466
A154: Cayuse Vineyards | B154: 2013 | C154: Syrah | D154: Shiraz/Syrah | E154: Wallah Wallah Special #5 Syrah | F154: 1.5 | G154: 209.6019973 | H154: 91 | I154: 2015-08-27 | J154: 2016-11-14 | K154: 2 | L154: Vendor 17 | M154: 2 | N154: 419.2039946 | O154: 1 | P154: 1 | Q154: 91 | T154: 0 | U154: Cayuse Vineyards | 2013 | Syrah | Wallah Wallah Special #5 Syrah | 1.5 L | V154: =MATCH(U154,Inventory!$A$2:$A$2000,0) -> 76 | BT154: Ground | BU154: 182 | BV154: Red | DP154: 0.0007310753408 | DQ154: 2.000731075
A155: Cayuse Vineyards | B155: 2013 | C155: Grenache | D155: Grenache | E155: God Only Knows Grenache | F155: 0.75 | G155: 105.0828371 | H155: 93 | I155: 2015-08-27 | J155: 2016-11-14 | K155: 3 | L155: Vendor 17 | M155: 2 | N155: 210.1656742 | O155: 1 | P155: 1 | Q155: 93 | T155: 0 | U155: Cayuse Vineyards | 2013 | Grenache | God Only Knows Grenache | 0.75 L | V155: =MATCH(U155,Inventory!$A$2:$A$2000,0) -> 34 | BU155: 186 | BV155: Red | DP155: 0.0005040096939 | DQ155: 2.00050401
A156: Cayuse Vineyards | B156: 2012 | C156: Syrah (95), Viognier (5) | D156: Shiraz/Syrah Blend | E156: Walla Walla Valley Cailloux Vineyard | F156: 0.75 | G156: 85.88709647 | H156: 91 | I156: 2013-10-18 | J156: 2014-11-11 | K156: 3 | L156: Vendor 17 | M156: 2 | N156: 171.7741929 | O156: 1 | P156: 1 | Q156: 91 | T156: 0 | U156: Cayuse Vineyards | 2012 | Syrah (95), Viognier (5) | Walla Walla Valley Cailloux Vineyard | 0.75 L | V156: =MATCH(U156,Inventory!$A$2:$A$2000,0) -> 169 | BT156: Ground | BU156: 182 | BV156: Red | DP156: 0.0006092687212 | DQ156: 2.000609269
A157: Castello di Volpaia | B157: 2016 | C157: Sangiovese | D157: Sangiovese | E157: Chianti Classico Riserva | F157: 0.75 | G157: 35.59928679 | H157: 97 | I157: 2019-11-06 | J157: 2019-11-07 | K157: 12 | L157: Vendor 2 | M157: 12 | N157: 427.1914415 | O157: 1 | P157: 1 | Q157: 97 | T157: 0 | U157: Castello di Volpaia | 2016 | Sangiovese | Chianti Classico Riserva | 0.75 L | V157: =MATCH(U157,Inventory!$A$2:$A$2001,0) -> 79 | BT157: Ground | BU157: 1164 | BV157: Red | DP157: 0.0001667400844 | DQ157: 12.00016674
A158: Castello Di Bolgheri | B158: 2016 | C158: Cab S, Merlot, Cab F, Petit Verdot | D158: Cab S Blend | E158: Bolgheri Varvàra | F158: 0.75 | G158: 29.90442993 | H158: 92 | I158: 2018-11-22 | J158: 2018-11-28 | K158: 12 | L158: Vendor 24 | M158: 11 | N158: 328.9487293 | O158: 1 | P158: 1 | Q158: 92 | T158: 0 | U158: Castello Di Bolgheri | 2016 | Cab S, Merlot, Cab F, Petit Verdot | Bolgheri Varvàra | 0.75 L | V158: =MATCH(U158,Inventory!$A$2:$A$2000,0) -> 174 | BT158: Ground | BU158: 1012 | BV158: Red | DP158: 0.0006408201115 | DQ158: 11.00064082
A159: Castellare di Castellina | B159: 2017 | C159: Sangiovese & Canaiolo | D159: Sangiovese Blend | E159: Chianti Classico | F159: 0.75 | G159: 19.63880175 | H159: 94 | I159: 2019-09-18 | J159: 2019-09-22 | K159: 12 | L159: Vendor 24 | M159: 12 | N159: 235.665621 | O159: 1 | P159: 1 | Q159: 94 | T159: 0 | U159: Castellare di Castellina | 2017 | Sangiovese & Canaiolo | Chianti Classico | 0.75 L | V159: =MATCH(U159,Inventory!$A$2:$A$2000,0) -> 87 | BT159: Ground | BU159: 1128 | BV159: Red | DP159: 0.0004752632836 | DQ159: 12.00047526
A160: Casaloste | B160: 2015 | C160: Sangiovese | D160: Sangiovese | E160: Chianti Classico | F160: 0.75 | G160: 18.14117659 | H160: 94 | I160: 2017-12-13 | J160: 2017-12-16 | K160: 12 | L160: Vendor 24 | M160: 3 | N160: 54.42352978 | O160: 1 | P160: 1 | Q160: 94 | T160: 0 | U160: Casaloste | 2015 | Sangiovese | Chianti Classico | 0.75 L | V160: =MATCH(U160,Inventory!$A$2:$A$2000,0) -> 52 | BU160: 282 | BV160: Red | DP160: 0.0004986338682 | DQ160: 3.000498634
A161: Carpineto | B161: 2013 | C161: Sangiovese | D161: Sangiovese | E161: Vino Nobile di Montepulciano Riserva | F161: 0.75 | G161: 29.70589975 | H161: 95 | I161: 2018-08-26 | J161: 2018-10-19 | K161: 12 | L161: Vendor 66 | M161: 11 | N161: 326.7648972 | O161: 1 | P161: 1 | Q161: 95 | T161: 0 | U161: Carpineto | 2013 | Sangiovese | Vino Nobile di Montepulciano Riserva | 0.75 L | V161: =MATCH(U161,Inventory!$A$2:$A$2000,0) -> 136 | BU161: 1045 | BV161: Red | DP161: 1.50533104e-05 | DQ161: 11.00001505
A162: Carlisle | B162: 2018 | C162: Zinfandel | D162: Zinfandel | E162: Zinfandel, Russian River Valley, Piner-Olivet Ranches | F162: 0.75 | G162: 40.10688332 | H162: 92 | I162: 2020-01-15 | J162: 2020-04-15 | K162: 3 | L162: Vendor 16 | M162: 3 | N162: 120.3206499 | O162: 1 | P162: 1 | Q162: 92 | T162: 0 | U162: Carlisle | 2018 | Zinfandel | Zinfandel, Russian River Valley, Piner-Olivet Ranches | 0.75 L | V162: =MATCH(U162,Inventory!$A$2:$A$2001,0) -> 45 | BT162: Ground | BU162: 276 | BV162: Red | DP162: 0.0007881623093 | DQ162: 3.000788162
A163: Carlisle | B163: 2018 | C163: Zinfandel | D163: Zinfandel | E163: Zinfandel, Russian River Valley, Limerick Lane | F163: 0.75 | G163: 55.06265636 | H163: 93 | I163: 2020-01-15 | J163: 2020-04-15 | K163: 2 | L163: Vendor 16 | M163: 2 | N163: 110.1253127 | O163: 1 | P163: 1 | Q163: 93 | T163: 0 | U163: Carlisle | 2018 | Zinfandel | Zinfandel, Russian River Valley, Limerick Lane | 0.75 L | V163: =MATCH(U163,Inventory!$A$2:$A$2001,0) -> 160 | BT163: Ground | BU163: 186 | BV163: Red | DP163: 0.0002517688104 | DQ163: 2.000251769
A164: Carlisle | B164: 2018 | C164: Syrah | D164: Shiraz/Syrah | E164: Syrah, Sonoma County | F164: 0.75 | G164: 31.8362492 | H164: 92 | I164: 2020-01-15 | J164: 2020-04-15 | K164: 4 | L164: Vendor 16 | M164: 4 | N164: 127.3449968 | O164: 1 | P164: 1 | Q164: 92 | T164: 0 | U164: Carlisle | 2018 | Syrah | Syrah, Sonoma County | 0.75 L | V164: =MATCH(U164,Inventory!$A$2:$A$2001,0) -> 161 | BU164: 368 | BV164: Red | DP164: 0.0008709916093 | DQ164: 4.000870992
A165: Carlisle | B165: 2018 | C165: Syrah | D165: Shiraz/Syrah | E165: Syrah, Russian River Valley Papa's Block | F165: 0.75 | G165: 47.58326619 | H165: 93 | I165: 2020-01-15 | J165: 2020-04-15 | K165: 5 | L165: Vendor 16 | M165: 5 | N165: 237.916331 | O165: 1 | P165: 1 | Q165: 93 | T165: 0 | U165: Carlisle | 2018 | Syrah | Syrah, Russian River Valley Papa's Block | 0.75 L | V165: =MATCH(U165,Inventory!$A$2:$A$2001,0) -> 162 | BU165: 465 | BV165: Red | DP165: 1.130198092e-05 | DQ165: 5.000011302
A166: Carlisle | B166: 2017 | C166: Zinfandel | D166: Zinfandel | E166: Zinfandel, Sonoma Valley, Rossi Ranch | F166: 0.75 | G166: 48.75377005 | H166: 93 | I166: 2019-07-17 | J166: 2019-11-09 | K166: 3 | L166: Vendor 16 | M166: 3 | N166: 146.2613101 | O166: 1 | P166: 1 | Q166: 93 | T166: 0 | U166: Carlisle | 2017 | Zinfandel | Zinfandel, Sonoma Valley, Rossi Ranch | 0.75 L | V166: =MATCH(U166,Inventory!$A$2:$A$2001,0) -> 7 | BT166: Ground | BU166: 279 | BV166: Red | DP166: 0.0009268359797 | DQ166: 3.000926836
A167: Carlisle | B167: 2017 | C167: Zinfandel | D167: Zinfandel | E167: Zinfandel, Sonoma Valley, Bedrock Vineyard | F167: 0.75 | G167: 48.21607981 | H167: 94 | I167: 2019-07-19 | J167: 2019-11-09 | K167: 3 | L167: Vendor 16 | M167: 3 | N167: 144.6482394 | O167: 1 | P167: 1 | Q167: 94 | T167: 0 | U167: Carlisle | 2017 | Zinfandel | Zinfandel, Sonoma Valley, Bedrock Vineyard | 0.75 L | V167: =MATCH(U167,Inventory!$A$2:$A$2001,0) -> 191 | BT167: Ground | BU167: 282 | BV167: Red | DP167: 0.0003270289302 | DQ167: 3.000327029
A168: Carlisle | B168: 2017 | C168: Zinfandel | D168: Zinfandel | E168: Zinfandel, Russian River Valley, Papera Ranch | F168: 0.75 | G168: 48.42081394 | H168: 94 | I168: 2019-07-17 | J168: 2019-11-09 | K168: 4 | L168: Vendor 16 | M168: 4 | N168: 193.6832558 | O168: 1 | P168: 1 | Q168: 94 | S168: Cork (Natural) | T168: 0 | U168: Carlisle | 2017 | Zinfandel | Zinfandel, Russian River Valley, Papera Ranch | 0.75 L | V168: =MATCH(U168,Inventory!$A$2:$A$2001,0) -> 27 | BT168: Ground | BU168: 376 | BV168: Red | DP168: 0.0009632389494 | DQ168: 4.000963239
A169: Carlisle | B169: 2017 | C169: Zinfandel | D169: Zinfandel | E169: Zinfandel, Russian River Valley, Mancini Ranch Vyd | F169: 0.75 | G169: 47.99759412 | H169: 93 | I169: 2019-01-17 | J169: 2019-04-06 | K169: 2 | L169: Vendor 16 | M169: 2 | N169: 95.99518823 | O169: 1 | P169: 1 | Q169: 93 | T169: 0 | U169: Carlisle | 2017 | Zinfandel | Zinfandel, Russian River Valley, Mancini Ranch Vyd | 0.75 L | V169: =MATCH(U169,Inventory!$A$2:$A$2000,0) -> 81 | BU169: 186 | BV169: Red | DP169: 0.0002880044784 | DQ169: 2.000288004
A170: Carlisle | B170: 2017 | C170: Zinfandel | D170: Zinfandel | E170: Zinfandel, Russian River Valley, Carlisle Vineyrd | F170: 0.75 | G170: 54.84170117 | H170: 94 | I170: 2019-07-17 | J170: 2019-11-09 | K170: 3 | L170: Vendor 16 | M170: 3 | N170: 164.5251035 | O170: 1 | P170: 1 | Q170: 94 | S170: Cork (Natural) | T170: 0 | U170: Carlisle | 2017 | Zinfandel | Zinfandel, Russian River Valley, Carlisle Vineyrd | 0.75 L | V170: =MATCH(U170,Inventory!$A$2:$A$2001,0) -> 184 | BT170: Ground | BU170: 282 | BV170: Red | DP170: 0.0001467536821 | DQ170: 3.000146754
A171: Carlisle | B171: 2017 | C171: Zinfandel | D171: Zinfandel | E171: Zinfandel Dry Creek Valley | F171: 0.75 | G171: 39.57348468 | H171: 92 | I171: 2019-01-17 | J171: 2019-04-06 | K171: 2 | L171: Vendor 16 | M171: 2 | N171: 79.14696936 | O171: 1 | P171: 1 | Q171: 92 | T171: 0 | U171: Carlisle | 2017 | Zinfandel | Zinfandel Dry Creek Valley | 0.75 L | V171: =MATCH(U171,Inventory!$A$2:$A$2000,0) -> 185 | BT171: Ground | BU171: 184 | BV171: Red | DP171: 0.0005635812599 | DQ171: 2.000563581
A172: Carlisle | B172: 2017 | C172: Syrah (56%), Mouvedre (44%) | D172: Shiraz/Syrah Blend | E172: The Integral | F172: 0.75 | G172: 48.54133951 | H172: 94 | I172: 2019-07-17 | J172: 2019-11-09 | K172: 3 | L172: Vendor 16 | M172: 3 | N172: 145.6240185 | O172: 1 | P172: 1 | Q172: 94 | S172: Cork (Natural) | T172: 0 | U172: Carlisle | 2017 | Syrah (56%), Mouvedre (44%) | The Integral | 0.75 L | V172: =MATCH(U172,Inventory!$A$2:$A$2001,0) -> 173 | BT172: Ground | BU172: 282 | BV172: Red | DP172: 0.000825421716 | DQ172: 3.000825422
A173: Carlisle | B173: 2017 | C173: Syrah | D173: Shiraz/Syrah | E173: Syrah, Sonoma County | F173: 0.75 | G173: 31.90208 | H173: 91 | I173: 2019-01-17 | J173: 2019-04-06 | K173: 2 | L173: Vendor 16 | M173: 2 | N173: 63.80416 | O173: 1 | P173: 1 | Q173: 91 | T173: 0 | U173: Carlisle | 2017 | Syrah | Syrah, Sonoma County | 0.75 L | V173: =MATCH(U173,Inventory!$A$2:$A$2000,0) -> 167 | BT173: Ground | BU173: 182 | BV173: Red | DP173: 0.0001195066997 | DQ173: 2.000119507
A174: Carlisle | B174: 2017 | C174: Syrah | D174: Shiraz/Syrah | E174: Syrah, Santa Lucia Highlands, Rosella's VY | F174: 0.75 | G174: 48.28629421 | H174: 92 | I174: 2019-07-17 | J174: 2019-11-09 | K174: 2 | L174: Vendor 16 | M174: 2 | N174: 96.57258843 | O174: 1 | P174: 1 | Q174: 92 | T174: 0 | U174: Carlisle | 2017 | Syrah | Syrah, Santa Lucia Highlands, Rosella's VY | 0.75 L | V174: =MATCH(U174,Inventory!$A$2:$A$2001,0) -> 187 | BU174: 184 | BV174: Red | DP174: 0.0007428356875 | DQ174: 2.000742836
A175: Carlisle | B175: 2017 | C175: Syrah | D175: Shiraz/Syrah | E175: Syrah, Paso Robles, James Berry Vineyard | F175: 0.75 | G175: 61.6849354 | H175: 93 | I175: 2019-07-17 | J175: 2019-11-09 | K175: 2 | L175: Vendor 16 | M175: 2 | N175: 123.3698708 | O175: 1 | P175: 1 | Q175: 93 | T175: 0 | U175: Carlisle | 2017 | Syrah | Syrah, Paso Robles, James Berry Vineyard | 0.75 L | V175: =MATCH(U175,Inventory!$A$2:$A$2001,0) -> 188 | BT175: Ground | BU175: 186 | BV175: Red | DP175: 0.0007539319404 | DQ175: 2.000753932
A176: Carlisle | B176: 2017 | C176: Petite Sirah | D176: Petite Sirah | E176: Petite Sirah, Sonoma County | F176: 0.75 | G176: 36.87029914 | H176: 92 | I176: 2019-07-17 | J176: 2019-11-09 | K176: 3 | L176: Vendor 16 | M176: 3 | N176: 110.6108974 | O176: 1 | P176: 1 | Q176: 92 | S176: Cork (Natural) | T176: 0 | U176: Carlisle | 2017 | Petite Sirah | Petite Sirah, Sonoma County | 0.75 L | V176: =MATCH(U176,Inventory!$A$2:$A$2001,0) -> 66 | BT176: Ground | BU176: 276 | BV176: Red | DP176: 0.0007640493236 | DQ176: 3.000764049
A177: Carlisle | B177: 2017 | C177: Mouvedre | D177: Mourvedre Blend | E177: Mouvedre, Sonona Vly, Bedrock | F177: 0.75 | G177: 42.80121789 | H177: 92 | I177: 2019-07-17 | J177: 2019-11-09 | K177: 2 | L177: Vendor 16 | M177: 2 | N177: 85.60243578 | O177: 1 | P177: 1 | Q177: 92 | T177: 0 | U177: Carlisle | 2017 | Mouvedre | Mouvedre, Sonona Vly, Bedrock | 0.75 L | V177: =MATCH(U177,Inventory!$A$2:$A$2001,0) -> 175 | BU177: 184 | BV177: Red | DP177: 0.0004791276554 | DQ177: 2.000479128
A178: Carlisle | B178: 2018 | C178: Gewurtztraminer Blend | D178: Gewürztraminer Blend | E178: Compangi Portis | F178: 0.75 | G178: 31.49656436 | H178: 91 | I178: 2020-01-15 | J178: 2020-04-15 | K178: 2 | L178: Vendor 16 | M178: 2 | N178: 62.99312873 | O178: 1 | P178: 1 | Q178: 91 | T178: 0 | U178: Carlisle | 2018 | Gewurtztraminer Blend | Compangi Portis | 0.75 L | V178: =MATCH(U178,Inventory!$A$2:$A$2001,0) -> 2 | BT178: Ground | BU178: 182 | BV178: Red | DP178: 1.901707083e-05 | DQ178: 2.000019017
A179: Carlisle | B179: 2017 | C179: Cabernet Sauvignon | D179: Cab S | E179: Cabernet Sauvignon, Montecillo Vnyd | F179: 0.75 | G179: 83.91999067 | H179: 93 | I179: 2019-10-14 | J179: 2019-11-15 | K179: 2 | L179: Vendor 16 | M179: 2 | N179: 167.8399813 | O179: 1 | P179: 1 | Q179: 93 | T179: 0 | U179: Carlisle | 2017 | Cabernet Sauvignon | Cabernet Sauvignon, Montecillo Vnyd | 0.75 L | V179: =MATCH(U179,Inventory!$A$2:$A$2001,0) -> 194 | BT179: Ground | BU179: 186 | BV179: Red | DP179: 0.0007249284029 | DQ179: 2.000724928
A180: Carlisle | B180: 2016 | C180: Zinfandel | D180: Zinfandel | E180: Zinfandel, Sonoma Valley, Pagani VY | F180: 0.75 | G180: 48.2391217 | H180: 94 | I180: 2018-01-18 | J180: 2018-04-06 | K180: 3 | L180: Vendor 16 | M180: 3 | N180: 144.7173651 | O180: 1 | P180: 1 | Q180: 94 | S180: Cork (Natural) | T180: 0 | U180: Carlisle | 2016 | Zinfandel | Zinfandel, Sonoma Valley, Pagani VY | 0.75 L | V180: =MATCH(U180,Inventory!$A$2:$A$2000,0) -> 177 | BU180: 282 | BV180: Red | DP180: 0.0003420988263 | DQ180: 3.000342099
A181: Carlisle | B181: 2016 | C181: Zinfandel | D181: Zinfandel | E181: Zinfandel, Russian River Valley, Piner-Olivet Ranches | F181: 0.75 | G181: 43.88064516 | H181: 93 | I181: 2018-01-18 | J181: 2018-04-06 | K181: 2 | L181: Vendor 16 | M181: 2 | N181: 87.76129032 | O181: 1 | P181: 1 | Q181: 93 | T181: 0 | U181: Carlisle | 2016 | Zinfandel | Zinfandel, Russian River Valley, Piner-Olivet Ranches | 0.75 L | V181: =MATCH(U181,Inventory!$A$2:$A$2000,0) -> 195 | BU181: 186 | BV181: Red | DP181: 0.0008044751143 | DQ181: 2.000804475
A182: Carlisle | B182: 2016 | C182: Zinfandel | D182: Zinfandel | E182: Zinfandel, Russian River Valley, Montafi Vineyrd | F182: 0.75 | G182: 47.54091219 | H182: 93 | I182: 2018-01-18 | J182: 2018-04-06 | K182: 4 | L182: Vendor 16 | M182: 4 | N182: 190.1636488 | O182: 1 | P182: 1 | Q182: 93 | T182: 0 | U182: Carlisle | 2016 | Zinfandel | Zinfandel, Russian River Valley, Montafi Vineyrd | 0.75 L | V182: =MATCH(U182,Inventory!$A$2:$A$2000,0) -> 178 | BU182: 372 | BV182: Red | DP182: 0.0001324600076 | DQ182: 4.00013246
A183: Carlisle | B183: 2016 | C183: Zinfandel | D183: Zinfandel | E183: Zinfandel, Russian River Valley, Limerick Lane | F183: 0.75 | G183: 49.45256265 | H183: 93 | I183: 2018-01-18 | J183: 2018-04-06 | K183: 2 | L183: Vendor 16 | M183: 2 | N183: 98.9051253 | O183: 1 | P183: 1 | Q183: 93 | T183: 0 | U183: Carlisle | 2016 | Zinfandel | Zinfandel, Russian River Valley, Limerick Lane | 0.75 L | V183: =MATCH(U183,Inventory!$A$2:$A$2000,0) -> 179 | BU183: 186 | BV183: Red | DP183: 0.000119294858 | DQ183: 2.000119295
A184: Carlisle | B184: 2016 | C184: Zinfandel | D184: Zinfandel | E184: Zinfandel, Mendocino Ridge, DuPratt VYs | F184: 0.75 | G184: 48.73586533 | H184: 93 | I184: 2018-01-18 | J184: 2018-04-06 | K184: 3 | L184: Vendor 16 | M184: 3 | N184: 146.207596 | O184: 1 | P184: 1 | Q184: 93 | T184: 0 | U184: Carlisle | 2016 | Zinfandel | Zinfandel, Mendocino Ridge, DuPratt VYs | 0.75 L | V184: =MATCH(U184,Inventory!$A$2:$A$2000,0) -> 197 | BU184: 279 | BV184: Red | DP184: 0.0003053782359 | DQ184: 3.000305378
A185: Carlisle | B185: 2016 | C185: Mouvedre et al. | D185: Mourvedre Blend | E185: Two Acres, Russian River Vly, Red | F185: 0.75 | G185: 47.54246274 | H185: 93 | I185: 2018-07-23 | J185: 2018-11-09 | K185: 2 | L185: Vendor 16 | M185: 2 | N185: 95.08492549 | O185: 1 | P185: 1 | Q185: 93 | T185: 0 | U185: Carlisle | 2016 | Mouvedre et al. | Two Acres, Russian River Vly, Red | 0.75 L | V185: =MATCH(U185,Inventory!$A$2:$A$2000,0) -> 189 | BU185: 186 | BV185: Red | DP185: 0.0008235111693 | DQ185: 2.000823511
A186: Carlisle | B186: 2016 | C186: Syrah (55%), Mouvedre (45%) | D186: Shiraz/Syrah Blend | E186: The Integral | F186: 0.75 | G186: 48.16677194 | H186: 95 | I186: 2018-07-23 | J186: 2018-11-09 | K186: 2 | L186: Vendor 16 | M186: 2 | N186: 96.33354388 | O186: 1 | P186: 1 | Q186: 95 | T186: 0 | U186: Carlisle | 2016 | Syrah (55%), Mouvedre (45%) | The Integral | 0.75 L | V186: =MATCH(U186,Inventory!$A$2:$A$2000,0) -> 196 | BU186: 190 | BV186: Red | DP186: 0.0005494151386 | DQ186: 2.000549415
A187: Carlisle | B187: 2016 | C187: Syrah | D187: Shiraz/Syrah | E187: Syrah, Santa Lucia Highlands, Rosella's VY | F187: 0.75 | G187: 47.85146921 | H187: 92 | I187: 2018-07-23 | J187: 2018-11-09 | K187: 3 | L187: Vendor 16 | M187: 3 | N187: 143.5544076 | O187: 1 | P187: 1 | Q187: 92 | T187: 0 | U187: Carlisle | 2016 | Syrah | Syrah, Santa Lucia Highlands, Rosella's VY | 0.75 L | V187: =MATCH(U187,Inventory!$A$2:$A$2000,0) -> 165 | BU187: 276 | BV187: Red | DP187: 0.0003243822578 | DQ187: 3.000324382
A188: Carlisle | B188: 2016 | C188: Syrah | D188: Shiraz/Syrah | E188: Syrah, Paso Robles, James Berry Vineyard | F188: 0.75 | G188: 59.79890244 | H188: 93 | I188: 2018-07-23 | J188: 2018-11-09 | K188: 2 | L188: Vendor 16 | M188: 2 | N188: 119.5978049 | O188: 1 | P188: 1 | Q188: 93 | T188: 0 | U188: Carlisle | 2016 | Syrah | Syrah, Paso Robles, James Berry Vineyard | 0.75 L | V188: =MATCH(U188,Inventory!$A$2:$A$2000,0) -> 93 | BU188: 186 | BV188: Red | DP188: 0.0009326137403 | DQ188: 2.000932614
A189: Carlisle | B189: 2016 | C189: Petite Sirah | D189: Petite Sirah | E189: Petite Sirah, Palisades Vineyard | F189: 0.75 | G189: 53.01966845 | H189: 92 | I189: 2018-01-18 | J189: 2018-04-06 | K189: 4 | L189: Vendor 16 | M189: 3 | N189: 159.0590053 | O189: 1 | P189: 1 | Q189: 92 | T189: 0 | U189: Carlisle | 2016 | Petite Sirah | Petite Sirah, Palisades Vineyard | 0.75 L | V189: =MATCH(U189,Inventory!$A$2:$A$2000,0) -> 192 | BT189: Ground | BU189: 276 | BV189: Red | DP189: 0.0008851873261 | DQ189: 3.000885187
A190: Carlisle | B190: 2016 | C190: Grenache | D190: Grenache | E190: Grenache, Rossi Ranch | F190: 0.75 | G190: 42.1430352 | H190: 92 | I190: 2018-07-23 | J190: 2018-11-09 | K190: 3 | L190: Vendor 16 | M190: 3 | N190: 126.4291056 | O190: 1 | P190: 1 | Q190: 92 | T190: 0 | U190: Carlisle | 2016 | Grenache | Grenache, Rossi Ranch | 0.75 L | V190: =MATCH(U190,Inventory!$A$2:$A$2000,0) -> 186 | BT190: Ground | BU190: 276 | BV190: Red | DP190: 0.0002836282581 | DQ190: 3.000283628
A191: Carlisle | B191: 2015 | C191: Zinfandel | D191: Zinfandel | E191: Zinfandel, Sonoma Valley, Pagani VY | F191: 0.75 | G191: 47.0478527 | H191: 93 | I191: 2017-07-18 | J191: 2017-11-10 | K191: 2 | L191: Vendor 16 | M191: 2 | N191: 94.0957054 | O191: 1 | P191: 1 | Q191: 93 | S191: Cork (Natural) | T191: 0 | U191: Carlisle | 2015 | Zinfandel | Zinfandel, Sonoma Valley, Pagani VY | 0.75 L | V191: =MATCH(U191,Inventory!$A$2:$A$2000,0) -> 171 | BU191: 186 | BV191: Red | DP191: 0.0007275319753 | DQ191: 2.000727532
A192: Carlisle | B192: 2015 | C192: Zinfandel | D192: Zinfandel | E192: Zinfandel, Sonoma Valley, Bedrock Vineyard | F192: 0.75 | G192: 47.79132494 | H192: 92 | I192: 2017-07-18 | J192: 2017-11-10 | K192: 2 | L192: Vendor 16 | M192: 2 | N192: 95.58264988 | O192: 1 | P192: 1 | Q192: 92 | S192: Cork (Natural) | T192: 0 | U192: Carlisle | 2015 | Zinfandel | Zinfandel, Sonoma Valley, Bedrock Vineyard | 0.75 L | V192: =MATCH(U192,Inventory!$A$2:$A$2000,0) -> 180 | BT192: Ground | BU192: 184 | BV192: Red | DP192: 0.0001202561736 | DQ192: 2.000120256
A193: Carlisle | B193: 2018 | C193: Zinfandel | D193: Zinfandel | E193: Zinfandel, Russian River Valley, Papera Ranch | F193: 0.75 | G193: 48.9137249 | H193: 93 | I193: 2019-07-17 | J193: 2019-11-09 | K193: 4 | L193: Vendor 16 | M193: 4 | N193: 195.6548996 | O193: 1 | P193: 1 | Q193: 93 | S193: Cork (Natural) | T193: 0 | U193: Carlisle | 2018 | Zinfandel | Zinfandel, Russian River Valley, Papera Ranch | 0.75 L | V193: =MATCH(U193,Inventory!$A$2:$A$2001,0) -> 59 | BT193: Ground | BU193: 372 | BV193: Red | DP193: 0.0005018117282 | DQ193: 4.000501812
A194: Carlisle | B194: 2015 | C194: Zinfandel | D194: Zinfandel | E194: Zinfandel, Russian River Valley, Montafi Vineyrd | F194: 0.75 | G194: 49.48278753 | H194: 93 | I194: 2017-01-27 | J194: 2017-04-07 | K194: 4 | L194: Vendor 16 | M194: 4 | N194: 197.9311501 | O194: 1 | P194: 1 | Q194: 93 | T194: 0 | U194: Carlisle | 2015 | Zinfandel | Zinfandel, Russian River Valley, Montafi Vineyrd | 0.75 L | V194: =MATCH(U194,Inventory!$A$2:$A$2000,0) -> 193 | BU194: 372 | BV194: Red | DP194: 0.0003469830769 | DQ194: 4.000346983
A195: Carlisle | B195: 2015 | C195: Zinfandel | D195: Zinfandel | E195: Zinfandel, Russian River Valley, Limerick Lane | F195: 0.75 | G195: 48.57295258 | H195: 94 | I195: 2017-01-27 | J195: 2017-04-07 | K195: 2 | L195: Vendor 16 | M195: 2 | N195: 97.14590516 | O195: 1 | P195: 1 | Q195: 94 | T195: 0 | U195: Carlisle | 2015 | Zinfandel | Zinfandel, Russian River Valley, Limerick Lane | 0.75 L | V195: =MATCH(U195,Inventory!$A$2:$A$2000,0) -> 176 | BU195: 188 | BV195: Red | DP195: 0.0009731828413 | DQ195: 2.000973183
A196: Carlisle | B196: 2015 | C196: Zinfandel | D196: Zinfandel | E196: Zinfandel Dry Creek Valley | F196: 0.75 | G196: 39.44561238 | H196: 94 | I196: 2017-01-27 | J196: 2017-04-07 | K196: 3 | L196: Vendor 16 | M196: 3 | N196: 118.3368371 | O196: 1 | P196: 1 | Q196: 94 | T196: 0 | U196: Carlisle | 2015 | Zinfandel | Zinfandel Dry Creek Valley | 0.75 L | V196: =MATCH(U196,Inventory!$A$2:$A$2000,0) -> 5 | BU196: 282 | BV196: Red | DP196: 0.0001154246269 | DQ196: =M196+DP196 -> 3.000115425
A197: Carlisle | B197: 2015 | C197: Semillion, Muscadelle, .. | D197: Semillion Blend | E197: The Derivative | F197: 0.75 | G197: 30.39528396 | H197: 90 | I197: 2017-07-18 | J197: 2017-11-10 | K197: 4 | L197: Vendor 16 | M197: 4 | N197: 121.5811358 | O197: 1 | P197: 1 | Q197: 90 | T197: 0 | U197: Carlisle | 2015 | Semillion, Muscadelle, .. | The Derivative | 0.75 L | V197: =MATCH(U197,Inventory!$A$2:$A$2000,0) -> 95 | BT197: Ground | BU197: =H197*M197 -> 360 | BV197: Red | DP197: 0.0006835044183 | DQ197: 4.000683504
A198: Carlisle | B198: 2015 | C198: Syrah | D198: Shiraz/Syrah | E198: Syrah, Santa Lucia Highlands, Sierra Mar VY | F198: 0.75 | G198: 47.79618757 | H198: 94 | I198: 2017-07-18 | J198: 2017-11-10 | K198: 2 | L198: Vendor 16 | M198: 2 | N198: 95.59237513 | O198: 1 | P198: 1 | Q198: 94 | S198: Cork (Natural) | T198: 0 | U198: Carlisle | 2015 | Syrah | Syrah, Santa Lucia Highlands, Sierra Mar VY | 0.75 L | V198: =MATCH(U198,Inventory!$A$2:$A$2000,0) -> 112 | BU198: 188 | BV198: Red | DP198: 0.000881039101 | DQ198: 2.000881039
A199: Carlisle | B199: 2015 | C199: Syrah | D199: Shiraz/Syrah | E199: Syrah, Russian River Valley Papa's Block | F199: 0.75 | G199: 46.65766908 | H199: 93 | I199: 2017-01-27 | J199: 2017-04-07 | K199: 4 | L199: Vendor 16 | M199: 4 | N199: 186.6306763 | O199: 1 | P199: 1 | Q199: 93 | T199: 0 | U199: Carlisle | 2015 | Syrah | Syrah, Russian River Valley Papa's Block | 0.75 L | V199: =MATCH(U199,Inventory!$A$2:$A$2000,0) -> 181 | BU199: 372 | BV199: Red | DP199: 0.000235337096 | DQ199: 4.000235337
BU200: 0 | BV200: Red | DP200: 0.0009627135883 | DQ200: 0.0009627135883
BU201: 0 | BV201: Red | DP201: 0.0001466799116 | DQ201: 0.0001466799116
... 361 more rows

Sheet Inventory
A1: 9 | B1: Verticals (# Vintages) | C1: Hemisphere | D1: Country | E1: Vintage | F1: Aged Days | G1: # Purchased | H1: # On-Hand | I1: % Left | J1: Drink-Now Score (see Report) | K1: Rating Score | L1: Averge Purchase Price | M1: Current Price per Bottle | N1: Location in Cellar | O1: Drink Through | P1: Drink From | Q1: Drink Days (see report) | R1: =YEAR(NOW()) -> 2020 | S1: =R1+1 -> 2021 | T1: 2022 | U1: 2023 | V1: 2024 | W1: 2025 | X1: 2026 | Y1: 2027 | Z1: 2028 | AA1: 2029 | AB1: 2030 | AC1: 2031 | AD1: 2032 | AE1: 2033 | AF1: 2034 | AG1: 2035 | AH1: 2036 | AI1: 2037 | AJ1: 2038 | AK1: 2039 | AL1: 2040 | AM1: 2041 | AN1: 2042 | AO1: 2043 | AP1: Purchase Value OnHand | AQ1: Current Value OnHand | AR1: Wine Color | AS1: Region | AT1: Origin | AU1: =IF(LEN(CustomCategory1)>0,CustomCategory1,"Custom Category 1") -> Custom Category 1 | AV1: =IF(LEN(CustomCategory2)>0,CustomCategory2,"Custom Category 2") -> Custom Category 2 | AW1: =IF(LEN(CustomData1)>0,CustomData1,"Custom Data 1") -> Custom Data 1 | AX1: =IF(LEN(CustomData2)>0,CustomData2,"Custom Data 2") -> Custom Data 2 | AY1: Special Designation 1 | AZ1: Rating Score 1 | BA1: Rating Source 1 | BB1: Rating Score 2 | BC1: Rating Source 2 | BD1: Rating Score 3 | BE1: Rating Source 3 | BF1: County|Region | BG1: Country|Region|Origin | BH1: Corked Count | BI1: Varietal | BJ1: Special Designation 2 | BK1: Long-Hold | BL1: Special Designation 3 | BM1: Vintage-Free Wine | BN1: Consume Next Date | BO1: Consume Next Recorded | BZ1: 5
A2: Halcón Vineyards | 2018 | Syrah | Alturas | 0.75 L | B2: 1 | C2: N | D2: US | E2: 2017 | F2: =NOW()-IF(C2="N",DATE(E2,10,31),DATE(E2,4,31)) -> 1064.61366 | G2: =SUMIF(Purchases!$U$3:$U$2002,A2,Purchases!$K$3:$K$2002)+SUMIF('Fully Consumed'!$U$2:$U$2001,A2,'Fully Consumed'!$K$2:$K$2001) -> 6 | H2: =SUMIF(Purchases!$U$3:$U$2002,A2,Purchases!$M$3:$M$2001) -> 6 | I2: =H2/G2 -> 1 | J2: =10/IF(H2>0,(K2/'Summary Stats'!$B$4)^3*(L2/'Summary Stats'!$B$3)^3*MAX((O2-$R$1+1)^2,0.001)*3^B2*IF(LEN(P2)=0,1,IF(P2>=$R$1,P2-$R$1+1,1/($R$1+1-P2))^2),1000000000) -> 0.1843477707 | K2: 92 | L2: =IF(H2>0,SUMIF(Purchases!$U$3:$U$2002,A2,Purchases!$N$3:$N$2002)/H2,"") -> 33.85161986 | M2: 33.01 | O2: 2027 | Q2: =IF(AND(LEN(O2)>0,H2>0),(DATE(O2,12,31)+1-MAX(FLOOR(NOW(),1),DATE(P2,1,1)))/H2,"") -> 441.6666667 | R2: =IF(R$1<=$O2,IF(AND(ISNUMBER(Q2),R$1>=$P2),(DATE(R$1,12,31)-INT(NOW()))/Q2,""),H2) -> 0.2105660377 | S2: =IF(ISNUMBER($Q2),IF(AND(S$1<=$O2,S$1>=$P2),365/$Q2,""),"") -> 0.8264150943 | T2: 0.8264150943 | U2: 0.8264150943 | V2: 0.8264150943 | W2: 0.8264150943 | X2: 0.8264150943 | Y2: 0.8264150943 | AP2: =H2*L2 -> 203.1097191 | AQ2: =M2*H2 -> 198.06 | AR2: Red | AS2: Yorkville Highlands | AZ2: 92 | BA2: Rater 1 | BF2: =D2&"|"&AS2 -> US|Yorkville Highlands | BG2: =BF2&"|"&AT2 -> US|Yorkville Highlands| | BI2: Shiraz/Syrah | BK2: FALSE | BM2: =LEFT(A2,FIND("|",A2)-1)&RIGHT(A2,LEN(A2)-FIND("|",A2)-6) -> Halcón Vineyards | Syrah | Alturas | 0.75 L
A3: Carlisle | 2018 | Gewurtztraminer Blend | Compangi Portis | 0.75 L | B3: 1 | C3: N | D3: US | E3: 2017 | F3: 1064.61366 | G3: =SUMIF(Purchases!$U$3:$U$2002,A3,Purchases!$K$3:$K$2002)+SUMIF('Fully Consumed'!$U$2:$U$2001,A3,'Fully Consumed'!$K$2:$K$2001) -> 2 | H3: =SUMIF(Purchases!$U$3:$U$2002,A3,Purchases!$M$3:$M$2001) -> 2 | I3: 1 | J3: =10/IF(H3>0,(K3/'Summary Stats'!$B$4)^3*(L3/'Summary Stats'!$B$3)^3*MAX((O3-$R$1+1)^2,0.001)*3^B3*IF(LEN(P3)=0,1,IF(P3>=$R$1,P3-$R$1+1,1/($R$1+1-P3))^2),1000000000) -> 0.2364972037 | K3: 91 | L3: =IF(H3>0,SUMIF(Purchases!$U$3:$U$2002,A3,Purchases!$N$3:$N$2002)/H3,"") -> 31.49656436 | M3: 30.99 | O3: 2027 | Q3: 1325 | R3: 0.07018867925 | S3: 0.2754716981 | T3: 0.2754716981 | U3: 0.2754716981 | V3: 0.2754716981 | W3: 0.2754716981 | X3: 0.2754716981 | Y3: 0.2754716981 | AP3: 62.99312873 | AQ3: 61.98 | AR3: White | AS3: Sonoma County | AZ3: 91 | BA3: Rater 1 | BF3: US|Sonoma County | BG3: US|Sonoma County| | BI3: Gewürztraminer Blend | BK3: FALSE | BM3: Carlisle | Gewurtztraminer Blend | Compangi Portis | 0.75 L
A4: Myriad Cellars | 2018 | Syrah | Syrah Las Madres Esther Block | 0.75 L | B4: 2 | C4: N | D4: US | E4: 2018 | F4: =NOW()-IF(C4="N",DATE(E4,10,31),DATE(E4,4,31)) -> 699.6136597 | G4: =SUMIF(Purchases!$U$3:$U$2002,A4,Purchases!$K$3:$K$2002)+SUMIF('Fully Consumed'!$U$2:$U$2001,A4,'Fully Consumed'!$K$2:$K$2001) -> 2 | H4: =SUMIF(Purchases!$U$3:$U$2002,A4,Purchases!$M$3:$M$2001) -> 2 | I4: =H4/G4 -> 1 | J4: =10/IF(H4>0,(K4/'Summary Stats'!$B$4)^3*(L4/'Summary Stats'!$B$3)^3*MAX((O4-$R$1+1)^2,0.001)*3^B4*IF(LEN(P4)=0,1,IF(P4>=$R$1,P4-$R$1+1,1/($R$1+1-P4))^2),1000000000) -> 0.001419537507 | K4: 93 | L4: =IF(H4>0,SUMIF(Purchases!$U$3:$U$2002,A4,Purchases!$N$3:$N$2002)/H4,"") -> 52.25867616 | M4: 51.42 | O4: 2028 | P4: 2022 | Q4: =IF(AND(LEN(O4)>0,H4>0),(DATE(O4,12,31)+1-MAX(FLOOR(NOW(),1),DATE(P4,1,1)))/H4,"") -> 1278.5 | R4: =IF(R$1<=$O4,IF(AND(ISNUMBER(Q4),R$1>=$P4),(DATE(R$1,12,31)-INT(NOW()))/Q4,""),H4) ->  | S4: =IF(ISNUMBER($Q4),IF(AND(S$1<=$O4,S$1>=$P4),365/$Q4,""),"") ->  | T4: 0.2854908095 | U4: 0.2854908095 | V4: 0.2854908095 | W4: 0.2854908095 | X4: 0.2854908095 | Y4: 0.2854908095 | Z4: 0.2854908095 | AC4: =IF(ISNUMBER($Q4),IF(AND(AC$1<=$O4,AC$1>=$P4),365/$Q4,""),"") ->  | AP4: =H4*L4 -> 104.5173523 | AQ4: =M4*H4 -> 102.84 | AR4: Red | AS4: Sonoma County | AT4: Las Madres Vineyard | AZ4: 93 | BA4: Rater 1 | BF4: =D4&"|"&AS4 -> US|Sonoma County | BG4: =BF4&"|"&AT4 -> US|Sonoma County|Las Madres Vineyard | BI4: Shiraz/Syrah | BK4: FALSE | BM4: =LEFT(A4,FIND("|",A4)-1)&RIGHT(A4,LEN(A4)-FIND("|",A4)-6) -> Myriad Cellars | Syrah | Syrah Las Madres Esther Block | 0.75 L
A5: Vecchia Cantina di Montelpulciano | 2006 | Sangiovese | Vino Nobile di Montepulciano Redi Argo et Non Briareo Riserva | 0.75 L | B5: 1 | C5: N | D5: IT | E5: 2006 | F5: 5082.61366 | G5: =SUMIF(Purchases!$U$3:$U$2002,A5,Purchases!$K$3:$K$2002)+SUMIF('Fully Consumed'!$U$2:$U$2001,A5,'Fully Consumed'!$K$2:$K$2001) -> 12 | H5: =SUMIF(Purchases!$U$3:$U$2002,A5,Purchases!$M$3:$M$2001) -> 2 | I5: 0.1666666667 | J5: =10/IF(H5>0,(K5/'Summary Stats'!$B$4)^3*(L5/'Summary Stats'!$B$3)^3*MAX((O5-$R$1+1)^2,0.001)*3^B5*IF(LEN(P5)=0,1,IF(P5>=$R$1,P5-$R$1+1,1/($R$1+1-P5))^2),1000000000) -> 1.388544534 | K5: 93 | L5: =IF(H5>0,SUMIF(Purchases!$U$3:$U$2002,A5,Purchases!$N$3:$N$2002)/H5,"") -> 20.69519474 | M5: 19.99 | N5: E-L1-1 | O5: 2025 | Q5: 960 | R5: 0.096875 | S5: 0.3802083333 | T5: 0.3802083333 | U5: 0.3802083333 | V5: 0.3802083333 | W5: 0.3802083333 | AP5: 41.39038948 | AQ5: 39.98 | AR5: Red | AZ5: 93 | BA5: Rater 2 | BF5: IT| | BG5: IT|| | BI5: Sangiovese | BK5: FALSE | BM5: Vecchia Cantina di Montelpulciano | Sangiovese | Vino Nobile di Montepulciano Redi Argo et Non Briareo Riserva | 0.75 L
A6: Carlisle | 2015 | Zinfandel | Zinfandel Dry Creek Valley | 0.75 L | B6: 2 | C6: N | D6: US | E6: 2015 | F6: 1795.61366 | G6: =SUMIF(Purchases!$U$3:$U$2002,A6,Purchases!$K$3:$K$2002)+SUMIF('Fully Consumed'!$U$2:$U$2001,A6,'Fully Consumed'!$K$2:$K$2001) -> 3 | H6: =SUMIF(Purchases!$U$3:$U$2002,A6,Purchases!$M$3:$M$2001) -> 3 | I6: 1 | J6: =10/IF(H6>0,(K6/'Summary Stats'!$B$4)^3*(L6/'Summary Stats'!$B$3)^3*MAX((O6-$R$1+1)^2,0.001)*3^B6*IF(LEN(P6)=0,1,IF(P6>=$R$1,P6-$R$1+1,1/($R$1+1-P6))^2),1000000000) -> 0.04013268331 | K6: 91 | L6: =IF(H6>0,SUMIF(Purchases!$U$3:$U$2002,A6,Purchases!$N$3:$N$2002)/H6,"") -> 39.44561238 | M6: 38.66 | O6: 2027 | Q6: 883.3333333 | R6: 0.1052830189 | S6: 0.4132075472 | T6: 0.4132075472 | U6: 0.4132075472 | V6: 0.4132075472 | W6: 0.4132075472 | X6: 0.4132075472 | Y6: 0.4132075472 | AP6: 118.3368371 | AQ6: 115.98 | AR6: Red | AS6: Dry Creek Valley | AY6: Carlisle | AZ6: 91 | BA6: Rater 2 | BF6: US|Dry Creek Valley | BG6: US|Dry Creek Valley| | BI6: Zinfandel | BK6: FALSE | BM6: Carlisle | Zinfandel | Zinfandel Dry Creek Valley | 0.75 L
A7: Thomas Goss | 2010 | Shiraz | Shiraz | 0.75 L | B7: 1 | C7: S | D7: AU | E7: 2010 | F7: 3804.61366 | G7: =SUMIF(Purchases!$U$3:$U$2002,A7,Purchases!$K$3:$K$2002)+SUMIF('Fully Consumed'!$U$2:$U$2001,A7,'Fully Consumed'!$K$2:$K$2001) -> 24 | H7: =SUMIF(Purchases!$U$3:$U$2002,A7,Purchases!$M$3:$M$2001) -> 1 | I7: 0.04166666667 | J7: =10/IF(H7>0,(K7/'Summary Stats'!$B$4)^3*(L7/'Summary Stats'!$B$3)^3*MAX((O7-$R$1+1)^2,0.001)*3^B7*IF(LEN(P7)=0,1,IF(P7>=$R$1,P7-$R$1+1,1/($R$1+1-P7))^2),1000000000) -> 9.992592438 | K7: 91 | L7: =IF(H7>0,SUMIF(Purchases!$U$3:$U$2002,A7,Purchases!$N$3:$N$2002)/H7,"") -> 14.35486544 | M7: 14.15 | N7: AL-N-L6-1 | O7: 2023 | Q7: 1189 | R7: 0.07821698907 | S7: 0.306980656 | T7: 0.306980656 | U7: 0.306980656 | AP7: 14.35486544 | AQ7: 14.15 | AR7: Red | AZ7: 91 | BA7: Rater 2 | BF7: AU| | BG7: AU|| | BI7: Shiraz/Syrah | BK7: TRUE | BM7: Thomas Goss | Shiraz | Shiraz | 0.75 L
A8: Carlisle | 2017 | Zinfandel | Zinfandel, Sonoma Valley, Rossi Ranch | 0.75 L | B8: 1 | C8: N | D8: US | E8: 2017 | F8: 1064.61366 | G8: =SUMIF(Purchases!$U$3:$U$2002,A8,Purchases!$K$3:$K$2002)+SUMIF('Fully Consumed'!$U$2:$U$2001,A8,'Fully Consumed'!$K$2:$K$2001) -> 3 | H8: =SUMIF(Purchases!$U$3:$U$2002,A8,Purchases!$M$3:$M$2001) -> 3 | I8: 1 | J8: =10/IF(H8>0,(K8/'Summary Stats'!$B$4)^3*(L8/'Summary Stats'!$B$3)^3*MAX((O8-$R$1+1)^2,0.001)*3^B8*IF(LEN(P8)=0,1,IF(P8>=$R$1,P8-$R$1+1,1/($R$1+1-P8))^2),1000000000) -> 0.04720209053 | K8: 93 | L8: =IF(H8>0,SUMIF(Purchases!$U$3:$U$2002,A8,Purchases!$N$3:$N$2002)/H8,"") -> 48.75377005 | M8: 47.61 | O8: 2028 | Q8: 1005.333333 | R8: 0.0925066313 | S8: 0.3630636605 | T8: 0.3630636605 | U8: 0.3630636605 | V8: 0.3630636605 | W8: 0.3630636605 | X8: 0.3630636605 | Y8: 0.3630636605 | Z8: 0.3630636605 | AP8: 146.2613101 | AQ8: 142.83 | AR8: Red | AS8: Sonoma Valley | AT8: Rossi Ranch | AY8: Carlisle | AZ8: 93 | BA8: Rater 1 | BF8: US|Sonoma Valley | BG8: US|Sonoma Valley|Rossi Ranch | BI8: Zinfandel | BK8: FALSE | BM8: Carlisle | Zinfandel | Zinfandel, Sonoma Valley, Rossi Ranch | 0.75 L
A9: Viticcio | 2015 | Sangiovese, Merlot & Syrah | Chianti Classico Riserva | 0.75 L | B9: 1 | C9: N | D9: IT | E9: 2005 | F9: 5447.61366 | G9: =SUMIF(Purchases!$U$3:$U$2002,A9,Purchases!$K$3:$K$2002)+SUMIF('Fully Consumed'!$U$2:$U$2001,A9,'Fully Consumed'!$K$2:$K$2001) -> 12 | H9: =SUMIF(Purchases!$U$3:$U$2002,A9,Purchases!$M$3:$M$2001) -> 12 | I9: 1 | J9: =10/IF(H9>0,(K9/'Summary Stats'!$B$4)^3*(L9/'Summary Stats'!$B$3)^3*MAX((O9-$R$1+1)^2,0.001)*3^B9*IF(LEN(P9)=0,1,IF(P9>=$R$1,P9-$R$1+1,1/($R$1+1-P9))^2),1000000000) -> 0.04241399238 | K9: 95 | L9: =IF(H9>0,SUMIF(Purchases!$U$3:$U$2002,A9,Purchases!$N$3:$N$2002)/H9,"") -> 25.72008619 | M9: 24.99 | O9: 2043 | Q9: 707.8333333 | R9: 0.1313868613 | S9: 0.5156581116 | T9: 0.5156581116 | U9: 0.5156581116 | V9: 0.5156581116 | W9: 0.5156581116 | X9: 0.5156581116 | Y9: 0.5156581116 | Z9: 0.5156581116 | AA9: 0.5156581116 | AB9: 0.5156581116 | AC9: 0.5156581116 | AD9: 0.5156581116 | AE9: 0.5156581116 | AF9: 0.5156581116 | AG9: 0.5156581116 | AH9: 0.5156581116 | AI9: 0.5156581116 | AJ9: 0.5156581116 | AK9: 0.5156581116 | AL9: 0.5156581116 | AM9: 0.5156581116 | AN9: 0.5156581116 | AO9: 0.5156581116 | AP9: 308.6410342 | AQ9: 299.88 | AR9: Red | AS9: Tuscany | AZ9: 95 | BA9: Rater 2 | BF9: IT|Tuscany | BG9: IT|Tuscany| | BI9: Sangiovese Blend | BK9: FALSE | BM9: Viticcio | Sangiovese, Merlot & Syrah | Chianti Classico Riserva | 0.75 L
A10: Chateau de Beaucastel | 2009 | Grenache blend | Châteauneuf-du-Pape | 0.75 L | B10: 4 | C10: N | D10: FR | E10: 2009 | F10: 3986.61366 | G10: =SUMIF(Purchases!$U$3:$U$2002,A10,Purchases!$K$3:$K$2002)+SUMIF('Fully Consumed'!$U$2:$U$2001,A10,'Fully Consumed'!$K$2:$K$2001) -> 3 | H10: =SUMIF(Purchases!$U$3:$U$2002,A10,Purchases!$M$3:$M$2001) -> 1 | I10: 0.3333333333 | J10: =10/IF(H10>0,(K10/'Summary Stats'!$B$4)^3*(L10/'Summary Stats'!$B$3)^3*MAX((O10-$R$1+1)^2,0.001)*3^B10*IF(LEN(P10)=0,1,IF(P10>=$R$1,P10-$R$1+1,1/($R$1+1-P10))^2),1000000000) -> 0.0007256335413 | K10: 96 | L10: =IF(H10>0,SUMIF(Purchases!$U$3:$U$2002,A10,Purchases!$N$3:$N$2002)/H10,"") -> 74.86455943 | M10: 73.39 | O10: 2026 | Q10: 2285 | R10: 0.04070021882 | S10: 0.1597374179 | T10: 0.1597374179 | U10: 0.1597374179 | V10: 0.1597374179 | W10: 0.1597374179 | X10: 0.1597374179 | AP10: 74.86455943 | AQ10: 73.39 | AR10: Red | AS10: Châteauneuf-du-Pape | AY10: Beaucastel | AZ10: 96 | BA10: Rater 2 | BF10: FR|Châteauneuf-du-Pape | BG10: FR|Châteauneuf-du-Pape| | BI10: Grenache Blend | BJ10: Châteauneuf-du-Pape | BK10: TRUE | BM10: Chateau de Beaucastel | Grenache blend | Châteauneuf-du-Pape | 0.75 L
A11: Keplinger Wines | 2017 | 47% Grenache, 28% Mourvedre, 25% Syrah | Lithic | 0.75 L | B11: 1 | C11: N | D11: US | E11: 2017 | F11: 1064.61366 | G11: =SUMIF(Purchases!$U$3:$U$2002,A11,Purchases!$K$3:$K$2002)+SUMIF('Fully Consumed'!$U$2:$U$2001,A11,'Fully Consumed'!$K$2:$K$2001) -> 1 | H11: =SUMIF(Purchases!$U$3:$U$2002,A11,Purchases!$M$3:$M$2001) -> 1 | I11: 1 | J11: =10/IF(H11>0,(K11/'Summary Stats'!$B$4)^3*(L11/'Summary Stats'!$B$3)^3*MAX((O11-$R$1+1)^2,0.001)*3^B11*IF(LEN(P11)=0,1,IF(P11>=$R$1,P11-$R$1+1,1/($R$1+1-P11))^2),1000000000) -> 0.01031341772 | K11: 93 | L11: =IF(H11>0,SUMIF(Purchases!$U$3:$U$2002,A11,Purchases!$N$3:$N$2002)/H11,"") -> 87.5580528 | M11: 83.71 | O11: 2027 | Q11: 2650 | R11: 0.03509433962 | S11: 0.1377358491 | T11: 0.1377358491 | U11: 0.1377358491 | V11: 0.1377358491 | W11: 0.1377358491 | X11: 0.1377358491 | Y11: 0.1377358491 | AP11: 87.5580528 | AQ11: 83.71 | AR11: Red | AS11: Amador County | AT11: Shake Ridge Vineyard | AZ11: 93 | BA11: Rater 1 | BF11: US|Amador County | BG11: US|Amador County|Shake Ridge Vineyard | BI11: Grenache Blend | BK11: FALSE | BM11: Keplinger Wines | 47% Grenache, 28% Mourvedre, 25% Syrah | Lithic | 0.75 L
A12: Pillar Box | 2008 | Shiraz | Reserve Shiraz | 0.75 L | B12: 1 | C12: S | D12: AU | E12: 2008 | F12: 4534.61366 | G12: =SUMIF(Purchases!$U$3:$U$2002,A12,Purchases!$K$3:$K$2002)+SUMIF('Fully Consumed'!$U$2:$U$2001,A12,'Fully Consumed'!$K$2:$K$2001) -> 12 | H12: =SUMIF(Purchases!$U$3:$U$2002,A12,Purchases!$M$3:$M$2001) -> 1 | I12: 0.08333333333 | J12: =10/IF(H12>0,(K12/'Summary Stats'!$B$4)^3*(L12/'Summary Stats'!$B$3)^3*MAX((O12-$R$1+1)^2,0.001)*3^B12*IF(LEN(P12)=0,1,IF(P12>=$R$1,P12-$R$1+1,1/($R$1+1-P12))^2),1000000000) -> 113.7932202 | K12: 92 | L12: =IF(H12>0,SUMIF(Purchases!$U$3:$U$2002,A12,Purchases!$N$3:$N$2002)/H12,"") -> 15.90303253 | M12: 16.82 | N12: WR-L5-2 | O12: 2020 | Q12: 94 | R12: 0.9893617021 | S12: =IF(ISNUMBER($Q12),IF(AND(S$1<=$O12,S$1>=$P12),365/$Q12,""),"") ->  | AC12: =IF(ISNUMBER($Q12),IF(AND(AC$1<=$O12,AC$1>=$P12),365/$Q12,""),"") ->  | AP12: 15.90303253 | AQ12: 16.82 | AR12: Red | AZ12: 92 | BA12: Rater 2 | BF12: AU| | BG12: AU|| | BI12: Shiraz/Syrah | BK12: TRUE | BM12: Pillar Box | Shiraz | Reserve Shiraz | 0.75 L
A13: Thomas | 2016 | Pinot Noir | Pinot Noir, Dundee Hills | 0.75 L | B13: 2 | C13: N | D13: US | E13: 2016 | F13: 1429.61366 | G13: =SUMIF(Purchases!$U$3:$U$2002,A13,Purchases!$K$3:$K$2002)+SUMIF('Fully Consumed'!$U$2:$U$2001,A13,'Fully Consumed'!$K$2:$K$2001) -> 4 | H13: =SUMIF(Purchases!$U$3:$U$2002,A13,Purchases!$M$3:$M$2001) -> 4 | I13: 1 | J13: =10/IF(H13>0,(K13/'Summary Stats'!$B$4)^3*(L13/'Summary Stats'!$B$3)^3*MAX((O13-$R$1+1)^2,0.001)*3^B13*IF(LEN(P13)=0,1,IF(P13>=$R$1,P13-$R$1+1,1/($R$1+1-P13))^2),1000000000) -> 0.002869299815 | K13: 94 | L13: =IF(H13>0,SUMIF(Purchases!$U$3:$U$2002,A13,Purchases!$N$3:$N$2002)/H13,"") -> 70.2142872 | M13: 69.17 | O13: 2031 | Q13: 1027.75 | R13: 0.09048893213 | S13: 0.3551447336 | T13: 0.3551447336 | U13: 0.3551447336 | V13: 0.3551447336 | W13: 0.3551447336 | X13: 0.3551447336 | Y13: 0.3551447336 | Z13: 0.3551447336 | AA13: 0.3551447336 | AB13: 0.3551447336 | AC13: 0.3551447336 | AP13: 280.8571488 | AQ13: 276.68 | AR13: Red | AS13: Dundee Hills | AZ13: 94 | BA13: Rater 1 | BF13: US|Dundee Hills | BG13: US|Dundee Hills| | BI13: Pinot Noir | BK13: FALSE | BM13: Thomas | Pinot Noir | Pinot Noir, Dundee Hills | 0.75 L
A14: Schloss Gobelsburg | 2016 | Riesling | Riesling Qualitätswein Trocken Kamptal Schlosskelleri | 0.75 L | B14: 1 | C14: N | D14: AT | E14: 2016 | F14: 1429.61366 | G14: =SUMIF(Purchases!$U$3:$U$2002,A14,Purchases!$K$3:$K$2002)+SUMIF('Fully Consumed'!$U$2:$U$2001,A14,'Fully Consumed'!$K$2:$K$2001) -> 12 | H14: =SUMIF(Purchases!$U$3:$U$2002,A14,Purchases!$M$3:$M$2001) -> 2 | I14: 0.1666666667 | J14: =10/IF(H14>0,(K14/'Summary Stats'!$B$4)^3*(L14/'Summary Stats'!$B$3)^3*MAX((O14-$R$1+1)^2,0.001)*3^B14*IF(LEN(P14)=0,1,IF(P14>=$R$1,P14-$R$1+1,1/($R$1+1-P14))^2),1000000000) -> 2.716249477 | K14: 93 | L14: =IF(H14>0,SUMIF(Purchases!$U$3:$U$2002,A14,Purchases!$N$3:$N$2002)/H14,"") -> 16.54751957 | M14: 15.9 | O14: 2025 | Q14: 960 | R14: 0.096875 | S14: 0.3802083333 | T14: 0.3802083333 | U14: 0.3802083333 | V14: 0.3802083333 | W14: 0.3802083333 | AP14: 33.09503913 | AQ14: 31.8 | AR14: White | AS14: Niederösterreich | AZ14: 93 | BA14: Rater 2 | BF14: AT|Niederösterreich | BG14: AT|Niederösterreich| | BI14: Riesling | BK14: TRUE | BM14: Schloss Gobelsburg | Riesling | Riesling Qualitätswein Trocken Kamptal Schlosskelleri | 0.75 L
A15: Myriad Cellars | 2017 | Syrah | Syrah Sangiacomo | 0.75 L | B15: 2 | C15: N | D15: US | E15: 2017 | F15: 1064.61366 | G15: =SUMIF(Purchases!$U$3:$U$2002,A15,Purchases!$K$3:$K$2002)+SUMIF('Fully Consumed'!$U$2:$U$2001,A15,'Fully Consumed'!$K$2:$K$2001) -> 3 | H15: =SUMIF(Purchases!$U$3:$U$2002,A15,Purchases!$M$3:$M$2001) -> 1 | I15: 0.3333333333 | J15: =10/IF(H15>0,(K15/'Summary Stats'!$B$4)^3*(L15/'Summary Stats'!$B$3)^3*MAX((O15-$R$1+1)^2,0.001)*3^B15*IF(LEN(P15)=0,1,IF(P15>=$R$1,P15-$R$1+1,1/($R$1+1-P15))^2),1000000000) -> 0.02085615446 | K15: 92 | L15: =IF(H15>0,SUMIF(Purchases!$U$3:$U$2002,A15,Purchases!$N$3:$N$2002)/H15,"") -> 53.04790293 | M15: 51.42 | O15: 2026 | Q15: 2285 | R15: 0.04070021882 | S15: 0.1597374179 | T15: 0.1597374179 | U15: 0.1597374179 | V15: 0.1597374179 | W15: 0.1597374179 | X15: 0.1597374179 | AP15: 53.04790293 | AQ15: 51.42 | AR15: Red | AS15: Sonoma Coast | AT15: Sangiacomo Vineyard | AZ15: 92 | BA15: Rater 1 | BF15: US|Sonoma Coast | BG15: US|Sonoma Coast|Sangiacomo Vineyard | BI15: Shiraz/Syrah | BK15: FALSE | BM15: Myriad Cellars | Syrah | Syrah Sangiacomo | 0.75 L
A16: Halcón Vineyards | 2018 | Beaucastel Blanc and Chablis | Halcón Rousanne | 0.75 L | B16: 1 | C16: N | D16: US | E16: 2018 | F16: 699.6136596 | G16: =SUMIF(Purchases!$U$3:$U$2002,A16,Purchases!$K$3:$K$2002)+SUMIF('Fully Consumed'!$U$2:$U$2001,A16,'Fully Consumed'!$K$2:$K$2001) -> 2 | H16: =SUMIF(Purchases!$U$3:$U$2002,A16,Purchases!$M$3:$M$2001) -> 2 | I16: 1 | J16: =10/IF(H16>0,(K16/'Summary Stats'!$B$4)^3*(L16/'Summary Stats'!$B$3)^3*MAX((O16-$R$1+1)^2,0.001)*3^B16*IF(LEN(P16)=0,1,IF(P16>=$R$1,P16-$R$1+1,1/($R$1+1-P16))^2),1000000000) -> 1.407145554 | K16: 90 | L16: =IF(H16>0,SUMIF(Purchases!$U$3:$U$2002,A16,Purchases!$N$3:$N$2002)/H16,"") -> 33.79638253 | M16: 32.95 | O16: 2022 | Q16: 412 | R16: 0.2257281553 | S16: 0.8859223301 | T16: 0.8859223301 | AP16: 67.59276506 | AQ16: 65.9 | AR16: White | AS16: Yorkville Highlands | AT16: Halcón Vineyad | AZ16: 90 | BA16: Rater 1 | BF16: US|Yorkville Highlands | BG16: US|Yorkville Highlands|Halcón Vineyad | BI16: Rhone White Blend | BK16: FALSE | BM16: Halcón Vineyards | Beaucastel Blanc and Chablis | Halcón Rousanne | 0.75 L
A17: Chateau Clerc Milon | 2005 | Bordeaux blend | Pauillac | 0.75 L | B17: 1 | C17: N | D17: FR | E17: 2005 | F17: 5447.61366 | G17: =SUMIF(Purchases!$U$3:$U$2002,A17,Purchases!$K$3:$K$2002)+SUMIF('Fully Consumed'!$U$2:$U$2001,A17,'Fully Consumed'!$K$2:$K$2001) -> 4 | H17: =SUMIF(Purchases!$U$3:$U$2002,A17,Purchases!$M$3:$M$2001) -> 4 | I17: 1 | J17: =10/IF(H17>0,(K17/'Summary Stats'!$B$4)^3*(L17/'Summary Stats'!$B$3)^3*MAX((O17-$R$1+1)^2,0.001)*3^B17*IF(LEN(P17)=0,1,IF(P17>=$R$1,P17-$R$1+1,1/($R$1+1-P17))^2),1000000000) -> 0.009594305385 | K17: 95 | L17: =IF(H17>0,SUMIF(Purchases!$U$3:$U$2002,A17,Purchases!$N$3:$N$2002)/H17,"") -> 63.52571344 | M17: 62 | N17: S-L2-2 | O17: 2032 | Q17: 1119.25 | R17: 0.08309135582 | S17: 0.3261112352 | T17: 0.3261112352 | U17: 0.3261112352 | V17: 0.3261112352 | W17: 0.3261112352 | X17: 0.3261112352 | Y17: 0.3261112352 | Z17: 0.3261112352 | AA17: 0.3261112352 | AB17: 0.3261112352 | AC17: 0.3261112352 | AD17: 0.3261112352 | AP17: 254.1028538 | AQ17: 248 | AR17: Red | AW17: 40490 | AY17: 2005 Bordeaux | AZ17: 95 | BA17: Rater 2 | BF17: FR| | BG17: FR|| | BI17: Cab S Blend | BK17: FALSE | BM17: Chateau Clerc Milon | Bordeaux blend | Pauillac | 0.75 L
A18: Reinhold Haart | 2008 | Riesling | Riesling Spätlese Mosel Piesport Goldtröpfchen | 0.75 L | B18: 1 | C18: N | D18: DE | E18: 2008 | F18: 4351.61366 | G18: =SUMIF(Purchases!$U$3:$U$2002,A18,Purchases!$K$3:$K$2002)+SUMIF('Fully Consumed'!$U$2:$U$2001,A18,'Fully Consumed'!$K$2:$K$2001) -> 12 | H18: =SUMIF(Purchases!$U$3:$U$2002,A18,Purchases!$M$3:$M$2001) -> 7 | I18: 0.5833333333 | J18: =10/IF(H18>0,(K18/'Summary Stats'!$B$4)^3*(L18/'Summary Stats'!$B$3)^3*MAX((O18-$R$1+1)^2,0.001)*3^B18*IF(LEN(P18)=0,1,IF(P18>=$R$1,P18-$R$1+1,1/($R$1+1-P18))^2),1000000000) -> 0.05126066841 | K18: 95 | L18: =IF(H18>0,SUMIF(Purchases!$U$3:$U$2002,A18,Purchases!$N$3:$N$2002)/H18,"") -> 36.33785678 | M18: 35.9 | N18: AL-N-L4-1 | O18: 2032 | Q18: 639.5714286 | R18: 0.1454098727 | S18: 0.5706946616 | T18: 0.5706946616 | U18: 0.5706946616 | V18: 0.5706946616 | W18: 0.5706946616 | X18: 0.5706946616 | Y18: 0.5706946616 | Z18: 0.5706946616 | AA18: 0.5706946616 | AB18: 0.5706946616 | AC18: 0.5706946616 | AD18: 0.5706946616 | AP18: 254.3649975 | AQ18: 251.3 | AR18: White | AZ18: 95 | BA18: Rater 2 | BF18: DE| | BG18: DE|| | BI18: Riesling | BK18: FALSE | BM18: Reinhold Haart | Riesling | Riesling Spätlese Mosel Piesport Goldtröpfchen | 0.75 L
A19: Myriad Cellars | 2018 | Syrah | Syrah Sangiacomo | 0.75 L | B19: 2 | C19: N | D19: US | E19: 2018 | F19: 699.6136597 | G19: =SUMIF(Purchases!$U$3:$U$2002,A19,Purchases!$K$3:$K$2002)+SUMIF('Fully Consumed'!$U$2:$U$2001,A19,'Fully Consumed'!$K$2:$K$2001) -> 2 | H19: =SUMIF(Purchases!$U$3:$U$2002,A19,Purchases!$M$3:$M$2001) -> 2 | I19: 1 | J19: =10/IF(H19>0,(K19/'Summary Stats'!$B$4)^3*(L19/'Summary Stats'!$B$3)^3*MAX((O19-$R$1+1)^2,0.001)*3^B19*IF(LEN(P19)=0,1,IF(P19>=$R$1,P19-$R$1+1,1/($R$1+1-P19))^2),1000000000) -> 0.01247187257 | K19: 92 | L19: =IF(H19>0,SUMIF(Purchases!$U$3:$U$2002,A19,Purchases!$N$3:$N$2002)/H19,"") -> 53.25243003 | M19: 51.42 | O19: 2028 | Q19: 1508 | R19: 0.06167108753 | S19: 0.2420424403 | T19: 0.2420424403 | U19: 0.2420424403 | V19: 0.2420424403 | W19: 0.2420424403 | X19: 0.2420424403 | Y19: 0.2420424403 | Z19: 0.2420424403 | AP19: 106.5048601 | AQ19: 102.84 | AR19: Red | AS19: Sonoma Coast | AT19: Sangiacomo Vineyard | AZ19: 92 | BA19: Rater 1 | BF19: US|Sonoma Coast | BG19: US|Sonoma Coast|Sangiacomo Vineyard | BI19: Shiraz/Syrah | BK19: FALSE | BM19: Myriad Cellars | Syrah | Syrah Sangiacomo | 0.75 L
A20: Sordo | 2013 | Barolo | Gabutti' Barolo | 0.75 L | B20: 1 | C20: N | D20: IT | E20: 2013 | F20: 2525.61366 | G20: =SUMIF(Purchases!$U$3:$U$2002,A20,Purchases!$K$3:$K$2002)+SUMIF('Fully Consumed'!$U$2:$U$2001,A20,'Fully Consumed'!$K$2:$K$2001) -> 6 | H20: =SUMIF(Purchases!$U$3:$U$2002,A20,Purchases!$M$3:$M$2001) -> 6 | I20: 1 | J20: =10/IF(H20>0,(K20/'Summary Stats'!$B$4)^3*(L20/'Summary Stats'!$B$3)^3*MAX((O20-$R$1+1)^2,0.001)*3^B20*IF(LEN(P20)=0,1,IF(P20>=$R$1,P20-$R$1+1,1/($R$1+1-P20))^2),1000000000) -> 0.00227857152 | K20: 94 | L20: =IF(H20>0,SUMIF(Purchases!$U$3:$U$2002,A20,Purchases!$N$3:$N$2002)/H20,"") -> 40.12009834 | M20: 38.65 | O20: 2037 | P20: 2022 | Q20: 974 | T20: 0.3747433265 | U20: 0.3747433265 | V20: 0.3747433265 | W20: 0.3747433265 | X20: 0.3747433265 | Y20: 0.3747433265 | Z20: 0.3747433265 | AA20: 0.3747433265 | AB20: 0.3747433265 | AC20: 0.3747433265 | AD20: 0.3747433265 | AE20: 0.3747433265 | AF20: 0.3747433265 | AG20: 0.3747433265 | AH20: 0.3747433265 | AI20: 0.3747433265 | AP20: 240.72059 | AQ20: 231.9 | AR20: Red | AS20: Piedmont | AZ20: 94 | BA20: Rater 2 | BF20: IT|Piedmont | BG20: IT|Piedmont| | BI20: Nebbiolo | BK20: FALSE | BM20: Sordo | Barolo | Gabutti' Barolo | 0.75 L
A21: Château Puygueraud | 2005 | Merlot, Cab S, Malbec | Côtes de Francs | 0.75 L | B21: 1 | C21: N | D21: FR | E21: 2005 | F21: 5447.61366 | G21: =SUMIF(Purchases!$U$3:$U$2002,A21,Purchases!$K$3:$K$2002)+SUMIF('Fully Consumed'!$U$2:$U$2001,A21,'Fully Consumed'!$K$2:$K$2001) -> 12 | H21: =SUMIF(Purchases!$U$3:$U$2002,A21,Purchases!$M$3:$M$2001) -> 3 | I21: 0.25 | J21: =10/IF(H21>0,(K21/'Summary Stats'!$B$4)^3*(L21/'Summary Stats'!$B$3)^3*MAX((O21-$R$1+1)^2,0.001)*3^B21*IF(LEN(P21)=0,1,IF(P21>=$R$1,P21-$R$1+1,1/($R$1+1-P21))^2),1000000000) -> 2.343233606 | K21: 92 | L21: =IF(H21>0,SUMIF(Purchases!$U$3:$U$2002,A21,Purchases!$N$3:$N$2002)/H21,"") -> 17.57165687 | M21: 17.5 | N21: AL-E-L2-1 | O21: 2025 | Q21: 640 | R21: 0.1453125 | S21: 0.5703125 | T21: 0.5703125 | U21: 0.5703125 | V21: 0.5703125 | W21: 0.5703125 | AP21: 52.7149706 | AQ21: 52.5 | AR21: Red | AW21: 32-08 | AY21: 2005 Bordeaux | AZ21: 92 | BA21: Rater 2 | BF21: FR| | BG21: FR|| | BI21: Merlot Blend | BK21: TRUE | BM21: Château Puygueraud | Merlot, Cab S, Malbec | Côtes de Francs | 0.75 L
A22: Thomas | 2015 | Pinot Noir | Pinot Noir, Dundee Hills | 0.75 L | B22: 2 | C22: N | D22: US | E22: 2015 | F22: 1795.61366 | G22: =SUMIF(Purchases!$U$3:$U$2002,A22,Purchases!$K$3:$K$2002)+SUMIF('Fully Consumed'!$U$2:$U$2001,A22,'Fully Consumed'!$K$2:$K$2001) -> 4 | H22: =SUMIF(Purchases!$U$3:$U$2002,A22,Purchases!$M$3:$M$2001) -> 4 | I22: 1 | J22: =10/IF(H22>0,(K22/'Summary Stats'!$B$4)^3*(L22/'Summary Stats'!$B$3)^3*MAX((O22-$R$1+1)^2,0.001)*3^B22*IF(LEN(P22)=0,1,IF(P22>=$R$1,P22-$R$1+1,1/($R$1+1-P22))^2),1000000000) -> 0.004121462118 | K22: 93 | L22: =IF(H22>0,SUMIF(Purchases!$U$3:$U$2002,A22,Purchases!$N$3:$N$2002)/H22,"") -> 66.65575361 | M22: 64.17 | O22: 2030 | Q22: 936.5 | R22: 0.09930592632 | S22: 0.3897490657 | T22: 0.3897490657 | U22: 0.3897490657 | V22: 0.3897490657 | W22: 0.3897490657 | X22: 0.3897490657 | Y22: 0.3897490657 | Z22: 0.3897490657 | AA22: 0.3897490657 | AB22: 0.3897490657 | AP22: 266.6230144 | AQ22: 256.68 | AR22: Red | AS22: Dundee Hills | AZ22: 93 | BA22: Rater 1 | BF22: US|Dundee Hills | BG22: US|Dundee Hills| | BI22: Pinot Noir | BK22: FALSE | BM22: Thomas | Pinot Noir | Pinot Noir, Dundee Hills | 0.75 L | BN22: 2020-09-01 | BO22: 2020-06-19
A23: Fox Gordon | 2004 | Shiraz | Eight Uncles Barossa Valley | 0.75 L | B23: 1 | C23: S | D23: AU | E23: 2004 | F23: 5995.61366 | G23: =SUMIF(Purchases!$U$3:$U$2002,A23,Purchases!$K$3:$K$2002)+SUMIF('Fully Consumed'!$U$2:$U$2001,A23,'Fully Consumed'!$K$2:$K$2001) -> 12 | H23: =SUMIF(Purchases!$U$3:$U$2002,A23,Purchases!$M$3:$M$2001) -> 1 | I23: 0.08333333333 | J23: =10/IF(H23>0,(K23/'Summary Stats'!$B$4)^3*(L23/'Summary Stats'!$B$3)^3*MAX((O23-$R$1+1)^2,0.001)*3^B23*IF(LEN(P23)=0,1,IF(P23>=$R$1,P23-$R$1+1,1/($R$1+1-P23))^2),1000000000) -> 71.32463788 | K23: 91 | L23: =IF(H23>0,SUMIF(Purchases!$U$3:$U$2002,A23,Purchases!$N$3:$N$2002)/H23,"") -> 18.78676429 | M23: 17.79 | N23: AL-E-L5-3 | O23: 2020 | Q23: 94 | R23: 0.9893617021 | S23: =IF(ISNUMBER($Q23),IF(AND(S$1<=$O23,S$1>=$P23),365/$Q23,""),"") ->  | AC23: =IF(ISNUMBER($Q23),IF(AND(AC$1<=$O23,AC$1>=$P23),365/$Q23,""),"") ->  | AP23: 18.78676429 | AQ23: 17.79 | AR23: Red | AZ23: 91 | BA23: Rater 2 | BF23: AU| | BG23: AU|| | BI23: Shiraz/Syrah | BK23: TRUE | BM23: Fox Gordon | Shiraz | Eight Uncles Barossa Valley | 0.75 L
A24: Sandlands Vineyards | 2018 | Cinsault, Carignane, Zinfandel | Lodi Red Table Wine | 0.75 L | B24: 1 | C24: N | D24: US | E24: 2018 | F24: 699.6136596 | G24: =SUMIF(Purchases!$U$3:$U$2002,A24,Purchases!$K$3:$K$2002)+SUMIF('Fully Consumed'!$U$2:$U$2001,A24,'Fully Consumed'!$K$2:$K$2001) -> 2 | H24: =SUMIF(Purchases!$U$3:$U$2002,A24,Purchases!$M$3:$M$2001) -> 1 | I24: 0.5 | J24: =10/IF(H24>0,(K24/'Summary Stats'!$B$4)^3*(L24/'Summary Stats'!$B$3)^3*MAX((O24-$R$1+1)^2,0.001)*3^B24*IF(LEN(P24)=0,1,IF(P24>=$R$1,P24-$R$1+1,1/($R$1+1-P24))^2),1000000000) -> 0.5658182027 | K24: 92 | L24: =IF(H24>0,SUMIF(Purchases!$U$3:$U$2002,A24,Purchases!$N$3:$N$2002)/H24,"") -> 36.97598717 | M24: 35.71 | O24: 2023 | Q24: 1189 | R24: 0.07821698907 | S24: 0.306980656 | T24: 0.306980656 | U24: 0.306980656 | AP24: 36.97598717 | AQ24: 35.71 | AR24: Red | AS24: Lodi | AZ24: 92 | BA24: Rater 1 | BF24: US|Lodi | BG24: US|Lodi| | BI24: Cinsault Blend | BK24: FALSE | BM24: Sandlands Vineyards | Cinsault, Carignane, Zinfandel | Lodi Red Table Wine | 0.75 L
A25: Domaine Giraud | 2015 | Chateauneuf du Pape | Chateauneuf du Pape Les Gallimardes | 0.75 L | B25: 2 | C25: N | D25: FR | E25: 2015 | F25: 1795.61366 | G25: =SUMIF(Purchases!$U$3:$U$2002,A25,Purchases!$K$3:$K$2002)+SUMIF('Fully Consumed'!$U$2:$U$2001,A25,'Fully Consumed'!$K$2:$K$2001) -> 6 | H25: =SUMIF(Purchases!$U$3:$U$2002,A25,Purchases!$M$3:$M$2001) -> 6 | I25: 1 | J25: =10/IF(H25>0,(K25/'Summary Stats'!$B$4)^3*(L25/'Summary Stats'!$B$3)^3*MAX((O25-$R$1+1)^2,0.001)*3^B25*IF(LEN(P25)=0,1,IF(P25>=$R$1,P25-$R$1+1,1/($R$1+1-P25))^2),1000000000) -> 0.0004539323508 | K25: 97 | L25: =IF(H25>0,SUMIF(Purchases!$U$3:$U$2002,A25,Purchases!$N$3:$N$2002)/H25,"") -> 86.63323063 | M25: 82.75 | O25: 2040 | Q25: 1233.166667 | R25: 0.0754155967 | S25: 0.295985944 | T25: 0.295985944 | U25: 0.295985944 | V25: 0.295985944 | W25: 0.295985944 | X25: 0.295985944 | Y25: 0.295985944 | Z25: 0.295985944 | AA25: 0.295985944 | AB25: 0.295985944 | AC25: 0.295985944 | AD25: 0.295985944 | AE25: 0.295985944 | AF25: 0.295985944 | AG25: 0.295985944 | AH25: 0.295985944 | AI25: 0.295985944 | AJ25: 0.295985944 | AK25: 0.295985944 | AL25: 0.295985944 | AP25: 519.7993838 | AQ25: 496.5 | AR25: Red | AY25: Châteauneuf-du-Pape | AZ25: 97 | BA25: Rater 2 | BF25: FR| | BG25: FR|| | BI25: Grenache Blend | BK25: FALSE | BM25: Domaine Giraud | Chateauneuf du Pape | Chateauneuf du Pape Les Gallimardes | 0.75 L
A26: Turley | 2019 | Cinsault | Bechtholdt Vineyard Cinsault | 0.75 L | B26: 1 | C26: N | D26: US | E26: 2019 | F26: 334.6136596 | G26: =SUMIF(Purchases!$U$3:$U$2002,A26,Purchases!$K$3:$K$2002)+SUMIF('Fully Consumed'!$U$2:$U$2001,A26,'Fully Consumed'!$K$2:$K$2001) -> 4 | H26: =SUMIF(Purchases!$U$3:$U$2002,A26,Purchases!$M$3:$M$2001) -> 3 | I26: 0.75 | J26: =10/IF(H26>0,(K26/'Summary Stats'!$B$4)^3*(L26/'Summary Stats'!$B$3)^3*MAX((O26-$R$1+1)^2,0.001)*3^B26*IF(LEN(P26)=0,1,IF(P26>=$R$1,P26-$R$1+1,1/($R$1+1-P26))^2),1000000000) -> 4.727816254 | K26: 90 | L26: =IF(H26>0,SUMIF(Purchases!$U$3:$U$2002,A26,Purchases!$N$3:$N$2002)/H26,"") -> 29.56813059 | M26: 28.8 | O26: 2021 | Q26: 153 | R26: 0.6078431373 | S26: 2.385620915 | AP26: 88.70439177 | AQ26: 86.4 | AR26: Red | AS26: Lodi | AT26: Bechtholdt Vineyard | AZ26: 90 | BA26: Rater 1 | BF26: US|Lodi | BG26: US|Lodi|Bechtholdt Vineyard | BI26: Cinsault | BK26: FALSE | BM26: Turley | Cinsault | Bechtholdt Vineyard Cinsault | 0.75 L
A27: Sandlands Vineyards | 2018 | Cinsault | Lodi Cinsault | 0.75 L | B27: 1 | C27: N | D27: US | E27: 2018 | F27: 699.6136596 | G27: =SUMIF(Purchases!$U$3:$U$2002,A27,Purchases!$K$3:$K$2002)+SUMIF('Fully Consumed'!$U$2:$U$2001,A27,'Fully Consumed'!$K$2:$K$2001) -> 2 | H27: =SUMIF(Purchases!$U$3:$U$2002,A27,Purchases!$M$3:$M$2001) -> 2 | I27: 1 | J27: =10/IF(H27>0,(K27/'Summary Stats'!$B$4)^3*(L27/'Summary Stats'!$B$3)^3*MAX((O27-$R$1+1)^2,0.001)*3^B27*IF(LEN(P27)=0,1,IF(P27>=$R$1,P27-$R$1+1,1/($R$1+1-P27))^2),1000000000) -> 0.8910383536 | K27: 92 | L27: =IF(H27>0,SUMIF(Purchases!$U$3:$U$2002,A27,Purchases!$N$3:$N$2002)/H27,"") -> 31.7819068 | M27: 31.71 | O27: 2023 | Q27: 594.5 | R27: 0.1564339781 | S27: 0.613961312 | T27: 0.613961312 | U27: 0.613961312 | AP27: 63.56381359 | AQ27: 63.42 | AR27: Red | AS27: Lodi | AZ27: 92 | BA27: Rater 1 | BF27: US|Lodi | BG27: US|Lodi| | BI27: Cinsault | BK27: FALSE | BM27: Sandlands Vineyards | Cinsault | Lodi Cinsault | 0.75 L
A28: Carlisle | 2017 | Zinfandel | Zinfandel, Russian River Valley, Papera Ranch | 0.75 L | B28: 2 | C28: N | D28: US | E28: 2017 | F28: 1064.61366 | G28: =SUMIF(Purchases!$U$3:$U$2002,A28,Purchases!$K$3:$K$2002)+SUMIF('Fully Consumed'!$U$2:$U$2001,A28,'Fully Consumed'!$K$2:$K$2001) -> 4 | H28: =SUMIF(Purchases!$U$3:$U$2002,A28,Purchases!$M$3:$M$2001) -> 4 | I28: 1 | J28: =10/IF(H28>0,(K28/'Summary Stats'!$B$4)^3*(L28/'Summary Stats'!$B$3)^3*MAX((O28-$R$1+1)^2,0.001)*3^B28*IF(LEN(P28)=0,1,IF(P28>=$R$1,P28-$R$1+1,1/($R$1+1-P28))^2),1000000000) -> 0.01555369652 | K28: 94 | L28: =IF(H28>0,SUMIF(Purchases!$U$3:$U$2002,A28,Purchases!$N$3:$N$2002)/H28,"") -> 48.42081394 | M28: 47.61 | O28: 2028 | Q28: 754 | R28: 0.1233421751 | S28: 0.4840848806 | T28: 0.4840848806 | U28: 0.4840848806 | V28: 0.4840848806 | W28: 0.4840848806 | X28: 0.4840848806 | Y28: 0.4840848806 | Z28: 0.4840848806 | AP28: 193.6832558 | AQ28: 190.44 | AR28: Red | AS28: Russian River Valley | AT28: Papera Ranch | AY28: Carlisle | AZ28: 94 | BA28: Rater 2 | BF28: US|Russian River Valley | BG28: US|Russian River Valley|Papera Ranch | BI28: Zinfandel | BK28: FALSE | BM28: Carlisle | Zinfandel | Zinfandel, Russian River Valley, Papera Ranch | 0.75 L
A29: Domaine Huet | 2016 | Chenin Blanc | Vouvray Moelleux Le Haut-Lieu | 0.75 L | B29: 1 | C29: N | D29: FR | E29: 2016 | F29: 1429.61366 | G29: =SUMIF(Purchases!$U$3:$U$2002,A29,Purchases!$K$3:$K$2002)+SUMIF('Fully Consumed'!$U$2:$U$2001,A29,'Fully Consumed'!$K$2:$K$2001) -> 3 | H29: =SUMIF(Purchases!$U$3:$U$2002,A29,Purchases!$M$3:$M$2001) -> 3 | I29: 1 | J29: =10/IF(H29>0,(K29/'Summary Stats'!$B$4)^3*(L29/'Summary Stats'!$B$3)^3*MAX((O29-$R$1+1)^2,0.001)*3^B29*IF(LEN(P29)=0,1,IF(P29>=$R$1,P29-$R$1+1,1/($R$1+1-P29))^2),1000000000) -> 0.0186001599 | K29: 95 | L29: =IF(H29>0,SUMIF(Purchases!$U$3:$U$2002,A29,Purchases!$N$3:$N$2002)/H29,"") -> 44.36060062 | M29: 43.19 | O29: 2035 | Q29: 1857.333333 | R29: 0.05007178751 | S29: 0.1965183058 | T29: 0.1965183058 | U29: 0.1965183058 | V29: 0.1965183058 | W29: 0.1965183058 | X29: 0.1965183058 | Y29: 0.1965183058 | Z29: 0.1965183058 | AA29: 0.1965183058 | AB29: 0.1965183058 | AC29: 0.1965183058 | AD29: 0.1965183058 | AE29: 0.1965183058 | AF29: 0.1965183058 | AG29: 0.1965183058 | AP29: 133.0818019 | AQ29: 129.57 | AR29: White | AS29: Loire | AZ29: 95 | BA29: Rater 2 | BF29: FR|Loire | BG29: FR|Loire| | BI29: Chenin Blanc | BK29: FALSE | BM29: Domaine Huet | Chenin Blanc | Vouvray Moelleux Le Haut-Lieu | 0.75 L
A30: Clos des Papes | 2011 | Grenache blend | Châteauneuf-du-Pape | 0.75 L | B30: 6 | C30: N | D30: FR | E30: 2011 | F30: 3256.61366 | G30: =SUMIF(Purchases!$U$3:$U$2002,A30,Purchases!$K$3:$K$2002)+SUMIF('Fully Consumed'!$U$2:$U$2001,A30,'Fully Consumed'!$K$2:$K$2001) -> 3 | H30: =SUMIF(Purchases!$U$3:$U$2002,A30,Purchases!$M$3:$M$2001) -> 3 | I30: 1 | J30: =10/IF(H30>0,(K30/'Summary Stats'!$B$4)^3*(L30/'Summary Stats'!$B$3)^3*MAX((O30-$R$1+1)^2,0.001)*3^B30*IF(LEN(P30)=0,1,IF(P30>=$R$1,P30-$R$1+1,1/($R$1+1-P30))^2),1000000000) -> 2.192558129e-05 | K30: 95 | L30: =IF(H30>0,SUMIF(Purchases!$U$3:$U$2002,A30,Purchases!$N$3:$N$2002)/H30,"") -> 86.39104195 | M30: 86.39 | O30: 2030 | Q30: 1248.666667 | R30: 0.07447944474 | S30: 0.2923117993 | T30: 0.2923117993 | U30: 0.2923117993 | V30: 0.2923117993 | W30: 0.2923117993 | X30: 0.2923117993 | Y30: 0.2923117993 | Z30: 0.2923117993 | AA30: 0.2923117993 | AB30: 0.2923117993 | AP30: 259.1731258 | AQ30: 259.17 | AR30: Red | AS30: Châteauneuf-du-Pape | AY30: Châteauneuf-du-Pape | AZ30: 95 | BA30: Rater 2 | BF30: FR|Châteauneuf-du-Pape | BG30: FR|Châteauneuf-du-Pape| | BI30: Grenache Blend | BJ30: Clos des Pape | BK30: TRUE | BM30: Clos des Papes | Grenache blend | Châteauneuf-du-Pape | 0.75 L
A31: Clos des Papes | 2005 | Grenache blend | Châteauneuf-du-Pape | 0.75 L | B31: 6 | C31: N | D31: FR | E31: 2005 | F31: 5447.61366 | G31: =SUMIF(Purchases!$U$3:$U$2002,A31,Purchases!$K$3:$K$2002)+SUMIF('Fully Consumed'!$U$2:$U$2001,A31,'Fully Consumed'!$K$2:$K$2001) -> 3 | H31: =SUMIF(Purchases!$U$3:$U$2002,A31,Purchases!$M$3:$M$2001) -> 2 | I31: 0.6666666667 | J31: =10/IF(H31>0,(K31/'Summary Stats'!$B$4)^3*(L31/'Summary Stats'!$B$3)^3*MAX((O31-$R$1+1)^2,0.001)*3^B31*IF(LEN(P31)=0,1,IF(P31>=$R$1,P31-$R$1+1,1/($R$1+1-P31))^2),1000000000) -> 1.016595408e-05 | K31: 98 | L31: =IF(H31>0,SUMIF(Purchases!$U$3:$U$2002,A31,Purchases!$N$3:$N$2002)/H31,"") -> 108.2016539 | M31: 104.76 | O31: 2030 | Q31: 1873 | R31: 0.04965296316 | S31: 0.1948745328 | T31: 0.1948745328 | U31: 0.1948745328 | V31: 0.1948745328 | W31: 0.1948745328 | X31: 0.1948745328 | Y31: 0.1948745328 | Z31: 0.1948745328 | AA31: 0.1948745328 | AB31: 0.1948745328 | AP31: 216.4033078 | AQ31: 209.52 | AR31: Red | AS31: Châteauneuf-du-Pape | AY31: Châteauneuf-du-Pape | AZ31: 98 | BA31: Rater 2 | BF31: FR|Châteauneuf-du-Pape | BG31: FR|Châteauneuf-du-Pape| | BI31: Grenache Blend | BJ31: Clos des Pape | BK31: TRUE | BM31: Clos des Papes | Grenache blend | Châteauneuf-du-Pape | 0.75 L
A32: Delmas | 2017 | Syrah, Viognier | Syrah Walla Walla Valley | 1.5 L | B32: 3 | C32: N | D32: US | E32: 2017 | F32: 1064.61366 | G32: =SUMIF(Purchases!$U$3:$U$2002,A32,Purchases!$K$3:$K$2002)+SUMIF('Fully Consumed'!$U$2:$U$2001,A32,'Fully Consumed'!$K$2:$K$2001) -> 1 | H32: =SUMIF(Purchases!$U$3:$U$2002,A32,Purchases!$M$3:$M$2001) -> 1 | I32: 1 | J32: =10/IF(H32>0,(K32/'Summary Stats'!$B$4)^3*(L32/'Summary Stats'!$B$3)^3*MAX((O32-$R$1+1)^2,0.001)*3^B32*IF(LEN(P32)=0,1,IF(P32>=$R$1,P32-$R$1+1,1/($R$1+1-P32))^2),1000000000) -> 1.294618817e-05 | K32: 93 | L32: =IF(H32>0,SUMIF(Purchases!$U$3:$U$2002,A32,Purchases!$N$3:$N$2002)/H32,"") -> 282.3145397 | M32: 282.05 | O32: 2032 | Q32: 4477 | R32: 0.02077283895 | S32: 0.0815278088 | T32: 0.0815278088 | U32: 0.0815278088 | V32: 0.0815278088 | W32: 0.0815278088 | X32: 0.0815278088 | Y32: 0.0815278088 | Z32: 0.0815278088 | AA32: 0.0815278088 | AB32: 0.0815278088 | AC32: 0.0815278088 | AD32: 0.0815278088 | AP32: 282.3145397 | AQ32: 282.05 | AR32: Red | AS32: The Rocks of Milton Freewater | AT32: SJR Vineyard | AY32: The Rocks of Milton-Freewater | AZ32: 93 | BA32: Rater 1 | BF32: US|The Rocks of Milton Freewater | BG32: US|The Rocks of Milton Freewater|SJR Vineyard | BI32: Shiraz/Syrah Blend | BK32: FALSE | BM32: Delmas | Syrah, Viognier | Syrah Walla Walla Valley | 1.5 L
A33: Sandlands Vineyards | 2017 | Chenin Blanc | Chenin Blanc | 0.75 L | B33: 2 | C33: N | D33: US | E33: 2017 | F33: 1064.61366 | G33: =SUMIF(Purchases!$U$3:$U$2002,A33,Purchases!$K$3:$K$2002)+SUMIF('Fully Consumed'!$U$2:$U$2001,A33,'Fully Consumed'!$K$2:$K$2001) -> 2 | H33: =SUMIF(Purchases!$U$3:$U$2002,A33,Purchases!$M$3:$M$2001) -> 2 | I33: 1 | J33: =10/IF(H33>0,(K33/'Summary Stats'!$B$4)^3*(L33/'Summary Stats'!$B$3)^3*MAX((O33-$R$1+1)^2,0.001)*3^B33*IF(LEN(P33)=0,1,IF(P33>=$R$1,P33-$R$1+1,1/($R$1+1-P33))^2),1000000000) -> 0.06437783802 | K33: 90 | L33: =IF(H33>0,SUMIF(Purchases!$U$3:$U$2002,A33,Purchases!$N$3:$N$2002)/H33,"") -> 24.64994448 | M33: 24.15 | O33: 2032 | Q33: 2238.5 | R33: 0.04154567791 | S33: =IF(ISNUMBER($Q33),IF(AND(S$1<=$O33,S$1>=$P33),365/$Q33,""),"") -> 0.1630556176 | T33: 0.1630556176 | U33: 0.1630556176 | V33: 0.1630556176 | W33: 0.1630556176 | X33: 0.1630556176 | Y33: 0.1630556176 | Z33: 0.1630556176 | AA33: 0.1630556176 | AB33: 0.1630556176 | AC33: =IF(ISNUMBER($Q33),IF(AND(AC$1<=$O33,AC$1>=$P33),365/$Q33,""),"") -> 0.1630556176 | AD33: 0.1630556176 | AP33: 49.29988896 | AQ33: 48.3 | AR33: White | AS33: California | AZ33: 90 | BA33: Rater 1 | BF33: US|California | BG33: US|California| | BI33: Chenin Blanc | BK33: FALSE | BM33: Sandlands Vineyards | Chenin Blanc | Chenin Blanc | 0.75 L
A34: Salvatore Molettieri | 2012 | Aglianico | Taurasi Vigna Cinque Querce | 0.75 L | B34: 1 | C34: N | D34: IT | E34: 2012 | F34: 2890.61366 | G34: =SUMIF(Purchases!$U$3:$U$2002,A34,Purchases!$K$3:$K$2002)+SUMIF('Fully Consumed'!$U$2:$U$2001,A34,'Fully Consumed'!$K$2:$K$2001) -> 12 | H34: =SUMIF(Purchases!$U$3:$U$2002,A34,Purchases!$M$3:$M$2001) -> 9 | I34: 0.75 | J34: =10/IF(H34>0,(K34/'Summary Stats'!$B$4)^3*(L34/'Summary Stats'!$B$3)^3*MAX((O34-$R$1+1)^2,0.001)*3^B34*IF(LEN(P34)=0,1,IF(P34>=$R$1,P34-$R$1+1,1/($R$1+1-P34))^2),1000000000) -> 0.004715226338 | K34: 95 | L34: =IF(H34>0,SUMIF(Purchases!$U$3:$U$2002,A34,Purchases!$N$3:$N$2002)/H34,"") -> 38.69953195 | M34: 37.99 | O34: 2032 | P34: 2022 | Q34: 446.4444444 | T34: 0.8175709308 | U34: 0.8175709308 | V34: 0.8175709308 | W34: 0.8175709308 | X34: 0.8175709308 | Y34: 0.8175709308 | Z34: 0.8175709308 | AA34: 0.8175709308 | AB34: 0.8175709308 | AC34: 0.8175709308 | AD34: 0.8175709308 | AP34: 348.2957876 | AQ34: 341.91 | AR34: Red | AS34: Campania | AZ34: 95 | BA34: Rater 2 | BF34: IT|Campania | BG34: IT|Campania| | BI34: Aglianico | BK34: FALSE | BM34: Salvatore Molettieri | Aglianico | Taurasi Vigna Cinque Querce | 0.75 L
A35: Cayuse Vineyards | 2013 | Grenache | God Only Knows Grenache | 0.75 L | B35: 1 | C35: N | D35: US | E35: 2013 | F35: 2525.61366 | G35: =SUMIF(Purchases!$U$3:$U$2002,A35,Purchases!$K$3:$K$2002)+SUMIF('Fully Consumed'!$U$2:$U$2001,A35,'Fully Consumed'!$K$2:$K$2001) -> 3 | H35: =SUMIF(Purchases!$U$3:$U$2002,A35,Purchases!$M$3:$M$2001) -> 2 | I35: 0.6666666667 | J35: =10/IF(H35>0,(K35/'Summary Stats'!$B$4)^3*(L35/'Summary Stats'!$B$3)^3*MAX((O35-$R$1+1)^2,0.001)*3^B35*IF(LEN(P35)=0,1,IF(P35>=$R$1,P35-$R$1+1,1/($R$1+1-P35))^2),1000000000) -> 0.02465135965 | K35: 92 | L35: =IF(H35>0,SUMIF(Purchases!$U$3:$U$2002,A35,Purchases!$N$3:$N$2002)/H35,"") -> 105.0828371 | M35: 100.69 | O35: 2023 | Q35: 594.5 | R35: 0.1564339781 | S35: 0.613961312 | T35: 0.613961312 | U35: 0.613961312 | AP35: 210.1656742 | AQ35: 201.38 | AR35: Red | AS35: Walla Walla Valley | AT35: The Rocks of Milton-Freewater | AY35: Cayuse | AZ35: 92 | BA35: Rater 2 | BF35: US|Walla Walla Valley | BG35: US|Walla Walla Valley|The Rocks of Milton-Freewater | BI35: Grenache | BJ35: The Rocks of Milton-Freewater | BK35: FALSE | BM35: Cayuse Vineyards | Grenache | God Only Knows Grenache | 0.75 L
A36: Sandlands Vineyards | 2016 | Chenin Blanc | Chenin Blanc | 0.75 L | B36: 2 | C36: N | D36: US | E36: 2016 | F36: 1429.61366 | G36: =SUMIF(Purchases!$U$3:$U$2002,A36,Purchases!$K$3:$K$2002)+SUMIF('Fully Consumed'!$U$2:$U$2001,A36,'Fully Consumed'!$K$2:$K$2001) -> 3 | H36: =SUMIF(Purchases!$U$3:$U$2002,A36,Purchases!$M$3:$M$2001) -> 1 | I36: 0.3333333333 | J36: =10/IF(H36>0,(K36/'Summary Stats'!$B$4)^3*(L36/'Summary Stats'!$B$3)^3*MAX((O36-$R$1+1)^2,0.001)*3^B36*IF(LEN(P36)=0,1,IF(P36>=$R$1,P36-$R$1+1,1/($R$1+1-P36))^2),1000000000) -> 1.823488926 | K36: 90 | L36: =IF(H36>0,SUMIF(Purchases!$U$3:$U$2002,A36,Purchases!$N$3:$N$2002)/H36,"") -> 28.16453611 | M36: 27 | O36: 2021 | Q36: 459 | R36: 0.2026143791 | S36: 0.7952069717 | AP36: 28.16453611 | AQ36: 27 | AR36: White | AS36: California | AZ36: 90 | BA36: Rater 1 | BF36: US|California | BG36: US|California| | BI36: Chenin Blanc | BK36: FALSE | BM36: Sandlands Vineyards | Chenin Blanc | Chenin Blanc | 0.75 L
A37: Saget la Perriere | 2015 | Chenin Blanc | Marie Beauregard Vouvray | 0.75 L | B37: 1 | C37: N | D37: FR | E37: 2015 | F37: 1795.61366 | G37: =SUMIF(Purchases!$U$3:$U$2002,A37,Purchases!$K$3:$K$2002)+SUMIF('Fully Consumed'!$U$2:$U$2001,A37,'Fully Consumed'!$K$2:$K$2001) -> 12 | H37: =SUMIF(Purchases!$U$3:$U$2002,A37,Purchases!$M$3:$M$2001) -> 10 | I37: 0.8333333333 | J37: =10/IF(H37>0,(K37/'Summary Stats'!$B$4)^3*(L37/'Summary Stats'!$B$3)^3*MAX((O37-$R$1+1)^2,0.001)*3^B37*IF(LEN(P37)=0,1,IF(P37>=$R$1,P37-$R$1+1,1/($R$1+1-P37))^2),1000000000) -> 3.955665836 | K37: 92 | L37: =IF(H37>0,SUMIF(Purchases!$U$3:$U$2002,A37,Purchases!$N$3:$N$2002)/H37,"") -> 16.66475276 | M37: 15.9 | O37: 2024 | Q37: 155.5 | R37: 0.5980707395 | S37: 2.347266881 | T37: 2.347266881 | U37: 2.347266881 | V37: 2.347266881 | AP37: 166.6475276 | AQ37: 159 | AR37: White | AS37: Loire | AZ37: 92 | BA37: Rater 2 | BF37: FR|Loire | BG37: FR|Loire| | BI37: Chenin Blanc | BK37: FALSE | BM37: Saget la Perriere | Chenin Blanc | Marie Beauregard Vouvray | 0.75 L
A38: Cayuse Vineyards | 2014 | Syrah | Wallah Wallah Special #6 Syrah | 1.5 L | B38: 1 | C38: N | D38: US | E38: 2014 | F38: 2160.61366 | G38: =SUMIF(Purchases!$U$3:$U$2002,A38,Purchases!$K$3:$K$2002)+SUMIF('Fully Consumed'!$U$2:$U$2001,A38,'Fully Consumed'!$K$2:$K$2001) -> 1 | H38: =SUMIF(Purchases!$U$3:$U$2002,A38,Purchases!$M$3:$M$2001) -> 1 | I38: 1 | J38: =10/IF(H38>0,(K38/'Summary Stats'!$B$4)^3*(L38/'Summary Stats'!$B$3)^3*MAX((O38-$R$1+1)^2,0.001)*3^B38*IF(LEN(P38)=0,1,IF(P38>=$R$1,P38-$R$1+1,1/($R$1+1-P38))^2),1000000000) -> 0.001021314588 | K38: 94 | L38: =IF(H38>0,SUMIF(Purchases!$U$3:$U$2002,A38,Purchases!$N$3:$N$2002)/H38,"") -> 226.8252361 | M38: 225.72 | O38: 2025 | Q38: 1920 | R38: 0.0484375 | S38: 0.1901041667 | T38: 0.1901041667 | U38: 0.1901041667 | V38: 0.1901041667 | W38: 0.1901041667 | AP38: 226.8252361 | AQ38: 225.72 | AR38: Red | AS38: Walla Walla Valley | AT38: The Rocks of Milton-Freewater | AY38: Cayuse | AZ38: 94 | BA38: Rater 2 | BF38: US|Walla Walla Valley | BG38: US|Walla Walla Valley|The Rocks of Milton-Freewater | BI38: Shiraz/Syrah | BJ38: Magnums | BK38: FALSE | BL38: The Rocks of Milton-Freewater | BM38: Cayuse Vineyards | Syrah | Wallah Wallah Special #6 Syrah | 1.5 L
A39: Rivers-Marie | 2018 | Pinot Noir | Summa Vineyard Pinot Noir | 0.75 L | B39: 2 | C39: N | D39: US | E39: 2018 | F39: 699.6136596 | G39: =SUMIF(Purchases!$U$3:$U$2002,A39,Purchases!$K$3:$K$2002)+SUMIF('Fully Consumed'!$U$2:$U$2001,A39,'Fully Consumed'!$K$2:$K$2001) -> 3 | H39: =SUMIF(Purchases!$U$3:$U$2002,A39,Purchases!$M$3:$M$2001) -> 3 | I39: 1 | J39: =10/IF(H39>0,(K39/'Summary Stats'!$B$4)^3*(L39/'Summary Stats'!$B$3)^3*MAX((O39-$R$1+1)^2,0.001)*3^B39*IF(LEN(P39)=0,1,IF(P39>=$R$1,P39-$R$1+1,1/($R$1+1-P39))^2),1000000000) -> 0.003887347708 | K39: 93 | L39: =IF(H39>0,SUMIF(Purchases!$U$3:$U$2002,A39,Purchases!$N$3:$N$2002)/H39,"") -> 67.96786336 | M39: 65.13 | O39: 2030 | Q39: 1248.666667 | R39: 0.07447944474 | S39: 0.2923117993 | T39: 0.2923117993 | U39: 0.2923117993 | V39: 0.2923117993 | W39: 0.2923117993 | X39: 0.2923117993 | Y39: 0.2923117993 | Z39: 0.2923117993 | AA39: 0.2923117993 | AB39: 0.2923117993 | AP39: 203.9035901 | AQ39: 195.39 | AR39: Red | AS39: Sonoma Coast | AT39: Summa Vineyard | AY39: Rivers-Marie | AZ39: 93 | BA39: Rater 1 | BF39: US|Sonoma Coast | BG39: US|Sonoma Coast|Summa Vineyard | BI39: Pinot Noir | BK39: FALSE | BM39: Rivers-Marie | Pinot Noir | Summa Vineyard Pinot Noir | 0.75 L
A40: Rivers-Marie | 2018 | Pinot Noir | Sonoma Coast Pinot Noir | 0.75 L | B40: 2 | C40: N | D40: US | E40: 2018 | F40: 699.6136596 | G40: =SUMIF(Purchases!$U$3:$U$2002,A40,Purchases!$K$3:$K$2002)+SUMIF('Fully Consumed'!$U$2:$U$2001,A40,'Fully Consumed'!$K$2:$K$2001) -> 3 | H40: =SUMIF(Purchases!$U$3:$U$2002,A40,Purchases!$M$3:$M$2001) -> 3 | I40: 1 | J40: =10/IF(H40>0,(K40/'Summary Stats'!$B$4)^3*(L40/'Summary Stats'!$B$3)^3*MAX((O40-$R$1+1)^2,0.001)*3^B40*IF(LEN(P40)=0,1,IF(P40>=$R$1,P40-$R$1+1,1/($R$1+1-P40))^2),1000000000) -> 0.03565769172 | K40: 92 | L40: =IF(H40>0,SUMIF(Purchases!$U$3:$U$2002,A40,Purchases!$N$3:$N$2002)/H40,"") -> 32.82203163 | M40: 32.73 | O40: 2030 | Q40: 1248.666667 | R40: 0.07447944474 | S40: 0.2923117993 | T40: 0.2923117993 | U40: 0.2923117993 | V40: 0.2923117993 | W40: 0.2923117993 | X40: 0.2923117993 | Y40: 0.2923117993 | Z40: 0.2923117993 | AA40: 0.2923117993 | AB40: 0.2923117993 | AP40: 98.46609488 | AQ40: 98.19 | AR40: Red | AS40: Sonoma Coast | AY40: Rivers-Marie | AZ40: 92 | BA40: Rater 1 | BF40: US|Sonoma Coast | BG40: US|Sonoma Coast| | BI40: Pinot Noir | BK40: FALSE | BM40: Rivers-Marie | Pinot Noir | Sonoma Coast Pinot Noir | 0.75 L
A41: Rivers-Marie | 2017 | Pinot Noir | Platt Vinegyard Pinot Noir | 0.75 L | B41: 1 | C41: N | D41: US | E41: 2017 | F41: 1064.61366 | G41: =SUMIF(Purchases!$U$3:$U$2002,A41,Purchases!$K$3:$K$2002)+SUMIF('Fully Consumed'!$U$2:$U$2001,A41,'Fully Consumed'!$K$2:$K$2001) -> 3 | H41: =SUMIF(Purchases!$U$3:$U$2002,A41,Purchases!$M$3:$M$2001) -> 1 | I41: 0.3333333333 | J41: =10/IF(H41>0,(K41/'Summary Stats'!$B$4)^3*(L41/'Summary Stats'!$B$3)^3*MAX((O41-$R$1+1)^2,0.001)*3^B41*IF(LEN(P41)=0,1,IF(P41>=$R$1,P41-$R$1+1,1/($R$1+1-P41))^2),1000000000) -> 0.01509706891 | K41: 93 | L41: =IF(H41>0,SUMIF(Purchases!$U$3:$U$2002,A41,Purchases!$N$3:$N$2002)/H41,"") -> 66.45475731 | M41: 64 | O41: 2029 | Q41: 3381 | R41: 0.02750665484 | S41: 0.107956226 | T41: 0.107956226 | U41: 0.107956226 | V41: 0.107956226 | W41: 0.107956226 | X41: 0.107956226 | Y41: 0.107956226 | Z41: 0.107956226 | AA41: 0.107956226 | AP41: 66.45475731 | AQ41: 64 | AR41: Red | AS41: Sonoma Coast | AT41: Platt Vineyard | AY41: Rivers-Marie | AZ41: 93 | BA41: Rater 1 | BF41: US|Sonoma Coast | BG41: US|Sonoma Coast|Platt Vineyard | BI41: Pinot Noir | BK41: FALSE | BM41: Rivers-Marie | Pinot Noir | Platt Vinegyard Pinot Noir | 0.75 L
A42: Marco e Vittorio Adriano | 2011 | Nebbiolo | Barbaresco Basarin | 0.75 L | B42: 1 | C42: N | D42: IT | E42: 2011 | F42: 3256.61366 | G42: =SUMIF(Purchases!$U$3:$U$2002,A42,Purchases!$K$3:$K$2002)+SUMIF('Fully Consumed'!$U$2:$U$2001,A42,'Fully Consumed'!$K$2:$K$2001) -> 12 | H42: =SUMIF(Purchases!$U$3:$U$2002,A42,Purchases!$M$3:$M$2001) -> 11 | I42: 0.9166666667 | J42: =10/IF(H42>0,(K42/'Summary Stats'!$B$4)^3*(L42/'Summary Stats'!$B$3)^3*MAX((O42-$R$1+1)^2,0.001)*3^B42*IF(LEN(P42)=0,1,IF(P42>=$R$1,P42-$R$1+1,1/($R$1+1-P42))^2),1000000000) -> 0.3369934538 | K42: 93 | L42: =IF(H42>0,SUMIF(Purchases!$U$3:$U$2002,A42,Purchases!$N$3:$N$2002)/H42,"") -> 22.14902825 | M42: 22.06 | N42: AL-E-L3-1 | O42: 2030 | Q42: 340.5454545 | R42: 0.2730912974 | S42: =IF(ISNUMBER($Q42),IF(AND(S$1<=$O42,S$1>=$P42),365/$Q42,""),"") -> 1.071809931 | T42: 1.071809931 | U42: 1.071809931 | V42: 1.071809931 | W42: 1.071809931 | X42: 1.071809931 | Y42: 1.071809931 | Z42: 1.071809931 | AA42: 1.071809931 | AB42: 1.071809931 | AC42: =IF(ISNUMBER($Q42),IF(AND(AC$1<=$O42,AC$1>=$P42),365/$Q42,""),"") ->  | AP42: 243.6393108 | AQ42: 242.66 | AR42: Red | AS42: Piedmont | AZ42: 93 | BA42: Rater 2 | BF42: IT|Piedmont | BG42: IT|Piedmont| | BI42: Nebbiolo | BK42: TRUE | BM42: Marco e Vittorio Adriano | Nebbiolo | Barbaresco Basarin | 0.75 L
A43: Rivers-Marie | 2018 | Pinot Noir | Occidental Ridge Pinot Noir | 0.75 L | B43: 2 | C43: N | D43: US | E43: 2018 | F43: 699.6136596 | G43: =SUMIF(Purchases!$U$3:$U$2002,A43,Purchases!$K$3:$K$2002)+SUMIF('Fully Consumed'!$U$2:$U$2001,A43,'Fully Consumed'!$K$2:$K$2001) -> 3 | H43: =SUMIF(Purchases!$U$3:$U$2002,A43,Purchases!$M$3:$M$2001) -> 3 | I43: 1 | J43: =10/IF(H43>0,(K43/'Summary Stats'!$B$4)^3*(L43/'Summary Stats'!$B$3)^3*MAX((O43-$R$1+1)^2,0.001)*3^B43*IF(LEN(P43)=0,1,IF(P43>=$R$1,P43-$R$1+1,1/($R$1+1-P43))^2),1000000000) -> 0.003844027484 | K43: 93 | L43: =IF(H43>0,SUMIF(Purchases!$U$3:$U$2002,A43,Purchases!$N$3:$N$2002)/H43,"") -> 68.22223123 | M43: 65.13 | O43: 2030 | Q43: 1248.666667 | R43: 0.07447944474 | S43: 0.2923117993 | T43: 0.2923117993 | U43: 0.2923117993 | V43: 0.2923117993 | W43: 0.2923117993 | X43: 0.2923117993 | Y43: 0.2923117993 | Z43: 0.2923117993 | AA43: 0.2923117993 | AB43: 0.2923117993 | AP43: 204.6666937 | AQ43: 195.39 | AR43: Red | AS43: Sonoma Coast | AT43: Occidental Ridge | AY43: Rivers-Marie | AZ43: 93 | BA43: Rater 1 | BF43: US|Sonoma Coast | BG43: US|Sonoma Coast|Occidental Ridge | BI43: Pinot Noir | BK43: FALSE | BM43: Rivers-Marie | Pinot Noir | Occidental Ridge Pinot Noir | 0.75 L
A44: Rivers-Marie | 2017 | Pinot Noir | Summa Vineyard Pinot Noir | 0.75 L | B44: 2 | C44: N | D44: US | E44: 2017 | F44: 1064.61366 | G44: =SUMIF(Purchases!$U$3:$U$2002,A44,Purchases!$K$3:$K$2002)+SUMIF('Fully Consumed'!$U$2:$U$2001,A44,'Fully Consumed'!$K$2:$K$2001) -> 3 | H44: =SUMIF(Purchases!$U$3:$U$2002,A44,Purchases!$M$3:$M$2001) -> 1 | I44: 0.3333333333 | J44: =10/IF(H44>0,(K44/'Summary Stats'!$B$4)^3*(L44/'Summary Stats'!$B$3)^3*MAX((O44-$R$1+1)^2,0.001)*3^B44*IF(LEN(P44)=0,1,IF(P44>=$R$1,P44-$R$1+1,1/($R$1+1-P44))^2),1000000000) -> 0.005337147636 | K44: 93 | L44: =IF(H44>0,SUMIF(Purchases!$U$3:$U$2002,A44,Purchases!$N$3:$N$2002)/H44,"") -> 65.16485977 | M44: 64 | O44: 2029 | Q44: 3381 | R44: 0.02750665484 | S44: 0.107956226 | T44: 0.107956226 | U44: 0.107956226 | V44: 0.107956226 | W44: 0.107956226 | X44: 0.107956226 | Y44: 0.107956226 | Z44: 0.107956226 | AA44: 0.107956226 | AP44: 65.16485977 | AQ44: 64 | AR44: Red | AS44: Sonoma Coast | AT44: Summa Vineyard | AY44: Rivers-Marie | AZ44: 93 | BA44: Rater 1 | BF44: US|Sonoma Coast | BG44: US|Sonoma Coast|Summa Vineyard | BI44: Pinot Noir | BK44: FALSE | BM44: Rivers-Marie | Pinot Noir | Summa Vineyard Pinot Noir | 0.75 L
A45: Rivers-Marie | 2017 | Chardonnay | Joy Road Chardonnay | 0.75 L | B45: 1 | C45: N | D45: US | E45: 2017 | F45: 1064.61366 | G45: =SUMIF(Purchases!$U$3:$U$2002,A45,Purchases!$K$3:$K$2002)+SUMIF('Fully Consumed'!$U$2:$U$2001,A45,'Fully Consumed'!$K$2:$K$2001) -> 2 | H45: =SUMIF(Purchases!$U$3:$U$2002,A45,Purchases!$M$3:$M$2001) -> 2 | I45: 1 | J45: =10/IF(H45>0,(K45/'Summary Stats'!$B$4)^3*(L45/'Summary Stats'!$B$3)^3*MAX((O45-$R$1+1)^2,0.001)*3^B45*IF(LEN(P45)=0,1,IF(P45>=$R$1,P45-$R$1+1,1/($R$1+1-P45))^2),1000000000) -> 0.01651665236 | K45: 93 | L45: =IF(H45>0,SUMIF(Purchases!$U$3:$U$2002,A45,Purchases!$N$3:$N$2002)/H45,"") -> 54.14446222 | M45: 54 | O45: 2032 | Q45: 2238.5 | R45: 0.04154567791 | S45: 0.1630556176 | T45: 0.1630556176 | U45: 0.1630556176 | V45: 0.1630556176 | W45: 0.1630556176 | X45: 0.1630556176 | Y45: 0.1630556176 | Z45: 0.1630556176 | AA45: 0.1630556176 | AB45: 0.1630556176 | AC45: 0.1630556176 | AD45: 0.1630556176 | AP45: 108.2889244 | AQ45: 108 | AR45: White | AS45: Sonoma Coast | AT45: Joy Road | AY45: Rivers-Marie | AZ45: 93 | BA45: Rater 1 | BF45: US|Sonoma Coast | BG45: US|Sonoma Coast|Joy Road | BI45: Chardonnay | BK45: FALSE | BM45: Rivers-Marie | Chardonnay | Joy Road Chardonnay | 0.75 L
A46: Carlisle | 2018 | Zinfandel | Zinfandel, Russian River Valley, Piner-Olivet Ranches | 0.75 L | B46: 2 | C46: N | D46: US | E46: 2018 | F46: 699.6136596 | G46: =SUMIF(Purchases!$U$3:$U$2002,A46,Purchases!$K$3:$K$2002)+SUMIF('Fully Consumed'!$U$2:$U$2001,A46,'Fully Consumed'!$K$2:$K$2001) -> 3 | H46: =SUMIF(Purchases!$U$3:$U$2002,A46,Purchases!$M$3:$M$2001) -> 3 | I46: 1 | J46: =10/IF(H46>0,(K46/'Summary Stats'!$B$4)^3*(L46/'Summary Stats'!$B$3)^3*MAX((O46-$R$1+1)^2,0.001)*3^B46*IF(LEN(P46)=0,1,IF(P46>=$R$1,P46-$R$1+1,1/($R$1+1-P46))^2),1000000000) -> 0.007298493431 | K46: 92 | L46: =IF(H46>0,SUMIF(Purchases!$U$3:$U$2002,A46,Purchases!$N$3:$N$2002)/H46,"") -> 40.10688332 | M46: 39.47 | O46: 2028 | P46: 2021 | Q46: 974 | S46: 0.3747433265 | T46: 0.3747433265 | U46: 0.3747433265 | V46: 0.3747433265 | W46: 0.3747433265 | X46: 0.3747433265 | Y46: 0.3747433265 | Z46: 0.3747433265 | AP46: 120.3206499 | AQ46: 118.41 | AR46: Red | AS46: Russian River Valley | AT46: Piner-Olivet Ranches | AY46: Carlisle | AZ46: 92 | BA46: Rater 1 | BF46: US|Russian River Valley | BG46: US|Russian River Valley|Piner-Olivet Ranches | BI46: Zinfandel | BK46: FALSE | BM46: Carlisle | Zinfandel | Zinfandel, Russian River Valley, Piner-Olivet Ranches | 0.75 L
A47: Rivers-Marie | 2017 | Chardonnay | Bearwallow Vineyard Chardonnay | 0.75 L | B47: 1 | C47: N | D47: US | E47: 2017 | F47: 1064.61366 | G47: =SUMIF(Purchases!$U$3:$U$2002,A47,Purchases!$K$3:$K$2002)+SUMIF('Fully Consumed'!$U$2:$U$2001,A47,'Fully Consumed'!$K$2:$K$2001) -> 2 | H47: =SUMIF(Purchases!$U$3:$U$2002,A47,Purchases!$M$3:$M$2001) -> 2 | I47: 1 | J47: =10/IF(H47>0,(K47/'Summary Stats'!$B$4)^3*(L47/'Summary Stats'!$B$3)^3*MAX((O47-$R$1+1)^2,0.001)*3^B47*IF(LEN(P47)=0,1,IF(P47>=$R$1,P47-$R$1+1,1/($R$1+1-P47))^2),1000000000) -> 0.01525345717 | K47: 93 | L47: =IF(H47>0,SUMIF(Purchases!$U$3:$U$2002,A47,Purchases!$N$3:$N$2002)/H47,"") -> 55.59963727 | M47: 54 | O47: 2032 | Q47: 2238.5 | R47: 0.04154567791 | S47: 0.1630556176 | T47: 0.1630556176 | U47: 0.1630556176 | V47: 0.1630556176 | W47: 0.1630556176 | X47: 0.1630556176 | Y47: 0.1630556176 | Z47: 0.1630556176 | AA47: 0.1630556176 | AB47: 0.1630556176 | AC47: 0.1630556176 | AD47: 0.1630556176 | AP47: 111.1992745 | AQ47: 108 | AR47: White | AS47: Sonoma Coast | AT47: Bearwallow Vineyard | AY47: Rivers-Marie | AZ47: 93 | BA47: Rater 1 | BF47: US|Sonoma Coast | BG47: US|Sonoma Coast|Bearwallow Vineyard | BI47: Chardonnay | BK47: FALSE | BM47: Rivers-Marie | Chardonnay | Bearwallow Vineyard Chardonnay | 0.75 L
A48: Rivers-Marie | 2017 | Pinot Noir | Sonoma Coast Pinot Noir | 0.75 L | B48: 2 | C48: N | D48: US | E48: 2017 | F48: 1064.61366 | G48: =SUMIF(Purchases!$U$3:$U$2002,A48,Purchases!$K$3:$K$2002)+SUMIF('Fully Consumed'!$U$2:$U$2001,A48,'Fully Consumed'!$K$2:$K$2001) -> 3 | H48: =SUMIF(Purchases!$U$3:$U$2002,A48,Purchases!$M$3:$M$2001) -> 2 | I48: 0.6666666667 | J48: =10/IF(H48>0,(K48/'Summary Stats'!$B$4)^3*(L48/'Summary Stats'!$B$3)^3*MAX((O48-$R$1+1)^2,0.001)*3^B48*IF(LEN(P48)=0,1,IF(P48>=$R$1,P48-$R$1+1,1/($R$1+1-P48))^2),1000000000) -> 0.03591261796 | K48: 92 | L48: =IF(H48>0,SUMIF(Purchases!$U$3:$U$2002,A48,Purchases!$N$3:$N$2002)/H48,"") -> 34.89227633 | M48: 34 | O48: 2029 | Q48: 1690.5 | R48: 0.05501330967 | S48: 0.2159124519 | T48: 0.2159124519 | U48: 0.2159124519 | V48: 0.2159124519 | W48: 0.2159124519 | X48: 0.2159124519 | Y48: 0.2159124519 | Z48: 0.2159124519 | AA48: 0.2159124519 | AP48: 69.78455266 | AQ48: 68 | AR48: Red | AS48: Sonoma Coast | AY48: Rivers-Marie | AZ48: 92 | BA48: Rater 1 | BF48: US|Sonoma Coast | BG48: US|Sonoma Coast| | BI48: Pinot Noir | BK48: FALSE | BM48: Rivers-Marie | Pinot Noir | Sonoma Coast Pinot Noir | 0.75 L
A49: Reynvaan Family Vineyards | 2016 | Syrah | The Contender | 0.75 L | B49: 3 | C49: N | D49: US | E49: 2016 | F49: 1429.61366 | G49: =SUMIF(Purchases!$U$3:$U$2002,A49,Purchases!$K$3:$K$2002)+SUMIF('Fully Consumed'!$U$2:$U$2001,A49,'Fully Consumed'!$K$2:$K$2001) -> 3 | H49: =SUMIF(Purchases!$U$3:$U$2002,A49,Purchases!$M$3:$M$2001) -> 3 | I49: 1 | J49: =10/IF(H49>0,(K49/'Summary Stats'!$B$4)^3*(L49/'Summary Stats'!$B$3)^3*MAX((O49-$R$1+1)^2,0.001)*3^B49*IF(LEN(P49)=0,1,IF(P49>=$R$1,P49-$R$1+1,1/($R$1+1-P49))^2),1000000000) -> 0.000431342731 | K49: 91 | L49: =IF(H49>0,SUMIF(Purchases!$U$3:$U$2002,A49,Purchases!$N$3:$N$2002)/H49,"") -> 100.226306 | M49: 97.2 | O49: 2030 | Q49: 1248.666667 | R49: 0.07447944474 | S49: 0.2923117993 | T49: 0.2923117993 | U49: 0.2923117993 | V49: 0.2923117993 | W49: 0.2923117993 | X49: 0.2923117993 | Y49: 0.2923117993 | Z49: 0.2923117993 | AA49: 0.2923117993 | AB49: 0.2923117993 | AP49: 300.6789179 | AQ49: 291.6 | AR49: Red | AS49: Walla Walla Valley | AT49: The Rocks of Milton-Freewater | AY49: The Rocks of Milton-Freewater | AZ49: 91 | BA49: Rater 2 | BF49: US|Walla Walla Valley | BG49: US|Walla Walla Valley|The Rocks of Milton-Freewater | BI49: Shiraz/Syrah | BK49: FALSE | BM49: Reynvaan Family Vineyards | Syrah | The Contender | 0.75 L
A50: Reynvaan Family Vineyards | 2015 | Syrah | The Contender | 0.75 L | B50: 3 | C50: N | D50: US | E50: 2015 | F50: 1795.61366 | G50: =SUMIF(Purchases!$U$3:$U$2002,A50,Purchases!$K$3:$K$2002)+SUMIF('Fully Consumed'!$U$2:$U$2001,A50,'Fully Consumed'!$K$2:$K$2001) -> 6 | H50: =SUMIF(Purchases!$U$3:$U$2002,A50,Purchases!$M$3:$M$2001) -> 5 | I50: 0.8333333333 | J50: =10/IF(H50>0,(K50/'Summary Stats'!$B$4)^3*(L50/'Summary Stats'!$B$3)^3*MAX((O50-$R$1+1)^2,0.001)*3^B50*IF(LEN(P50)=0,1,IF(P50>=$R$1,P50-$R$1+1,1/($R$1+1-P50))^2),1000000000) -> 0.0004138401242 | K50: 93 | L50: =IF(H50>0,SUMIF(Purchases!$U$3:$U$2002,A50,Purchases!$N$3:$N$2002)/H50,"") -> 99.43443192 | M50: 98.14 | O50: 2030 | Q50: 749.2 | R50: 0.1241324079 | S50: 0.4871863321 | T50: 0.4871863321 | U50: 0.4871863321 | V50: 0.4871863321 | W50: 0.4871863321 | X50: 0.4871863321 | Y50: 0.4871863321 | Z50: 0.4871863321 | AA50: 0.4871863321 | AB50: 0.4871863321 | AP50: 497.1721596 | AQ50: 490.7 | AR50: Red | AS50: Walla Walla Valley | AT50: The Rocks of Milton-Freewater | AY50: Reynvaan | AZ50: 93 | BA50: Rater 2 | BF50: US|Walla Walla Valley | BG50: US|Walla Walla Valley|The Rocks of Milton-Freewater | BI50: Shiraz/Syrah | BJ50: The Rocks of Milton-Freewater | BK50: FALSE | BM50: Reynvaan Family Vineyards | Syrah | The Contender | 0.75 L
A51: Reynvaan Family Vineyards | 2014 | Syrah | In the Rocks | 0.75 L | B51: 4 | C51: N | D51: US | E51: 2014 | F51: 2160.61366 | G51: =SUMIF(Purchases!$U$3:$U$2002,A51,Purchases!$K$3:$K$2002)+SUMIF('Fully Consumed'!$U$2:$U$2001,A51,'Fully Consumed'!$K$2:$K$2001) -> 6 | H51: =SUMIF(Purchases!$U$3:$U$2002,A51,Purchases!$M$3:$M$2001) -> 6 | I51: 1 | J51: =10/IF(H51>0,(K51/'Summary Stats'!$B$4)^3*(L51/'Summary Stats'!$B$3)^3*MAX((O51-$R$1+1)^2,0.001)*3^B51*IF(LEN(P51)=0,1,IF(P51>=$R$1,P51-$R$1+1,1/($R$1+1-P51))^2),1000000000) -> 0.0006815741337 | K51: 95 | L51: =IF(H51>0,SUMIF(Purchases!$U$3:$U$2002,A51,Purchases!$N$3:$N$2002)/H51,"") -> 85.60973978 | M51: 83.16 | O51: 2025 | Q51: 320 | R51: 0.290625 | S51: 1.140625 | T51: 1.140625 | U51: 1.140625 | V51: 1.140625 | W51: 1.140625 | AP51: 513.6584387 | AQ51: 498.96 | AR51: Red | AS51: Walla Walla Valley | AT51: The Rocks of Milton-Freewater | AY51: Reynvaan | AZ51: 95 | BA51: Rater 2 | BF51: US|Walla Walla Valley | BG51: US|Walla Walla Valley|The Rocks of Milton-Freewater | BI51: Shiraz/Syrah | BJ51: The Rocks of Milton-Freewater | BK51: FALSE | BM51: Reynvaan Family Vineyards | Syrah | In the Rocks | 0.75 L
A52: Reynvaan Family Vineyards | 2013 | Syrah | Foothills in the Sun Reserve | 0.75 L | B52: 4 | C52: N | D52: US | E52: 2013 | F52: 2525.61366 | G52: =SUMIF(Purchases!$U$3:$U$2002,A52,Purchases!$K$3:$K$2002)+SUMIF('Fully Consumed'!$U$2:$U$2001,A52,'Fully Consumed'!$K$2:$K$2001) -> 6 | H52: =SUMIF(Purchases!$U$3:$U$2002,A52,Purchases!$M$3:$M$2001) -> 2 | I52: 0.3333333333 | J52: =10/IF(H52>0,(K52/'Summary Stats'!$B$4)^3*(L52/'Summary Stats'!$B$3)^3*MAX((O52-$R$1+1)^2,0.001)*3^B52*IF(LEN(P52)=0,1,IF(P52>=$R$1,P52-$R$1+1,1/($R$1+1-P52))^2),1000000000) -> 0.00186567614 | K52: 93 | L52: =IF(H52>0,SUMIF(Purchases!$U$3:$U$2002,A52,Purchases!$N$3:$N$2002)/H52,"") -> 81.91880733 | M52: 81 | O52: 2023 | Q52: 594.5 | R52: 0.1564339781 | S52: 0.613961312 | T52: 0.613961312 | U52: 0.613961312 | AP52: 163.8376147 | AQ52: 162 | AR52: Red | AS52: Walla Walla Valley | AT52: The Rocks of Milton-Freewater | AY52: Reynvaan | AZ52: 93 | BA52: Rater 2 | BF52: US|Walla Walla Valley | BG52: US|Walla Walla Valley|The Rocks of Milton-Freewater | BI52: Shiraz/Syrah | BK52: FALSE | BM52: Reynvaan Family Vineyards | Syrah | Foothills in the Sun Reserve | 0.75 L
A53: Casaloste | 2015 | Sangiovese | Chianti Classico | 0.75 L | B53: 1 | C53: N | D53: IT | E53: 2015 | F53: 1795.61366 | G53: =SUMIF(Purchases!$U$3:$U$2002,A53,Purchases!$K$3:$K$2002)+SUMIF('Fully Consumed'!$U$2:$U$2001,A53,'Fully Consumed'!$K$2:$K$2001) -> 12 | H53: =SUMIF(Purchases!$U$3:$U$2002,A53,Purchases!$M$3:$M$2001) -> 3 | I53: 0.25 | J53: =10/IF(H53>0,(K53/'Summary Stats'!$B$4)^3*(L53/'Summary Stats'!$B$3)^3*MAX((O53-$R$1+1)^2,0.001)*3^B53*IF(LEN(P53)=0,1,IF(P53>=$R$1,P53-$R$1+1,1/($R$1+1-P53))^2),1000000000) -> 0.7186870151 | K53: 94 | L53: =IF(H53>0,SUMIF(Purchases!$U$3:$U$2002,A53,Purchases!$N$3:$N$2002)/H53,"") -> 18.14117659 | M53: 18.06 | O53: 2029 | Q53: 1127 | R53: 0.08251996451 | S53: =IF(ISNUMBER($Q53),IF(AND(S$1<=$O53,S$1>=$P53),365/$Q53,""),"") -> 0.3238686779 | T53: 0.3238686779 | U53: 0.3238686779 | V53: 0.3238686779 | W53: 0.3238686779 | X53: 0.3238686779 | Y53: 0.3238686779 | Z53: 0.3238686779 | AA53: 0.3238686779 | AC53: =IF(ISNUMBER($Q53),IF(AND(AC$1<=$O53,AC$1>=$P53),365/$Q53,""),"") ->  | AP53: 54.42352978 | AQ53: 54.18 | AR53: Red | AS53: Chianti Classico | AZ53: 94 | BA53: Rater 2 | BF53: IT|Chianti Classico | BG53: IT|Chianti Classico| | BI53: Sangiovese | BK53: TRUE | BM53: Casaloste | Sangiovese | Chianti Classico | 0.75 L
A54: Rivers-Marie | 2016 | Pinot Noir | Occidental Ridge Pinot Noir | 0.75 L | B54: 2 | C54: N | D54: US | E54: 2016 | F54: 1429.61366 | G54: =SUMIF(Purchases!$U$3:$U$2002,A54,Purchases!$K$3:$K$2002)+SUMIF('Fully Consumed'!$U$2:$U$2001,A54,'Fully Consumed'!$K$2:$K$2001) -> 2 | H54: =SUMIF(Purchases!$U$3:$U$2002,A54,Purchases!$M$3:$M$2001) -> 1 | I54: 0.5 | J54: =10/IF(H54>0,(K54/'Summary Stats'!$B$4)^3*(L54/'Summary Stats'!$B$3)^3*MAX((O54-$R$1+1)^2,0.001)*3^B54*IF(LEN(P54)=0,1,IF(P54>=$R$1,P54-$R$1+1,1/($R$1+1-P54))^2),1000000000) -> 0.006488493415 | K54: 93 | L54: =IF(H54>0,SUMIF(Purchases!$U$3:$U$2002,A54,Purchases!$N$3:$N$2002)/H54,"") -> 65.49984035 | M54: 64 | O54: 2028 | Q54: 3016 | R54: 0.03083554377 | S54: 0.1210212202 | T54: 0.1210212202 | U54: 0.1210212202 | V54: 0.1210212202 | W54: 0.1210212202 | X54: 0.1210212202 | Y54: 0.1210212202 | Z54: 0.1210212202 | AP54: 65.49984035 | AQ54: 64 | AR54: Red | AS54: Sonoma Coast | AT54: Occidental Ridge | AY54: Rivers-Marie | AZ54: 93 | BA54: Rater 1 | BF54: US|Sonoma Coast | BG54: US|Sonoma Coast|Occidental Ridge | BI54: Pinot Noir | BK54: FALSE | BM54: Rivers-Marie | Pinot Noir | Occidental Ridge Pinot Noir | 0.75 L
A55: Reynvaan Family Vineyards | 2014 | Syrah | The Contender | 0.75 L | B55: 3 | C55: N | D55: US | E55: 2014 | F55: 2160.61366 | G55: =SUMIF(Purchases!$U$3:$U$2002,A55,Purchases!$K$3:$K$2002)+SUMIF('Fully Consumed'!$U$2:$U$2001,A55,'Fully Consumed'!$K$2:$K$2001) -> 6 | H55: =SUMIF(Purchases!$U$3:$U$2002,A55,Purchases!$M$3:$M$2001) -> 4 | I55: 0.6666666667 | J55: =10/IF(H55>0,(K55/'Summary Stats'!$B$4)^3*(L55/'Summary Stats'!$B$3)^3*MAX((O55-$R$1+1)^2,0.001)*3^B55*IF(LEN(P55)=0,1,IF(P55>=$R$1,P55-$R$1+1,1/($R$1+1-P55))^2),1000000000) -> 0.001508488642 | K55: 92 | L55: =IF(H55>0,SUMIF(Purchases!$U$3:$U$2002,A55,Purchases!$N$3:$N$2002)/H55,"") -> 97.83398079 | M55: 93.96 | O55: 2025 | Q55: 480 | R55: 0.19375 | S55: 0.7604166667 | T55: 0.7604166667 | U55: 0.7604166667 | V55: 0.7604166667 | W55: 0.7604166667 | AP55: 391.3359232 | AQ55: 375.84 | AR55: Red | AS55: Walla Walla Valley | AT55: The Rocks of Milton-Freewater | AY55: Reynvaan | AZ55: 92 | BA55: Rater 2 | BF55: US|Walla Walla Valley | BG55: US|Walla Walla Valley|The Rocks of Milton-Freewater | BI55: Shiraz/Syrah | BJ55: The Rocks of Milton-Freewater | BK55: FALSE | BM55: Reynvaan Family Vineyards | Syrah | The Contender | 0.75 L
A56: Reynvaan Family Vineyards | 2015 | Syrah | Foothills in the Sun Reserve | 0.75 L | B56: 4 | C56: N | D56: US | E56: 2015 | F56: 1795.61366 | G56: =SUMIF(Purchases!$U$3:$U$2002,A56,Purchases!$K$3:$K$2002)+SUMIF('Fully Consumed'!$U$2:$U$2001,A56,'Fully Consumed'!$K$2:$K$2001) -> 6 | H56: =SUMIF(Purchases!$U$3:$U$2002,A56,Purchases!$M$3:$M$2001) -> 5 | I56: 0.8333333333 | J56: =10/IF(H56>0,(K56/'Summary Stats'!$B$4)^3*(L56/'Summary Stats'!$B$3)^3*MAX((O56-$R$1+1)^2,0.001)*3^B56*IF(LEN(P56)=0,1,IF(P56>=$R$1,P56-$R$1+1,1/($R$1+1-P56))^2),1000000000) -> 0.0001744946192 | K56: 94 | L56: =IF(H56>0,SUMIF(Purchases!$U$3:$U$2002,A56,Purchases!$N$3:$N$2002)/H56,"") -> 90.96374367 | M56: 87.34 | O56: 2030 | Q56: 749.2 | R56: 0.1241324079 | S56: 0.4871863321 | T56: 0.4871863321 | U56: 0.4871863321 | V56: 0.4871863321 | W56: 0.4871863321 | X56: 0.4871863321 | Y56: 0.4871863321 | Z56: 0.4871863321 | AA56: 0.4871863321 | AB56: 0.4871863321 | AP56: 454.8187184 | AQ56: 436.7 | AR56: Red | AS56: Walla Walla Valley | AY56: Reynvaan | AZ56: 94 | BA56: Rater 2 | BF56: US|Walla Walla Valley | BG56: US|Walla Walla Valley| | BI56: Shiraz/Syrah | BK56: FALSE | BM56: Reynvaan Family Vineyards | Syrah | Foothills in the Sun Reserve | 0.75 L
A57: Clos des Papes | 2004 | Grenache blend | Châteauneuf-du-Pape | 0.75 L | B57: 6 | C57: N | D57: FR | E57: 2004 | F57: 5812.61366 | G57: =SUMIF(Purchases!$U$3:$U$2002,A57,Purchases!$K$3:$K$2002)+SUMIF('Fully Consumed'!$U$2:$U$2001,A57,'Fully Consumed'!$K$2:$K$2001) -> 3 | H57: =SUMIF(Purchases!$U$3:$U$2002,A57,Purchases!$M$3:$M$2001) -> 2 | I57: 0.6666666667 | J57: =10/IF(H57>0,(K57/'Summary Stats'!$B$4)^3*(L57/'Summary Stats'!$B$3)^3*MAX((O57-$R$1+1)^2,0.001)*3^B57*IF(LEN(P57)=0,1,IF(P57>=$R$1,P57-$R$1+1,1/($R$1+1-P57))^2),1000000000) -> 1.983790592e-05 | K57: 96 | L57: =IF(H57>0,SUMIF(Purchases!$U$3:$U$2002,A57,Purchases!$N$3:$N$2002)/H57,"") -> 88.39062014 | M57: 87.2 | O57: 2030 | Q57: 1873 | R57: 0.04965296316 | S57: 0.1948745328 | T57: 0.1948745328 | U57: 0.1948745328 | V57: 0.1948745328 | W57: 0.1948745328 | X57: 0.1948745328 | Y57: 0.1948745328 | Z57: 0.1948745328 | AA57: 0.1948745328 | AB57: 0.1948745328 | AP57: 176.7812403 | AQ57: 174.4 | AR57: Red | AS57: Châteauneuf-du-Pape | AY57: Clos des Pape | AZ57: 96 | BA57: Rater 2 | BF57: FR|Châteauneuf-du-Pape | BG57: FR|Châteauneuf-du-Pape| | BI57: Grenache Blend | BK57: TRUE | BM57: Clos des Papes | Grenache blend | Châteauneuf-du-Pape | 0.75 L
A58: Reynvaan Family Vineyards | 2017 | Syrah | In the Rocks | 0.75 L | B58: 4 | C58: N | D58: US | E58: 2017 | F58: 1064.61366 | G58: =SUMIF(Purchases!$U$3:$U$2002,A58,Purchases!$K$3:$K$2002)+SUMIF('Fully Consumed'!$U$2:$U$2001,A58,'Fully Consumed'!$K$2:$K$2001) -> 3 | H58: =SUMIF(Purchases!$U$3:$U$2002,A58,Purchases!$M$3:$M$2001) -> 3 | I58: 1 | J58: =10/IF(H58>0,(K58/'Summary Stats'!$B$4)^3*(L58/'Summary Stats'!$B$3)^3*MAX((O58-$R$1+1)^2,0.001)*3^B58*IF(LEN(P58)=0,1,IF(P58>=$R$1,P58-$R$1+1,1/($R$1+1-P58))^2),1000000000) -> 7.016701483e-05 | K58: 93 | L58: =IF(H58>0,SUMIF(Purchases!$U$3:$U$2002,A58,Purchases!$N$3:$N$2002)/H58,"") -> 111.4369283 | M58: 109.8 | O58: 2032 | Q58: 1492.333333 | R58: 0.06231851686 | S58: 0.2445834264 | T58: 0.2445834264 | U58: 0.2445834264 | V58: 0.2445834264 | W58: 0.2445834264 | X58: 0.2445834264 | Y58: 0.2445834264 | Z58: 0.2445834264 | AA58: 0.2445834264 | AB58: 0.2445834264 | AC58: 0.2445834264 | AD58: 0.2445834264 | AP58: 334.3107848 | AQ58: 329.4 | AR58: Red | AS58: Walla Walla Valley | AY58: The Rocks of Milton-Freewater | AZ58: 93 | BA58: Rater 2 | BF58: US|Walla Walla Valley | BG58: US|Walla Walla Valley| | BI58: Shiraz/Syrah | BK58: FALSE | BM58: Reynvaan Family Vineyards | Syrah | In the Rocks | 0.75 L
A59: Torrin Vineyard | 2016 | Syrah | Akasha Syrah | 0.75 L | B59: 1 | C59: N | D59: US | E59: 2016 | F59: 1429.61366 | G59: =SUMIF(Purchases!$U$3:$U$2002,A59,Purchases!$K$3:$K$2002)+SUMIF('Fully Consumed'!$U$2:$U$2001,A59,'Fully Consumed'!$K$2:$K$2001) -> 2 | H59: =SUMIF(Purchases!$U$3:$U$2002,A59,Purchases!$M$3:$M$2001) -> 2 | I59: 1 | J59: =10/IF(H59>0,(K59/'Summary Stats'!$B$4)^3*(L59/'Summary Stats'!$B$3)^3*MAX((O59-$R$1+1)^2,0.001)*3^B59*IF(LEN(P59)=0,1,IF(P59>=$R$1,P59-$R$1+1,1/($R$1+1-P59))^2),1000000000) -> 0.007625969468 | K59: 92 | L59: =IF(H59>0,SUMIF(Purchases!$U$3:$U$2002,A59,Purchases!$N$3:$N$2002)/H59,"") -> 106.9929173 | M59: 103.98 | O59: 2026 | Q59: 1142.5 | R59: 0.08140043764 | S59: 0.3194748359 | T59: 0.3194748359 | U59: 0.3194748359 | V59: 0.3194748359 | W59: 0.3194748359 | X59: 0.3194748359 | AP59: 213.9858346 | AQ59: 207.96 | AR59: Red | AS59: Paso Robles | AT59: Torrin Vineyard | AZ59: 92 | BA59: Rater 1 | BF59: US|Paso Robles | BG59: US|Paso Robles|Torrin Vineyard | BI59: Shiraz/Syrah | BK59: FALSE | BM59: Torrin Vineyard | Syrah | Akasha Syrah | 0.75 L | BN59: 2020-08-01 | BO59: 2020-06-19
A60: Carlisle | 2018 | Zinfandel | Zinfandel, Russian River Valley, Papera Ranch | 0.75 L | B60: 2 | C60: N | D60: US | E60: 2015 | F60: 1795.61366 | G60: =SUMIF(Purchases!$U$3:$U$2002,A60,Purchases!$K$3:$K$2002)+SUMIF('Fully Consumed'!$U$2:$U$2001,A60,'Fully Consumed'!$K$2:$K$2001) -> 4 | H60: =SUMIF(Purchases!$U$3:$U$2002,A60,Purchases!$M$3:$M$2001) -> 4 | I60: 1 | J60: =10/IF(H60>0,(K60/'Summary Stats'!$B$4)^3*(L60/'Summary Stats'!$B$3)^3*MAX((O60-$R$1+1)^2,0.001)*3^B60*IF(LEN(P60)=0,1,IF(P60>=$R$1,P60-$R$1+1,1/($R$1+1-P60))^2),1000000000) -> 0.05047977294 | K60: 93 | L60: =IF(H60>0,SUMIF(Purchases!$U$3:$U$2002,A60,Purchases!$N$3:$N$2002)/H60,"") -> 48.9137249 | M60: 46.98 | O60: 2024 | Q60: 388.75 | R60: 0.2392282958 | S60: 0.9389067524 | T60: 0.9389067524 | U60: 0.9389067524 | V60: 0.9389067524 | AP60: 195.6548996 | AQ60: 187.92 | AR60: Red | AS60: Russian River Valley | AT60: Papera Ranch | AY60: Carlisle | AZ60: 93 | BA60: Rater 1 | BF60: US|Russian River Valley | BG60: US|Russian River Valley|Papera Ranch | BI60: Zinfandel | BK60: FALSE | BM60: Carlisle | Zinfandel | Zinfandel, Russian River Valley, Papera Ranch | 0.75 L
A61: Reynvaan Family Vineyards | 2012 | Syrah | Stonessence | 0.75 L | B61: 2 | C61: N | D61: US | E61: 2012 | F61: 2890.61366 | G61: =SUMIF(Purchases!$U$3:$U$2002,A61,Purchases!$K$3:$K$2002)+SUMIF('Fully Consumed'!$U$2:$U$2001,A61,'Fully Consumed'!$K$2:$K$2001) -> 3 | H61: =SUMIF(Purchases!$U$3:$U$2002,A61,Purchases!$M$3:$M$2001) -> 1 | I61: 0.3333333333 | J61: =10/IF(H61>0,(K61/'Summary Stats'!$B$4)^3*(L61/'Summary Stats'!$B$3)^3*MAX((O61-$R$1+1)^2,0.001)*3^B61*IF(LEN(P61)=0,1,IF(P61>=$R$1,P61-$R$1+1,1/($R$1+1-P61))^2),1000000000) -> 0.01749166953 | K61: 94 | L61: =IF(H61>0,SUMIF(Purchases!$U$3:$U$2002,A61,Purchases!$N$3:$N$2002)/H61,"") -> 96.85314057 | M61: 93.6 | O61: 2022 | Q61: 824 | R61: 0.1128640777 | S61: 0.442961165 | T61: 0.442961165 | AP61: 96.85314057 | AQ61: 93.6 | AR61: Red | AS61: Walla Walla Valley | AT61: The Rocks of Milton-Freewater | AY61: Reynvaan | AZ61: 94 | BA61: Rater 2 | BF61: US|Walla Walla Valley | BG61: US|Walla Walla Valley|The Rocks of Milton-Freewater | BI61: Shiraz/Syrah | BJ61: The Rocks of Milton-Freewater | BK61: FALSE | BM61: Reynvaan Family Vineyards | Syrah | Stonessence | 0.75 L
A62: Reynvaan Family Vineyards | 2012 | Syrah | Foothills in the Sun Reserve | 0.75 L | B62: 4 | C62: N | D62: US | E62: 2012 | F62: 2890.61366 | G62: =SUMIF(Purchases!$U$3:$U$2002,A62,Purchases!$K$3:$K$2002)+SUMIF('Fully Consumed'!$U$2:$U$2001,A62,'Fully Consumed'!$K$2:$K$2001) -> 6 | H62: =SUMIF(Purchases!$U$3:$U$2002,A62,Purchases!$M$3:$M$2001) -> 1 | I62: 0.1666666667 | J62: =10/IF(H62>0,(K62/'Summary Stats'!$B$4)^3*(L62/'Summary Stats'!$B$3)^3*MAX((O62-$R$1+1)^2,0.001)*3^B62*IF(LEN(P62)=0,1,IF(P62>=$R$1,P62-$R$1+1,1/($R$1+1-P62))^2),1000000000) -> 0.004371452878 | K62: 92 | L62: =IF(H62>0,SUMIF(Purchases!$U$3:$U$2002,A62,Purchases!$N$3:$N$2002)/H62,"") -> 75.52801166 | M62: 72 | O62: 2022 | Q62: 824 | R62: 0.1128640777 | S62: 0.442961165 | T62: 0.442961165 | AP62: 75.52801166 | AQ62: 72 | AR62: Red | AS62: Walla Walla Valley | AY62: Reynvaan | AZ62: 92 | BA62: Rater 2 | BF62: US|Walla Walla Valley | BG62: US|Walla Walla Valley| | BI62: Shiraz/Syrah | BK62: FALSE | BM62: Reynvaan Family Vineyards | Syrah | Foothills in the Sun Reserve | 0.75 L
A63: Reynvaan Family Vineyards | 2014 | Syrah | Foothills in the Sun Reserve | 0.75 L | B63: 4 | C63: N | D63: US | E63: 2014 | F63: 2160.61366 | G63: =SUMIF(Purchases!$U$3:$U$2002,A63,Purchases!$K$3:$K$2002)+SUMIF('Fully Consumed'!$U$2:$U$2001,A63,'Fully Consumed'!$K$2:$K$2001) -> 3 | H63: =SUMIF(Purchases!$U$3:$U$2002,A63,Purchases!$M$3:$M$2001) -> 2 | I63: 0.6666666667 | J63: =10/IF(H63>0,(K63/'Summary Stats'!$B$4)^3*(L63/'Summary Stats'!$B$3)^3*MAX((O63-$R$1+1)^2,0.001)*3^B63*IF(LEN(P63)=0,1,IF(P63>=$R$1,P63-$R$1+1,1/($R$1+1-P63))^2),1000000000) -> 0.000987913338 | K63: 93 | L63: =IF(H63>0,SUMIF(Purchases!$U$3:$U$2002,A63,Purchases!$N$3:$N$2002)/H63,"") -> 87.26017537 | M63: 83.16 | O63: 2024 | Q63: 777.5 | R63: 0.1196141479 | S63: 0.4694533762 | T63: 0.4694533762 | U63: 0.4694533762 | V63: 0.4694533762 | AP63: 174.5203507 | AQ63: 166.32 | AR63: Red | AS63: Walla Walla Valley | AT63: The Rocks of Milton-Freewater | AY63: Reynvaan | AZ63: 93 | BA63: Rater 2 | BF63: US|Walla Walla Valley | BG63: US|Walla Walla Valley|The Rocks of Milton-Freewater | BI63: Shiraz/Syrah | BJ63: The Rocks of Milton-Freewater | BK63: FALSE | BM63: Reynvaan Family Vineyards | Syrah | Foothills in the Sun Reserve | 0.75 L
A64: Chateau Marquis d'Alesme-Becker | 2005 | Bordeaux blend | Margaux | 0.75 L | B64: 1 | C64: N | D64: FR | E64: 2005 | F64: 5447.61366 | G64: =SUMIF(Purchases!$U$3:$U$2002,A64,Purchases!$K$3:$K$2002)+SUMIF('Fully Consumed'!$U$2:$U$2001,A64,'Fully Consumed'!$K$2:$K$2001) -> 12 | H64: =SUMIF(Purchases!$U$3:$U$2002,A64,Purchases!$M$3:$M$2001) -> 10 | I64: 0.8333333333 | J64: =10/IF(H64>0,(K64/'Summary Stats'!$B$4)^3*(L64/'Summary Stats'!$B$3)^3*MAX((O64-$R$1+1)^2,0.001)*3^B64*IF(LEN(P64)=0,1,IF(P64>=$R$1,P64-$R$1+1,1/($R$1+1-P64))^2),1000000000) -> 0.155891521 | K64: 91 | L64: =IF(H64>0,SUMIF(Purchases!$U$3:$U$2002,A64,Purchases!$N$3:$N$2002)/H64,"") -> 29.26819164 | M64: 28.99 | N64: AL-E-L4-1 | O64: 2030 | Q64: 374.6 | R64: 0.2482648158 | S64: 0.9743726642 | T64: 0.9743726642 | U64: 0.9743726642 | V64: 0.9743726642 | W64: 0.9743726642 | X64: 0.9743726642 | Y64: 0.9743726642 | Z64: 0.9743726642 | AA64: 0.9743726642 | AB64: 0.9743726642 | AP64: 292.6819164 | AQ64: 289.9 | AR64: Red | AY64: 2005 Bordeaux | AZ64: 91 | BA64: Rater 2 | BF64: FR| | BG64: FR|| | BI64: Cab S Blend | BK64: FALSE | BM64: Chateau Marquis d'Alesme-Becker | Bordeaux blend | Margaux | 0.75 L
A65: Reynvaan Family Vineyards | 2016 | Syrah | In the Rocks | 0.75 L | B65: 4 | C65: N | D65: US | E65: 2016 | F65: 1429.61366 | G65: =SUMIF(Purchases!$U$3:$U$2002,A65,Purchases!$K$3:$K$2002)+SUMIF('Fully Consumed'!$U$2:$U$2001,A65,'Fully Consumed'!$K$2:$K$2001) -> 3 | H65: =SUMIF(Purchases!$U$3:$U$2002,A65,Purchases!$M$3:$M$2001) -> 3 | I65: 1 | J65: =10/IF(H65>0,(K65/'Summary Stats'!$B$4)^3*(L65/'Summary Stats'!$B$3)^3*MAX((O65-$R$1+1)^2,0.001)*3^B65*IF(LEN(P65)=0,1,IF(P65>=$R$1,P65-$R$1+1,1/($R$1+1-P65))^2),1000000000) -> 0.0001058013332 | K65: 95 | L65: =IF(H65>0,SUMIF(Purchases!$U$3:$U$2002,A65,Purchases!$N$3:$N$2002)/H65,"") -> 100.348411 | M65: 97.2 | O65: 2031 | Q65: 1370.333333 | R65: 0.0678666991 | S65: =IF(ISNUMBER($Q65),IF(AND(S$1<=$O65,S$1>=$P65),365/$Q65,""),"") -> 0.2663585502 | T65: 0.2663585502 | U65: 0.2663585502 | V65: 0.2663585502 | W65: 0.2663585502 | X65: 0.2663585502 | Y65: 0.2663585502 | Z65: 0.2663585502 | AA65: 0.2663585502 | AB65: 0.2663585502 | AC65: =IF(ISNUMBER($Q65),IF(AND(AC$1<=$O65,AC$1>=$P65),365/$Q65,""),"") -> 0.2663585502 | AP65: 301.0452329 | AQ65: 291.6 | AR65: Red | AS65: Walla Walla Valley | AT65: The Rocks of Milton-Freewater | AY65: The Rocks of Milton-Freewater | AZ65: 95 | BA65: Rater 2 | BF65: US|Walla Walla Valley | BG65: US|Walla Walla Valley|The Rocks of Milton-Freewater | BI65: Shiraz/Syrah | BK65: FALSE | BM65: Reynvaan Family Vineyards | Syrah | In the Rocks | 0.75 L
A66: Quivet Cellars | 2018 | Sauvignon Blanc | Sauvignon Blanc McGah Family | 0.75 L | B66: 2 | C66: N | D66: US | E66: 2018 | F66: =NOW()-IF(C66="N",DATE(E66,10,31),DATE(E66,4,31)) -> 699.6136596 | G66: =SUMIF(Purchases!$U$3:$U$2002,A66,Purchases!$K$3:$K$2002)+SUMIF('Fully Consumed'!$U$2:$U$2001,A66,'Fully Consumed'!$K$2:$K$2001) -> 4 | H66: =SUMIF(Purchases!$U$3:$U$2002,A66,Purchases!$M$3:$M$2001) -> 4 | I66: =H66/G66 -> 1 | J66: =10/IF(H66>0,(K66/'Summary Stats'!$B$4)^3*(L66/'Summary Stats'!$B$3)^3*MAX((O66-$R$1+1)^2,0.001)*3^B66*IF(LEN(P66)=0,1,IF(P66>=$R$1,P66-$R$1+1,1/($R$1+1-P66))^2),1000000000) -> 0.8117893002 | K66: 90 | L66: =IF(H66>0,SUMIF(Purchases!$U$3:$U$2002,A66,Purchases!$N$3:$N$2002)/H66,"") -> 28.14891754 | M66: 28 | O66: 2022 | Q66: =IF(AND(LEN(O66)>0,H66>0),(DATE(O66,12,31)+1-MAX(FLOOR(NOW(),1),DATE(P66,1,1)))/H66,"") -> 206 | R66: =IF(R$1<=$O66,IF(AND(ISNUMBER(Q66),R$1>=$P66),(DATE(R$1,12,31)-INT(NOW()))/Q66,""),H66) -> 0.4514563107 | S66: 1.77184466 | T66: 1.77184466 | AP66: =H66*L66 -> 112.5956702 | AQ66: =M66*H66 -> 112 | AR66: White | AS66: Napa Valley | AT66: McGah Family Vineyard | AZ66: 90 | BA66: Rater 1 | BF66: =D66&"|"&AS66 -> US|Napa Valley | BG66: =BF66&"|"&AT66 -> US|Napa Valley|McGah Family Vineyard | BI66: Sauvignon Blanc | BK66: FALSE | BM66: =LEFT(A66,FIND("|",A66)-1)&RIGHT(A66,LEN(A66)-FIND("|",A66)-6) -> Quivet Cellars | Sauvignon Blanc | Sauvignon Blanc McGah Family | 0.75 L
A67: Carlisle | 2017 | Petite Sirah | Petite Sirah, Sonoma County | 0.75 L | B67: 1 | C67: N | D67: US | E67: 2017 | F67: 1064.61366 | G67: =SUMIF(Purchases!$U$3:$U$2002,A67,Purchases!$K$3:$K$2002)+SUMIF('Fully Consumed'!$U$2:$U$2001,A67,'Fully Consumed'!$K$2:$K$2001) -> 3 | H67: =SUMIF(Purchases!$U$3:$U$2002,A67,Purchases!$M$3:$M$2001) -> 3 | I67: 1 | J67: =10/IF(H67>0,(K67/'Summary Stats'!$B$4)^3*(L67/'Summary Stats'!$B$3)^3*MAX((O67-$R$1+1)^2,0.001)*3^B67*IF(LEN(P67)=0,1,IF(P67>=$R$1,P67-$R$1+1,1/($R$1+1-P67))^2),1000000000) -> 0.0005751553394 | K67: 92 | L67: =IF(H67>0,SUMIF(Purchases!$U$3:$U$2002,A67,Purchases!$N$3:$N$2002)/H67,"") -> 36.87029914 | M67: 36.27 | O67: 2040 | P67: 2025 | Q67: 1948 | W67: 0.1873716632 | X67: 0.1873716632 | Y67: 0.1873716632 | Z67: 0.1873716632 | AA67: 0.1873716632 | AB67: 0.1873716632 | AC67: 0.1873716632 | AD67: 0.1873716632 | AE67: 0.1873716632 | AF67: 0.1873716632 | AG67: 0.1873716632 | AH67: 0.1873716632 | AI67: 0.1873716632 | AJ67: 0.1873716632 | AK67: 0.1873716632 | AL67: 0.1873716632 | AP67: 110.6108974 | AQ67: 108.81 | AR67: Red | AS67: Sonoma County | AY67: Carlisle | AZ67: 92 | BA67: Rater 1 | BF67: US|Sonoma County | BG67: US|Sonoma County| | BI67: Petite Sirah | BK67: FALSE | BM67: Carlisle | Petite Sirah | Petite Sirah, Sonoma County | 0.75 L
A68: San Felice | 2016 | Sangiovese, Colorino and Pugnitello | Chianti Classico | 0.75 L | B68: 1 | C68: N | D68: IT | E68: 2016 | F68: =NOW()-IF(C68="N",DATE(E68,10,31),DATE(E68,4,31)) -> 1429.61366 | G68: =SUMIF(Purchases!$U$3:$U$2002,A68,Purchases!$K$3:$K$2002)+SUMIF('Fully Consumed'!$U$2:$U$2001,A68,'Fully Consumed'!$K$2:$K$2001) -> 12 | H68: =SUMIF(Purchases!$U$3:$U$2002,A68,Purchases!$M$3:$M$2001) -> 7 | I68: =H68/G68 -> 0.5833333333 | J68: =10/IF(H68>0,(K68/'Summary Stats'!$B$4)^3*(L68/'Summary Stats'!$B$3)^3*MAX((O68-$R$1+1)^2,0.001)*3^B68*IF(LEN(P68)=0,1,IF(P68>=$R$1,P68-$R$1+1,1/($R$1+1-P68))^2),1000000000) -> 0.3831257593 | K68: 94 | L68: =IF(H68>0,SUMIF(Purchases!$U$3:$U$2002,A68,Purchases!$N$3:$N$2002)/H68,"") -> 15.70720765 | M68: 15.11 | O68: 2036 | Q68: =IF(AND(LEN(O68)>0,H68>0),(DATE(O68,12,31)+1-MAX(FLOOR(NOW(),1),DATE(P68,1,1)))/H68,"") -> 848.2857143 | R68: =IF(R$1<=$O68,IF(AND(ISNUMBER(Q68),R$1>=$P68),(DATE(R$1,12,31)-INT(NOW()))/Q68,""),H68) -> 0.109632873 | S68: 0.4302795554 | T68: 0.4302795554 | U68: 0.4302795554 | V68: 0.4302795554 | W68: 0.4302795554 | X68: 0.4302795554 | Y68: 0.4302795554 | Z68: 0.4302795554 | AA68: 0.4302795554 | AB68: 0.4302795554 | AC68: 0.4302795554 | AD68: 0.4302795554 | AE68: 0.4302795554 | AF68: 0.4302795554 | AG68: 0.4302795554 | AH68: 0.4302795554 | AP68: =H68*L68 -> 109.9504536 | AQ68: =M68*H68 -> 105.77 | AR68: Red | AS68: Tuscany | AZ68: 94 | BA68: Rater 2 | BF68: =D68&"|"&AS68 -> IT|Tuscany | BG68: =BF68&"|"&AT68 -> IT|Tuscany| | BI68: Sangiovese Blend | BK68: FALSE | BM68: =LEFT(A68,FIND("|",A68)-1)&RIGHT(A68,LEN(A68)-FIND("|",A68)-6) -> San Felice | Sangiovese, Colorino and Pugnitello | Chianti Classico | 0.75 L
A69: Halcón Vineyards | 2015 | Petite Sirah | Petite Sirah | 0.75 L | B69: 1 | C69: N | D69: US | E69: 2015 | F69: 1795.61366 | G69: =SUMIF(Purchases!$U$3:$U$2002,A69,Purchases!$K$3:$K$2002)+SUMIF('Fully Consumed'!$U$2:$U$2001,A69,'Fully Consumed'!$K$2:$K$2001) -> 2 | H69: =SUMIF(Purchases!$U$3:$U$2002,A69,Purchases!$M$3:$M$2001) -> 1 | I69: 0.5 | J69: =10/IF(H69>0,(K69/'Summary Stats'!$B$4)^3*(L69/'Summary Stats'!$B$3)^3*MAX((O69-$R$1+1)^2,0.001)*3^B69*IF(LEN(P69)=0,1,IF(P69>=$R$1,P69-$R$1+1,1/($R$1+1-P69))^2),1000000000) -> 0.2362199959 | K69: 92 | L69: =IF(H69>0,SUMIF(Purchases!$U$3:$U$2002,A69,Purchases!$N$3:$N$2002)/H69,"") -> 31.16639228 | M69: 31.08 | O69: 2027 | Q69: 2650 | R69: 0.03509433962 | S69: 0.1377358491 | T69: 0.1377358491 | U69: 0.1377358491 | V69: 0.1377358491 | W69: 0.1377358491 | X69: 0.1377358491 | Y69: 0.1377358491 | AP69: 31.16639228 | AQ69: 31.08 | AR69: Red | AS69: Yorkville Highlands | AZ69: 92 | BA69: Rater 1 | BF69: US|Yorkville Highlands | BG69: US|Yorkville Highlands| | BI69: Petite Sirah | BK69: FALSE | BM69: Halcón Vineyards | Petite Sirah | Petite Sirah | 0.75 L
A70: Cayuse Vineyards | 2016 | Syrah | Wallah Wallah Special #10 Syrah | 1.5 L | B70: 1 | C70: N | D70: US | E70: 2016 | F70: 1429.61366 | G70: =SUMIF(Purchases!$U$3:$U$2002,A70,Purchases!$K$3:$K$2002)+SUMIF('Fully Consumed'!$U$2:$U$2001,A70,'Fully Consumed'!$K$2:$K$2001) -> 1 | H70: =SUMIF(Purchases!$U$3:$U$2002,A70,Purchases!$M$3:$M$2001) -> 1 | I70: 1 | J70: =10/IF(H70>0,(K70/'Summary Stats'!$B$4)^3*(L70/'Summary Stats'!$B$3)^3*MAX((O70-$R$1+1)^2,0.001)*3^B70*IF(LEN(P70)=0,1,IF(P70>=$R$1,P70-$R$1+1,1/($R$1+1-P70))^2),1000000000) -> 0.0009108368012 | K70: 93 | L70: =IF(H70>0,SUMIF(Purchases!$U$3:$U$2002,A70,Purchases!$N$3:$N$2002)/H70,"") -> 214.9206138 | M70: 213.9 | O70: 2026 | Q70: 2285 | R70: 0.04070021882 | S70: 0.1597374179 | T70: 0.1597374179 | U70: 0.1597374179 | V70: 0.1597374179 | W70: 0.1597374179 | X70: 0.1597374179 | AP70: 214.9206138 | AQ70: 213.9 | AR70: Red | AS70: Walla Walla Valley | AT70: The Rocks of Milton-Freewater | AY70: Cayuse | AZ70: 93 | BA70: Rater 2 | BF70: US|Walla Walla Valley | BG70: US|Walla Walla Valley|The Rocks of Milton-Freewater | BI70: Shiraz/Syrah | BJ70: Magnums | BK70: FALSE | BL70: The Rocks of Milton-Freewater | BM70: Cayuse Vineyards | Syrah | Wallah Wallah Special #10 Syrah | 1.5 L
A71: Quivet Cellars | 2017 | Sauvignon Blanc | Sauvignon Blanc McGah Family | 0.75 L | B71: 2 | C71: N | D71: US | E71: 2017 | F71: 1064.61366 | G71: =SUMIF(Purchases!$U$3:$U$2002,A71,Purchases!$K$3:$K$2002)+SUMIF('Fully Consumed'!$U$2:$U$2001,A71,'Fully Consumed'!$K$2:$K$2001) -> 3 | H71: =SUMIF(Purchases!$U$3:$U$2002,A71,Purchases!$M$3:$M$2001) -> 1 | I71: 0.3333333333 | J71: =10/IF(H71>0,(K71/'Summary Stats'!$B$4)^3*(L71/'Summary Stats'!$B$3)^3*MAX((O71-$R$1+1)^2,0.001)*3^B71*IF(LEN(P71)=0,1,IF(P71>=$R$1,P71-$R$1+1,1/($R$1+1-P71))^2),1000000000) -> 0.9505466193 | K71: 90 | L71: =IF(H71>0,SUMIF(Purchases!$U$3:$U$2002,A71,Purchases!$N$3:$N$2002)/H71,"") -> 34.99552437 | M71: 32.33 | O71: 2021 | Q71: 459 | R71: 0.2026143791 | S71: 0.7952069717 | AP71: 34.99552437 | AQ71: 32.33 | AR71: White | AS71: Napa Valley | AT71: McGah Family Vineyard | AZ71: 90 | BA71: Rater 1 | BF71: US|Napa Valley | BG71: US|Napa Valley|McGah Family Vineyard | BI71: Sauvignon Blanc | BK71: FALSE | BM71: Quivet Cellars | Sauvignon Blanc | Sauvignon Blanc McGah Family | 0.75 L
A72: Punset | 2007 | Nebbiolo | Barbaresco | 0.75 L | B72: 1 | C72: N | D72: IT | E72: 2007 | F72: 4717.61366 | G72: =SUMIF(Purchases!$U$3:$U$2002,A72,Purchases!$K$3:$K$2002)+SUMIF('Fully Consumed'!$U$2:$U$2001,A72,'Fully Consumed'!$K$2:$K$2001) -> 12 | H72: =SUMIF(Purchases!$U$3:$U$2002,A72,Purchases!$M$3:$M$2001) -> 10 | I72: 0.8333333333 | J72: =10/IF(H72>0,(K72/'Summary Stats'!$B$4)^3*(L72/'Summary Stats'!$B$3)^3*MAX((O72-$R$1+1)^2,0.001)*3^B72*IF(LEN(P72)=0,1,IF(P72>=$R$1,P72-$R$1+1,1/($R$1+1-P72))^2),1000000000) -> 0.1044652273 | K72: 95 | L72: =IF(H72>0,SUMIF(Purchases!$U$3:$U$2002,A72,Purchases!$N$3:$N$2002)/H72,"") -> 39.61555301 | M72: 38.32 | N72: WR-L1-2 | O72: 2027 | Q72: 265 | R72: 0.3509433962 | S72: 1.377358491 | T72: 1.377358491 | U72: 1.377358491 | V72: 1.377358491 | W72: 1.377358491 | X72: 1.377358491 | Y72: 1.377358491 | AP72: 396.1555301 | AQ72: 383.2 | AR72: Red | AZ72: 95 | BA72: Rater 2 | BF72: IT| | BG72: IT|| | BI72: Nebbiolo | BK72: FALSE | BM72: Punset | Nebbiolo | Barbaresco | 0.75 L
A73: Proper Wines | 2016 | Syrah | Proper Syrah | 0.75 L | B73: 3 | C73: N | D73: US | E73: 2016 | F73: 1429.61366 | G73: =SUMIF(Purchases!$U$3:$U$2002,A73,Purchases!$K$3:$K$2002)+SUMIF('Fully Consumed'!$U$2:$U$2001,A73,'Fully Consumed'!$K$2:$K$2001) -> 12 | H73: =SUMIF(Purchases!$U$3:$U$2002,A73,Purchases!$M$3:$M$2001) -> 5 | I73: 0.4166666667 | J73: =10/IF(H73>0,(K73/'Summary Stats'!$B$4)^3*(L73/'Summary Stats'!$B$3)^3*MAX((O73-$R$1+1)^2,0.001)*3^B73*IF(LEN(P73)=0,1,IF(P73>=$R$1,P73-$R$1+1,1/($R$1+1-P73))^2),1000000000) -> 0.01451753618 | K73: 92 | L73: =IF(H73>0,SUMIF(Purchases!$U$3:$U$2002,A73,Purchases!$N$3:$N$2002)/H73,"") -> 41.50256207 | M73: 41.47 | O73: 2026 | Q73: 457 | R73: 0.2035010941 | S73: 0.7986870897 | T73: 0.7986870897 | U73: 0.7986870897 | V73: 0.7986870897 | W73: 0.7986870897 | X73: 0.7986870897 | AP73: 207.5128104 | AQ73: 207.35 | AR73: Red | AS73: Walla Walla Valley | AT73: The Rocks of Milton-Freewater | AY73: The Rocks of Milton-Freewater | AZ73: 92 | BA73: Rater 1 | BF73: US|Walla Walla Valley | BG73: US|Walla Walla Valley|The Rocks of Milton-Freewater | BI73: Shiraz/Syrah | BK73: FALSE | BM73: Proper Wines | Syrah | Proper Syrah | 0.75 L
A74: Proper Wines | 2015 | Syrah | Proper Syrah | 0.75 L | B74: 3 | C74: N | D74: US | E74: 2015 | F74: 1795.61366 | G74: =SUMIF(Purchases!$U$3:$U$2002,A74,Purchases!$K$3:$K$2002)+SUMIF('Fully Consumed'!$U$2:$U$2001,A74,'Fully Consumed'!$K$2:$K$2001) -> 12 | H74: =SUMIF(Purchases!$U$3:$U$2002,A74,Purchases!$M$3:$M$2001) -> 5 | I74: 0.4166666667 | J74: =10/IF(H74>0,(K74/'Summary Stats'!$B$4)^3*(L74/'Summary Stats'!$B$3)^3*MAX((O74-$R$1+1)^2,0.001)*3^B74*IF(LEN(P74)=0,1,IF(P74>=$R$1,P74-$R$1+1,1/($R$1+1-P74))^2),1000000000) -> 0.0203631919 | K74: 92 | L74: =IF(H74>0,SUMIF(Purchases!$U$3:$U$2002,A74,Purchases!$N$3:$N$2002)/H74,"") -> 41.08864207 | M74: 39.94 | O74: 2025 | Q74: 384 | R74: 0.2421875 | S74: 0.9505208333 | T74: 0.9505208333 | U74: 0.9505208333 | V74: 0.9505208333 | W74: 0.9505208333 | AP74: 205.4432103 | AQ74: 199.7 | AR74: Red | AS74: Walla Walla Valley | AT74: The Rocks of Milton-Freewater | AY74: The Rocks of Milton-Freewater | AZ74: 92 | BA74: Rater 1 | BF74: US|Walla Walla Valley | BG74: US|Walla Walla Valley|The Rocks of Milton-Freewater | BI74: Shiraz/Syrah | BK74: FALSE | BM74: Proper Wines | Syrah | Proper Syrah | 0.75 L
A75: Quivet Cellars | 2018 | Syrah | Syrah Kenefick Ranch Vineyard 100% Whole Cluster | 0.75 L | B75: 1 | C75: N | D75: US | E75: 2018 | F75: 699.6136596 | G75: =SUMIF(Purchases!$U$3:$U$2002,A75,Purchases!$K$3:$K$2002)+SUMIF('Fully Consumed'!$U$2:$U$2001,A75,'Fully Consumed'!$K$2:$K$2001) -> 2 | H75: =SUMIF(Purchases!$U$3:$U$2002,A75,Purchases!$M$3:$M$2001) -> 2 | I75: 1 | J75: =10/IF(H75>0,(K75/'Summary Stats'!$B$4)^3*(L75/'Summary Stats'!$B$3)^3*MAX((O75-$R$1+1)^2,0.001)*3^B75*IF(LEN(P75)=0,1,IF(P75>=$R$1,P75-$R$1+1,1/($R$1+1-P75))^2),1000000000) -> 0.03356822036 | K75: 93 | L75: =IF(H75>0,SUMIF(Purchases!$U$3:$U$2002,A75,Purchases!$N$3:$N$2002)/H75,"") -> 54.6201024 | M75: 53.2 | O75: 2028 | Q75: 1508 | R75: 0.06167108753 | S75: 0.2420424403 | T75: 0.2420424403 | U75: 0.2420424403 | V75: 0.2420424403 | W75: 0.2420424403 | X75: 0.2420424403 | Y75: 0.2420424403 | Z75: 0.2420424403 | AP75: 109.2402048 | AQ75: 106.4 | AR75: Red | AS75: Calistoga | AT75: Kenefic Ranch | AZ75: 93 | BA75: Rater 1 | BF75: US|Calistoga | BG75: US|Calistoga|Kenefic Ranch | BI75: Shiraz/Syrah | BK75: FALSE | BM75: Quivet Cellars | Syrah | Syrah Kenefick Ranch Vineyard 100% Whole Cluster | 0.75 L
A76: Proper Wines | 2013 | Syrah | Proper Syrah | 0.75 L | B76: 3 | C76: N | D76: US | E76: 2013 | F76: 2525.61366 | G76: =SUMIF(Purchases!$U$3:$U$2002,A76,Purchases!$K$3:$K$2002)+SUMIF('Fully Consumed'!$U$2:$U$2001,A76,'Fully Consumed'!$K$2:$K$2001) -> 12 | H76: =SUMIF(Purchases!$U$3:$U$2002,A76,Purchases!$M$3:$M$2001) -> 2 | I76: 0.1666666667 | J76: =10/IF(H76>0,(K76/'Summary Stats'!$B$4)^3*(L76/'Summary Stats'!$B$3)^3*MAX((O76-$R$1+1)^2,0.001)*3^B76*IF(LEN(P76)=0,1,IF(P76>=$R$1,P76-$R$1+1,1/($R$1+1-P76))^2),1000000000) -> 0.0799077626 | K76: 93 | L76: =IF(H76>0,SUMIF(Purchases!$U$3:$U$2002,A76,Purchases!$N$3:$N$2002)/H76,"") -> 33.76808776 | M76: 33.6 | N76: E-L5-3 | O76: 2023 | Q76: 594.5 | R76: 0.1564339781 | S76: =IF(ISNUMBER($Q76),IF(AND(S$1<=$O76,S$1>=$P76),365/$Q76,""),"") -> 0.613961312 | T76: 0.613961312 | U76: 0.613961312 | AC76: =IF(ISNUMBER($Q76),IF(AND(AC$1<=$O76,AC$1>=$P76),365/$Q76,""),"") ->  | AP76: 67.53617552 | AQ76: 67.2 | AR76: Red | AY76: Proper | AZ76: 93 | BA76: Rater 2 | BF76: US| | BG76: US|| | BI76: Shiraz/Syrah | BJ76: The Rocks of Milton-Freewater | BK76: FALSE | BM76: Proper Wines | Syrah | Proper Syrah | 0.75 L
A77: Cayuse Vineyards | 2013 | Syrah | Wallah Wallah Special #5 Syrah | 1.5 L | B77: 1 | C77: N | D77: US | E77: 2014 | F77: 2160.61366 | G77: =SUMIF(Purchases!$U$3:$U$2002,A77,Purchases!$K$3:$K$2002)+SUMIF('Fully Consumed'!$U$2:$U$2001,A77,'Fully Consumed'!$K$2:$K$2001) -> 2 | H77: =SUMIF(Purchases!$U$3:$U$2002,A77,Purchases!$M$3:$M$2001) -> 2 | I77: 1 | J77: =10/IF(H77>0,(K77/'Summary Stats'!$B$4)^3*(L77/'Summary Stats'!$B$3)^3*MAX((O77-$R$1+1)^2,0.001)*3^B77*IF(LEN(P77)=0,1,IF(P77>=$R$1,P77-$R$1+1,1/($R$1+1-P77))^2),1000000000) -> 0.001048125301 | K77: 91 | L77: =IF(H77>0,SUMIF(Purchases!$U$3:$U$2002,A77,Purchases!$N$3:$N$2002)/H77,"") -> 209.6019973 | M77: 206.78 | O77: 2026 | Q77: 1142.5 | R77: 0.08140043764 | S77: 0.3194748359 | T77: 0.3194748359 | U77: 0.3194748359 | V77: 0.3194748359 | W77: 0.3194748359 | X77: 0.3194748359 | AP77: 419.2039946 | AQ77: 413.56 | AR77: Red | AS77: Walla Walla Valley | AT77: The Rocks of Milton-Freewater | AY77: Cayuse | AZ77: 91 | BA77: Rater 2 | BF77: US|Walla Walla Valley | BG77: US|Walla Walla Valley|The Rocks of Milton-Freewater | BI77: Shiraz/Syrah | BJ77: Magnums | BK77: FALSE | BL77: The Rocks of Milton-Freewater | BM77: Cayuse Vineyards | Syrah | Wallah Wallah Special #5 Syrah | 1.5 L
A78: Reynvaan Family Vineyards | 2015 | Syrah | In the Rocks | 0.75 L | B78: 4 | C78: N | D78: US | E78: 2015 | F78: 1795.61366 | G78: =SUMIF(Purchases!$U$3:$U$2002,A78,Purchases!$K$3:$K$2002)+SUMIF('Fully Consumed'!$U$2:$U$2001,A78,'Fully Consumed'!$K$2:$K$2001) -> 6 | H78: =SUMIF(Purchases!$U$3:$U$2002,A78,Purchases!$M$3:$M$2001) -> 6 | I78: 1 | J78: =10/IF(H78>0,(K78/'Summary Stats'!$B$4)^3*(L78/'Summary Stats'!$B$3)^3*MAX((O78-$R$1+1)^2,0.001)*3^B78*IF(LEN(P78)=0,1,IF(P78>=$R$1,P78-$R$1+1,1/($R$1+1-P78))^2),1000000000) -> 0.0001332837677 | K78: 94 | L78: =IF(H78>0,SUMIF(Purchases!$U$3:$U$2002,A78,Purchases!$N$3:$N$2002)/H78,"") -> 99.51073147 | M78: 98.14 | O78: 2030 | Q78: 624.3333333 | R78: 0.1489588895 | S78: 0.5846235985 | T78: 0.5846235985 | U78: 0.5846235985 | V78: 0.5846235985 | W78: 0.5846235985 | X78: 0.5846235985 | Y78: 0.5846235985 | Z78: 0.5846235985 | AA78: 0.5846235985 | AB78: 0.5846235985 | AP78: 597.0643888 | AQ78: 588.84 | AR78: Red | AS78: Walla Walla Valley | AT78: The Rocks of Milton-Freewater | AY78: Reynvaan | AZ78: 94 | BA78: Rater 2 | BF78: US|Walla Walla Valley | BG78: US|Walla Walla Valley|The Rocks of Milton-Freewater | BI78: Shiraz/Syrah | BJ78: The Rocks of Milton-Freewater | BK78: FALSE | BM78: Reynvaan Family Vineyards | Syrah | In the Rocks | 0.75 L
A79: Reynvaan Family Vineyards | 2013 | Syrah | Stonessence | 0.75 L | B79: 2 | C79: N | D79: US | E79: 2013 | F79: 2525.61366 | G79: =SUMIF(Purchases!$U$3:$U$2002,A79,Purchases!$K$3:$K$2002)+SUMIF('Fully Consumed'!$U$2:$U$2001,A79,'Fully Consumed'!$K$2:$K$2001) -> 6 | H79: =SUMIF(Purchases!$U$3:$U$2002,A79,Purchases!$M$3:$M$2001) -> 3 | I79: 0.5 | J79: =10/IF(H79>0,(K79/'Summary Stats'!$B$4)^3*(L79/'Summary Stats'!$B$3)^3*MAX((O79-$R$1+1)^2,0.001)*3^B79*IF(LEN(P79)=0,1,IF(P79>=$R$1,P79-$R$1+1,1/($R$1+1-P79))^2),1000000000) -> 0.005195607076 | K79: 95 | L79: =IF(H79>0,SUMIF(Purchases!$U$3:$U$2002,A79,Purchases!$N$3:$N$2002)/H79,"") -> 118.5651676 | M79: 113.4 | O79: 2023 | Q79: 396.3333333 | R79: 0.2346509672 | S79: 0.920941968 | T79: 0.920941968 | U79: 0.920941968 | AP79: 355.6955029 | AQ79: 340.2 | AR79: Red | AS79: Walla Walla Valley | AT79: The Rocks of Milton-Freewater | AY79: Reynvaan | AZ79: 95 | BA79: Rater 2 | BF79: US|Walla Walla Valley | BG79: US|Walla Walla Valley|The Rocks of Milton-Freewater | BI79: Shiraz/Syrah | BJ79: The Rocks of Milton-Freewater | BK79: FALSE | BM79: Reynvaan Family Vineyards | Syrah | Stonessence | 0.75 L
A80: Castello di Volpaia | 2016 | Sangiovese | Chianti Classico Riserva | 0.75 L | B80: 1 | C80: N | D80: IT | E80: 2016 | F80: 1429.61366 | G80: =SUMIF(Purchases!$U$3:$U$2002,A80,Purchases!$K$3:$K$2002)+SUMIF('Fully Consumed'!$U$2:$U$2001,A80,'Fully Consumed'!$K$2:$K$2001) -> 12 | H80: =SUMIF(Purchases!$U$3:$U$2002,A80,Purchases!$M$3:$M$2001) -> 12 | I80: 1 | J80: =10/IF(H80>0,(K80/'Summary Stats'!$B$4)^3*(L80/'Summary Stats'!$B$3)^3*MAX((O80-$R$1+1)^2,0.001)*3^B80*IF(LEN(P80)=0,1,IF(P80>=$R$1,P80-$R$1+1,1/($R$1+1-P80))^2),1000000000) -> 0.004906615614 | K80: 97 | L80: =IF(H80>0,SUMIF(Purchases!$U$3:$U$2002,A80,Purchases!$N$3:$N$2002)/H80,"") -> 35.59928679 | M80: 35.12 | O80: 2040 | P80: 2021 | Q80: 608.75 | S80: 0.5995893224 | T80: 0.5995893224 | U80: 0.5995893224 | V80: 0.5995893224 | W80: 0.5995893224 | X80: 0.5995893224 | Y80: 0.5995893224 | Z80: 0.5995893224 | AA80: 0.5995893224 | AB80: 0.5995893224 | AC80: 0.5995893224 | AD80: 0.5995893224 | AE80: 0.5995893224 | AF80: 0.5995893224 | AG80: 0.5995893224 | AH80: 0.5995893224 | AI80: 0.5995893224 | AJ80: 0.5995893224 | AK80: 0.5995893224 | AL80: 0.5995893224 | AP80: 427.1914415 | AQ80: 421.44 | AR80: Red | AS80: Chianti Classico | AZ80: 97 | BA80: Rater 2 | BF80: IT|Chianti Classico | BG80: IT|Chianti Classico| | BI80: Sangiovese | BK80: FALSE | BM80: Castello di Volpaia | Sangiovese | Chianti Classico Riserva | 0.75 L
A81: Prats & Symington | 2011 | Touriga Nacional & Touriga Franca | Duoro Chryseia | 0.75 L | B81: 1 | C81: N | D81: PT | E81: 2011 | F81: 3256.61366 | G81: =SUMIF(Purchases!$U$3:$U$2002,A81,Purchases!$K$3:$K$2002)+SUMIF('Fully Consumed'!$U$2:$U$2001,A81,'Fully Consumed'!$K$2:$K$2001) -> 6 | H81: =SUMIF(Purchases!$U$3:$U$2002,A81,Purchases!$M$3:$M$2001) -> 3 | I81: 0.5 | J81: =10/IF(H81>0,(K81/'Summary Stats'!$B$4)^3*(L81/'Summary Stats'!$B$3)^3*MAX((O81-$R$1+1)^2,0.001)*3^B81*IF(LEN(P81)=0,1,IF(P81>=$R$1,P81-$R$1+1,1/($R$1+1-P81))^2),1000000000) -> 0.05715019907 | K81: 97 | L81: =IF(H81>0,SUMIF(Purchases!$U$3:$U$2002,A81,Purchases!$N$3:$N$2002)/H81,"") -> 51.85574689 | M81: 51.59 | N81: AL-E-L2-3 | O81: 2026 | Q81: 761.6666667 | R81: 0.1221006565 | S81: 0.4792122538 | T81: 0.4792122538 | U81: 0.4792122538 | V81: 0.4792122538 | W81: 0.4792122538 | X81: 0.4792122538 | AP81: 155.5672407 | AQ81: 154.77 | AR81: Red | AW81: 41712 | AZ81: 97 | BA81: Rater 2 | BF81: PT| | BG81: PT|| | BI81: Touriga Blend | BK81: FALSE | BM81: Prats & Symington | Touriga Nacional & Touriga Franca | Duoro Chryseia | 0.75 L
A82: Carlisle | 2017 | Zinfandel | Zinfandel, Russian River Valley, Mancini Ranch Vyd | 0.75 L | B82: 1 | C82: N | D82: US | E82: 2017 | F82: 1064.61366 | G82: =SUMIF(Purchases!$U$3:$U$2002,A82,Purchases!$K$3:$K$2002)+SUMIF('Fully Consumed'!$U$2:$U$2001,A82,'Fully Consumed'!$K$2:$K$2001) -> 2 | H82: =SUMIF(Purchases!$U$3:$U$2002,A82,Purchases!$M$3:$M$2001) -> 2 | I82: 1 | J82: =10/IF(H82>0,(K82/'Summary Stats'!$B$4)^3*(L82/'Summary Stats'!$B$3)^3*MAX((O82-$R$1+1)^2,0.001)*3^B82*IF(LEN(P82)=0,1,IF(P82>=$R$1,P82-$R$1+1,1/($R$1+1-P82))^2),1000000000) -> 0.04006936496 | K82: 93 | L82: =IF(H82>0,SUMIF(Purchases!$U$3:$U$2002,A82,Purchases!$N$3:$N$2002)/H82,"") -> 47.99759412 | M82: 47.89 | O82: 2029 | Q82: 1690.5 | R82: 0.05501330967 | S82: 0.2159124519 | T82: 0.2159124519 | U82: 0.2159124519 | V82: 0.2159124519 | W82: 0.2159124519 | X82: 0.2159124519 | Y82: 0.2159124519 | Z82: 0.2159124519 | AA82: 0.2159124519 | AP82: 95.99518823 | AQ82: 95.78 | AR82: Red | AS82: Russian River Valley | AT82: Mancini Ranch | AY82: Carlisle | AZ82: 93 | BA82: Rater 2 | BF82: US|Russian River Valley | BG82: US|Russian River Valley|Mancini Ranch | BI82: Zinfandel | BK82: FALSE | BM82: Carlisle | Zinfandel | Zinfandel, Russian River Valley, Mancini Ranch Vyd | 0.75 L
A83: Phillipe Delesvaux | 2004 | Chenin Blanc | Coteaux du Layon Selection de Grains Nobles | 0.5 L | B83: 1 | C83: N | D83: FR | E83: 2004 | F83: 5812.61366 | G83: =SUMIF(Purchases!$U$3:$U$2002,A83,Purchases!$K$3:$K$2002)+SUMIF('Fully Consumed'!$U$2:$U$2001,A83,'Fully Consumed'!$K$2:$K$2001) -> 6 | H83: =SUMIF(Purchases!$U$3:$U$2002,A83,Purchases!$M$3:$M$2001) -> 2 | I83: 0.3333333333 | J83: =10/IF(H83>0,(K83/'Summary Stats'!$B$4)^3*(L83/'Summary Stats'!$B$3)^3*MAX((O83-$R$1+1)^2,0.001)*3^B83*IF(LEN(P83)=0,1,IF(P83>=$R$1,P83-$R$1+1,1/($R$1+1-P83))^2),1000000000) -> 0.2548146604 | K83: 95 | L83: =IF(H83>0,SUMIF(Purchases!$U$3:$U$2002,A83,Purchases!$N$3:$N$2002)/H83,"") -> 35.65118705 | M83: 35.57 | N83: AL-E-L5-1 | O83: 2025 | Q83: 960 | R83: 0.096875 | S83: =IF(ISNUMBER($Q83),IF(AND(S$1<=$O83,S$1>=$P83),365/$Q83,""),"") -> 0.3802083333 | T83: 0.3802083333 | U83: 0.3802083333 | V83: 0.3802083333 | W83: 0.3802083333 | AC83: =IF(ISNUMBER($Q83),IF(AND(AC$1<=$O83,AC$1>=$P83),365/$Q83,""),"") ->  | AP83: 71.3023741 | AQ83: 71.14 | AR83: Dessert | AZ83: 95 | BA83: Rater 2 | BF83: FR| | BG83: FR|| | BI83: Chenin Blanc | BK83: FALSE | BM83: Phillipe Delesvaux | Chenin Blanc | Coteaux du Layon Selection de Grains Nobles | 0.5 L
A84: Paul Jaboulet | 2001 | Syrah | Hermitage La Chapelle | 1.5 L | B84: 1 | C84: N | D84: US | E84: 2001 | F84: 6908.61366 | G84: =SUMIF(Purchases!$U$3:$U$2002,A84,Purchases!$K$3:$K$2002)+SUMIF('Fully Consumed'!$U$2:$U$2001,A84,'Fully Consumed'!$K$2:$K$2001) -> 1 | H84: =SUMIF(Purchases!$U$3:$U$2002,A84,Purchases!$M$3:$M$2001) -> 1 | I84: 1 | J84: =10/IF(H84>0,(K84/'Summary Stats'!$B$4)^3*(L84/'Summary Stats'!$B$3)^3*MAX((O84-$R$1+1)^2,0.001)*3^B84*IF(LEN(P84)=0,1,IF(P84>=$R$1,P84-$R$1+1,1/($R$1+1-P84))^2),1000000000) -> 0.005993666577 | K84: 97 | L84: =IF(H84>0,SUMIF(Purchases!$U$3:$U$2002,A84,Purchases!$N$3:$N$2002)/H84,"") -> 253.484055 | M84: 249.79 | O84: 2021 | Q84: 459 | R84: 0.2026143791 | S84: 0.7952069717 | AP84: 253.484055 | AQ84: 249.79 | AR84: Red | AS84: Northern Rhone | AY84: Magnums | AZ84: 97 | BA84: Rater 2 | BF84: US|Northern Rhone | BG84: US|Northern Rhone| | BI84: Shiraz/Syrah | BK84: FALSE | BM84: Paul Jaboulet | Syrah | Hermitage La Chapelle | 1.5 L
A85: No Girls Wines | 2016 | Syrah | La Paciencia Vineyard Syrah | 0.75 L | B85: 7 | C85: N | D85: US | E85: 2016 | F85: 1429.61366 | G85: =SUMIF(Purchases!$U$3:$U$2002,A85,Purchases!$K$3:$K$2002)+SUMIF('Fully Consumed'!$U$2:$U$2001,A85,'Fully Consumed'!$K$2:$K$2001) -> 3 | H85: =SUMIF(Purchases!$U$3:$U$2002,A85,Purchases!$M$3:$M$2001) -> 3 | I85: 1 | J85: =10/IF(H85>0,(K85/'Summary Stats'!$B$4)^3*(L85/'Summary Stats'!$B$3)^3*MAX((O85-$R$1+1)^2,0.001)*3^B85*IF(LEN(P85)=0,1,IF(P85>=$R$1,P85-$R$1+1,1/($R$1+1-P85))^2),1000000000) -> 1.291241661e-05 | K85: 94 | L85: =IF(H85>0,SUMIF(Purchases!$U$3:$U$2002,A85,Purchases!$N$3:$N$2002)/H85,"") -> 97.61914606 | M85: 93.06 | O85: 2026 | Q85: 761.6666667 | R85: 0.1221006565 | S85: 0.4792122538 | T85: 0.4792122538 | U85: 0.4792122538 | V85: 0.4792122538 | W85: 0.4792122538 | X85: 0.4792122538 | AP85: 292.8574382 | AQ85: 279.18 | AR85: Red | AS85: Walla Walla Valley | AT85: La Paciencia Vineyard | AY85: No Girls | AZ85: 94 | BA85: Rater 1 | BF85: US|Walla Walla Valley | BG85: US|Walla Walla Valley|La Paciencia Vineyard | BI85: Shiraz/Syrah | BJ85: The Rocks of Milton-Freewater | BK85: FALSE | BM85: No Girls Wines | Syrah | La Paciencia Vineyard Syrah | 0.75 L
A86: No Girls Wines | 2015 | Syrah | La Paciencia Vineyard Syrah | 0.75 L | B86: 7 | C86: N | D86: US | E86: 2015 | F86: 1795.61366 | G86: =SUMIF(Purchases!$U$3:$U$2002,A86,Purchases!$K$3:$K$2002)+SUMIF('Fully Consumed'!$U$2:$U$2001,A86,'Fully Consumed'!$K$2:$K$2001) -> 6 | H86: =SUMIF(Purchases!$U$3:$U$2002,A86,Purchases!$M$3:$M$2001) -> 6 | I86: 1 | J86: =10/IF(H86>0,(K86/'Summary Stats'!$B$4)^3*(L86/'Summary Stats'!$B$3)^3*MAX((O86-$R$1+1)^2,0.001)*3^B86*IF(LEN(P86)=0,1,IF(P86>=$R$1,P86-$R$1+1,1/($R$1+1-P86))^2),1000000000) -> 1.895225841e-05 | K86: 95 | L86: =IF(H86>0,SUMIF(Purchases!$U$3:$U$2002,A86,Purchases!$N$3:$N$2002)/H86,"") -> 94.19314533 | M86: 92.34 | O86: 2025 | Q86: 320 | R86: 0.290625 | S86: 1.140625 | T86: 1.140625 | U86: 1.140625 | V86: 1.140625 | W86: 1.140625 | AP86: 565.158872 | AQ86: 554.04 | AR86: Red | AS86: Walla Walla Valley | AT86: The Rocks of Milton-Freewater | AY86: No Girls | AZ86: 95 | BA86: Rater 2 | BF86: US|Walla Walla Valley | BG86: US|Walla Walla Valley|The Rocks of Milton-Freewater | BI86: Shiraz/Syrah | BJ86: The Rocks of Milton-Freewater | BK86: FALSE | BM86: No Girls Wines | Syrah | La Paciencia Vineyard Syrah | 0.75 L
A87: No Girls Wines | 2014 | Syrah | La Paciencia Vineyard Syrah | 0.75 L | B87: 7 | C87: N | D87: US | E87: 2014 | F87: 2160.61366 | G87: =SUMIF(Purchases!$U$3:$U$2002,A87,Purchases!$K$3:$K$2002)+SUMIF('Fully Consumed'!$U$2:$U$2001,A87,'Fully Consumed'!$K$2:$K$2001) -> 3 | H87: =SUMIF(Purchases!$U$3:$U$2002,A87,Purchases!$M$3:$M$2001) -> 3 | I87: 1 | J87: =10/IF(H87>0,(K87/'Summary Stats'!$B$4)^3*(L87/'Summary Stats'!$B$3)^3*MAX((O87-$R$1+1)^2,0.001)*3^B87*IF(LEN(P87)=0,1,IF(P87>=$R$1,P87-$R$1+1,1/($R$1+1-P87))^2),1000000000) -> 3.077924325e-05 | K87: 92 | L87: =IF(H87>0,SUMIF(Purchases!$U$3:$U$2002,A87,Purchases!$N$3:$N$2002)/H87,"") -> 93.44231406 | M87: 92.16 | O87: 2024 | Q87: 518.3333333 | R87: 0.1794212219 | S87: 0.7041800643 | T87: 0.7041800643 | U87: 0.7041800643 | V87: 0.7041800643 | AP87: 280.3269422 | AQ87: 276.48 | AR87: Red | AS87: Walla Walla Valley | AT87: The Rocks of Milton-Freewater | AY87: No Girls | AZ87: 92 | BA87: Rater 2 | BF87: US|Walla Walla Valley | BG87: US|Walla Walla Valley|The Rocks of Milton-Freewater | BI87: Shiraz/Syrah | BJ87: The Rocks of Milton-Freewater | BK87: FALSE | BM87: No Girls Wines | Syrah | La Paciencia Vineyard Syrah | 0.75 L
A88: Castellare di Castellina | 2017 | Sangiovese & Canaiolo | Chianti Classico | 0.75 L | B88: 1 | C88: N | D88: IT | E88: 2017 | F88: 1064.61366 | G88: =SUMIF(Purchases!$U$3:$U$2002,A88,Purchases!$K$3:$K$2002)+SUMIF('Fully Consumed'!$U$2:$U$2001,A88,'Fully Consumed'!$K$2:$K$2001) -> 12 | H88: =SUMIF(Purchases!$U$3:$U$2002,A88,Purchases!$M$3:$M$2001) -> 12 | I88: 1 | J88: =10/IF(H88>0,(K88/'Summary Stats'!$B$4)^3*(L88/'Summary Stats'!$B$3)^3*MAX((O88-$R$1+1)^2,0.001)*3^B88*IF(LEN(P88)=0,1,IF(P88>=$R$1,P88-$R$1+1,1/($R$1+1-P88))^2),1000000000) -> 0.2890248083 | K88: 94 | L88: =IF(H88>0,SUMIF(Purchases!$U$3:$U$2002,A88,Purchases!$N$3:$N$2002)/H88,"") -> 19.63880175 | M88: 19.39 | O88: 2033 | Q88: 403.5 | R88: 0.2304832714 | S88: 0.9045848823 | T88: 0.9045848823 | U88: 0.9045848823 | V88: 0.9045848823 | W88: 0.9045848823 | X88: 0.9045848823 | Y88: 0.9045848823 | Z88: 0.9045848823 | AA88: 0.9045848823 | AB88: 0.9045848823 | AC88: 0.9045848823 | AD88: 0.9045848823 | AE88: 0.9045848823 | AP88: 235.665621 | AQ88: 232.68 | AR88: Red | AS88: Tuscany | AZ88: 94 | BA88: Rater 2 | BF88: IT|Tuscany | BG88: IT|Tuscany| | BI88: Sangiovese Blend | BK88: FALSE | BM88: Castellare di Castellina | Sangiovese & Canaiolo | Chianti Classico | 0.75 L
A89: No Girls Wines | 2013 | Syrah | La Paciencia Vineyard Syrah | 0.75 L | B89: 7 | C89: N | D89: US | E89: 2013 | F89: 2525.61366 | G89: =SUMIF(Purchases!$U$3:$U$2002,A89,Purchases!$K$3:$K$2002)+SUMIF('Fully Consumed'!$U$2:$U$2001,A89,'Fully Consumed'!$K$2:$K$2001) -> 3 | H89: =SUMIF(Purchases!$U$3:$U$2002,A89,Purchases!$M$3:$M$2001) -> 3 | I89: 1 | J89: =10/IF(H89>0,(K89/'Summary Stats'!$B$4)^3*(L89/'Summary Stats'!$B$3)^3*MAX((O89-$R$1+1)^2,0.001)*3^B89*IF(LEN(P89)=0,1,IF(P89>=$R$1,P89-$R$1+1,1/($R$1+1-P89))^2),1000000000) -> 4.4998319e-05 | K89: 94 | L89: =IF(H89>0,SUMIF(Purchases!$U$3:$U$2002,A89,Purchases!$N$3:$N$2002)/H89,"") -> 93.50412776 | M89: 92.76 | O89: 2023 | Q89: 396.3333333 | R89: 0.2346509672 | S89: 0.920941968 | T89: 0.920941968 | U89: 0.920941968 | AP89: 280.5123833 | AQ89: 278.28 | AR89: Red | AS89: Walla Walla Valley | AT89: The Rocks of Milton-Freewater | AY89: No Girls | AZ89: 94 | BA89: Rater 2 | BF89: US|Walla Walla Valley | BG89: US|Walla Walla Valley|The Rocks of Milton-Freewater | BI89: Shiraz/Syrah | BJ89: The Rocks of Milton-Freewater | BK89: FALSE | BM89: No Girls Wines | Syrah | La Paciencia Vineyard Syrah | 0.75 L
A90: Moccagatto | 2015 | Nebbiolo | Barbaresco 'Bric Balin' | 0.75 L | B90: 1 | C90: N | D90: IT | E90: 2015 | F90: 1795.61366 | G90: =SUMIF(Purchases!$U$3:$U$2002,A90,Purchases!$K$3:$K$2002)+SUMIF('Fully Consumed'!$U$2:$U$2001,A90,'Fully Consumed'!$K$2:$K$2001) -> 6 | H90: =SUMIF(Purchases!$U$3:$U$2002,A90,Purchases!$M$3:$M$2001) -> 6 | I90: 1 | J90: =10/IF(H90>0,(K90/'Summary Stats'!$B$4)^3*(L90/'Summary Stats'!$B$3)^3*MAX((O90-$R$1+1)^2,0.001)*3^B90*IF(LEN(P90)=0,1,IF(P90>=$R$1,P90-$R$1+1,1/($R$1+1-P90))^2),1000000000) -> 0.0002839030387 | K90: 97 | L90: =IF(H90>0,SUMIF(Purchases!$U$3:$U$2002,A90,Purchases!$N$3:$N$2002)/H90,"") -> 53.04331615 | M90: 51.54 | O90: 2043 | P90: 2023 | Q90: 1278.333333 | U90: 0.2855280313 | V90: 0.2855280313 | W90: 0.2855280313 | X90: 0.2855280313 | Y90: 0.2855280313 | Z90: 0.2855280313 | AA90: 0.2855280313 | AB90: 0.2855280313 | AC90: 0.2855280313 | AD90: 0.2855280313 | AE90: 0.2855280313 | AF90: 0.2855280313 | AG90: 0.2855280313 | AH90: 0.2855280313 | AI90: 0.2855280313 | AJ90: 0.2855280313 | AK90: 0.2855280313 | AL90: 0.2855280313 | AM90: 0.2855280313 | AN90: 0.2855280313 | AO90: 0.2855280313 | AP90: 318.2598969 | AQ90: 309.24 | AR90: Red | AS90: Piedmont | AW90: # 11 of 2019 | AZ90: 97 | BA90: Rater 2 | BF90: IT|Piedmont | BG90: IT|Piedmont| | BI90: Nebbiolo | BK90: FALSE | BM90: Moccagatto | Nebbiolo | Barbaresco 'Bric Balin' | 0.75 L
A91: Once and Future | 2018 | Mourvedre | Mataro Oakley Road Vineyard | 0.75 L | B91: 2 | C91: N | D91: US | E91: 2018 | F91: 699.6136596 | G91: =SUMIF(Purchases!$U$3:$U$2002,A91,Purchases!$K$3:$K$2002)+SUMIF('Fully Consumed'!$U$2:$U$2001,A91,'Fully Consumed'!$K$2:$K$2001) -> 4 | H91: =SUMIF(Purchases!$U$3:$U$2002,A91,Purchases!$M$3:$M$2001) -> 4 | I91: 1 | J91: =10/IF(H91>0,(K91/'Summary Stats'!$B$4)^3*(L91/'Summary Stats'!$B$3)^3*MAX((O91-$R$1+1)^2,0.001)*3^B91*IF(LEN(P91)=0,1,IF(P91>=$R$1,P91-$R$1+1,1/($R$1+1-P91))^2),1000000000) -> 0.02128609434 | K91: 92 | L91: =IF(H91>0,SUMIF(Purchases!$U$3:$U$2002,A91,Purchases!$N$3:$N$2002)/H91,"") -> 44.56063024 | M91: 43.9 | O91: 2028 | Q91: 754 | R91: 0.1233421751 | S91: 0.4840848806 | T91: 0.4840848806 | U91: 0.4840848806 | V91: 0.4840848806 | W91: 0.4840848806 | X91: 0.4840848806 | Y91: 0.4840848806 | Z91: 0.4840848806 | AP91: 178.2425209 | AQ91: 175.6 | AR91: Red | AS91: Contra Costa County | AT91: Oakley Road Vineyard | AZ91: 92 | BA91: Rater 1 | BF91: US|Contra Costa County | BG91: US|Contra Costa County|Oakley Road Vineyard | BI91: Mourvedre | BK91: FALSE | BM91: Once and Future | Mourvedre | Mataro Oakley Road Vineyard | 0.75 L
A92: Paitin | 2014 | Barbaresco | Sorì Paitin Serraboella | 0.75 L | B92: 1 | C92: N | D92: IT | E92: 2013 | F92: 2525.61366 | G92: =SUMIF(Purchases!$U$3:$U$2002,A92,Purchases!$K$3:$K$2002)+SUMIF('Fully Consumed'!$U$2:$U$2001,A92,'Fully Consumed'!$K$2:$K$2001) -> 6 | H92: =SUMIF(Purchases!$U$3:$U$2002,A92,Purchases!$M$3:$M$2001) -> 6 | I92: 1 | J92: =10/IF(H92>0,(K92/'Summary Stats'!$B$4)^3*(L92/'Summary Stats'!$B$3)^3*MAX((O92-$R$1+1)^2,0.001)*3^B92*IF(LEN(P92)=0,1,IF(P92>=$R$1,P92-$R$1+1,1/($R$1+1-P92))^2),1000000000) -> 0.003882700128 | K92: 95 | L92: =IF(H92>0,SUMIF(Purchases!$U$3:$U$2002,A92,Purchases!$N$3:$N$2002)/H92,"") -> 51.49515003 | M92: 50.53 | O92: 2033 | P92: 2021 | Q92: 791.3333333 | S92: 0.4612468408 | T92: 0.4612468408 | U92: 0.4612468408 | V92: 0.4612468408 | W92: 0.4612468408 | X92: 0.4612468408 | Y92: 0.4612468408 | Z92: 0.4612468408 | AA92: 0.4612468408 | AB92: 0.4612468408 | AC92: 0.4612468408 | AD92: 0.4612468408 | AE92: 0.4612468408 | AP92: 308.9709002 | AQ92: 303.18 | AR92: Red | AS92: Piedmont | AZ92: 95 | BA92: Rater 2 | BF92: IT|Piedmont | BG92: IT|Piedmont| | BI92: Nebbiolo | BK92: FALSE | BM92: Paitin | Barbaresco | Sorì Paitin Serraboella | 0.75 L
A93: Once and Future | 2017 | Mourvedre | Mataro Oakley Road Vineyard | 0.75 L | B93: 2 | C93: N | D93: US | E93: 2017 | F93: 1064.61366 | G93: =SUMIF(Purchases!$U$3:$U$2002,A93,Purchases!$K$3:$K$2002)+SUMIF('Fully Consumed'!$U$2:$U$2001,A93,'Fully Consumed'!$K$2:$K$2001) -> 6 | H93: =SUMIF(Purchases!$U$3:$U$2002,A93,Purchases!$M$3:$M$2001) -> 2 | I93: 0.3333333333 | J93: =10/IF(H93>0,(K93/'Summary Stats'!$B$4)^3*(L93/'Summary Stats'!$B$3)^3*MAX((O93-$R$1+1)^2,0.001)*3^B93*IF(LEN(P93)=0,1,IF(P93>=$R$1,P93-$R$1+1,1/($R$1+1-P93))^2),1000000000) -> 0.03840664526 | K93: 92 | L93: =IF(H93>0,SUMIF(Purchases!$U$3:$U$2002,A93,Purchases!$N$3:$N$2002)/H93,"") -> 39.59279935 | M93: 37.8 | O93: 2027 | Q93: 1325 | R93: 0.07018867925 | S93: 0.2754716981 | T93: 0.2754716981 | U93: 0.2754716981 | V93: 0.2754716981 | W93: 0.2754716981 | X93: 0.2754716981 | Y93: 0.2754716981 | AP93: 79.1855987 | AQ93: 75.6 | AR93: Red | AS93: Contra Costa County | AT93: Oakley Road Vineyard | AZ93: 92 | BA93: Rater 1 | BF93: US|Contra Costa County | BG93: US|Contra Costa County|Oakley Road Vineyard | BI93: Mourvedre | BK93: FALSE | BM93: Once and Future | Mourvedre | Mataro Oakley Road Vineyard | 0.75 L
A94: Carlisle | 2016 | Syrah | Syrah, Paso Robles, James Berry Vineyard | 0.75 L | B94: 2 | C94: N | D94: US | E94: 2016 | F94: 1429.61366 | G94: =SUMIF(Purchases!$U$3:$U$2002,A94,Purchases!$K$3:$K$2002)+SUMIF('Fully Consumed'!$U$2:$U$2001,A94,'Fully Consumed'!$K$2:$K$2001) -> 2 | H94: =SUMIF(Purchases!$U$3:$U$2002,A94,Purchases!$M$3:$M$2001) -> 2 | I94: 1 | J94: =10/IF(H94>0,(K94/'Summary Stats'!$B$4)^3*(L94/'Summary Stats'!$B$3)^3*MAX((O94-$R$1+1)^2,0.001)*3^B94*IF(LEN(P94)=0,1,IF(P94>=$R$1,P94-$R$1+1,1/($R$1+1-P94))^2),1000000000) -> 0.00449972021 | K94: 95 | L94: =IF(H94>0,SUMIF(Purchases!$U$3:$U$2002,A94,Purchases!$N$3:$N$2002)/H94,"") -> 59.79890244 | M94: 59.15 | O94: 2031 | Q94: 2055.5 | R94: 0.04524446607 | S94: 0.1775723668 | T94: 0.1775723668 | U94: 0.1775723668 | V94: 0.1775723668 | W94: 0.1775723668 | X94: 0.1775723668 | Y94: 0.1775723668 | Z94: 0.1775723668 | AA94: 0.1775723668 | AB94: 0.1775723668 | AC94: 0.1775723668 | AP94: 119.5978049 | AQ94: 118.3 | AR94: Red | AS94: Paso Robles | AT94: James Berry Vineyard | AY94: Carlisle | AZ94: 95 | BA94: Rater 2 | BF94: US|Paso Robles | BG94: US|Paso Robles|James Berry Vineyard | BI94: Shiraz/Syrah | BK94: FALSE | BM94: Carlisle | Syrah | Syrah, Paso Robles, James Berry Vineyard | 0.75 L
A95: No Girls Wines | 2012 | Syrah | La Paciencia Vineyard Syrah | 0.75 L | B95: 7 | C95: N | D95: US | E95: 2012 | F95: 2890.61366 | G95: =SUMIF(Purchases!$U$3:$U$2002,A95,Purchases!$K$3:$K$2002)+SUMIF('Fully Consumed'!$U$2:$U$2001,A95,'Fully Consumed'!$K$2:$K$2001) -> 3 | H95: =SUMIF(Purchases!$U$3:$U$2002,A95,Purchases!$M$3:$M$2001) -> 2 | I95: 0.6666666667 | J95: =10/IF(H95>0,(K95/'Summary Stats'!$B$4)^3*(L95/'Summary Stats'!$B$3)^3*MAX((O95-$R$1+1)^2,0.001)*3^B95*IF(LEN(P95)=0,1,IF(P95>=$R$1,P95-$R$1+1,1/($R$1+1-P95))^2),1000000000) -> 1.076483004e-05 | K95: 96 | L95: =IF(H95>0,SUMIF(Purchases!$U$3:$U$2002,A95,Purchases!$N$3:$N$2002)/H95,"") -> 92.91028189 | M95: 92.16 | O95: 2027 | Q95: 1325 | R95: 0.07018867925 | S95: =IF(ISNUMBER($Q95),IF(AND(S$1<=$O95,S$1>=$P95),365/$Q95,""),"") -> 0.2754716981 | T95: 0.2754716981 | U95: 0.2754716981 | V95: 0.2754716981 | W95: 0.2754716981 | X95: 0.2754716981 | Y95: 0.2754716981 | AC95: =IF(ISNUMBER($Q95),IF(AND(AC$1<=$O95,AC$1>=$P95),365/$Q95,""),"") ->  | AP95: 185.8205638 | AQ95: 184.32 | AR95: Red | AS95: Walla Walla Valley | AT95: The Rocks of Milton-Freewater | AY95: No Girls | AZ95: 96 | BA95: Rater 2 | BF95: US|Walla Walla Valley | BG95: US|Walla Walla Valley|The Rocks of Milton-Freewater | BI95: Shiraz/Syrah | BJ95: The Rocks of Milton-Freewater | BK95: FALSE | BM95: No Girls Wines | Syrah | La Paciencia Vineyard Syrah | 0.75 L
A96: Carlisle | 2015 | Semillion, Muscadelle, .. | The Derivative | 0.75 L | B96: 1 | C96: N | D96: US | E96: 2015 | F96: 1795.61366 | G96: =SUMIF(Purchases!$U$3:$U$2002,A96,Purchases!$K$3:$K$2002)+SUMIF('Fully Consumed'!$U$2:$U$2001,A96,'Fully Consumed'!$K$2:$K$2001) -> 4 | H96: =SUMIF(Purchases!$U$3:$U$2002,A96,Purchases!$M$3:$M$2001) -> 4 | I96: 1 | J96: =10/IF(H96>0,(K96/'Summary Stats'!$B$4)^3*(L96/'Summary Stats'!$B$3)^3*MAX((O96-$R$1+1)^2,0.001)*3^B96*IF(LEN(P96)=0,1,IF(P96>=$R$1,P96-$R$1+1,1/($R$1+1-P96))^2),1000000000) -> 0.6736540284 | K96: 91 | L96: =IF(H96>0,SUMIF(Purchases!$U$3:$U$2002,A96,Purchases!$N$3:$N$2002)/H96,"") -> 30.39528396 | M96: 29.16 | O96: 2024 | Q96: 388.75 | R96: 0.2392282958 | S96: 0.9389067524 | T96: 0.9389067524 | U96: 0.9389067524 | V96: 0.9389067524 | AP96: 121.5811358 | AQ96: 116.64 | AR96: White | AS96: Sonoma County | AY96: Carlisle | AZ96: 91 | BA96: Rater 1 | BF96: US|Sonoma County | BG96: US|Sonoma County| | BI96: Semillion Blend | BK96: TRUE | BM96: Carlisle | Semillion, Muscadelle, .. | The Derivative | 0.75 L
A97: No Girls Wines | 2011 | Syrah | La Paciencia Vineyard Syrah | 0.75 L | B97: 7 | C97: N | D97: US | E97: 2011 | F97: 3256.61366 | G97: =SUMIF(Purchases!$U$3:$U$2002,A97,Purchases!$K$3:$K$2002)+SUMIF('Fully Consumed'!$U$2:$U$2001,A97,'Fully Consumed'!$K$2:$K$2001) -> 3 | H97: =SUMIF(Purchases!$U$3:$U$2002,A97,Purchases!$M$3:$M$2001) -> 1 | I97: 0.3333333333 | J97: =10/IF(H97>0,(K97/'Summary Stats'!$B$4)^3*(L97/'Summary Stats'!$B$3)^3*MAX((O97-$R$1+1)^2,0.001)*3^B97*IF(LEN(P97)=0,1,IF(P97>=$R$1,P97-$R$1+1,1/($R$1+1-P97))^2),1000000000) -> 1.705056696e-05 | K97: 93 | L97: =IF(H97>0,SUMIF(Purchases!$U$3:$U$2002,A97,Purchases!$N$3:$N$2002)/H97,"") -> 89.93653355 | M97: 87.12 | O97: 2026 | Q97: 2285 | R97: 0.04070021882 | S97: 0.1597374179 | T97: 0.1597374179 | U97: 0.1597374179 | V97: 0.1597374179 | W97: 0.1597374179 | X97: 0.1597374179 | AP97: 89.93653355 | AQ97: 87.12 | AR97: Red | AS97: Walla Walla Valley | AT97: The Rocks of Milton-Freewater | AY97: No Girls | AZ97: 93 | BA97: Rater 2 | BF97: US|Walla Walla Valley | BG97: US|Walla Walla Valley|The Rocks of Milton-Freewater | BI97: Shiraz/Syrah | BJ97: The Rocks of Milton-Freewater | BK97: FALSE | BM97: No Girls Wines | Syrah | La Paciencia Vineyard Syrah | 0.75 L
A98: No Girls Wines | 2010 | Syrah | La Paciencia Vineyard Syrah | 0.75 L | B98: 7 | C98: N | D98: US | E98: 2010 | F98: 3621.61366 | G98: =SUMIF(Purchases!$U$3:$U$2002,A98,Purchases!$K$3:$K$2002)+SUMIF('Fully Consumed'!$U$2:$U$2001,A98,'Fully Consumed'!$K$2:$K$2001) -> 3 | H98: =SUMIF(Purchases!$U$3:$U$2002,A98,Purchases!$M$3:$M$2001) -> 1 | I98: 0.3333333333 | J98: =10/IF(H98>0,(K98/'Summary Stats'!$B$4)^3*(L98/'Summary Stats'!$B$3)^3*MAX((O98-$R$1+1)^2,0.001)*3^B98*IF(LEN(P98)=0,1,IF(P98>=$R$1,P98-$R$1+1,1/($R$1+1-P98))^2),1000000000) -> 3.532574873e-05 | K98: 95 | L98: =IF(H98>0,SUMIF(Purchases!$U$3:$U$2002,A98,Purchases!$N$3:$N$2002)/H98,"") -> 76.53777458 | M98: 75 | O98: 2025 | Q98: 1920 | R98: 0.0484375 | S98: 0.1901041667 | T98: 0.1901041667 | U98: 0.1901041667 | V98: 0.1901041667 | W98: 0.1901041667 | AP98: 76.53777458 | AQ98: 75 | AR98: Red | AS98: Walla Walla Valley | AT98: The Rocks of Milton-Freewater | AY98: No Girls | AZ98: 95 | BA98: Rater 2 | BF98: US|Walla Walla Valley | BG98: US|Walla Walla Valley|The Rocks of Milton-Freewater | BI98: Shiraz/Syrah | BJ98: The Rocks of Milton-Freewater | BK98: FALSE | BM98: No Girls Wines | Syrah | La Paciencia Vineyard Syrah | 0.75 L
A99: Bodegas Los Bermejos | 2019 | Listan Negro | Listan Negro Rosado | 0.75 L | B99: 1 | C99: N | D99: ES | E99: 2019 | F99: 334.6136596 | G99: =SUMIF(Purchases!$U$3:$U$2002,A99,Purchases!$K$3:$K$2002)+SUMIF('Fully Consumed'!$U$2:$U$2001,A99,'Fully Consumed'!$K$2:$K$2001) -> 6 | H99: =SUMIF(Purchases!$U$3:$U$2002,A99,Purchases!$M$3:$M$2001) -> 5 | I99: 0.8333333333 | J99: =10/IF(H99>0,(K99/'Summary Stats'!$B$4)^3*(L99/'Summary Stats'!$B$3)^3*MAX((O99-$R$1+1)^2,0.001)*3^B99*IF(LEN(P99)=0,1,IF(P99>=$R$1,P99-$R$1+1,1/($R$1+1-P99))^2),1000000000) -> 7.718643319 | K99: 91 | L99: =IF(H99>0,SUMIF(Purchases!$U$3:$U$2002,A99,Purchases!$N$3:$N$2002)/H99,"") -> 24.83503961 | M99: 23.75 | O99: 2021 | Q99: 91.8 | R99: 1.013071895 | S99: 3.976034858 | AP99: 124.1751981 | AQ99: 118.75 | AR99: Rose | AS99: Lanzarote, Canary Islands | AZ99: 91 | BA99: Rater 1 | BF99: ES|Lanzarote, Canary Islands | BG99: ES|Lanzarote, Canary Islands| | BI99: Listan Negro | BK99: FALSE | BM99: Bodegas Los Bermejos | Listan Negro | Listan Negro Rosado | 0.75 L
A100: Dow | 2011 | Port | Vintage Porto | 0.75 L | B100: 2 | C100: N | D100: PT | E100: 2011 | F100: 3256.61366 | G100: =SUMIF(Purchases!$U$3:$U$2002,A100,Purchases!$K$3:$K$2002)+SUMIF('Fully Consumed'!$U$2:$U$2001,A100,'Fully Consumed'!$K$2:$K$2001) -> 4 | H100: =SUMIF(Purchases!$U$3:$U$2002,A100,Purchases!$M$3:$M$2001) -> 4 | I100: 1 | J100: =10/IF(H100>0,(K100/'Summary Stats'!$B$4)^3*(L100/'Summary Stats'!$B$3)^3*MAX((O100-$R$1+1)^2,0.001)*3^B100*IF(LEN(P100)=0,1,IF(P100>=$R$1,P100-$R$1+1,1/($R$1+1-P100))^2),1000000000) -> 3.407379724e-06 | K100: 99 | L100: =IF(H100>0,SUMIF(Purchases!$U$3:$U$2002,A100,Purchases!$N$3:$N$2002)/H100,"") -> 67.60640772 | M100: 65.99 | N100: AL-N-L2-3 | O100: 2050 | P100: 2030 | Q100: 1917.5 | AB100: 0.1903520209 | AC100: 0.1903520209 | AD100: 0.1903520209 | AE100: 0.1903520209 | AF100: 0.1903520209 | AG100: 0.1903520209 | AH100: 0.1903520209 | AI100: 0.1903520209 | AJ100: 0.1903520209 | AK100: 0.1903520209 | AL100: 0.1903520209 | AM100: 0.1903520209 | AN100: 0.1903520209 | AO100: 0.1903520209 | AP100: 270.4256309 | AQ100: 263.96 | AR100: Dessert | AW100: 41653 | AZ100: 99 | BA100: Rater 2 | BF100: PT| | BG100: PT|| | BI100: Port | BK100: TRUE | BM100: Dow | Port | Vintage Porto | 0.75 L
A101: Myriad Cellars | 2017 | Syrah | Syrah Halcon Vineyard | 0.75 L | B101: 1 | C101: N | D101: US | E101: 2017 | F101: 1064.61366 | G101: =SUMIF(Purchases!$U$3:$U$2002,A101,Purchases!$K$3:$K$2002)+SUMIF('Fully Consumed'!$U$2:$U$2001,A101,'Fully Consumed'!$K$2:$K$2001) -> 3 | H101: =SUMIF(Purchases!$U$3:$U$2002,A101,Purchases!$M$3:$M$2001) -> 1 | I101: 0.3333333333 | J101: =10/IF(H101>0,(K101/'Summary Stats'!$B$4)^3*(L101/'Summary Stats'!$B$3)^3*MAX((O101-$R$1+1)^2,0.001)*3^B101*IF(LEN(P101)=0,1,IF(P101>=$R$1,P101-$R$1+1,1/($R$1+1-P101))^2),1000000000) -> 0.005053245271 | K101: 92 | L101: =IF(H101>0,SUMIF(Purchases!$U$3:$U$2002,A101,Purchases!$N$3:$N$2002)/H101,"") -> 53.97439579 | M101: 53.42 | O101: 2027 | P101: 2022 | Q101: 2191 | T101: 0.1665905979 | U101: 0.1665905979 | V101: 0.1665905979 | W101: 0.1665905979 | X101: 0.1665905979 | Y101: 0.1665905979 | AP101: 53.97439579 | AQ101: 53.42 | AR101: Red | AS101: Yorkville Highlands | AT101: Halcon Vineyard | AZ101: 92 | BA101: Rater 1 | BF101: US|Yorkville Highlands | BG101: US|Yorkville Highlands|Halcon Vineyard | BI101: Shiraz/Syrah | BK101: FALSE | BM101: Myriad Cellars | Syrah | Syrah Halcon Vineyard | 0.75 L
A102: Myriad Cellars | 2016 | Syrah | Syrah Las Madres Esther Block | 0.75 L | B102: 2 | C102: N | D102: US | E102: 2016 | F102: 1429.61366 | G102: =SUMIF(Purchases!$U$3:$U$2002,A102,Purchases!$K$3:$K$2002)+SUMIF('Fully Consumed'!$U$2:$U$2001,A102,'Fully Consumed'!$K$2:$K$2001) -> 2 | H102: =SUMIF(Purchases!$U$3:$U$2002,A102,Purchases!$M$3:$M$2001) -> 1 | I102: 0.5 | J102: =10/IF(H102>0,(K102/'Summary Stats'!$B$4)^3*(L102/'Summary Stats'!$B$3)^3*MAX((O102-$R$1+1)^2,0.001)*3^B102*IF(LEN(P102)=0,1,IF(P102>=$R$1,P102-$R$1+1,1/($R$1+1-P102))^2),1000000000) -> 0.04966059669 | K102: 92 | L102: =IF(H102>0,SUMIF(Purchases!$U$3:$U$2002,A102,Purchases!$N$3:$N$2002)/H102,"") -> 39.72607461 | M102: 39.36 | O102: 2026 | Q102: 2285 | R102: 0.04070021882 | S102: 0.1597374179 | T102: 0.1597374179 | U102: 0.1597374179 | V102: 0.1597374179 | W102: 0.1597374179 | X102: 0.1597374179 | AP102: 39.72607461 | AQ102: 39.36 | AR102: Red | AS102: Sonoma County | AT102: Las Madres Vineyard | AZ102: 92 | BA102: Rater 1 | BF102: US|Sonoma County | BG102: US|Sonoma County|Las Madres Vineyard | BI102: Shiraz/Syrah | BK102: FALSE | BM102: Myriad Cellars | Syrah | Syrah Las Madres Esther Block | 0.75 L
A103: Luigi Pira | 2013 | Nebbiolo | Serralunga Barolo | 0.75 L | B103: 1 | C103: N | D103: IT | E103: 2013 | F103: 2525.61366 | G103: =SUMIF(Purchases!$U$3:$U$2002,A103,Purchases!$K$3:$K$2002)+SUMIF('Fully Consumed'!$U$2:$U$2001,A103,'Fully Consumed'!$K$2:$K$2001) -> 12 | H103: =SUMIF(Purchases!$U$3:$U$2002,A103,Purchases!$M$3:$M$2001) -> 12 | I103: 1 | J103: =10/IF(H103>0,(K103/'Summary Stats'!$B$4)^3*(L103/'Summary Stats'!$B$3)^3*MAX((O103-$R$1+1)^2,0.001)*3^B103*IF(LEN(P103)=0,1,IF(P103>=$R$1,P103-$R$1+1,1/($R$1+1-P103))^2),1000000000) -> 0.003209497219 | K103: 95 | L103: =IF(H103>0,SUMIF(Purchases!$U$3:$U$2002,A103,Purchases!$N$3:$N$2002)/H103,"") -> 31.95535141 | M103: 31.24 | O103: 2040 | P103: 2022 | Q103: 578.3333333 | T103: 0.6311239193 | U103: 0.6311239193 | V103: 0.6311239193 | W103: 0.6311239193 | X103: 0.6311239193 | Y103: 0.6311239193 | Z103: 0.6311239193 | AA103: 0.6311239193 | AB103: 0.6311239193 | AC103: 0.6311239193 | AD103: 0.6311239193 | AE103: 0.6311239193 | AF103: 0.6311239193 | AG103: 0.6311239193 | AH103: 0.6311239193 | AI103: 0.6311239193 | AJ103: 0.6311239193 | AK103: 0.6311239193 | AL103: 0.6311239193 | AP103: 383.4642169 | AQ103: 374.88 | AR103: Red | AS103: Piedmont | AZ103: 95 | BA103: Rater 2 | BF103: IT|Piedmont | BG103: IT|Piedmont| | BI103: Nebbiolo | BK103: FALSE | BM103: Luigi Pira | Nebbiolo | Serralunga Barolo | 0.75 L
A104: Louis Cheze | 2015 | Viognier | Condrieu Pagus Luminis | 0.75 L | B104: 1 | C104: N | D104: FR | E104: 2015 | F104: 1795.61366 | G104: =SUMIF(Purchases!$U$3:$U$2002,A104,Purchases!$K$3:$K$2002)+SUMIF('Fully Consumed'!$U$2:$U$2001,A104,'Fully Consumed'!$K$2:$K$2001) -> 2 | H104: =SUMIF(Purchases!$U$3:$U$2002,A104,Purchases!$M$3:$M$2001) -> 1 | I104: 0.5 | J104: =10/IF(H104>0,(K104/'Summary Stats'!$B$4)^3*(L104/'Summary Stats'!$B$3)^3*MAX((O104-$R$1+1)^2,0.001)*3^B104*IF(LEN(P104)=0,1,IF(P104>=$R$1,P104-$R$1+1,1/($R$1+1-P104))^2),1000000000) -> 0.487770004 | K104: 96 | L104: =IF(H104>0,SUMIF(Purchases!$U$3:$U$2002,A104,Purchases!$N$3:$N$2002)/H104,"") -> 45.10411211 | M104: 43.15 | O104: 2022 | Q104: 824 | R104: 0.1128640777 | S104: 0.442961165 | T104: 0.442961165 | AP104: 45.10411211 | AQ104: 43.15 | AR104: White | AS104: Northern Rhone | AZ104: 96 | BA104: Rater 2 | BF104: FR|Northern Rhone | BG104: FR|Northern Rhone| | BI104: Viognier | BK104: FALSE | BM104: Louis Cheze | Viognier | Condrieu Pagus Luminis | 0.75 L
A105: La Serena | 2010 | Brunello (Sangiovese) | Brunello di Montalcino | 0.75 L | B105: 1 | C105: N | D105: IT | E105: 2010 | F105: 3621.61366 | G105: =SUMIF(Purchases!$U$3:$U$2002,A105,Purchases!$K$3:$K$2002)+SUMIF('Fully Consumed'!$U$2:$U$2001,A105,'Fully Consumed'!$K$2:$K$2001) -> 12 | H105: =SUMIF(Purchases!$U$3:$U$2002,A105,Purchases!$M$3:$M$2001) -> 12 | I105: 1 | J105: =10/IF(H105>0,(K105/'Summary Stats'!$B$4)^3*(L105/'Summary Stats'!$B$3)^3*MAX((O105-$R$1+1)^2,0.001)*3^B105*IF(LEN(P105)=0,1,IF(P105>=$R$1,P105-$R$1+1,1/($R$1+1-P105))^2),1000000000) -> 0.01054825598 | K105: 96 | L105: =IF(H105>0,SUMIF(Purchases!$U$3:$U$2002,A105,Purchases!$N$3:$N$2002)/H105,"") -> 50.93416254 | M105: 49.01 | N105: AL-E-L1-3 | O105: 2036 | Q105: 494.8333333 | R105: 0.187942068 | S105: 0.737622095 | T105: 0.737622095 | U105: 0.737622095 | V105: 0.737622095 | W105: 0.737622095 | X105: 0.737622095 | Y105: 0.737622095 | Z105: 0.737622095 | AA105: 0.737622095 | AB105: 0.737622095 | AC105: 0.737622095 | AD105: 0.737622095 | AE105: 0.737622095 | AF105: 0.737622095 | AG105: 0.737622095 | AH105: 0.737622095 | AP105: 611.2099505 | AQ105: 588.12 | AR105: Red | AY105: 2010 Brunello | AZ105: 96 | BA105: Rater 2 | BF105: IT| | BG105: IT|| | BI105: Brunello | BK105: FALSE | BM105: La Serena | Brunello (Sangiovese) | Brunello di Montalcino | 0.75 L
A106: La Poderina | 2006 | Brunello | Brunello di Montalcino | 0.75 L | B106: 1 | C106: N | D106: IT | E106: 2006 | F106: 5082.61366 | G106: =SUMIF(Purchases!$U$3:$U$2002,A106,Purchases!$K$3:$K$2002)+SUMIF('Fully Consumed'!$U$2:$U$2001,A106,'Fully Consumed'!$K$2:$K$2001) -> 12 | H106: =SUMIF(Purchases!$U$3:$U$2002,A106,Purchases!$M$3:$M$2001) -> 8 | I106: 0.6666666667 | J106: =10/IF(H106>0,(K106/'Summary Stats'!$B$4)^3*(L106/'Summary Stats'!$B$3)^3*MAX((O106-$R$1+1)^2,0.001)*3^B106*IF(LEN(P106)=0,1,IF(P106>=$R$1,P106-$R$1+1,1/($R$1+1-P106))^2),1000000000) -> 0.172010471 | K106: 95 | L106: =IF(H106>0,SUMIF(Purchases!$U$3:$U$2002,A106,Purchases!$N$3:$N$2002)/H106,"") -> 36.67183515 | M106: 35.99 | N106: AL-E-L4-2, AL-E-L2-3 | O106: 2026 | Q106: 285.625 | R106: 0.3256017505 | S106: 1.277899344 | T106: 1.277899344 | U106: 1.277899344 | V106: 1.277899344 | W106: 1.277899344 | X106: 1.277899344 | AP106: 293.3746812 | AQ106: 287.92 | AR106: Red | AY106: 2006 Brunello | AZ106: 95 | BA106: James Suckling | BB106: 89 | BC106: Rater 2 | BF106: IT| | BG106: IT|| | BI106: Brunello | BK106: FALSE | BM106: La Poderina | Brunello | Brunello di Montalcino | 0.75 L
A107: Clos des Papes | 2016 | Grenache blend | Châteauneuf-du-Pape | 0.75 L | B107: 6 | C107: N | D107: FR | E107: 2016 | F107: 1429.61366 | G107: =SUMIF(Purchases!$U$3:$U$2002,A107,Purchases!$K$3:$K$2002)+SUMIF('Fully Consumed'!$U$2:$U$2001,A107,'Fully Consumed'!$K$2:$K$2001) -> 3 | H107: =SUMIF(Purchases!$U$3:$U$2002,A107,Purchases!$M$3:$M$2001) -> 3 | I107: 1 | J107: =10/IF(H107>0,(K107/'Summary Stats'!$B$4)^3*(L107/'Summary Stats'!$B$3)^3*MAX((O107-$R$1+1)^2,0.001)*3^B107*IF(LEN(P107)=0,1,IF(P107>=$R$1,P107-$R$1+1,1/($R$1+1-P107))^2),1000000000) -> 2.879058089e-06 | K107: 95 | L107: =IF(H107>0,SUMIF(Purchases!$U$3:$U$2002,A107,Purchases!$N$3:$N$2002)/H107,"") -> 127.1544169 | M107: 125.08 | O107: 2036 | Q107: 1979.333333 | R107: 0.04698551701 | S107: =IF(ISNUMBER($Q107),IF(AND(S$1<=$O107,S$1>=$P107),365/$Q107,""),"") -> 0.1844055237 | T107: 0.1844055237 | U107: 0.1844055237 | V107: 0.1844055237 | W107: 0.1844055237 | X107: 0.1844055237 | Y107: 0.1844055237 | Z107: 0.1844055237 | AA107: 0.1844055237 | AB107: 0.1844055237 | AC107: =IF(ISNUMBER($Q107),IF(AND(AC$1<=$O107,AC$1>=$P107),365/$Q107,""),"") -> 0.1844055237 | AD107: 0.1844055237 | AE107: 0.1844055237 | AF107: 0.1844055237 | AG107: 0.1844055237 | AH107: 0.1844055237 | AP107: 381.4632508 | AQ107: 375.24 | AR107: Red | AS107: Châteauneuf-du-Pape | AY107: Clos des Pape | AZ107: 95 | BA107: Rater 1 | BF107: FR|Châteauneuf-du-Pape | BG107: FR|Châteauneuf-du-Pape| | BI107: Grenache Blend | BK107: TRUE | BM107: Clos des Papes | Grenache blend | Châteauneuf-du-Pape | 0.75 L
A108: Chateau d'Yquem | 2002 | Sauternes | Sauternes | 0.375 L | B108: 1 | C108: N | D108: FR | E108: 2002 | F108: 6543.61366 | G108: =SUMIF(Purchases!$U$3:$U$2002,A108,Purchases!$K$3:$K$2002)+SUMIF('Fully Consumed'!$U$2:$U$2001,A108,'Fully Consumed'!$K$2:$K$2001) -> 4 | H108: =SUMIF(Purchases!$U$3:$U$2002,A108,Purchases!$M$3:$M$2001) -> 4 | I108: 1 | J108: =10/IF(H108>0,(K108/'Summary Stats'!$B$4)^3*(L108/'Summary Stats'!$B$3)^3*MAX((O108-$R$1+1)^2,0.001)*3^B108*IF(LEN(P108)=0,1,IF(P108>=$R$1,P108-$R$1+1,1/($R$1+1-P108))^2),1000000000) -> 0.002399627546 | K108: 96 | L108: =IF(H108>0,SUMIF(Purchases!$U$3:$U$2002,A108,Purchases!$N$3:$N$2002)/H108,"") -> 111.5301453 | M108: 110.7 | O108: 2030 | Q108: 936.5 | R108: 0.09930592632 | S108: 0.3897490657 | T108: 0.3897490657 | U108: 0.3897490657 | V108: 0.3897490657 | W108: 0.3897490657 | X108: 0.3897490657 | Y108: 0.3897490657 | Z108: 0.3897490657 | AA108: 0.3897490657 | AB108: 0.3897490657 | AP108: 446.1205811 | AQ108: 442.8 | AR108: Dessert | AZ108: 96 | BA108: Rater 2 | BF108: FR| | BG108: FR|| | BI108: Sauternes | BK108: TRUE | BM108: Chateau d'Yquem | Sauternes | Sauternes | 0.375 L
A109: Keplinger Wines | 2016 | Syrah | Fuego y Mar | 0.75 L | B109: 1 | C109: N | D109: US | E109: 2016 | F109: 1429.61366 | G109: =SUMIF(Purchases!$U$3:$U$2002,A109,Purchases!$K$3:$K$2002)+SUMIF('Fully Consumed'!$U$2:$U$2001,A109,'Fully Consumed'!$K$2:$K$2001) -> 1 | H109: =SUMIF(Purchases!$U$3:$U$2002,A109,Purchases!$M$3:$M$2001) -> 1 | I109: 1 | J109: =10/IF(H109>0,(K109/'Summary Stats'!$B$4)^3*(L109/'Summary Stats'!$B$3)^3*MAX((O109-$R$1+1)^2,0.001)*3^B109*IF(LEN(P109)=0,1,IF(P109>=$R$1,P109-$R$1+1,1/($R$1+1-P109))^2),1000000000) -> 0.01474546957 | K109: 93 | L109: =IF(H109>0,SUMIF(Purchases!$U$3:$U$2002,A109,Purchases!$N$3:$N$2002)/H109,"") -> 84.95821771 | M109: 82.64 | O109: 2026 | Q109: 2285 | R109: 0.04070021882 | S109: 0.1597374179 | T109: 0.1597374179 | U109: 0.1597374179 | V109: 0.1597374179 | W109: 0.1597374179 | X109: 0.1597374179 | AP109: 84.95821771 | AQ109: 82.64 | AR109: Red | AS109: Sonoma Coast | AT109: Silver Eagle Vineyard | AZ109: 93 | BA109: Rater 1 | BF109: US|Sonoma Coast | BG109: US|Sonoma Coast|Silver Eagle Vineyard | BI109: Shiraz/Syrah | BK109: FALSE | BM109: Keplinger Wines | Syrah | Fuego y Mar | 0.75 L
A110: Keplinger Wines | 2017 | Grenache | El Diablo | 0.75 L | B110: 1 | C110: N | D110: US | E110: 2017 | F110: 1064.61366 | G110: =SUMIF(Purchases!$U$3:$U$2002,A110,Purchases!$K$3:$K$2002)+SUMIF('Fully Consumed'!$U$2:$U$2001,A110,'Fully Consumed'!$K$2:$K$2001) -> 1 | H110: =SUMIF(Purchases!$U$3:$U$2002,A110,Purchases!$M$3:$M$2001) -> 1 | I110: 1 | J110: =10/IF(H110>0,(K110/'Summary Stats'!$B$4)^3*(L110/'Summary Stats'!$B$3)^3*MAX((O110-$R$1+1)^2,0.001)*3^B110*IF(LEN(P110)=0,1,IF(P110>=$R$1,P110-$R$1+1,1/($R$1+1-P110))^2),1000000000) -> 0.01118049921 | K110: 93 | L110: =IF(H110>0,SUMIF(Purchases!$U$3:$U$2002,A110,Purchases!$N$3:$N$2002)/H110,"") -> 85.23341689 | M110: 82.64 | O110: 2027 | Q110: 2650 | R110: 0.03509433962 | S110: 0.1377358491 | T110: 0.1377358491 | U110: 0.1377358491 | V110: 0.1377358491 | W110: 0.1377358491 | X110: 0.1377358491 | Y110: 0.1377358491 | AP110: 85.23341689 | AQ110: 82.64 | AR110: Red | AS110: Russian River Valley | AZ110: 93 | BA110: Rater 1 | BF110: US|Russian River Valley | BG110: US|Russian River Valley| | BI110: Grenache | BK110: FALSE | BM110: Keplinger Wines | Grenache | El Diablo | 0.75 L
A111: Tardieu-Laurent | 2005 | Chateauneuf Du Pape | Chateauneuf du Pape Vielles Vignes | 0.75 L | B111: 1 | C111: N | D111: FR | E111: 2005 | F111: 5447.61366 | G111: =SUMIF(Purchases!$U$3:$U$2002,A111,Purchases!$K$3:$K$2002)+SUMIF('Fully Consumed'!$U$2:$U$2001,A111,'Fully Consumed'!$K$2:$K$2001) -> 12 | H111: =SUMIF(Purchases!$U$3:$U$2002,A111,Purchases!$M$3:$M$2001) -> 5 | I111: 0.4166666667 | J111: =10/IF(H111>0,(K111/'Summary Stats'!$B$4)^3*(L111/'Summary Stats'!$B$3)^3*MAX((O111-$R$1+1)^2,0.001)*3^B111*IF(LEN(P111)=0,1,IF(P111>=$R$1,P111-$R$1+1,1/($R$1+1-P111))^2),1000000000) -> 0.0137047441 | K111: 96 | L111: =IF(H111>0,SUMIF(Purchases!$U$3:$U$2002,A111,Purchases!$N$3:$N$2002)/H111,"") -> 55.8190952 | M111: 55.78 | N111: AL-E-L1-2 | O111: 2032 | Q111: 895.4 | R111: 0.1038641948 | S111: 0.407639044 | T111: 0.407639044 | U111: 0.407639044 | V111: 0.407639044 | W111: 0.407639044 | X111: 0.407639044 | Y111: 0.407639044 | Z111: 0.407639044 | AA111: 0.407639044 | AB111: 0.407639044 | AC111: 0.407639044 | AD111: 0.407639044 | AP111: 279.095476 | AQ111: 278.9 | AR111: Red | AY111: 2005 Châteauneuf-du-Pape | AZ111: 96 | BA111: Rater 2 | BF111: FR| | BG111: FR|| | BI111: Grenache Blend | BJ111: Châteauneuf-du-Pape | BK111: FALSE | BM111: Tardieu-Laurent | Chateauneuf Du Pape | Chateauneuf du Pape Vielles Vignes | 0.75 L
A112: Clos du Mont-Olivet | 2005 | Chateauneuf Du Pape | Reserve Auguste Favier | 0.75 L | B112: 1 | C112: N | D112: FR | E112: 2005 | F112: 5447.61366 | G112: =SUMIF(Purchases!$U$3:$U$2002,A112,Purchases!$K$3:$K$2002)+SUMIF('Fully Consumed'!$U$2:$U$2001,A112,'Fully Consumed'!$K$2:$K$2001) -> 12 | H112: =SUMIF(Purchases!$U$3:$U$2002,A112,Purchases!$M$3:$M$2001) -> 9 | I112: 0.75 | J112: =10/IF(H112>0,(K112/'Summary Stats'!$B$4)^3*(L112/'Summary Stats'!$B$3)^3*MAX((O112-$R$1+1)^2,0.001)*3^B112*IF(LEN(P112)=0,1,IF(P112>=$R$1,P112-$R$1+1,1/($R$1+1-P112))^2),1000000000) -> 0.2723088161 | K112: 93 | L112: =IF(H112>0,SUMIF(Purchases!$U$3:$U$2002,A112,Purchases!$N$3:$N$2002)/H112,"") -> 29.40422451 | M112: 29.25 | N112: AL-N-L4-3 | O112: 2027 | Q112: 294.4444444 | R112: 0.3158490566 | S112: =IF(ISNUMBER($Q112),IF(AND(S$1<=$O112,S$1>=$P112),365/$Q112,""),"") -> 1.239622642 | T112: 1.239622642 | U112: 1.239622642 | V112: 1.239622642 | W112: 1.239622642 | X112: 1.239622642 | Y112: 1.239622642 | AC112: =IF(ISNUMBER($Q112),IF(AND(AC$1<=$O112,AC$1>=$P112),365/$Q112,""),"") ->  | AP112: 264.6380206 | AQ112: 263.25 | AR112: Red | AW112: 32-07 | AY112: 2005 Châteauneuf-du-Pape | AZ112: 93 | BA112: Rater 2 | BF112: FR| | BG112: FR|| | BI112: Grenache Blend | BJ112: Châteauneuf-du-Pape | BK112: TRUE | BM112: Clos du Mont-Olivet | Chateauneuf Du Pape | Reserve Auguste Favier | 0.75 L
A113: Carlisle | 2015 | Syrah | Syrah, Santa Lucia Highlands, Sierra Mar VY | 0.75 L | B113: 1 | C113: N | D113: US | E113: 2015 | F113: 1795.61366 | G113: =SUMIF(Purchases!$U$3:$U$2002,A113,Purchases!$K$3:$K$2002)+SUMIF('Fully Consumed'!$U$2:$U$2001,A113,'Fully Consumed'!$K$2:$K$2001) -> 2 | H113: =SUMIF(Purchases!$U$3:$U$2002,A113,Purchases!$M$3:$M$2001) -> 2 | I113: 1 | J113: =10/IF(H113>0,(K113/'Summary Stats'!$B$4)^3*(L113/'Summary Stats'!$B$3)^3*MAX((O113-$R$1+1)^2,0.001)*3^B113*IF(LEN(P113)=0,1,IF(P113>=$R$1,P113-$R$1+1,1/($R$1+1-P113))^2),1000000000) -> 0.06140113609 | K113: 94 | L113: =IF(H113>0,SUMIF(Purchases!$U$3:$U$2002,A113,Purchases!$N$3:$N$2002)/H113,"") -> 47.79618757 | M113: 45.9 | O113: 2027 | Q113: 1325 | R113: 0.07018867925 | S113: 0.2754716981 | T113: 0.2754716981 | U113: 0.2754716981 | V113: 0.2754716981 | W113: 0.2754716981 | X113: 0.2754716981 | Y113: 0.2754716981 | AP113: 95.59237513 | AQ113: 91.8 | AR113: Red | AS113: Santa Lucia Highlands | AT113: Sierra Mar Vineyard | AY113: Carlisle | AZ113: 94 | BA113: Rater 2 | BF113: US|Santa Lucia Highlands | BG113: US|Santa Lucia Highlands|Sierra Mar Vineyard | BI113: Shiraz/Syrah | BK113: FALSE | BM113: Carlisle | Syrah | Syrah, Santa Lucia Highlands, Sierra Mar VY | 0.75 L
A114: Keplinger Wines | 2017 | 84% Petite Sirah, 13% Syrah, 3% Viognier | Sumo | 0.75 L | B114: 1 | C114: N | D114: US | E114: 2017 | F114: 1064.61366 | G114: =SUMIF(Purchases!$U$3:$U$2002,A114,Purchases!$K$3:$K$2002)+SUMIF('Fully Consumed'!$U$2:$U$2001,A114,'Fully Consumed'!$K$2:$K$2001) -> 1 | H114: =SUMIF(Purchases!$U$3:$U$2002,A114,Purchases!$M$3:$M$2001) -> 1 | I114: 1 | J114: =10/IF(H114>0,(K114/'Summary Stats'!$B$4)^3*(L114/'Summary Stats'!$B$3)^3*MAX((O114-$R$1+1)^2,0.001)*3^B114*IF(LEN(P114)=0,1,IF(P114>=$R$1,P114-$R$1+1,1/($R$1+1-P114))^2),1000000000) -> 0.01130379366 | K114: 93 | L114: =IF(H114>0,SUMIF(Purchases!$U$3:$U$2002,A114,Purchases!$N$3:$N$2002)/H114,"") -> 84.92239304 | M114: 83.71 | O114: 2027 | Q114: 2650 | R114: 0.03509433962 | S114: 0.1377358491 | T114: 0.1377358491 | U114: 0.1377358491 | V114: 0.1377358491 | W114: 0.1377358491 | X114: 0.1377358491 | Y114: 0.1377358491 | AP114: 84.92239304 | AQ114: 83.71 | AR114: Red | AS114: Amador County | AT114: Shake Ridge Vineyard | AZ114: 93 | BA114: Rater 1 | BF114: US|Amador County | BG114: US|Amador County|Shake Ridge Vineyard | BI114: Petite Sirah Blend | BK114: FALSE | BM114: Keplinger Wines | 84% Petite Sirah, 13% Syrah, 3% Viognier | Sumo | 0.75 L
A115: Keplinger Wines | 2016 | 77% Mourvedre, 19% Grenache, 4% Counoise | Caldera | 0.75 L | B115: 2 | C115: N | D115: US | E115: 2016 | F115: 1429.61366 | G115: =SUMIF(Purchases!$U$3:$U$2002,A115,Purchases!$K$3:$K$2002)+SUMIF('Fully Consumed'!$U$2:$U$2001,A115,'Fully Consumed'!$K$2:$K$2001) -> 1 | H115: =SUMIF(Purchases!$U$3:$U$2002,A115,Purchases!$M$3:$M$2001) -> 1 | I115: 1 | J115: =10/IF(H115>0,(K115/'Summary Stats'!$B$4)^3*(L115/'Summary Stats'!$B$3)^3*MAX((O115-$R$1+1)^2,0.001)*3^B115*IF(LEN(P115)=0,1,IF(P115>=$R$1,P115-$R$1+1,1/($R$1+1-P115))^2),1000000000) -> 0.004820684448 | K115: 93 | L115: =IF(H115>0,SUMIF(Purchases!$U$3:$U$2002,A115,Purchases!$N$3:$N$2002)/H115,"") -> 85.50961329 | M115: 82.64 | O115: 2026 | Q115: 2285 | R115: 0.04070021882 | S115: 0.1597374179 | T115: 0.1597374179 | U115: 0.1597374179 | V115: 0.1597374179 | W115: 0.1597374179 | X115: 0.1597374179 | AP115: 85.50961329 | AQ115: 82.64 | AR115: Red | AS115: El Dorado | AT115: Goldbud Vineyard | AZ115: 93 | BA115: Rater 1 | BF115: US|El Dorado | BG115: US|El Dorado|Goldbud Vineyard | BI115: Mourvedre Blend | BK115: FALSE | BM115: Keplinger Wines | 77% Mourvedre, 19% Grenache, 4% Counoise | Caldera | 0.75 L
A116: Le Vieux Donjon | 2005 | Chateauneuf Du Pape | Chateauneuf Du Pape | 0.75 L | B116: 1 | C116: N | D116: FR | E116: 2005 | F116: 5447.61366 | G116: =SUMIF(Purchases!$U$3:$U$2002,A116,Purchases!$K$3:$K$2002)+SUMIF('Fully Consumed'!$U$2:$U$2001,A116,'Fully Consumed'!$K$2:$K$2001) -> 6 | H116: =SUMIF(Purchases!$U$3:$U$2002,A116,Purchases!$M$3:$M$2001) -> 4 | I116: 0.6666666667 | J116: =10/IF(H116>0,(K116/'Summary Stats'!$B$4)^3*(L116/'Summary Stats'!$B$3)^3*MAX((O116-$R$1+1)^2,0.001)*3^B116*IF(LEN(P116)=0,1,IF(P116>=$R$1,P116-$R$1+1,1/($R$1+1-P116))^2),1000000000) -> 0.143043299 | K116: 95 | L116: =IF(H116>0,SUMIF(Purchases!$U$3:$U$2002,A116,Purchases!$N$3:$N$2002)/H116,"") -> 43.21749853 | M116: 42.66 | N116: AL-N-L4-2 | O116: 2025 | Q116: 480 | R116: 0.19375 | S116: 0.7604166667 | T116: 0.7604166667 | U116: 0.7604166667 | V116: 0.7604166667 | W116: 0.7604166667 | AP116: 172.8699941 | AQ116: 170.64 | AR116: Red | AW116: #3 of 2007 | AY116: 2005 Châteauneuf-du-Pape | AZ116: 95 | BA116: Rater 2 | BF116: FR| | BG116: FR|| | BI116: Grenache Blend | BJ116: Châteauneuf-du-Pape | BK116: FALSE | BM116: Le Vieux Donjon | Chateauneuf Du Pape | Chateauneuf Du Pape | 0.75 L
A117: Jean-Luc Columbo | 2010 | Syrah | Cornas La Louvée | 0.75 L | B117: 1 | C117: N | D117: FR | E117: 2010 | F117: 3621.61366 | G117: =SUMIF(Purchases!$U$3:$U$2002,A117,Purchases!$K$3:$K$2002)+SUMIF('Fully Consumed'!$U$2:$U$2001,A117,'Fully Consumed'!$K$2:$K$2001) -> 12 | H117: =SUMIF(Purchases!$U$3:$U$2002,A117,Purchases!$M$3:$M$2001) -> 9 | I117: 0.75 | J117: =10/IF(H117>0,(K117/'Summary Stats'!$B$4)^3*(L117/'Summary Stats'!$B$3)^3*MAX((O117-$R$1+1)^2,0.001)*3^B117*IF(LEN(P117)=0,1,IF(P117>=$R$1,P117-$R$1+1,1/($R$1+1-P117))^2),1000000000) -> 0.04218433939 | K117: 96 | L117: =IF(H117>0,SUMIF(Purchases!$U$3:$U$2002,A117,Purchases!$N$3:$N$2002)/H117,"") -> 42.89333325 | M117: 41.99 | N117: AL-E-L1-2 | O117: 2030 | Q117: 416.2222222 | R117: 0.2234383342 | S117: 0.8769353978 | T117: 0.8769353978 | U117: 0.8769353978 | V117: 0.8769353978 | W117: 0.8769353978 | X117: 0.8769353978 | Y117: 0.8769353978 | Z117: 0.8769353978 | AA117: 0.8769353978 | AB117: 0.8769353978 | AP117: 386.0399993 | AQ117: 377.91 | AR117: Red | AZ117: 96 | BA117: Rater 2 | BF117: FR| | BG117: FR|| | BI117: Shiraz/Syrah | BK117: FALSE | BM117: Jean-Luc Columbo | Syrah | Cornas La Louvée | 0.75 L
A118: Keep Wines | 2016 | Syrah | Syrah Napa Valley | 0.75 L | B118: 1 | C118: N | D118: US | E118: 2016 | F118: 1429.61366 | G118: =SUMIF(Purchases!$U$3:$U$2002,A118,Purchases!$K$3:$K$2002)+SUMIF('Fully Consumed'!$U$2:$U$2001,A118,'Fully Consumed'!$K$2:$K$2001) -> 4 | H118: =SUMIF(Purchases!$U$3:$U$2002,A118,Purchases!$M$3:$M$2001) -> 2 | I118: 0.5 | J118: =10/IF(H118>0,(K118/'Summary Stats'!$B$4)^3*(L118/'Summary Stats'!$B$3)^3*MAX((O118-$R$1+1)^2,0.001)*3^B118*IF(LEN(P118)=0,1,IF(P118>=$R$1,P118-$R$1+1,1/($R$1+1-P118))^2),1000000000) -> 5.805619017 | K118: 92 | L118: =IF(H118>0,SUMIF(Purchases!$U$3:$U$2002,A118,Purchases!$N$3:$N$2002)/H118,"") -> 42.87813616 | M118: 41 | O118: 2020 | Q118: 47 | R118: 1.978723404 | AP118: 85.75627232 | AQ118: 82 | AR118: Red | AZ118: 92 | BA118: Rater 1 | BF118: US| | BG118: US|| | BI118: Shiraz/Syrah | BK118: FALSE | BM118: Keep Wines | Syrah | Syrah Napa Valley | 0.75 L
A119: Keplinger Wines | 2017 | 77% Mourvedre, 19% Grenache, 4% Counoise | Caldera | 0.75 L | B119: 2 | C119: N | D119: US | E119: 2017 | F119: 1064.61366 | G119: =SUMIF(Purchases!$U$3:$U$2002,A119,Purchases!$K$3:$K$2002)+SUMIF('Fully Consumed'!$U$2:$U$2001,A119,'Fully Consumed'!$K$2:$K$2001) -> 1 | H119: =SUMIF(Purchases!$U$3:$U$2002,A119,Purchases!$M$3:$M$2001) -> 1 | I119: 1 | J119: =10/IF(H119>0,(K119/'Summary Stats'!$B$4)^3*(L119/'Summary Stats'!$B$3)^3*MAX((O119-$R$1+1)^2,0.001)*3^B119*IF(LEN(P119)=0,1,IF(P119>=$R$1,P119-$R$1+1,1/($R$1+1-P119))^2),1000000000) -> 0.003691653615 | K119: 93 | L119: =IF(H119>0,SUMIF(Purchases!$U$3:$U$2002,A119,Purchases!$N$3:$N$2002)/H119,"") -> 85.50330412 | M119: 83.71 | O119: 2027 | Q119: 2650 | R119: 0.03509433962 | S119: 0.1377358491 | T119: 0.1377358491 | U119: 0.1377358491 | V119: 0.1377358491 | W119: 0.1377358491 | X119: 0.1377358491 | Y119: 0.1377358491 | AP119: 85.50330412 | AQ119: 83.71 | AR119: Red | AS119: El Dorado | AT119: Goldbud Vineyard | AZ119: 93 | BA119: Rater 1 | BF119: US|El Dorado | BG119: US|El Dorado|Goldbud Vineyard | BI119: Mourvedre Blend | BK119: FALSE | BM119: Keplinger Wines | 77% Mourvedre, 19% Grenache, 4% Counoise | Caldera | 0.75 L
A120: Keplinger Wines | 2017 | Syrah & Viognier | Hangman's | 0.75 L | B120: 1 | C120: N | D120: US | E120: 2017 | F120: 1064.61366 | G120: =SUMIF(Purchases!$U$3:$U$2002,A120,Purchases!$K$3:$K$2002)+SUMIF('Fully Consumed'!$U$2:$U$2001,A120,'Fully Consumed'!$K$2:$K$2001) -> 1 | H120: =SUMIF(Purchases!$U$3:$U$2002,A120,Purchases!$M$3:$M$2001) -> 1 | I120: 1 | J120: =10/IF(H120>0,(K120/'Summary Stats'!$B$4)^3*(L120/'Summary Stats'!$B$3)^3*MAX((O120-$R$1+1)^2,0.001)*3^B120*IF(LEN(P120)=0,1,IF(P120>=$R$1,P120-$R$1+1,1/($R$1+1-P120))^2),1000000000) -> 0.01117383444 | K120: 93 | L120: =IF(H120>0,SUMIF(Purchases!$U$3:$U$2002,A120,Purchases!$N$3:$N$2002)/H120,"") -> 85.25035967 | M120: 82.64 | O120: 2027 | Q120: 2650 | R120: 0.03509433962 | S120: 0.1377358491 | T120: 0.1377358491 | U120: 0.1377358491 | V120: 0.1377358491 | W120: 0.1377358491 | X120: 0.1377358491 | Y120: 0.1377358491 | AP120: 85.25035967 | AQ120: 82.64 | AR120: Red | AS120: Clarksburg | AT120: Hudson Vineyards | AZ120: 93 | BA120: Rater 1 | BF120: US|Clarksburg | BG120: US|Clarksburg|Hudson Vineyards | BI120: Shiraz/Syrah Blend | BK120: FALSE | BM120: Keplinger Wines | Syrah & Viognier | Hangman's | 0.75 L
A121: Halcón Vineyards | 2018 | Pinot Noir | Oppenlander Pinot Noir | 0.75 L | B121: 3 | C121: N | D121: US | E121: 2018 | F121: 699.6136597 | G121: =SUMIF(Purchases!$U$3:$U$2002,A121,Purchases!$K$3:$K$2002)+SUMIF('Fully Consumed'!$U$2:$U$2001,A121,'Fully Consumed'!$K$2:$K$2001) -> 4 | H121: =SUMIF(Purchases!$U$3:$U$2002,A121,Purchases!$M$3:$M$2001) -> 4 | I121: 1 | J121: =10/IF(H121>0,(K121/'Summary Stats'!$B$4)^3*(L121/'Summary Stats'!$B$3)^3*MAX((O121-$R$1+1)^2,0.001)*3^B121*IF(LEN(P121)=0,1,IF(P121>=$R$1,P121-$R$1+1,1/($R$1+1-P121))^2),1000000000) -> 0.06349938322 | K121: 92 | L121: =IF(H121>0,SUMIF(Purchases!$U$3:$U$2002,A121,Purchases!$N$3:$N$2002)/H121,"") -> 36.85316093 | M121: 35.95 | O121: 2023 | Q121: 297.25 | R121: 0.3128679563 | S121: 1.227922624 | T121: 1.227922624 | U121: 1.227922624 | AP121: 147.4126437 | AQ121: 143.8 | AR121: Red | AS121: Yorkville Highlands | AT121: Oppenlander Vineyard | AZ121: 92 | BA121: Rater 1 | BF121: US|Yorkville Highlands | BG121: US|Yorkville Highlands|Oppenlander Vineyard | BI121: Pinot Noir | BK121: FALSE | BM121: Halcón Vineyards | Pinot Noir | Oppenlander Pinot Noir | 0.75 L
A122: Keplinger Wines | 2016 | GSM | Mars | 0.75 L | B122: 1 | C122: N | D122: US | E122: 2016 | F122: 1429.61366 | G122: =SUMIF(Purchases!$U$3:$U$2002,A122,Purchases!$K$3:$K$2002)+SUMIF('Fully Consumed'!$U$2:$U$2001,A122,'Fully Consumed'!$K$2:$K$2001) -> 1 | H122: =SUMIF(Purchases!$U$3:$U$2002,A122,Purchases!$M$3:$M$2001) -> 1 | I122: 1 | J122: =10/IF(H122>0,(K122/'Summary Stats'!$B$4)^3*(L122/'Summary Stats'!$B$3)^3*MAX((O122-$R$1+1)^2,0.001)*3^B122*IF(LEN(P122)=0,1,IF(P122>=$R$1,P122-$R$1+1,1/($R$1+1-P122))^2),1000000000) -> 0.01578835994 | K122: 93 | L122: =IF(H122>0,SUMIF(Purchases!$U$3:$U$2002,A122,Purchases!$N$3:$N$2002)/H122,"") -> 83.04482784 | M122: 82.64 | O122: 2026 | Q122: 2285 | R122: 0.04070021882 | S122: 0.1597374179 | T122: 0.1597374179 | U122: 0.1597374179 | V122: 0.1597374179 | W122: 0.1597374179 | X122: 0.1597374179 | AP122: 83.04482784 | AQ122: 82.64 | AR122: Red | AS122: Sonoma Mountain | AZ122: 93 | BA122: Rater 1 | BF122: US|Sonoma Mountain | BG122: US|Sonoma Mountain| | BI122: Grenache Blend | BK122: FALSE | BM122: Keplinger Wines | GSM | Mars | 0.75 L
A123: Keep Wines | 2019 | Counoise | Counoise Sierra Foothills, David Girard Vineyard | 0.75 L | B123: 3 | C123: N | D123: US | E123: 2019 | F123: 334.6136596 | G123: =SUMIF(Purchases!$U$3:$U$2002,A123,Purchases!$K$3:$K$2002)+SUMIF('Fully Consumed'!$U$2:$U$2001,A123,'Fully Consumed'!$K$2:$K$2001) -> 3 | H123: =SUMIF(Purchases!$U$3:$U$2002,A123,Purchases!$M$3:$M$2001) -> 3 | I123: 1 | J123: =10/IF(H123>0,(K123/'Summary Stats'!$B$4)^3*(L123/'Summary Stats'!$B$3)^3*MAX((O123-$R$1+1)^2,0.001)*3^B123*IF(LEN(P123)=0,1,IF(P123>=$R$1,P123-$R$1+1,1/($R$1+1-P123))^2),1000000000) -> 0.1192549408 | K123: 92 | L123: =IF(H123>0,SUMIF(Purchases!$U$3:$U$2002,A123,Purchases!$N$3:$N$2002)/H123,"") -> 25.74141661 | M123: 30.35 | O123: 2024 | Q123: 518.3333333 | R123: 0.1794212219 | S123: 0.7041800643 | T123: 0.7041800643 | U123: 0.7041800643 | V123: 0.7041800643 | AP123: 77.22424984 | AQ123: 91.05 | AR123: Red | AS123: Sierra Foothills | AT123: David Girard Vineyard | AZ123: 92 | BA123: Rater 1 | BF123: US|Sierra Foothills | BG123: US|Sierra Foothills|David Girard Vineyard | BI123: Counoise | BK123: FALSE | BM123: Keep Wines | Counoise | Counoise Sierra Foothills, David Girard Vineyard | 0.75 L
A124: Poggio il Castellare | 2004 | Brunello | Brunello di Montalcino | 0.75 L | B124: 1 | C124: N | D124: IT | E124: 2004 | F124: 5812.61366 | G124: =SUMIF(Purchases!$U$3:$U$2002,A124,Purchases!$K$3:$K$2002)+SUMIF('Fully Consumed'!$U$2:$U$2001,A124,'Fully Consumed'!$K$2:$K$2001) -> 12 | H124: =SUMIF(Purchases!$U$3:$U$2002,A124,Purchases!$M$3:$M$2001) -> 2 | I124: 0.1666666667 | J124: =10/IF(H124>0,(K124/'Summary Stats'!$B$4)^3*(L124/'Summary Stats'!$B$3)^3*MAX((O124-$R$1+1)^2,0.001)*3^B124*IF(LEN(P124)=0,1,IF(P124>=$R$1,P124-$R$1+1,1/($R$1+1-P124))^2),1000000000) -> 5.592039402 | K124: 96 | L124: =IF(H124>0,SUMIF(Purchases!$U$3:$U$2002,A124,Purchases!$N$3:$N$2002)/H124,"") -> 41.60816823 | M124: 40.01 | N124: AL-S-L4-1 | O124: 2020 | Q124: 47 | R124: 1.978723404 | S124: =IF(ISNUMBER($Q124),IF(AND(S$1<=$O124,S$1>=$P124),365/$Q124,""),"") ->  | AC124: =IF(ISNUMBER($Q124),IF(AND(AC$1<=$O124,AC$1>=$P124),365/$Q124,""),"") ->  | AP124: 83.21633645 | AQ124: 80.02 | AR124: Red | AW124: 40491 | AY124: 2004 Brunello | AZ124: 96 | BA124: Rater 2 | BF124: IT| | BG124: IT|| | BI124: Brunello | BK124: TRUE | BM124: Poggio il Castellare | Brunello | Brunello di Montalcino | 0.75 L
A125: Domaine Giraud | 2007 | Chateauneuf du Pape | Chateauneuf du Pape Les Gallimardes | 0.75 L | B125: 2 | C125: N | D125: FR | E125: 2007 | F125: 4717.61366 | G125: =SUMIF(Purchases!$U$3:$U$2002,A125,Purchases!$K$3:$K$2002)+SUMIF('Fully Consumed'!$U$2:$U$2001,A125,'Fully Consumed'!$K$2:$K$2001) -> 12 | H125: =SUMIF(Purchases!$U$3:$U$2002,A125,Purchases!$M$3:$M$2001) -> 7 | I125: 0.5833333333 | J125: =10/IF(H125>0,(K125/'Summary Stats'!$B$4)^3*(L125/'Summary Stats'!$B$3)^3*MAX((O125-$R$1+1)^2,0.001)*3^B125*IF(LEN(P125)=0,1,IF(P125>=$R$1,P125-$R$1+1,1/($R$1+1-P125))^2),1000000000) -> 0.008610975727 | K125: 96 | L125: =IF(H125>0,SUMIF(Purchases!$U$3:$U$2002,A125,Purchases!$N$3:$N$2002)/H125,"") -> 50.51057831 | M125: 48.91 | N125: AL-N-L1-2 | O125: 2030 | Q125: 535.1428571 | R125: 0.1737853711 | S125: 0.6820608649 | T125: 0.6820608649 | U125: 0.6820608649 | V125: 0.6820608649 | W125: 0.6820608649 | X125: 0.6820608649 | Y125: 0.6820608649 | Z125: 0.6820608649 | AA125: 0.6820608649 | AB125: 0.6820608649 | AP125: 353.5740482 | AQ125: 342.37 | AR125: Red | AY125: 2007 Châteauneuf-du-Pape | AZ125: 96 | BA125: Rater 2 | BF125: FR| | BG125: FR|| | BI125: Grenache Blend | BJ125: Châteauneuf-du-Pape | BK125: FALSE | BM125: Domaine Giraud | Chateauneuf du Pape | Chateauneuf du Pape Les Gallimardes | 0.75 L
A126: Keep Wines | 2018 | Counoise | Counoise Sierra Foothills, David Girard Vineyard | 0.75 L | B126: 3 | C126: N | D126: US | E126: 2018 | F126: 699.6136596 | G126: =SUMIF(Purchases!$U$3:$U$2002,A126,Purchases!$K$3:$K$2002)+SUMIF('Fully Consumed'!$U$2:$U$2001,A126,'Fully Consumed'!$K$2:$K$2001) -> 1 | H126: =SUMIF(Purchases!$U$3:$U$2002,A126,Purchases!$M$3:$M$2001) -> 1 | I126: 1 | J126: =10/IF(H126>0,(K126/'Summary Stats'!$B$4)^3*(L126/'Summary Stats'!$B$3)^3*MAX((O126-$R$1+1)^2,0.001)*3^B126*IF(LEN(P126)=0,1,IF(P126>=$R$1,P126-$R$1+1,1/($R$1+1-P126))^2),1000000000) -> 0.2099433749 | K126: 92 | L126: =IF(H126>0,SUMIF(Purchases!$U$3:$U$2002,A126,Purchases!$N$3:$N$2002)/H126,"") -> 24.73795838 | M126: 24.71 | O126: 2023 | Q126: 1189 | R126: 0.07821698907 | S126: 0.306980656 | T126: 0.306980656 | U126: 0.306980656 | AP126: 24.73795838 | AQ126: 24.71 | AR126: Red | AS126: Sierra Foothills | AT126: David Girard Vineyard | AZ126: 92 | BA126: Rater 1 | BF126: US|Sierra Foothills | BG126: US|Sierra Foothills|David Girard Vineyard | BI126: Counoise | BK126: FALSE | BM126: Keep Wines | Counoise | Counoise Sierra Foothills, David Girard Vineyard | 0.75 L
A127: Keep Wines | 2017 | Counoise | Counoise Sierra Foothills, David Girard Vineyard | 0.75 L | B127: 3 | C127: N | D127: US | E127: 2017 | F127: 1064.61366 | G127: =SUMIF(Purchases!$U$3:$U$2002,A127,Purchases!$K$3:$K$2002)+SUMIF('Fully Consumed'!$U$2:$U$2001,A127,'Fully Consumed'!$K$2:$K$2001) -> 1 | H127: =SUMIF(Purchases!$U$3:$U$2002,A127,Purchases!$M$3:$M$2001) -> 1 | I127: 1 | J127: =10/IF(H127>0,(K127/'Summary Stats'!$B$4)^3*(L127/'Summary Stats'!$B$3)^3*MAX((O127-$R$1+1)^2,0.001)*3^B127*IF(LEN(P127)=0,1,IF(P127>=$R$1,P127-$R$1+1,1/($R$1+1-P127))^2),1000000000) -> 0.3455640013 | K127: 92 | L127: =IF(H127>0,SUMIF(Purchases!$U$3:$U$2002,A127,Purchases!$N$3:$N$2002)/H127,"") -> 25.38132201 | M127: 24.71 | O127: 2022 | Q127: 824 | R127: 0.1128640777 | S127: 0.442961165 | T127: 0.442961165 | AP127: 25.38132201 | AQ127: 24.71 | AR127: Red | AS127: Sierra Foothills | AT127: David Girard Vineyard | AZ127: 92 | BA127: Rater 1 | BF127: US|Sierra Foothills | BG127: US|Sierra Foothills|David Girard Vineyard | BI127: Counoise | BK127: FALSE | BM127: Keep Wines | Counoise | Counoise Sierra Foothills, David Girard Vineyard | 0.75 L
A128: Elvio Cogno | 2007 | Barolo | Barolo Cascina Nuova | 0.75 L | B128: 1 | C128: N | D128: IT | E128: 2007 | F128: 4717.61366 | G128: =SUMIF(Purchases!$U$3:$U$2002,A128,Purchases!$K$3:$K$2002)+SUMIF('Fully Consumed'!$U$2:$U$2001,A128,'Fully Consumed'!$K$2:$K$2001) -> 12 | H128: =SUMIF(Purchases!$U$3:$U$2002,A128,Purchases!$M$3:$M$2001) -> 11 | I128: 0.9166666667 | J128: =10/IF(H128>0,(K128/'Summary Stats'!$B$4)^3*(L128/'Summary Stats'!$B$3)^3*MAX((O128-$R$1+1)^2,0.001)*3^B128*IF(LEN(P128)=0,1,IF(P128>=$R$1,P128-$R$1+1,1/($R$1+1-P128))^2),1000000000) -> 0.05934616802 | K128: 95 | L128: =IF(H128>0,SUMIF(Purchases!$U$3:$U$2002,A128,Purchases!$N$3:$N$2002)/H128,"") -> 38.6833088 | M128: 37.99 | N128: AL-E-L2-2 | O128: 2030 | Q128: 340.5454545 | R128: 0.2730912974 | S128: 1.071809931 | T128: 1.071809931 | U128: 1.071809931 | V128: 1.071809931 | W128: 1.071809931 | X128: 1.071809931 | Y128: 1.071809931 | Z128: 1.071809931 | AA128: 1.071809931 | AB128: 1.071809931 | AP128: 425.5163968 | AQ128: 417.89 | AR128: Red | AZ128: 95 | BA128: Rater 2 | BF128: IT| | BG128: IT|| | BI128: Nebbiolo | BK128: FALSE | BM128: Elvio Cogno | Barolo | Barolo Cascina Nuova | 0.75 L | BN128: 2020-10-31 | BO128: 2020-06-19
